{"text_format":"1","workbook":"xlsx","n_sheets":3,"sheets":["TEKLİF","TEKLİF Resim","WEB İÇİN"],"not_rendered":{"charts":0,"images":1,"macros":1,"external_links":0,"defined_names":28,"comments":3,"pivot_tables":0},"unopened":[],"bounds":{"document_bytes":16777216,"sheet_cells":100000,"rows_first":2000,"rows_last":500,"rows_between":2000,"halvings":0,"cell_chars":16384,"cell_head_chars":4096},"cells_cut":0,"cells_raw":0,"read":"whole","date_system":"1900"}

{"sheet":"TEKLİF","index":0,"n_rows":257,"n_cols":76,"rows_kept":257,"cut":false,"hidden":false,"merged":[[43,10,43,11],[41,10,41,11],[42,10,42,11],[42,7,42,9],[41,1,41,5],[42,1,42,5],[41,7,41,9],[43,7,43,9],[43,1,43,5],[40,10,40,11],[40,1,40,5],[39,1,39,5],[9,13,10,13],[9,14,10,14],[39,10,39,11],[39,7,39,9],[40,7,40,9],[9,23,10,23],[9,21,10,21],[9,19,10,19],[1,4,3,11],[38,10,38,11],[4,4,4,11],[9,16,9,18],[5,4,5,11],[38,7,38,9],[38,1,38,5],[9,22,10,22],[9,20,10,20],[57,0,57,11],[55,0,55,11],[54,0,54,11],[56,0,56,11],[44,10,44,11],[44,7,44,9],[45,10,45,11],[44,1,44,5],[45,1,45,5],[47,1,47,14],[48,1,48,14],[49,1,49,14]]}
[null,null,null,null,null,null,null,null,null,null,null,null,null,null,null,"CTRL + Q","opsiyon","vade","Teslimat","Stok",null,null,null,null,null,null,null,null,null,null,null,null,null,null,null,null,null,null,null,null,null,null,null,null,null,null,null,null,"http://www.kayalarkereste.com/image/"]
[null,"Firma :",null,null,"Demka Kereste",null,null,null,null,null,null,null,null,null,null,null,"7 Gün","Nakit","Fabrikamızda kamyon üstü teslim","Hazır Değil",null,null,null,null," "]
[null,"İlgili :",null,null,null,null,null,null,null,null,null,null,null,null,null,null,"15 Gün","30 Gün","Nakliye Dahil Müşteri Adrese Teslim","Yarı Hazır Ürün"]
[null,"Tarih :",{"$f":"NOW()","v":"2020-03-26T14:07:08.290"},null,null,null,null,null,null,null,null,null,null,null,null,null,"30 Gün","60 Gün",null,"Hazır Ürün"]
[null,"Mail :",null,null,"Orman Ürünleri İnş. San. Tic. Ltd. Şti."]
[null,"Opsiyon :",{"$f":"Q2","v":"7 Gün"}]
[null,"Vade :",{"$f":"R2","v":"Nakit"},null,null,null,null,"Yavuz Demircioğlu",": 0532 221 62 72"]
[null,"Teslimat :",{"$f":"S2","v":"Fabrikamızda kamyon üstü teslim"}]
[null,"Stok :",{"$f":"T2","v":"Hazır Değil"}]
[null,null,null,null,null,null,null,null,null,null,null,null,null,"1 ad kapat","Kapat M2",null,"Kalın Ölç Fiyatı",null,null,"M3 /ad.","1 ad kapattığı genişlk","M2 Fiyat","1 m3 kapattığı alan","M3 / fiyat"]
[null,"KOD","Cinsi","Tn","En","Kln","Boy","Miktar",null,"Fiyat","Dm3","Tutar",null,null,"Kapatılan",null,"EN","Kln","Fiyat",null,null,null,null,null,null,null,null,null,null,"KOD","Ürün İsmi","Açıklama","Tane mi","Net Ölçü Fiyatı","+kdv","Boy","Kln","En",null,"Fiyatı m3",null,"kln","en",null,"genişlik kaç cm dir  ?","m2 Fiyatı","Kapattığı alan"]
[null,null,null,{"$f":"IF(IFERROR(VLOOKUP(C12,AE:AG,3,FALSE),\"\")<>\"\",\"a\",\"\")","v":""},null,null,null,null,null,{"$f":"IFERROR(VLOOKUP(B12,AD:AH,5,FALSE),\"\")","v":""},null,null,null,null,null,null,null,null,null,null,null,null,null,null,null,null,null,null,null,null,null,null,null,null,null,null,null,null,null,{"$f":"IFERROR(AH12*AL12*AK12/AQ12/AP12,\"\")","v":""}]
[{"$f":"IFERROR(HYPERLINK((VLOOKUP(B13,AZ:BD,5,FALSE)),\"█\"),\"1\")","v":"1"},null,{"$f":"IFERROR(VLOOKUP(B13,AD:AE,2,FALSE),\"\")","v":""},null,{"$f":"IFERROR(VLOOKUP(B13,AD:AS,14,FALSE),\"\")","v":""},{"$f":"IFERROR(VLOOKUP(B13,AD:AS,13,FALSE),\"\")","v":""},{"$f":"IFERROR(VLOOKUP(B13,AD:AJ,7,FALSE),\"\")","v":""},null,null,"",{"$f":"IFERROR((E13*F13*G13*H13)/1000,\"\")","v":""},{"$f":"IFERROR(IF(D13<>\"\",H13*J13,IF(O13<>\"\",O13*J13,IF(K13>1,K13*J13/1000))),\"\")","v":""},null,{"$f":"IFERROR(VLOOKUP(C13,AE:AS,15,FALSE),\"\")","v":""},{"$f":"IFERROR(N13*G13*H13/10000,\"\")","v":""},null,{"$f":"IFERROR(IF(COUNTA(E13)>=1,IF(E13<4,2.6,IF(E13<5.1,5,IF(E13<10.1,10,IF(E13<15,15)))),\"\"),\"\")","v":false},{"$f":"IFERROR(IF(F13<=2.6,2.6,IF(F13<5.1,5,IF(F13<10.1,10,IF(F13<15,15)))),\"\")","v":false},{"$f":"IFERROR(E13*F13*J13/Q13/R13,\"\")","v":""},{"$f":"IFERROR(IF(H13<>\"\",(1000/G13/F13/E13*1000),\"\"),\"\")","v":""},1,{"$f":"IFERROR(((100/E13/F13)*N13),\"\")","v":""},{"$f":"IFERROR((100/E13/F13)*N13,\"\")","v":""},{"$f":"IF(D13<>\"\",J13*W13,\"\")","v":""},null,{"$f":"IFERROR(HYPERLINK((VLOOKUP(AA13,AZ:BD,5,FALSE)),\" ████ Kod: \"),\"Kod :\")","v":" ████ Kod: "},"KT-110",null,null,"KR-107","Kereste 5 x 10 Ukrayna","Ukrayna inşaatlık",null,990,{"$f":"AH13*0.18","v":178.2},300,5,10,null,990,null,5,10,null,null,{"$f":"IFERROR(AH13/((100/AP13/AQ13)*AS13),\"\")","v":""},{"$f":"IF(AG13<>\"\",\"\",IFERROR((100/AP13/AQ13)*AS13,\"\"))","v":0},null,null,"name(tr)","sku","model","image_name","price",null,null,null,null,null,null,null,null,null,null,null,null,null,null,null,null,null,null,"Kalınlık","En","3 Boy Adet","4 Boy Adet"]
[{"$f":"IFERROR(HYPERLINK((VLOOKUP(B14,AZ:BD,5,FALSE)),\"█\"),\"2\")","v":"2"},null,"",{"$f":"IF(IFERROR(VLOOKUP(C14,AE:AG,3,FALSE),\"\")<>\"\",\"a\",\"\")","v":""},"","","",null,null,"",{"$f":"IFERROR((E14*F14*G14*H14)/1000,\"\")","v":""},"",null,"",{"$f":"IFERROR(N14*G14*H14/10000,\"\")","v":""},null,{"$f":"IFERROR(IF(COUNTA(E14)>=1,IF(E14<4,2.6,IF(E14<5.1,5,IF(E14<10.1,10,IF(E14<15,15)))),\"\"),\"\")","v":false},false,"","",{"$f":"IFERROR(VLOOKUP(C14,AE:AS,15,FALSE),\"\")","v":""},{"$f":"IFERROR(J14/((100/E14/F14)*U14),\"\")","v":""},{"$f":"IFERROR((100/E14/F14)*N14,\"\")","v":""},{"$f":"IF(D14<>\"\",J14*W14,\"\")","v":""},null,"Cins :",{"$f":"CONCATENATE(IFERROR(VLOOKUP(AA13,AD:AE,2,FALSE),\"\"),\" - \",IFERROR(VLOOKUP(AA13,AD:AF,3,FALSE),\"\"))","v":"Kütük Ev Duvar Profil Ukrayna - Ukrayna"},null,null,"KR-108","Kereste 10 x 10 Ukrayna","Ukrayna inşaatlık",null,990,178.2,300,10,10,null,990,null,10,10,null,null,"",0,null,{"$f":"HYPERLINK(BD14,AZ14)","v":"PM-103"},"PM-103 Piknik Masa ","Adet","PM-103","catalog/Piknik-Masa/PM-103/PM-103-piknik-masa-ucuz-fiyatlari-imalati-resimleri- www.kayalarkereste.com-01.jpg",870,null,null,null,null,null,null,null,null,null,null,null,null,null,null,null,null,null,"inşaatlık kereste",91,41,{"$f":"1000000/300/5/10","v":66.666666666666671},{"$f":"1000000/400/5/10","v":50}]
[{"$f":"IFERROR(HYPERLINK((VLOOKUP(B15,AZ:BD,5,FALSE)),\"█\"),\"3\")","v":"3"},null,"","","","","",null,null,"","","",null,"","",null,{"$f":"IF(E15<4,2.6,IF(E15<5.1,5,IF(E15<10.1,10,IF(E15<15,15))))","v":false},false,"","","","","","",null,"En :",{"$f":"IFERROR(VLOOKUP(AA13,AD:AL,9,FALSE),\"\")","v":15},null,null,"KR-101","Kereste 41 x 91 Ukrayna","Ukrayna inşaatlık",null,990,178.2,300,4.0999999999999996,9.1,null,738.73799999999994,null,5,10,null,null,"",0,null,"SA-102","SA-102 Ahşap Salıncak ","Adet","SA-102","catalog/Piknik-Masa/SA-102/SA-102-ahsap-salincak-fiyatlari-esitleri-istanbul-08.jpg",2300,null,{"$f":"CONCATENATE($AW$1, BA15)","v":"http://www.kayalarkereste.com/image/catalog/Piknik-Masa/SA-102/SA-102-ahsap-salincak-fiyatlari-esitleri-istanbul-08.jpg"},null,null,null,null,null,null,null,null,null,null,null,null,null,null,null,"inşaatlık kereste",91,91,{"$f":"1000000/300/10/10","v":33.333333333333336},{"$f":"1000000/400/10/10","v":25}]
[{"$f":"IFERROR(HYPERLINK((VLOOKUP(B16,AZ:BD,5,FALSE)),\"█\"),\"4\")","v":"4"},null,"","","","","",null,null,"","","",null,"","",null,{"$f":"IF(E16<4,2.6,IF(E16<5.1,5,IF(E16<10.1,10,IF(E16<15,15))))","v":false},false,"","","","","","",null,"Net Kalınlık :",{"$f":"IFERROR(VLOOKUP(AA13,AD:AP,8,FALSE),\"\")","v":9},null,null,"KR-102","Kereste 91 x 91 Ukrayna","Ukrayna inşaatlık","b",990,178.2,300,9.1,9.1,null,819.81899999999985,null,10,10,null,null,"","",null,"PM-104","PM-104 Piknik Masa","Adet","PM-104","catalog/Piknik-Masa/PM-104/pm-104-piknik-masa-fiyatlari-01.jpg",928,null,"http://www.kayalarkereste.com/image/catalog/Piknik-Masa/PM-104/pm-104-piknik-masa-fiyatlari-01.jpg",null,null,null,null,null,null,null,null,null,null,null,null,null,null,null,"inşaatlık kereste",43,93,{"$f":"1000000/300/5/10","v":66.666666666666671},{"$f":"1000000/400/5/10","v":50}]
[{"$f":"IFERROR(HYPERLINK((VLOOKUP(B17,AZ:BD,5,FALSE)),\"█\"),\"5\")","v":"5"},null,"","","","","",null,null,"","","",null,"","",null,false,false,"","","","","","",null,"Önceki Ham Kalınlık :",{"$f":"IFERROR(VLOOKUP(AA13,AD:AP,13,FALSE),\"\")","v":10},null,null,"KR-103","Kereste 43 x 93 Ukrayna","Ukrayna inşaatlık",null,990,178.2,300,4.3,9.3000000000000007,null,791.80199999999991,null,5,10,null,null,"",0,null,"PM-106","PM-106 Piknik Masa","Adet","PM-106","catalog/Piknik-Masa/PM-106/pm-106-ahsap-piknik-kir-masa-03.jpg",638,null,"http://www.kayalarkereste.com/image/catalog/Piknik-Masa/PM-106/pm-106-ahsap-piknik-kir-masa-03.jpg",null,null,null,null,null,null,null,null,null,null,null,null,null,null,null,"inşaatlık kereste",93,93,{"$f":"1000000/300/10/10","v":33.333333333333336},{"$f":"1000000/400/10/10","v":25}]
[{"$f":"IFERROR(HYPERLINK((VLOOKUP(B18,AZ:BD,5,FALSE)),\"█\"),\"6\")","v":"6"},null,"","","","","",null,null,null,"","",null,"","",null,false,false,"","","","","","",null,"Boy :",null,null,null,"KR-102","Kereste 93 x 93 Ukrayna","Ukrayna inşaatlık",null,990,178.2,300,9.3000000000000007,9.3000000000000007,null,856.25099999999998,null,10,10,null,null,"",0,null,"PM-107","PM-107 Piknik Masa","Adet","PM-107","catalog/Piknik-Masa/PM-107/PM-107-metal-dokum-ayakli-ahsap-maun-bahce-dis-mekan-masa-01.jpg",672.8,null,"http://www.kayalarkereste.com/image/catalog/Piknik-Masa/PM-107/PM-107-metal-dokum-ayakli-ahsap-maun-bahce-dis-mekan-masa-01.jpg",null,null,null,null,null,null,null,null,null,null,null,null,null,null,null,"inşaatlık kereste",45,95,{"$f":"1000000/300/5/10","v":66.666666666666671},{"$f":"1000000/400/5/10","v":50}]
[{"$f":"IFERROR(HYPERLINK((VLOOKUP(B19,AZ:BD,5,FALSE)),\"█\"),\"7\")","v":"7"},null,"","","","","",null,null,null,"","",null,"","",null,false,false,"","","","","","",null,"1 adet kapattığı genşlik:",{"$f":"IFERROR(VLOOKUP(AA13,AD:AS,16,FALSE),\"\")","v":13.5},null,null,"KR-105","Kereste 45 x 95 Ukrayna","Ukrayna inşaatlık",null,990,178.2,300,4.5,9.5,null,846.45,null,5,10,null,null,"",0,null,"PM-108","PM-108 Piknik Masa","Adet","PM-108","catalog/Piknik-Masa/PM-108/pm-108-ahsap-masa-fiyatlari-resimleri-02.jpg",348,null,"http://www.kayalarkereste.com/image/catalog/Piknik-Masa/PM-108/pm-108-ahsap-masa-fiyatlari-resimleri-02.jpg",null,null,null,null,null,null,null,null,null,null,null,null,null,null,null,"inşaatlık kereste",95,95,{"$f":"1000000/300/10/10","v":33.333333333333336},{"$f":"1000000/400/10/10","v":25}]
[{"$f":"IFERROR(HYPERLINK((VLOOKUP(B20,AZ:BD,5,FALSE)),\"█\"),\"8\")","v":"8"},null,"","","","","",null,null,{"$f":"IFERROR(VLOOKUP(B20,AD:AH,5,FALSE),\"\")","v":""},"",{"$f":"IFERROR(IF(D20<>\"\",H20*J20,IF(O20<>\"\",O20*J20,IF(K20>1,K20*J20/1000))),\"\")","v":""},null,"","",null,{"$f":"IF(COUNTA(E20)>=1,IF(E20<4,2.6,IF(E20<5.1,5,IF(E20<10.1,10,IF(E20<15,15)))),\"\")","v":false},false,"","","","","","",null,"Kapatığı Alan :",{"$f":"((1000/AA17/AA15)*AA19)/10","v":9},null,null,"KR-106","Kereste 95 x 95 Ukrayna","Ukrayna inşaatlık",null,990,178.2,300,9.5,9.5,null,893.47500000000002,null,10,10,null,null,"",0,null,"PM-109","PM-109 Piknik Masa","Adet","PM-109","catalog/Piknik-Masa/PM-109/pm-109-ahsap-piknik-masa-fiyatlari-09.jpg",928,null,"http://www.kayalarkereste.com/image/catalog/Piknik-Masa/PM-109/pm-109-ahsap-piknik-masa-fiyatlari-09.jpg",null,null,null,null,null,null,null,null,null,null,null,null,null,null,null,"inşaatlık kereste",50,100,{"$f":"1000000/300/5/10","v":66.666666666666671},{"$f":"1000000/400/5/10","v":50}]
[{"$f":"IFERROR(HYPERLINK((VLOOKUP(B21,AZ:BD,5,FALSE)),\"█\"),\"9\")","v":"9"},null,"",null,"","","",null,null,"","",{"$f":"IFERROR(IF(D21<>\"\",H21*J21,IF(O21<>\"\",O21*J21,IF(K21>1,K21*J21/1000))),\"\")","v":""},null,"",""," ",false,false,"","","","","","",null,"M3 ü kaç Adet :",{"$f":"1000000/AA15/AA17/AA18","v":{"$error":"#DIV/0!"}},null,null,"KR-100","Tahta -10-..-20 Ukrayna","Ukrayna inşaatlık",null,990,178.2,300,2.2000000000000002,10,null,837.69230769230762,null,2.6,10,null,null,"",0,null,"PM-111","PM-111 Ahşap Piknik Masa ","Adet","PM-111","catalog/Piknik-Masa/pm-111/pm-111-ahsap-piknik-masa-yaslanmali-ucuz-fiyatari-www.parkbahcemobilya.com-03.jpg",696,null,"http://www.kayalarkereste.com/image/catalog/Piknik-Masa/pm-111/pm-111-ahsap-piknik-masa-yaslanmali-ucuz-fiyatari-www.parkbahcemobilya.com-03.jpg",null,null,null,null,null,null,null,null,null,null,null,null,null,null,null,"inşaatlık kereste",100,100,{"$f":"1000000/300/10/10","v":33.333333333333336},{"$f":"1000000/400/10/10","v":25}]
[{"$f":"IFERROR(HYPERLINK((VLOOKUP(B22,AZ:BD,5,FALSE)),\"█\"),\"10\")","v":"10"},null,"",{"$f":"IF(IFERROR(VLOOKUP(C22,AE:AG,3,FALSE),\"\")<>\"\",\"a\",\"\")","v":""},"","","",null,null,"","","",null,"","",null,false,false,"","","","","","",null,"M2' si kaç Adet :",{"$f":"1/(AA18*AA19)*10000","v":{"$error":"#DIV/0!"}},null,null,"LM-108","Lambiri 1.Sınıf Sibirya","Sibirya",null,1650,297,300,2.2000000000000002,10,null,1396.1538461538462,null,2.6,10,null,7.8,55.000000000000007,29.999999999999996,null,"PM-110","PM-110 Piknik Masa","Adet","PM-110","catalog/Piknik-Masa/pm-110/pm-110-piknik-masa-ucuz-fiyatlari-03.jpg",1044,null,"http://www.kayalarkereste.com/image/catalog/Piknik-Masa/pm-110/pm-110-piknik-masa-ucuz-fiyatlari-03.jpg"]
[{"$f":"IFERROR(HYPERLINK((VLOOKUP(B23,AZ:BD,5,FALSE)),\"█\"),\"11\")","v":"11"},null,"","","","","",null,null,"","","",null,"","",null,false,false,"","","","","","",null,"Tanesi Kaç Dm3 :",{"$f":"AA15*AA16*AA18/1000","v":0},null,null,"LM-103","Lambiri Extra Ukrayna","Ukrayna",null,1800,324,300,2.6,12,null,1800,null,2.6,12,null,11,51.054545454545455,35.256410256410255,null,"PA-126","PA-126 Çocuk Oyun Parkı","Adet","PA-126","catalog/Oyun-Park/PA-126/oyun-parki-fiyatlari-salincak-tahterevan-www.ahsapfiyatlistesi.com-PA-126-02.jpg",4700,null,"http://www.kayalarkereste.com/image/catalog/Oyun-Park/PA-126/oyun-parki-fiyatlari-salincak-tahterevan-www.ahsapfiyatlistesi.com-PA-126-02.jpg",null,null,null,null,null,null,null,null,null,null,null,null,null,null,null,"inşaatlık keresteler  5x10  ve 10x10  Tam ölçü hesaplanır. Kamyon bazında peşin satış fiyatıdır."]
[{"$f":"IFERROR(HYPERLINK((VLOOKUP(B24,AZ:BD,5,FALSE)),\"█\"),\"12\")","v":"12"},null,"","","","","",null,null,"","","",null,"","",null,false,false,"","","","","","",null,"1 m3 Fiyatı :","Kapattığı Alan  x  m2 Fiyatı  ",null,null,"LM-101","Lambiri 1.Sn. Ukrayna","Ukrayna",null,1550,279,300,2.6,10,null,1550,null,2.6,10,null,7.8,51.666666666666671,29.999999999999996,null,"PA-127","PA-127 Çocuk Oyun Parkı","Adet","PA-127","catalog/Oyun-Park/PA-127/ahsap-cocuk-oyun-parki-fiyatlari-www.ahsapfiyatlistesi.com-PA-127-05.jpg",7540,null,"http://www.kayalarkereste.com/image/catalog/Oyun-Park/PA-127/ahsap-cocuk-oyun-parki-fiyatlari-www.ahsapfiyatlistesi.com-PA-127-05.jpg"]
[{"$f":"IFERROR(HYPERLINK((VLOOKUP(B25,AZ:BD,5,FALSE)),\"█\"),\"13\")","v":"13"},null,"","","","","",null,null,"","","",null,"","",null,false,false,"","","","","","",null,"Nakliye :","Hariç",null,null,"LM-102","Lambiri 2.Sn. Ukrayna","Ukrayna",null,1450,261,300,2.6,10,null,1450,null,2.6,10,null,7.8,48.333333333333336,29.999999999999996,null,{"$f":"HYPERLINK(BD25,AZ25)","v":"PA-128"},"PA-128 Çocuk Oyun Parkı","Adet","PA-128","catalog/Oyun-Park/PA-128/ahsap-cocuk-oyun-parki-fiyatlari-www-ahsapfiyatlistesi-com-PA-128-02.jpg",4640,null,"http://www.kayalarkereste.com/image/catalog/Oyun-Park/PA-128/ahsap-cocuk-oyun-parki-fiyatlari-www-ahsapfiyatlistesi-com-PA-128-02.jpg"]
[{"$f":"IFERROR(HYPERLINK((VLOOKUP(B26,AZ:BD,5,FALSE)),\"█\"),\"14\")","v":"14"},null,"","","","","",null,null,"","","",null,"","",null,false,false,"","","","","","",null,"Koruyucu :","İsteğe göre Emprenye Katkılı Su bazlı ahşap koruyucu boya uygulanabilir. fiyat sorunuz",null,null,"LM-112","OSB 11mm Ukrayna",1,"b",58,10.44,244,1.1000000000000001,122,null,58,null,1.1000000000000001,122,null,122,0.63800000000000001,{"$f":"IF(AG26<>\"\",\"\",IFERROR((100/AP26/AQ26)*AS26,\"\"))","v":""},null,"PA-129","PA-129 Çocuk Oyun Parkı","Adet","PA-129","catalog/Oyun-Park/PA-129/ahsap-oyun-parki-salincak-tahterevan-fiyatlari-www.ahsapfiyatlistesi.com-PA-129-01.jpg",4500,null,"http://www.kayalarkereste.com/image/catalog/Oyun-Park/PA-129/ahsap-oyun-parki-salincak-tahterevan-fiyatlari-www.ahsapfiyatlistesi.com-PA-129-01.jpg"]
[{"$f":"IFERROR(HYPERLINK((VLOOKUP(B27,AZ:BD,5,FALSE)),\"█\"),\"15\")","v":"15"},null,"","","","","",null,null,"","","",null,"","",null,false,false,"","","","","","",null,"Teslim Süresi :","Ortalama 1 ile 15 gün arası",null,null,"LM-113","OSB 9mm Ukrayna",null,"a",53,9.5399999999999991,244,0.9,122,null,53,null,0.9,122,null,122,0.47699999999999998,{"$f":"IF(AG27<>\"\",\"\",IFERROR((100/AP27/AQ27)*AS27,\"\"))","v":""},null,"PA-130","PA-130 Çocuk Oyun Parkı","Adet","PA-130","catalog/Oyun-Park/PA-130/PA-130-havuzlu-platform-cocuk-oyun-parkı-01.jpg",7540,null,"http://www.kayalarkereste.com/image/catalog/Oyun-Park/PA-130/PA-130-havuzlu-platform-cocuk-oyun-parkı-01.jpg"]
[{"$f":"IFERROR(HYPERLINK((VLOOKUP(B28,AZ:BD,5,FALSE)),\"█\"),\"16\")","v":"16"},null,"","","","","",null,null,"","","",null,"","",null,false,false,"","","","","","",null,"Garanti :","5 Yıl",null,null,"LM-114","Alın Tahtası Ukrayna","Ukrayna","a",30,5.3999999999999995,300,2.2000000000000002,20,null,25.384615384615383,null,2.6,20,null,null,"","",null,"AC-101","Ahşap Çit Korkuluk  AC-101","Metre","AC-101","catalog/cit-korkuluk/AC-101/AC-101-çit-korkuluk-trabzan-ahşap-korkuluk-03.JPG",139.19999999999999,null,"http://www.kayalarkereste.com/image/catalog/cit-korkuluk/AC-101/AC-101-çit-korkuluk-trabzan-ahşap-korkuluk-03.JPG"]
[{"$f":"IFERROR(HYPERLINK((VLOOKUP(B29,AZ:BD,5,FALSE)),\"█\"),\"17\")","v":"17"},null,"","","","","",null,null,"","","",null,"","",null,false,false,"","","","","","",null,"Bakım :","İlk bakım 1 sene sonra, takip eden bakımlar yaklaşık 2 yılda bir yapılmalıdır.",null,null,"LM-115","süpürgelik Ukrayna","Ukrayna","m",2,0.36,300,2.2000000000000002,5,null,2,null,2.2000000000000002,5,null,null,"","",null,"AC-102","Ahşap Çit Korkuluk  AC-102","Metre","AC-102","2018/02/ac-102-ahsap-cit-korkuluk-fiyatlari-tuzla-pendik-gebze-04.jpg",98.6,null,"http://www.kayalarkereste.com/image/2018/02/ac-102-ahsap-cit-korkuluk-fiyatlari-tuzla-pendik-gebze-04.jpg"]
[{"$f":"IFERROR(HYPERLINK((VLOOKUP(B30,AZ:BD,5,FALSE)),\"█\"),\"18\")","v":"18"},null,"","","","","",null,null,"","","",null,"","",null,false,false,"","","","","","",null,null,null,null,null,"LM-116","Cephe  12 cm geniş Ukrayna","Ukrayna",null,1700,306,400,3.5,12,null,1700,null,3.5,12,null,9.9,72.12121212121211,23.571428571428573,null,"AC-103","Ahşap Çit Korkuluk  AC-103","Metre","AC-103","catalog/cit-korkuluk/AC-103/ahsap-cit-korkuluk-modelleri-fiyatlari-AC-103-01.jpg",139.19999999999999,null,"http://www.kayalarkereste.com/image/catalog/cit-korkuluk/AC-103/ahsap-cit-korkuluk-modelleri-fiyatlari-AC-103-01.jpg"]
[{"$f":"IFERROR(HYPERLINK((VLOOKUP(B31,AZ:BD,5,FALSE)),\"█\"),\"19\")","v":"19"},null,"","","","","",null,null,"","","",null,"","",null,false,false,"","","","","",""]
[{"$f":"IFERROR(HYPERLINK((VLOOKUP(B32,AZ:BD,5,FALSE)),\"█\"),\"20\")","v":"20"},null,"","","","","",null,null,"","","",null,"","",null,false,false,"","","","","",""]
[{"$f":"IFERROR(HYPERLINK((VLOOKUP(B33,AZ:BD,5,FALSE)),\"█\"),\"21\")","v":"21"},null,"","","","","",null,null,"","","",null,"","",null,false,false,"","","","","",""]
[{"$f":"IFERROR(HYPERLINK((VLOOKUP(B34,AZ:BD,5,FALSE)),\"█\"),\"22\")","v":"22"},null,"","","","","",null,null,"","","",null,"","",null,false,false,"","","","","",""]
[{"$f":"IFERROR(HYPERLINK((VLOOKUP(B35,AZ:BD,5,FALSE)),\"█\"),\"23\")","v":"23"},null,"","","","","",null,null,"","","",null,"","",null,false,false,"","","","","","",null,"1 m2 Fiyatı :",{"$f":"IFERROR((VLOOKUP(AA13,AD:AH,5,FALSE)/Kapatığı_Alan),\"\")","v":222.22222222222223},null,null,"KS-100","KS-100 silinmiş Sibirya","5 x 10 Sibirya",null,2400,432,400,5,10,null,2400,null,5,10,null,null,"",0,null,"AC-104","Ahşap Çit Korkuluk  AC-104","Metre","AC-104","catalog/cit-korkuluk/AC-104/ac-104-ahsap-cit-korkuluk-modelleri-fiyatlari-resimleri-www.kayalarkereste.com-07.jpg",139.19999999999999,null,"http://www.kayalarkereste.com/image/catalog/cit-korkuluk/AC-104/ac-104-ahsap-cit-korkuluk-modelleri-fiyatlari-resimleri-www.kayalarkereste.com-07.jpg"]
[{"$f":"IFERROR(HYPERLINK((VLOOKUP(B36,AZ:BD,5,FALSE)),\"█\"),\"24\")","v":"24"},null,"","","","","",null,null,"","","",null,"","",null,false,false,"","","","","","",null,null,null,null,null,"KS-101","KS-101 silinmiş Sibirya","5 x 10 Ukrayna",null,1700,306,300,5,10,null,1700,null,5,10,null,null,"",0,null,"VH-107","Ahşap Çocuk Oyun Evi","Adet","VH-107","catalog/cocuk-evi/VH-107/cocuk-oyun-evi-oyun-bahce-fiyatlari-modelleri-www.ahsapfiyatlistesi.com-vh-107-05.JPG",6500,null,"http://www.kayalarkereste.com/image/catalog/cocuk-evi/VH-107/cocuk-oyun-evi-oyun-bahce-fiyatlari-modelleri-www.ahsapfiyatlistesi.com-vh-107-05.JPG"]
[null,null,null,null,null,null,null,{"$f":"SUM(H13:H36)","v":0},null,null,{"$f":"SUM(K13:K36)","v":0},{"$f":"SUM(L13:L36)","v":0},null,null,null,null,null,null,null,null,null,null,null,null,null,null,null,null,null,"KS-103","KS-103 silinmiş Sibirya","5 x 15 Sibirya",null,2300,414,400,5,10,null,2300,null,5,10,null,null,"",0,null,"VH-108","Ahşap Çocuk Oyun Evi","Adet","VH-108","catalog/cocuk-evi/VH-108/oyun-evi-www.ahsapfiyatlistesi.com-VH-108-01.JPG",6500,null,"http://www.kayalarkereste.com/image/catalog/cocuk-evi/VH-108/oyun-evi-www.ahsapfiyatlistesi.com-VH-108-01.JPG"]
[null,"Not:",null,null,null,null,null,null,null,null,null,null,null,null,null,null,null,null,null,null,null,null,null,null,null,null,null,null,null,"KS-106","KS-106 silinmiş Sibirya","5 x 12,5 Sibirya",null,2300,414,400,5,12.5,null,2300,null,5,12.5,null,null,"",0,null,"KK-101","Köpek Kulubesi KK-101","Adet","KK-101","catalog/kopek-kulube/KK-101/kk-101-kopek-kulube-evi-fiyatlari-www.kayalarahsap.com-01.jpg",672.8,null,"http://www.kayalarkereste.com/image/catalog/kopek-kulube/KK-101/kk-101-kopek-kulube-evi-fiyatlari-www.kayalarahsap.com-01.jpg"]
[null,null,null,null,null,null,null,"Toplam Dm3 :",null,null,{"$f":"SUM(K13:K36)","v":0},null,null,null,null,null,null,null,null,null,null,null,null,null,null,null,null,null,null,"KS-107","KS-107 silinmiş Sibirya","6,5 x 12,5 Ladin",null,2300,414,600,6.5,12.5,null,2300,null,6.5,12.5,null,null,"",0,null,"KK-102","Köpek Kulubesi KK-102","Adet","KK-102","catalog/kopek evi/KK-102/kk-102-kopek-kulube-evi-fiyatlari-resimleri-www.kayalarahsap.com-03.jpg",522,null,"http://www.kayalarkereste.com/image/catalog/kopek evi/KK-102/kk-102-kopek-kulube-evi-fiyatlari-resimleri-www.kayalarahsap.com-03.jpg"]
[null,null,null,null,null,null,null,"Ara Toplam :",null,null,{"$f":"SUM(L13:L36)","v":0},null,null,null,null,null,null,null,null,null,null,null,null,null,null,null,null,null,null,"LM-122","Alın Tahtası","Ukrayna Sınıf Çam","t",30,5.3999999999999995,300,2.2000000000000002,20,null,29.999999999999996,null,2.2000000000000002,20,null,300,4.4000000000000004E-2,"",null,"KK-103","Köpek Kulubesi KK-103","Adet","KK-103","catalog/kopek-kulube/KK-103/kk-103-kopek-kulube-evi-fiyatlari-hayvan-barinak-fiyatlari-www.kayalarahsap.com-01.jpg",522,null,"http://www.kayalarkereste.com/image/catalog/kopek-kulube/KK-103/kk-103-kopek-kulube-evi-fiyatlari-hayvan-barinak-fiyatlari-www.kayalarahsap.com-01.jpg"]
[null,null,null,null,null,null,null," Toplam KDV :",null,null,{"$f":"K40*0.18","v":0},null,null,null,null,null,null,null,null,null,null,null,null,null,null,null,null,null,null,"LM-123",null,null,null,null,0,null,null,null,null,"",null,null,null,null,null,"","",null,"KK-104","Köpek Kulubesi  KK-104","Adet","KK-104","catalog/kopek-kulube/KK-104/kk-104-kopek-kulube-evi-hayvan-barinak-fiyatlari-www.kayalarahsap.com-01.JPG",522,null,"http://www.kayalarkereste.com/image/catalog/kopek-kulube/KK-104/kk-104-kopek-kulube-evi-hayvan-barinak-fiyatlari-www.kayalarahsap.com-01.JPG"]
[null,null,null,null,null,null,null,null,null,null,null,null,null,null,null,null,null,null,null,null,null,null,null,null,null,null,null,null,null,null,null,null,null,null,0,null,null,null,null,"",null,null,null,null,null,"","",null,"KK-105","Köpek Kulubesi KK-105","Adet","KK-105","catalog/kopek-kulube/KK-105/kk-105-ahsap-kopek-kulube-fıyatları-kocaeli-gebze-www.kayalarkereste.com-02.JPG",754,null,"http://www.kayalarkereste.com/image/catalog/kopek-kulube/KK-105/kk-105-ahsap-kopek-kulube-fıyatları-kocaeli-gebze-www.kayalarkereste.com-02.JPG"]
[null,null,null,null,null,null,null,"Genel Toplam :",null,null,{"$f":"K40+K41-K42","v":0},null,null,null,null,null,null,null,null,null,null,null,null,null,null,null,null,null,null,null,null,null,null,null,0,null,null,null,null,"",null,null,null,null,null,"","",null,"PR-101","Ahşap Pergola","M2","PR-101","catalog/pergola/PR-101/PR-101-ahsap-kamelya-pergola-fiyatlari-www.kayalarahsap.com-02.jpg",406,null,"http://www.kayalarkereste.com/image/catalog/pergola/PR-101/PR-101-ahsap-kamelya-pergola-fiyatlari-www.kayalarahsap.com-02.jpg"]
[null,null,null,null,null,null,null,"Ödenen :",null,null,null,null,null,null,null,null,null,null,null,4.0999999999999996,"x",9.1,"ölçü ve ",930,"TL den alınan kereste",null,null,null,null,"YB-101","Ahşap Yalı Baskı ","Ukrayna",null,1700,306,300,1.8,12,null,1176.9230769230769,null,2.6,12,null,9.9,53.575757575757578,31.73076923076923,null,"PR-105","Ahşap Pergola","M2","PR-105","catalog/pergola/PR-105/PR-105-ahsap-kamelya-gazebo-pergola-fiyatlari-www.kayalarahsap.com-02.jpg",406,null,"http://www.kayalarkereste.com/image/catalog/pergola/PR-105/PR-105-ahsap-kamelya-gazebo-pergola-fiyatlari-www.kayalarahsap.com-02.jpg"]
[null,null,null,null,null,null,null,"Kalan :",null,null,{"$f":"K43-K44","v":0},null,null,null,null,null,null,null,null,null,null,null,null,null,null,null,null,null,null,"YB-102","Ahşap Yalı Baskı  Sibirya","Sibirya",null,2300,414,400,3.5,12.5,null,2300,null,3.5,12.5,null,11,91.47727272727272,25.142857142857146,null,"PR-106","Ahşap Pergola","M2","PR-106","catalog/pergola/PR-106/PR-106-pergola-gazebo-konsol-pergola-veranda-ahsap-pergole-fiyatlari-01.jpg",406,null,"http://www.kayalarkereste.com/image/catalog/pergola/PR-106/PR-106-pergola-gazebo-konsol-pergola-veranda-ahsap-pergole-fiyatlari-01.jpg"]
[null,null,null,null,null,null,null,null,null,null,null,null,null,null,null,null,null,null,null,{"$f":"IF(COUNTA(T44)>=1,IF(T44<4,2.6,IF(T44<5.1,5,IF(T44<10.1,10,IF(T44<15,15)))),\"\")","v":5},"x",{"$f":"IF(COUNTA(V44)>=1,IF(T46=2.6,10,IF(V44<5,5,IF(V44<10.1,10,IF(T44<15,15)))),\"\")","v":10},"olarak",{"$f":"T44*V44*X44/T46/V46","v":693.96599999999989},"TL ye mal olmuş Olur",null,null,null,null,"YB-103","Ahşap Yalı Baskı Sibirya","Sibirya",null,2300,414,400,4.5,15,null,2070,null,5,15,null,13.8,125.00000000000001,18.399999999999999,null,"PR-107","Ahşap Pergola  & Jeneratör Kabin","Adet","PR-107","catalog/pergola/PR-107 JENERATÖR KABİNİ/PR-107-pergola-gazebo-konsol-pergola-veranda-ahsap-jenerator-kabini-01.jpg",2552,null,"http://www.kayalarkereste.com/image/catalog/pergola/PR-107 JENERATÖR KABİNİ/PR-107-pergola-gazebo-konsol-pergola-veranda-ahsap-jenerator-kabini-01.jpg"]
[null,null,null,null,null,null,null,null,null,null,null,null,null,null,null,null,null,null,null,null,null,null,null,null,null,null,null,null,null,"YB-104","Ahşap Yalı Baskı yuvarlak Sibirya","Sibirya",null,2300,414,400,4.5,15,null,2070,null,5,15,null,13.8,125.00000000000001,18.399999999999999,null,{"$f":"HYPERLINK(BD47,AZ47)","v":"AV-102"},"Ahşap Bungalov Ev (AV-102)","M2","AV-102","catalog/Ev/AV-102/av-102-kutuk-ev-bungalov-ahsap-ev-fiyatlari-ahsap-ev-yapimi-maliyeti-resimleri-www.kayalarkereste.com-01.jpg",1740,null,"http://www.kayalarkereste.com/image/catalog/Ev/AV-102/av-102-kutuk-ev-bungalov-ahsap-ev-fiyatlari-ahsap-ev-yapimi-maliyeti-resimleri-www.kayalarkereste.com-01.jpg"]
[null,"Kayalar Orman Ürünleri San. Tic. Ltd. Şti.",null,null,null,null,null,null,null,null,null,null,null,null,null,null,null,null,null,null,null,null,null,null,null,null,null,null,null,"YB-105","Ahşap Yalı Baskı  Sibirya","Sibirya",null,2300,414,400,4.5,20,null,2070,null,5,20,null,18.8,122.34042553191489,18.8,null,"AV-105","Ahşap Bungalov Ev - (AV-105)","Adet","AV-105","catalog/Ev/av-105/av-105-ahsap-ev-bungalov-fiyatlari-ahsap-evi-maliyeti-resimleri-gebze-sile-istanbul-www.kayalarkereste.com-06.jpg",12760,null,"http://www.kayalarkereste.com/image/catalog/Ev/av-105/av-105-ahsap-ev-bungalov-fiyatlari-ahsap-evi-maliyeti-resimleri-gebze-sile-istanbul-www.kayalarkereste.com-06.jpg"]
[null,"M. Kemal cd. No:106 Balçık köyü  Gebze / KOCAELİ    www.kayalarkereste.com    kayalarkereste@hotmail.com",null,null,null,null,null,null,null,null,null,null,null,null,null,null,null,null,null,null,null,null,null,null,null,null,null,null,null,"YB-106","Ahşap Yalı Baskı  Fin-İsves","Fin - İsveç çamı",null,3800,684,400,2.4,23,null,3040,null,3,23,null,21,124.85714285714286,30.434782608695652,null,"AV-106","Ahşap Bungalov Ev (AV-106)","M2","AV-106","catalog/Ev/av-106/av-106-ahsap-ev-bungalov-fiyatlari-ahsap-ev-yapimi-maliyeti-resimleri-gebze-www.kayalarkereste.com-01.jpg",1566,null,"http://www.kayalarkereste.com/image/catalog/Ev/av-106/av-106-ahsap-ev-bungalov-fiyatlari-ahsap-ev-yapimi-maliyeti-resimleri-gebze-www.kayalarkereste.com-01.jpg"]
[null,"Ziraat Bankası       şb: 2617-Güzelyalı        Hes No:69699580-5001             IBAN : TR32 0001 0026 1769 6995 8050 01",null,null,null,null,null,null,null,null,null,null,null,null,null,null,null,null,null,null,null,null,null,null,null,null,null,null,null,"YB-107","Ahşap Yalı Baskı Sibirya","Sibirya",null,2300,414,400,4.5,15,null,2070,null,5,15,null,13.8,125.00000000000001,18.399999999999999,null,"AV-107","Ahşap Bungalov Ev (AV-107)","M2","AV-107","catalog/Ev/AV-107  KANTAR/KM-140-kamelya-ahsap-dinlenme-sigara-icme-alani-fiyatlari-gebze-kocaeli-tuzla-pendik-istanbul-ahsap-ev-www.kayalarkerest~15.jpg",1102,null,"http://www.kayalarkereste.com/image/catalog/Ev/AV-107  KANTAR/KM-140-kamelya-ahsap-dinlenme-sigara-icme-alani-fiyatlari-gebze-kocaeli-tuzla-pendik-istanbul-ahsap-ev-www.kayalarkerest~15.jpg"]
[null,null,null,null,null,null,null,null,null,null,null,null,null,null,null,null,null,null,null,null,null,null,null,null,null,null,null,null,null,"YB-108","Ahşap Yalı Baskı Sibirya","Sibirya",null,2300,414,600,2.5,15,null,2300,null,2.5,15,null,13.5,63.888888888888886,36]
[null,null,null,null,null,null,null,null,null,null,null,null,null,null,null,null,null,null,null,null,null,null,null,null,null,null,null,null,null,null,null,null,null,null,0,null,null,null,null,"",null,null,null,null,null,"",""]
[null,null,null,null,null,null,null,null,null,null,null,null,null,null,null,null,null,null,null,null,null,null,null,null,null,null,null,null,null,null,null,null,null,null,0,null,null,null,null,"",null,null,null,null,null,"",""]
[null,null,null,null,null,null,null,null,null,null,null,null,null,null,null,null,null,null,null,null,null,null,null,null,null,null,null,null,null,"KT-105","Kütük Ev Duvar Profil  Sibirya","Sibirya",null,2300,414,400,4.5,15,null,2070,null,5,15,null,13.8,125.00000000000001,18.399999999999999,null,"AV-108","Ahşap Bungalov Ev (AV-108)","M2","AV-108","catalog/Ev/av-108/av-108-bungalov-ahsap-ev-kutuk-ev-fiyatlari-yapimi-maliyeti-resimleri-gebze-www.kayalarahsap.com-01.jpg",1566,null,"http://www.kayalarkereste.com/image/catalog/Ev/av-108/av-108-bungalov-ahsap-ev-kutuk-ev-fiyatlari-yapimi-maliyeti-resimleri-gebze-www.kayalarahsap.com-01.jpg"]
[null,null,null,null,null,null,null,null,null,null,null,null,null,null,null,null,null,null,null,null,null,null,null,null,null,null,null,null,null,"KT-110","Kütük Ev Duvar Profil Ukrayna","Ukrayna",null,2000,360,600,9,15,null,1800,null,10,15,null,13.5,222.22222222222223,9,null,"B-101","BANK Döküm ve Metal Ayaklı B-101","Adet","B-101","catalog/Bank/B-101/b-101-Bank-13-citali-ergonomik-ucuz-bank-gebze-www.parkbahcemobilya.com-www.ahsapfiyatlistesi.com-08.jpg",485,null,"http://www.kayalarkereste.com/image/catalog/Bank/B-101/b-101-Bank-13-citali-ergonomik-ucuz-bank-gebze-www.parkbahcemobilya.com-www.ahsapfiyatlistesi.com-08.jpg"]
[null,null,null,null,null,null,null,null,null,null,null,null,null,null,null,null,null,null,null,null,null,null,null,null,null,null,null,null,null,"KT-118","Kütük Ev Duvar Profil  Sibirya Lamine","Sibirya Lamine",null,3200,576,600,13.5,15,null,2880,null,15,15,null,13.5,533.33333333333337,6,null,"B-102","BANK Döküm ve Metal Ayaklı + Kolluk (B-102)","Adet","B-102","catalog/Bank/B-102/b-102-dokum-ayakli-kollu-bank-fiyatlari-gebze-istanbul-kocaeli-izmit-www.kayalarkereste.com-01.jpg",0,null,"http://www.kayalarkereste.com/image/catalog/Bank/B-102/b-102-dokum-ayakli-kollu-bank-fiyatlari-gebze-istanbul-kocaeli-izmit-www.kayalarkereste.com-01.jpg"]
[null,null,null,null,null,null,null,null,null,null,null,null,null,null,null,null,null,null,null,null,null,null,null,null,null,null,null,null,null,null,null,null,null,null,null,null,null,null,null,"",null,null,null,null,null,"","",null,"B-103","BANK Döküm ve Metal Ayaklı - Klasik ","Adet","B-103","catalog/Bank/B-103/b-103-ahsap-dokum-ayakli-oturma-bank-fiyatlari-www.parkbahcemobilya.com-01.jpg",340,null,"http://www.kayalarkereste.com/image/catalog/Bank/B-103/b-103-ahsap-dokum-ayakli-oturma-bank-fiyatlari-www.parkbahcemobilya.com-01.jpg"]
[null,null,null,null,null,null,null,null,null,null,null,null,null,null,null,null,null,null,null,null,null,null,null,null,null,null,null,null,null,null,null,null,null,null,null,null,null,null,null,"",null,null,null,null,null,"","",null,"KB-201","BANK  - Ahşap Ayaklı KB-201","Adet","KB-201","catalog/Bank/KB-201/kb-201-ahsap-bank-masa-modelleri-fiyatlari-resimleri-www.parkbahcemobilya.com-03.jpg",139.19999999999999,null,"http://www.kayalarkereste.com/image/catalog/Bank/KB-201/kb-201-ahsap-bank-masa-modelleri-fiyatlari-resimleri-www.parkbahcemobilya.com-03.jpg"]
[" ",null,null,null,null,null,null,null,null,null,null,null,null,null,null,null,null,null,null,null,null,null,null,null,null,null,null,null,null,null,null,null,null,null,null,null,null,null,null,"",null,null,null,null,null,"","",null,"K-204","BANK Döküm ve Metal Ayaklı - Kollu","Adet","K-204","catalog/Bank/K-204/kd-204-dokum-ayakli-kollu-ahsap-bank-modelleri-fiyatlari-resimleri-gebze-www.parkbahcemobilya.com-01.jpg",565,null,"http://www.kayalarkereste.com/image/catalog/Bank/K-204/kd-204-dokum-ayakli-kollu-ahsap-bank-modelleri-fiyatlari-resimleri-gebze-www.parkbahcemobilya.com-01.jpg"]
[null,null,null,null,null,null,null,null,null,null,null,null,null,null,null,null,null,null,null,null,null,null,null,null,null,null,null,null,null,null,null,null,null,null,null,null,null,null,null,"",null,null,null,null,null,"","",null,"K-219","BANK Döküm ve Metal Ayaklı - Klasik Kollu","Adet","K-219","catalog/Bank/K-219/k-219-dokum-ayakli-kollu-ahsap-bank-modelleri-fiyatlari-resimleri-www.parkbahcemobilya.com-02.jpg",560,null,"http://www.kayalarkereste.com/image/catalog/Bank/K-219/k-219-dokum-ayakli-kollu-ahsap-bank-modelleri-fiyatlari-resimleri-www.parkbahcemobilya.com-02.jpg"]
[null,null,null,null,null,null,null,null,null,null,null,null,null,null,null,null,null,null,null,null,null,null,null,null,null,null,null,null,null,null,null,null,null,null,null,null,null,null,null,"",null,null,null,null,null,"","",null,"KD-203","BANK Döküm ve Metal Ayaklı - Kollu ","Adet","KD-203","catalog/Bank/KD-203/kd-203-ahsap-dokum-ayakli-kollu-bank-fiyatlari-resimleri-www.parkbahcemobilya.com-08.jpg",720,null,"http://www.kayalarkereste.com/image/catalog/Bank/KD-203/kd-203-ahsap-dokum-ayakli-kollu-bank-fiyatlari-resimleri-www.parkbahcemobilya.com-08.jpg"]
[null,null,null,null,null,null,null,null,null,null,null,null,null,null,null,null,null,null,null,null,null,null,null,null,null,null,null,null,null,null,null,null,null,null,null,null,null,null,null,"",null,null,null,null,null,"","",null,"UB-97","BANK Yuvarlak Oturum Maun veya İroko","Adet","UB-97","catalog/Bank/UB-97/ub-97-ahsap-maun-dis-mekan-yuvarlak-metal-ayakli-bank-oturma-gruplari-fiyatlari-resimleri-www.parkbahcemobilya.com-01.JPG",4234,null,"http://www.kayalarkereste.com/image/catalog/Bank/UB-97/ub-97-ahsap-maun-dis-mekan-yuvarlak-metal-ayakli-bank-oturma-gruplari-fiyatlari-resimleri-www.parkbahcemobilya.com-01.JPG"]
[null,null,null,null,null,null,null,null,null,null,null,null,null,null,null,null,null,null,null,null,null,null,null,null,null,null,null,null,null,null,null,null,null,null,null,null,null,null,null,"",null,null,null,null,null,"","",null,"B-104","BANK Döküm ve Metal Ayaklı B-104","Adet","B-104","catalog/Bank/B-104/b-104-metal-ayali-yaslanmasiz-soyunma-odasi-bank-fiyatlari-gebze-istanbul-www.parkbahcemobilya.com-02.jpg",266.8,null,"http://www.kayalarkereste.com/image/catalog/Bank/B-104/b-104-metal-ayali-yaslanmasiz-soyunma-odasi-bank-fiyatlari-gebze-istanbul-www.parkbahcemobilya.com-02.jpg"]
[null,null,null,null,null,null,null,null,null,null,null,null,null,null,null,null,null,null,null,null,null,null,null,null,null,null,null,null,null,null,null,null,null,null,null,null,null,null,null,"",null,null,null,null,null,"","",null,"B-105","BANK Döküm ve Metal Ayaklı - Soyunma odaları için","Adet","B-105","catalog/Bank/B-105/b-105-soyunma-odasi-bank-fiyatlari-www.parkbahcemobilya.com-01.jpg",285,null,"http://www.kayalarkereste.com/image/catalog/Bank/B-105/b-105-soyunma-odasi-bank-fiyatlari-www.parkbahcemobilya.com-01.jpg"]
[null,null,null,null,null,null,null,null,null,null,null,null,null,null,null,null,null,null,null,null,null,null,null,null,null,null,null,null,null,null,null,null,null,null,null,null,null,null,null,"",null,null,null,null,null,"","",null,"DC-101","DECK Ahşap ÇAM 18 mm DC-101","M2","DC-101","catalog/deck/cam-dc-101/dc-101-cam-deck-ahsap-profil-yer-doseme-01.jpg",57,null,"http://www.kayalarkereste.com/image/catalog/deck/cam-dc-101/dc-101-cam-deck-ahsap-profil-yer-doseme-01.jpg"]
[null,null,null,null,null,null,null,null,null,null,null,null,null,null,null,null,null,null,null,null,null,null,null,null,null,null,null,null,null,null,null,null,null,null,null,null,null,null,null,"",null,null,null,null,null,"","",null,"KR-101","İnşaatlık Kereste (41 x 91) - (91 x 91) [KR-101]","M3","KR-101","catalog/Kereste/Kereste_paket.JPG",990,null,"http://www.kayalarkereste.com/image/catalog/Kereste/Kereste_paket.JPG"]
[null,null,null,null,null,null,null,null,null,null,null,null,null,null,null,null,null,null,null,null,null,null,null,null,null,null,null,null,null,null,null,null,null,null,null,null,null,null,null,"",null,null,null,null,null,"","",null,"LM-111","İROKO Lambiri - Rabıta 130mm (LM-111)","M2","LM-111","catalog/lambiri-ahsap/lm-111-iroko-lambiri-130mm-18mm-120mmkapatir-01.jpg",30,null,"http://www.kayalarkereste.com/image/catalog/lambiri-ahsap/lm-111-iroko-lambiri-130mm-18mm-120mmkapatir-01.jpg"]
[null,null,null,null,null,null,null,null,null,null,null,null,null,null,null,null,null,null,null,null,null,null,null,null,null,null,null,null,null,null,null,null,null,null,null,null,null,null,null,"",null,null,null,null,null,"","",null,"LM-101","Lambiri - Rabıta 1. Sınıf  (LM-101)","M2","LM-101","catalog/lambiri-ahsap/LM-101-Lambiri 1-Sinif-01.jpg",52,null,"http://www.kayalarkereste.com/image/catalog/lambiri-ahsap/LM-101-Lambiri 1-Sinif-01.jpg"]
[null,null,null,null,null,null,null,null,null,null,null,null,null,null,null,null,null,null,null,null,null,null,null,null,null,null,null,null,null,null,null,null,null,null,null,null,null,null,null,"",null,null,null,null,null,"","",null,"LM-102","Lambiri - Rabıta 2. Standart Sınıf Lambiri Rabıta  (LM-102)","M2","LM-102","catalog/lambiri-ahsap/LM-102-Lambiri 2-Sinif-01.jpg",45,null,"http://www.kayalarkereste.com/image/catalog/lambiri-ahsap/LM-102-Lambiri 2-Sinif-01.jpg"]
[null,null,null,null,null,null,null,null,null,null,null,null,null,null,null,null,null,null,null,null,null,null,null,null,null,null,null,null,null,null,null,null,null,null,null,null,null,null,null,"",null,null,null,null,null,"","",null,"LM-104","Ahşap Süpürgelik","Metre","LM-104","catalog/lambiri-ahsap/supurgelik-5lik-a.jpg",2.0299999999999998,null,"http://www.kayalarkereste.com/image/catalog/lambiri-ahsap/supurgelik-5lik-a.jpg"]
[null,null,null,null,null,null,null,null,null,null,null,null,null,null,null,null,null,null,null,null,null,null,null,null,null,null,null,null,null,null,null,null,null,null,null,null,null,null,null,null,null,null,null,null,null,"","",null,"LM-103","Lambiri - Rabıta Extra Sınıf  (LM-103)","M2","LM-103","catalog/lambiri-ahsap/LM-100-Lambiri-Extra-03.jpg",60,null,"http://www.kayalarkereste.com/image/catalog/lambiri-ahsap/LM-100-Lambiri-Extra-03.jpg"]
[null,null,null,null,null,null,null,null,null,null,null,null,null,null,null,null,null,null,null,null,null,null,null,null,null,null,null,null,null,null,null,null,null,null,null,null,null,null,null,null,null,null,null,null,null,"","",null,"LM-112","İROKO Lambiri - Rabıta 95 mm geniş (lm-112)","M2","LM-112","catalog/lambiri-ahsap/lm-112-iroko-lambiri-95mm-18mm-86mmkapatır-01.jpg",30,null,"http://www.kayalarkereste.com/image/catalog/lambiri-ahsap/lm-112-iroko-lambiri-95mm-18mm-86mmkapatır-01.jpg"]
[null,null,null,null,null,null,null,null,null,null,null,null,null,null,null,null,null,null,null,null,null,null,null,null,null,null,null,null,null,null,null,null,null,null,null,null,null,null,null,null,null,null,null,null,null,"","",null,"LM-113","İROKO Lambiri - Rabıta 95 mm geniş (LM-113)","M2","LM-113","catalog/lambiri-ahsap/lm-113-iroko-rabita-yer-doseme-10cm-x-45cm-12mm-95mmkapatir-01.jpg",30,null,"http://www.kayalarkereste.com/image/catalog/lambiri-ahsap/lm-113-iroko-rabita-yer-doseme-10cm-x-45cm-12mm-95mmkapatir-01.jpg"]
[null,null,null,null,null,null,null,null,null,null,null,null,null,null,null,null,null,null,null,null,null,null,null,null,null,null,null,null,null,null,null,null,null,null,null,null,null,null,null,null,null,null,null,null,null,"","",null,"KS-101","5 x 10 Silinmiş Kereste  Ukrayna -KS-101","M3","KS-101","catalog/silinmis-kereste/ks-101-cam-dogramalik-silinmis-sinif-kereste-5x10-01.jpg",1700,null,"http://www.kayalarkereste.com/image/catalog/silinmis-kereste/ks-101-cam-dogramalik-silinmis-sinif-kereste-5x10-01.jpg"]
[null,null,null,null,null,null,null,null,null,null,null,null,null,null,null,null,null,null,null,null,null,null,null,null,null,null,null,null,null,null,null,null,null,null,null,null,null,null,null,null,null,null,null,null,null,"","",null,"KS-102","10 x 10 Silinmiş Kereste UKRAYNA KS-102","M3","KS-102","catalog/silinmis-kereste/ks-102-cam-dogramalik-silinmis-sinif-kereste-10x10-01.jpg",1700,null,"http://www.kayalarkereste.com/image/catalog/silinmis-kereste/ks-102-cam-dogramalik-silinmis-sinif-kereste-10x10-01.jpg"]
[null,null,null,null,null,null,null,null,null,null,null,null,null,null,null,null,null,null,null,null,null,null,null,null,null,null,null,null,null,null,null,null,null,null,null,null,null,null,null,null,null,null,null,null,null,"","",null,"KS-103","5 x 15 Silinmiş Kereste Sibirya -KS-103","M3","KS-103","catalog/silinmis-kereste/ks-103-cam-dogramalik-silinmis-sinif-kereste-5x15-01.jpg",2300,null,"http://www.kayalarkereste.com/image/catalog/silinmis-kereste/ks-103-cam-dogramalik-silinmis-sinif-kereste-5x15-01.jpg"]
[null,null,null,null,null,null,null,null,null,null,null,null,null,null,null,null,null,null,null,null,null,null,null,null,null,null,null,null,null,null,null,null,null,null,null,null,null,null,null,null,null,null,null,null,null,"","",null,"KS-104","3,5x15 Silinmiş Kereste Sibirya KS-104","M3","KS-104","catalog/silinmis-kereste/ks-104-cam-ladin-dogramalik-silinmis-sinif-kereste-35x125-01.jpg",2300,null,"http://www.kayalarkereste.com/image/catalog/silinmis-kereste/ks-104-cam-ladin-dogramalik-silinmis-sinif-kereste-35x125-01.jpg"]
[null,null,null,null,null,null,null,{"$f":"IFERROR(VLOOKUP(E78,AE:AF,2,FALSE),\"\")","v":""},null,null,null,null,null,null,null,null,null,null,null,null,null,null,null,null,null,null,null,null,null,null,null,null,null,null,null,null,null,null,null,null,null,null,null,null,null,"","",null,"KS-105","3,5 x 12,5 Silinmiş Kereste SİBİRYA KS-105","M3","KS-105","catalog/silinmis-kereste/ks-103-cam-dogramalik-silinmis-sinif-kereste-5x15-01.jpg",2300,null,"http://www.kayalarkereste.com/image/catalog/silinmis-kereste/ks-103-cam-dogramalik-silinmis-sinif-kereste-5x15-01.jpg"]
[null,null,null,null,null,null,null,null,null,null,null,null,null,null,null,null,null,null,null,null,null,null,null,null,null,null,null,null,null,null,null,null,null,null,null,null,null,null,null,null,null,null,null,null,null,"","",null,"KM-101","Kamelya - Çardak -101","Adet","KM-101","catalog/Kamelya-cardak/KM-101/KM-101-ucuz-ahsap-cardak-kamelya-kameriye-ahsap-ev-gazebo-pergola-kutuk-ev-pergole-fiyatlari-gebze-www.kayalarahsap.com-01.jpg",20880,null,"http://www.kayalarkereste.com/image/catalog/Kamelya-cardak/KM-101/KM-101-ucuz-ahsap-cardak-kamelya-kameriye-ahsap-ev-gazebo-pergola-kutuk-ev-pergole-fiyatlari-gebze-www.kayalarahsap.com-01.jpg"]
[null,null,null,null,null,null,null,null,null,null,null,null,null,null,null,null,null,null,null,null,null,null,null,null,null,null,null,null,null,null,null,null,null,null,null,null,null,null,null,null,null,null,null,null,null,"","",null,"KM-102","Kamelya & Çardak  -102","Adet","KM-102","catalog/Kamelya-cardak/KM-102/KM-102-ucuz-ahsap-cardak-kamelya-kameriye-gazebo-pergola-pergole-fiyatlari-gebze-www.kayalarahsap.com-08.jpg",6670,null,"http://www.kayalarkereste.com/image/catalog/Kamelya-cardak/KM-102/KM-102-ucuz-ahsap-cardak-kamelya-kameriye-gazebo-pergola-pergole-fiyatlari-gebze-www.kayalarahsap.com-08.jpg"]
[null,null,null,null,null,null,null,null,null,null,null,null,null,null,null,null,null,null,null,null,null,null,null,null,null,null,null,null,null,null,null,null,null,null,null,null,null,null,null,null,null,null,null,null,null,"","",null,"KM-103","Kamelya - Çardak  -103","Adet","KM-103","catalog/Kamelya-cardak/KM-103/KM-103-ucuz-ahsap-cardak-kamelya-kameriye-gazebo-pergola-pergole-fiyatlari-www.kayalarahsap.com-02.jpg",5800,null,"http://www.kayalarkereste.com/image/catalog/Kamelya-cardak/KM-103/KM-103-ucuz-ahsap-cardak-kamelya-kameriye-gazebo-pergola-pergole-fiyatlari-www.kayalarahsap.com-02.jpg"]
[null,null,null,null,null,null,null,null,null,null,null,null,null,null,null,null,null,null,null,null,null,null,null,null,null,null,null,null,null,null,null,null,null,null,null,null,null,null,null,null,null,null,null,null,null,"","",null,"KM-107","Kamelya - Çardak -107","Adet","KM-107","catalog/Kamelya-cardak/KM-106/kamelya-cardak-www.parkbahcemobilya.com-km-107-16.jpg",2320,null,"http://www.kayalarkereste.com/image/catalog/Kamelya-cardak/KM-106/kamelya-cardak-www.parkbahcemobilya.com-km-107-16.jpg"]
[null,null,null,null,null,null,null,null,null,null,null,null,null,null,null,null,null,null,null,null,null,null,null,null,null,null,null,null,null,null,null,null,null,null,null,null,null,null,null,null,null,null,null,null,null,"","",null,"KM-105","Kamelya - Çardak  KM-105","Adet","KM-105","catalog/Kamelya-cardak/KM-105/KM-105-cardak-kamelya-seyyar-gazebo-ucuz-ahsap-kamelya-cardak-www.kayalarahsap.com-04.jpg",3770,null,"http://www.kayalarkereste.com/image/catalog/Kamelya-cardak/KM-105/KM-105-cardak-kamelya-seyyar-gazebo-ucuz-ahsap-kamelya-cardak-www.kayalarahsap.com-04.jpg"]
[null,null,null,null,null,null,null,null,null,null,null,null,null,null,null,null,null,null,null,null,null,null,null,null,null,null,null,null,null,null,null,null,null,null,null,null,null,null,null,null,null,null,null,null,null,{"$f":"IFERROR(AH84/((100/AP84/AQ84)*AS84),\"\")","v":""},"",null,"KM-104","Kamelya - Çardak  KM-104","Adet","KM-104","catalog/Kamelya-cardak/KM-104/KM-104-ahsap-ucuz-cardak-kamelya-kameriye-gazebo-fiyatlari-www.kayalarahsap.com-01.jpg",7540,null,"http://www.kayalarkereste.com/image/catalog/Kamelya-cardak/KM-104/KM-104-ahsap-ucuz-cardak-kamelya-kameriye-gazebo-fiyatlari-www.kayalarahsap.com-01.jpg"]
[null,null,null,null,null,null,null,null,null,null,null,null,null,null,null,null,null,null,null,null,null,null,null,null,null,null,null,null,null,null,null,null,null,null,null,null,null,null,null,null,null,null,null,null,null,{"$f":"IFERROR(AH85/((100/AP85/AQ85)*AS85),\"\")","v":""},null,null,"VH-109","Ahşap Çocuk Oyun Evi VH-109","Adet","VH-109","catalog/cocuk-evi/VH-109/VH-109-cocuk-ahsap-oyun-evi-gebze-tuzla-pendik-istanbul-fiyatlari-07.JPG",6728,null,{"$f":"CONCATENATE($AW$1, BA85)","v":"http://www.kayalarkereste.com/image/catalog/cocuk-evi/VH-109/VH-109-cocuk-ahsap-oyun-evi-gebze-tuzla-pendik-istanbul-fiyatlari-07.JPG"}]
[null,null,null,null,null,null,null,null,null,null,null,null,null,null,null,null,null,null,null,null,null,null,null,null,null,null,null,null,null,null,null,null,null,null,null,null,null,null,null,null,null,null,null,null,null,{"$f":"IFERROR(AH86/((100/AP86/AQ86)*AS86),\"\")","v":""},null,null,"KM-108","Kamelya - Çardak  KM-108","Adet","KM-108","catalog/Kamelya-cardak/KM-108/KM-108-kamelya-cardak-ucuz-kameriye-fiyatlari-www.parkbahcemobilya.com-www.ahsapfiyatlistesi.com-km-108-02.jpg",7540,null,"http://www.kayalarkereste.com/image/catalog/Kamelya-cardak/KM-108/KM-108-kamelya-cardak-ucuz-kameriye-fiyatlari-www.parkbahcemobilya.com-www.ahsapfiyatlistesi.com-km-108-02.jpg"]
[null,null,null,null,null,null,null,null,null,null,null,null,null,null,null,null,null,null,null,null,null,null,null,null,null,null,null,null,null,null,null,null,null,null,null,null,null,null,null,null,null,null,null,null,null,{"$f":"IFERROR(AH87/((100/AP87/AQ87)*AS87),\"\")","v":""},null,null,"KM-124","Kamelya - Çardak  KM-124","Adet","KM-124","catalog/Kamelya-cardak/KM-124_Demir_200cm/km-124-demir-kamelya-ahsap-08.jpg",3944,null,"http://www.kayalarkereste.com/image/catalog/Kamelya-cardak/KM-124_Demir_200cm/km-124-demir-kamelya-ahsap-08.jpg"]
[null,null,null,null,null,null,null,null,null,null,null,null,null,null,null,null,null,null,null,null,null,null,null,null,null,null,null,null,null,null,null,null,null,null,null,null,null,null,null,null,null,null,null,null,null,null,null,null,"KM-125","Kamelya - Çardak  KM-125","Adet","KM-125","catalog/Kamelya-cardak/KM-125 6GEN 5-15 DIREKLI/KM-125-kamelya-kare-dikdortgen-ahsap-dinlenme-cardak-gazebo-ucuz-kameriye-pergola-fiyatlari-www.kayalarkereste.com-32.jpg",6670,null,"http://www.kayalarkereste.com/image/catalog/Kamelya-cardak/KM-125 6GEN 5-15 DIREKLI/KM-125-kamelya-kare-dikdortgen-ahsap-dinlenme-cardak-gazebo-ucuz-kameriye-pergola-fiyatlari-www.kayalarkereste.com-32.jpg"]
[null,null,null,null,null,null,null,null,null,null,null,null,null,null,null,null,null,null,null,null,null,null,null,null,null,null,null,null,null,null,null,null,null,null,null,null,null,null,null,null,null,null,null,null,null,null,null,null,"KM-126","Kamelya - Çardak  KM-126","M2","KM-126","catalog/Kamelya-cardak/KM-126 DIKDORTGEN cATALcA/KM-126-kamelya-kare-dikdortgen-ahsap-dinlenme-cardak-gazebo-ucuz-kameriye-fiyatlari-www.kayalarkereste.com-02.jpg",638,null,"http://www.kayalarkereste.com/image/catalog/Kamelya-cardak/KM-126 DIKDORTGEN cATALcA/KM-126-kamelya-kare-dikdortgen-ahsap-dinlenme-cardak-gazebo-ucuz-kameriye-fiyatlari-www.kayalarkereste.com-02.jpg"]
[null,null,null,null,null,null,null,null,null,null,null,null,null,null,null,null,null,null,null,null,null,null,null,null,null,null,null,null,null,null,null,null,null,null,null,null,null,null,null,null,null,null,null,null,null,null,null,null,"KM-127","Kamelya - Çardak  KM-127","Adet","KM-127","catalog/Kamelya-cardak/KM-127 KARE KAMELYA/KM-127-kamelya-ahsap-dinlenme-cardak-gazebo-kameriye-fiyatlari-resimleri-www.kayalarkereste.com-06.jpg",6670,null,"http://www.kayalarkereste.com/image/catalog/Kamelya-cardak/KM-127 KARE KAMELYA/KM-127-kamelya-ahsap-dinlenme-cardak-gazebo-kameriye-fiyatlari-resimleri-www.kayalarkereste.com-06.jpg"]
[null,null,null,null,null,null,null,null,null,null,null,null,null,null,null,null,null,null,null,null,null,null,null,null,null,null,null,null,null,null,null,null,null,null,null,null,null,null,null,null,null,null,null,null,null,null,null,null,"KM-128","Kamelya - Çardak  KM-128","Adet","KM-128","catalog/Kamelya-cardak/KM-128 SEKIZGEN KAMELYA 5-15 DiREKLi/KM-128-kamelya-sekizgen-www.kayalarkereste.com-07.jpg",9860,null,"http://www.kayalarkereste.com/image/catalog/Kamelya-cardak/KM-128 SEKIZGEN KAMELYA 5-15 DiREKLi/KM-128-kamelya-sekizgen-www.kayalarkereste.com-07.jpg"]
[null,null,null,null,null,null,null,null,null,null,null,null,null,null,null,null,null,null,null,null,null,null,null,null,null,null,null,null,null,null,null,null,null,null,null,null,null,null,null,null,null,null,null,null,null,null,null,null,"KM-129","Kamelya - Çardak KM-129","M2","KM-129","catalog/Kamelya-cardak/KM-129 ARIMPEKS -BEMAS/KM-129-kamelya-cardak-pergola-fiyatlari-dinlenme-alani-ahsap-sigara-icme-alani-www.kayalarkereste.com-17.jpg",812,null,"http://www.kayalarkereste.com/image/catalog/Kamelya-cardak/KM-129 ARIMPEKS -BEMAS/KM-129-kamelya-cardak-pergola-fiyatlari-dinlenme-alani-ahsap-sigara-icme-alani-www.kayalarkereste.com-17.jpg"]
[null,null,null,null,null,null,null,null,null,null,null,null,null,null,null,null,null,null,null,null,null,null,null,null,null,null,null,null,null,null,null,null,null,null,null,null,null,null,null,null,null,null,null,null,null,null,null,null,"KM-130","Kamelya - Çardak  KM-130","Adet","KM-130","catalog/Kamelya-cardak/KM-130 SEKIZGEN SAPKALI cAPRAZ KORKULUK/KM-130-kamelya-cardak-fiyatlari-gazebo-pargola-www.kayalarahsap-www.parkbahcemobilya.com-01.jpg",10208,null,"http://www.kayalarkereste.com/image/catalog/Kamelya-cardak/KM-130 SEKIZGEN SAPKALI cAPRAZ KORKULUK/KM-130-kamelya-cardak-fiyatlari-gazebo-pargola-www.kayalarahsap-www.parkbahcemobilya.com-01.jpg"]
[null,null,null,null,null,null,null,null,null,null,null,null,null,null,null,null,null,null,null,null,null,null,null,null,null,null,null,null,null,null,null,null,null,null,null,null,null,null,null,null,null,null,null,null,null,null,null,null,"KM-131","Kamelya - Çardak  KM-131","M2","KM-131","catalog/Kamelya-cardak/KM-131-TOYOTETSU-MERKEZ/KM-131-ahsap-sigara icme-dinlenme-kamelya-cardak-alani-www.kayalarkereste.com-01.jpg",812,null,"http://www.kayalarkereste.com/image/catalog/Kamelya-cardak/KM-131-TOYOTETSU-MERKEZ/KM-131-ahsap-sigara icme-dinlenme-kamelya-cardak-alani-www.kayalarkereste.com-01.jpg"]
[null,null,null,null,null,null,null,null,null,null,null,null,null,null,null,null,null,null,null,null,null,null,null,null,null,null,null,null,null,null,null,null,null,null,null,null,null,null,null,null,null,null,null,null,null,null,null,null,"KM-132","Kamelya - Çardak 132","Adet","KM-132","catalog/Kamelya-cardak/KM-132/KM-132-kamelya-ahsap-dinlenme-sigara-icme-cardak-www.kayalarkereste.com-08.jpg",6670,null,"http://www.kayalarkereste.com/image/catalog/Kamelya-cardak/KM-132/KM-132-kamelya-ahsap-dinlenme-sigara-icme-cardak-www.kayalarkereste.com-08.jpg"]
[null,null,null,null,null,null,null,null,null,null,null,null,null,null,null,null,null,null,null,null,null,null,null,null,null,null,null,null,null,null,null,null,null,null,null,null,null,null,null,null,null,null,null,null,null,null,null,null,"KM-134","Kamelya - Çardak 134","Adet","KM-134","catalog/Kamelya-cardak/KM-134 CARDAK/KM-134-kamelya-ahsap-dinlenme-sigara-icme-cardak-gazebo-kameriye-fiyatlari-gebze-www.kayalarkereste.com-15.jpg",3016,null,"http://www.kayalarkereste.com/image/catalog/Kamelya-cardak/KM-134 CARDAK/KM-134-kamelya-ahsap-dinlenme-sigara-icme-cardak-gazebo-kameriye-fiyatlari-gebze-www.kayalarkereste.com-15.jpg"]
[null,null,null,null,null,null,null,null,null,null,null,null,null,null,null,null,null,null,null,null,null,null,null,null,null,null,null,null,null,null,null,null,null,null,null,null,null,null,null,null,null,null,null,null,null,null,null,null,"KM-135","Kamelya - Çardak 135","Adet","KM-135","catalog/Kamelya-cardak/KM-135-KAMELYA-CARDAK/KM-135-kamelya-ahsap-cardak-gazebo-kameriye-fiyatlari-istanbul-www.kayalarkereste.com-01.jpg",6670,null,"http://www.kayalarkereste.com/image/catalog/Kamelya-cardak/KM-135-KAMELYA-CARDAK/KM-135-kamelya-ahsap-cardak-gazebo-kameriye-fiyatlari-istanbul-www.kayalarkereste.com-01.jpg"]
[null,null,null,null,null,null,null,null,null,null,null,null,null,null,null,null,null,null,null,null,null,null,null,null,null,null,null,null,null,null,null,null,null,null,null,null,null,null,null,null,null,null,null,null,null,null,null,null,"KM-136","Kamelya - Çardak Bahçe Dinlenme Alanı 136","M2","KM-136","catalog/Kamelya-cardak/KM-136 BAHCE KAMELYA/KM-136-bahce-kamelya-ahsap-cardak-gazebo-kameriye-fiyatlari-istanbul-www.kayalarkereste.com-01.jpg",1102,null,"http://www.kayalarkereste.com/image/catalog/Kamelya-cardak/KM-136 BAHCE KAMELYA/KM-136-bahce-kamelya-ahsap-cardak-gazebo-kameriye-fiyatlari-istanbul-www.kayalarkereste.com-01.jpg"]
[null,null,null,null,null,null,null,null,null,null,null,null,null,null,null,null,null,null,null,null,null,null,null,null,null,null,null,null,null,null,null,null,null,null,null,null,null,null,null,null,null,null,null,null,null,null,null,null,"KM-137","Kamelya - Çardak platform 137","Adet","KM-137","catalog/Kamelya-cardak/KM-137 PLATFORM/km-137-platform-kamelya-cardak-fiyatlari-www.kayalarahsap.com-01.jpg",7656,null,"http://www.kayalarkereste.com/image/catalog/Kamelya-cardak/KM-137 PLATFORM/km-137-platform-kamelya-cardak-fiyatlari-www.kayalarahsap.com-01.jpg"]
[null,null,null,null,null,null,null,null,null,null,null,null,null,null,null,null,null,null,null,null,null,null,null,null,null,null,null,null,null,null,null,null,null,null,null,null,null,null,null,null,null,null,null,null,null,null,null,null,"KM-138","Kamelya - Çardak Kapalı dinlenme Alanı 138","M2","KM-138","catalog/Kamelya-cardak/KM-138 TOYOTETSU PC/KM-138-kamelya-ahsap-cardak-dinlenme-sigara-icme-alani-kameriye-fiyatlaril-gebze-www.kayalarkereste.com-01.jpg",1102,null,"http://www.kayalarkereste.com/image/catalog/Kamelya-cardak/KM-138 TOYOTETSU PC/KM-138-kamelya-ahsap-cardak-dinlenme-sigara-icme-alani-kameriye-fiyatlaril-gebze-www.kayalarkereste.com-01.jpg"]
[null,null,null,null,null,null,null,null,null,null,null,null,null,null,null,null,null,null,null,null,null,null,null,null,null,null,null,null,null,null,null,null,null,null,null,null,null,null,null,null,null,null,null,null,null,null,null,null,"KM-139","Kamelya - Çardak platform 139","M2","KM-139","catalog/Kamelya-cardak/KM-139 TOYOTETSU PRES/KM-139-kamelya-ahsap-cardak-dinlenme-sigara-icme-alani-fiyatlari-gebze-kocaeli-istanbul-www.kayalarkereste.com-01.jpg",1102,null,"http://www.kayalarkereste.com/image/catalog/Kamelya-cardak/KM-139 TOYOTETSU PRES/KM-139-kamelya-ahsap-cardak-dinlenme-sigara-icme-alani-fiyatlari-gebze-kocaeli-istanbul-www.kayalarkereste.com-01.jpg"]
[null,null,null,null,null,null,null,null,null,null,null,null,null,null,null,null,null,null,null,null,null,null,null,null,null,null,null,null,null,null,null,null,null,null,null,null,null,null,null,null,null,null,null,null,null,null,null,null,"KM-141","Kamelya - Çardak platform 141","M2","KM-141","catalog/Kamelya-cardak/KM-141 DENSO HUUN/KM-141-kamelya-ahsap-cardak-dinlenme-sigara-icme-alani-fiyatlari-gebze-kocaeli-izmit-istanbul-www.kayalarkereste.com-11.jpg",1102,null,"http://www.kayalarkereste.com/image/catalog/Kamelya-cardak/KM-141 DENSO HUUN/KM-141-kamelya-ahsap-cardak-dinlenme-sigara-icme-alani-fiyatlari-gebze-kocaeli-izmit-istanbul-www.kayalarkereste.com-11.jpg"]
[null,null,null,null,null,null,null,null,null,null,null,null,null,null,null,null,null,null,null,null,null,null,null,null,null,null,null,null,null,null,null,null,null,null,null,null,null,null,null,null,null,null,null,null,null,null,null,null,"KM-142","Kamelya - Çardak platform 142","M2","KM-142","catalog/Kamelya-cardak/KM-142/KM-142-kamelya-ahsap-cardak-dinlenme-sigara-icme-alani-fiyatlari-gebze-kocaeli-izmit-istanbul-www.kayalarkereste.com-08.jpg",1102,null,"http://www.kayalarkereste.com/image/catalog/Kamelya-cardak/KM-142/KM-142-kamelya-ahsap-cardak-dinlenme-sigara-icme-alani-fiyatlari-gebze-kocaeli-izmit-istanbul-www.kayalarkereste.com-08.jpg"]
[null,null,null,null,null,null,null,null,null,null,null,null,null,null,null,null,null,null,null,null,null,null,null,null,null,null,null,null,null,null,null,null,null,null,null,null,null,null,null,null,null,null,null,null,null,null,null,null,"KM-143","Kamelya - Çardak platform 143","M2","KM-143","catalog/Kamelya-cardak/KM-143/km-143-ahsap-dinlenme-sigara-icme-alani-kamelya-fiyatlari-gebze-kocaeli-tuzla-pendik-istanbul-ahsap-ev-www.kayalarkereste~9.jpg",1102,null,"http://www.kayalarkereste.com/image/catalog/Kamelya-cardak/KM-143/km-143-ahsap-dinlenme-sigara-icme-alani-kamelya-fiyatlari-gebze-kocaeli-tuzla-pendik-istanbul-ahsap-ev-www.kayalarkereste~9.jpg"]
[null,null,null,null,null,null,null,null,null,null,null,null,null,null,null,null,null,null,null,null,null,null,null,null,null,null,null,null,null,null,null,null,null,null,null,null,null,null,null,null,null,null,null,null,null,null,null,null,"KM-144","Kamelya - Çardak platform 144","Adet","KM-144","catalog/Kamelya-cardak/KM-144/KM-144-kamelya-cardak-kameriye-gazebo-pargola-fiyatlari-www.kayalarahsap-www.kayalarkereste.com-6.jpg",6670,null,"http://www.kayalarkereste.com/image/catalog/Kamelya-cardak/KM-144/KM-144-kamelya-cardak-kameriye-gazebo-pargola-fiyatlari-www.kayalarahsap-www.kayalarkereste.com-6.jpg"]
[null,null,null,null,null,null,null,null,null,null,null,null,null,null,null,null,null,null,null,null,null,null,null,null,null,null,null,null,null,null,null,null,null,null,null,null,null,null,null,null,null,null,null,null,null,null,null,null,"KM-145","Kamelya - Çardak  145","M2","KM-145","catalog/Kamelya-cardak/KM-145 KIA/KM-145-kamelya-kis-bahce-cardak-pargola-fiyatlari-www.kayalarkereste.com-01.jpg",812,null,"http://www.kayalarkereste.com/image/catalog/Kamelya-cardak/KM-145 KIA/KM-145-kamelya-kis-bahce-cardak-pargola-fiyatlari-www.kayalarkereste.com-01.jpg"]
[null,null,null,null,null,null,null,null,null,null,null,null,null,null,null,null,null,null,null,null,null,null,null,null,null,null,null,null,null,null,null,null,null,null,null,null,null,null,null,null,null,null,null,null,null,null,null,null,"KM-146","Kamelya - Çardak  146","Adet","KM-146","catalog/Kamelya-cardak/KM-146 BODYCOTE/KM-146-kamelya-kis-bahce-cardak-fabrika-sigara-icme-alani-fiyatlari-www.kayalarkereste.com-03.jpg",5800,null,"http://www.kayalarkereste.com/image/catalog/Kamelya-cardak/KM-146 BODYCOTE/KM-146-kamelya-kis-bahce-cardak-fabrika-sigara-icme-alani-fiyatlari-www.kayalarkereste.com-03.jpg"]
[null,null,null,null,null,null,null,null,null,null,null,null,null,null,null,null,null,null,null,null,null,null,null,null,null,null,null,null,null,null,null,null,null,null,null,null,null,null,null,null,null,null,null,null,null,null,null,null,"KM-147","Kamelya - Çardak  147","Adet","KM-147","2018/02/KM-147-kemer-kamelya-ahsap-dinlenme-alani-kis-bahcesi-cardak-gazebo-fiyatlari-www.kayalarkereste.com- 06.jpg",7540,null,"http://www.kayalarkereste.com/image/2018/02/KM-147-kemer-kamelya-ahsap-dinlenme-alani-kis-bahcesi-cardak-gazebo-fiyatlari-www.kayalarkereste.com- 06.jpg"]
[null,null,null,null,null,null,null,null,null,null,null,null,null,null,null,null,null,null,null,null,null,null,null,null,null,null,null,null,null,null,null,null,null,null,null,null,null,null,null,null,null,null,null,null,null,null,null,null,"KM-148","Kamelya - Çardak  148","M2","KM-148","catalog/Kamelya-cardak/KM-148 MORYAYLA/bahce-kamelya-km-148-04.jpg",812,null,"http://www.kayalarkereste.com/image/catalog/Kamelya-cardak/KM-148 MORYAYLA/bahce-kamelya-km-148-04.jpg"]
[null,null,null,null,null,null,null,null,null,null,null,null,null,null,null,null,null,null,null,null,null,null,null,null,null,null,null,null,null,null,null,null,null,null,null,null,null,null,null,null,null,null,null,null,null,null,null,null,"KM-150","Kamelya - Çardak  150","Adet","KM-150","catalog/Kamelya-cardak/KM-150/KM-150-kamelya-ahsap-kis-bahce-cardak-fiyatlari-ucuz-kameriye-www.kayalarkereste.com-13.jpg",6000,null,"http://www.kayalarkereste.com/image/catalog/Kamelya-cardak/KM-150/KM-150-kamelya-ahsap-kis-bahce-cardak-fiyatlari-ucuz-kameriye-www.kayalarkereste.com-13.jpg"]
[null,null,null,null,null,null,null,null,null,null,null,null,null,null,null,null,null,null,null,null,null,null,null,null,null,null,null,null,null,null,null,null,null,null,null,null,null,null,null,null,null,null,null,null,null,null,null,null,"KM-151","Kamelya - Çardak  151","Adet","KM-151","catalog/Kamelya-cardak/KM-151 BOSAL/ahsap-cardak-kamelya-dinlenme-sigara-icme-alani-gebze-pelitli-balcik-www.kayalarkereste.com-km-148-03.jpg",12000,null,"http://www.kayalarkereste.com/image/catalog/Kamelya-cardak/KM-151 BOSAL/ahsap-cardak-kamelya-dinlenme-sigara-icme-alani-gebze-pelitli-balcik-www.kayalarkereste.com-km-148-03.jpg"]
[null,null,null,null,null,null,null,null,null,null,null,null,null,null,null,null,null,null,null,null,null,null,null,null,null,null,null,null,null,null,null,null,null,null,null,null,null,null,null,null,null,null,null,null,null,null,null,null,"KM-152","Kamelya -  Fabrika Dinlenme Alanı Çardak  152","Adet","KM-152","catalog/Kamelya-cardak/KM-152 FATER/KM-152-kamelya-ahsap-cardak-fiyatlari-ucuz-kameriye-www.kayalarkereste.com-01.jpg",8000,null,"http://www.kayalarkereste.com/image/catalog/Kamelya-cardak/KM-152 FATER/KM-152-kamelya-ahsap-cardak-fiyatlari-ucuz-kameriye-www.kayalarkereste.com-01.jpg"]
[null,null,null,null,null,null,null,null,null,null,null,null,null,null,null,null,null,null,null,null,null,null,null,null,null,null,null,null,null,null,null,null,null,null,null,null,null,null,null,null,null,null,null,null,null,null,null,null,"KM-153","Kamelya - Çardak  153","Adet","KM-153","catalog/Kamelya-cardak/KM-153/km-153-ahsap-kamelya-bahce-platform-dinlenme-alani-04.jpg",4200,null,"http://www.kayalarkereste.com/image/catalog/Kamelya-cardak/KM-153/km-153-ahsap-kamelya-bahce-platform-dinlenme-alani-04.jpg"]
[null,null,null,null,null,null,null,null,null,null,null,null,null,null,null,null,null,null,null,null,null,null,null,null,null,null,null,null,null,null,null,null,null,null,null,null,null,null,null,null,null,null,null,null,null,null,null,null,{"$f":"HYPERLINK(BD114,AZ114)","v":"KM-154"},"Kamelya - Çardak  154","Adet","KM-154","catalog/Kamelya-cardak/KM-154/cardak-kamelya-gazebo-ahsap-oturma-dinlenme-alani-kartal-pendik-gebze-www.kayalarahsap.com-KM-154-01.jpg",5500,null,"http://www.kayalarkereste.com/image/catalog/Kamelya-cardak/KM-154/cardak-kamelya-gazebo-ahsap-oturma-dinlenme-alani-kartal-pendik-gebze-www.kayalarahsap.com-KM-154-01.jpg"]
[null,null,null,null,null,null,null,null,null,null,null,null,null,null,null,null,null,null,null,null,null,null,null,null,null,null,null,null,null,null,null,null,null,null,null,null,null,null,null,null,null,null,null,null,null,null,null,null,"KM-155","Kamelya - Çardak  155","Adet","KM-155","catalog/Kamelya-cardak/KM-155 SANGO UZUN/cardak-kamelya-gazebo-ahsap-sigara-icme-oturma-dinlenme-alani-sango-gebze-www.kayalarahsap.com-KM-155-01.jpg",19800,null,"http://www.kayalarkereste.com/image/catalog/Kamelya-cardak/KM-155 SANGO UZUN/cardak-kamelya-gazebo-ahsap-sigara-icme-oturma-dinlenme-alani-sango-gebze-www.kayalarahsap.com-KM-155-01.jpg"]
[null,null,null,null,null,null,null,null,null,null,null,null,null,null,null,null,null,null,null,null,null,null,null,null,null,null,null,null,null,null,null,null,null,null,null,null,null,null,null,null,null,null,null,null,null,null,null,null,"KM-156","Kamelya - Çardak  156","Adet","KM-156","catalog/Kamelya-cardak/KM-156/cardak-kamelya-gazebo-ahsap-sigara-icme-oturma-dinlenme-alani-sango-gebze-www.kayalarahsap.com-KM-156-01.jpg",9000,null,"http://www.kayalarkereste.com/image/catalog/Kamelya-cardak/KM-156/cardak-kamelya-gazebo-ahsap-sigara-icme-oturma-dinlenme-alani-sango-gebze-www.kayalarahsap.com-KM-156-01.jpg"]
[null,null,null,null,null,null,null,null,null,null,null,null,null,null,null,null,null,null,null,null,null,null,null,null,null,null,null,null,null,null,null,null,null,null,null,null,null,null,null,null,null,null,null,null,null,null,null,null,"KM-157","Kamelya - Çardak  157","Adet","KM-157","catalog/Kamelya-cardak/KM-157 AYDINLI YAVUZHAN 4X4/KM-157-kamelya-ahsap-kis-bahce-cardak-gazebo-fiyatlari-ucuz-kamelya-kameriye-www.kayalarkereste.com-04.jpg",9600,null,"http://www.kayalarkereste.com/image/catalog/Kamelya-cardak/KM-157 AYDINLI YAVUZHAN 4X4/KM-157-kamelya-ahsap-kis-bahce-cardak-gazebo-fiyatlari-ucuz-kamelya-kameriye-www.kayalarkereste.com-04.jpg"]
[null,null,null,null,null,null,null,null,null,null,null,null,null,null,null,null,null,null,null,null,null,null,null,null,null,null,null,null,null,null,null,null,null,null,null,null,null,null,null,null,null,null,null,null,null,null,null,null,"KM-158","Kamelya - Çardak  158","Adet","KM-158","catalog/Kamelya-cardak/KM-158/KM-158-kamelya-ahsap-cardak-gazebo-kameriye-ucuz-kamelya-fiyatlari-istanbul-gebze-www.kayalarkereste.com-07.JPG",9600,null,"http://www.kayalarkereste.com/image/catalog/Kamelya-cardak/KM-158/KM-158-kamelya-ahsap-cardak-gazebo-kameriye-ucuz-kamelya-fiyatlari-istanbul-gebze-www.kayalarkereste.com-07.JPG"]
[null,null,null,null,null,null,null,null,null,null,null,null,null,null,null,null,null,null,null,null,null,null,null,null,null,null,null,null,null,null,null,null,null,null,null,null,null,null,null,null,null,null,null,null,null,null,null,null,"KM-159","Kamelya - Çardak  159","Adet","KM-159","catalog/Kamelya-cardak/KM-159 TUZLA YAVUZHAN 3,5 X 3,5/km-159-cardak-ahsap-kamelya-tuzla-pendik-gebze-gazebo-ucuz-kamelya-fiyatlari-www.kayalarkereste.com-02.jpg",8150,null,"http://www.kayalarkereste.com/image/catalog/Kamelya-cardak/KM-159 TUZLA YAVUZHAN 3,5 X 3,5/km-159-cardak-ahsap-kamelya-tuzla-pendik-gebze-gazebo-ucuz-kamelya-fiyatlari-www.kayalarkereste.com-02.jpg"]
[null,null,null,null,null,null,null,null,null,null,null,null,null,null,null,null,null,null,null,null,null,null,null,null,null,null,null,null,null,null,null,null,null,null,null,null,null,null,null,null,null,null,null,null,null,null,null,null,"KM-160","Kamelya - Çardak  160","Adet","KM-160","catalog/Kamelya-cardak/KM-160 AYDINLI YAVUZHAN 3X5/KM-160-kamelya-kis-bahce-cardak-site-dinlenme-alani-cardak-fiyatlari-gebze-tuzla-pendik-www.kayalarkereste.com-01.jpg",10500,null,"http://www.kayalarkereste.com/image/catalog/Kamelya-cardak/KM-160 AYDINLI YAVUZHAN 3X5/KM-160-kamelya-kis-bahce-cardak-site-dinlenme-alani-cardak-fiyatlari-gebze-tuzla-pendik-www.kayalarkereste.com-01.jpg"]
[null,null,null,null,null,null,null,null,null,null,null,null,null,null,null,null,null,null,null,null,null,null,null,null,null,null,null,null,null,null,null,null,null,null,null,null,null,null,null,null,null,null,null,null,null,null,null,null,"KM-162","Serender - Nayla  162","Adet","KM-162","catalog/Kamelya-cardak/KM-162/km-162-nayla-serender-cift-katli-kamelya-ahsap-nayla-serender-fiyatlari-www.kayalarkereste.com-01.jpg",18000,null,"http://www.kayalarkereste.com/image/catalog/Kamelya-cardak/KM-162/km-162-nayla-serender-cift-katli-kamelya-ahsap-nayla-serender-fiyatlari-www.kayalarkereste.com-01.jpg"]
[null,null,null,null,null,null,null,null,null,null,null,null,null,null,null,null,null,null,null,null,null,null,null,null,null,null,null,null,null,null,null,null,null,null,null,null,null,null,null,null,null,null,null,null,null,null,null,null,"KM-163","Kamelya - Çardak  163","Adet","KM-163","catalog/Kamelya-cardak/KM-163/km-163-ahsap-sekizgen-yuvarlak-kamelya-cardak-gazebo-fiyatlari-gebze-tuzla-pendik-kurtkoy-www.kayalarkereste.com-07.jpg",9600,null,"http://www.kayalarkereste.com/image/catalog/Kamelya-cardak/KM-163/km-163-ahsap-sekizgen-yuvarlak-kamelya-cardak-gazebo-fiyatlari-gebze-tuzla-pendik-kurtkoy-www.kayalarkereste.com-07.jpg"]
[null,null,null,null,null,null,null,null,null,null,null,null,null,null,null,null,null,null,null,null,null,null,null,null,null,null,null,null,null,null,null,null,null,null,null,null,null,null,null,null,null,null,null,null,null,null,null,null,"PA-131","PA-131 Çocuk Oyun Parkı","Adet","PA-131","catalog/Oyun-Park/PA-131/cocuk-oyun-parki-gebze-ahsap-oyun-alani-fiyatlari-www.ahsapfiyatlistesi.com-PA-131-01.jpg",7540,null,"http://www.kayalarkereste.com/image/catalog/Oyun-Park/PA-131/cocuk-oyun-parki-gebze-ahsap-oyun-alani-fiyatlari-www.ahsapfiyatlistesi.com-PA-131-01.jpg"]
[null,null,null,null,null,null,null,null,null,null,null,null,null,null,null,null,null,null,null,null,null,null,null,null,null,null,null,null,null,null,null,null,null,null,null,null,null,null,null,null,null,null,null,null,null,null,null,null,"UK-101","TAVUK ve KANATLI HAYVAN KÜMESİ 101","Adet","UK-101","catalog/kumes/UK-101/IMG_1923.jpg",2204,null,"http://www.kayalarkereste.com/image/catalog/kumes/UK-101/IMG_1923.jpg"]
[null,null,null,null,null,null,null,null,null,null,null,null,null,null,null,null,null,null,null,null,null,null,null,null,null,null,null,null,null,null,null,null,null,null,null,null,null,null,null,null,null,null,null,null,null,null,null,null,"UK-102","TAVUK ve KANATLI HAYVAN KÜMESİ 102","Adet","UK-102","catalog/kumes/UK-102/IMG_1678.jpg",2204,null,"http://www.kayalarkereste.com/image/catalog/kumes/UK-102/IMG_1678.jpg"]
[null,null,null,null,null,null,null,null,null,null,null,null,null,null,null,null,null,null,null,null,null,null,null,null,null,null,null,null,null,null,null,null,null,null,null,null,null,null,null,null,null,null,null,null,null,null,null,null,"UK-103","TAVUK ve KANATLI HAYVAN KÜMESİ 103","Adet","UK-103","catalog/kumes/UK-103/ahsap-tavuk-guvercin-kumes-uk-103-03.jpg",3306,null,"http://www.kayalarkereste.com/image/catalog/kumes/UK-103/ahsap-tavuk-guvercin-kumes-uk-103-03.jpg"]
[null,null,null,null,null,null,null,null,null,null,null,null,null,null,null,null,null,null,null,null,null,null,null,null,null,null,null,null,null,null,null,null,null,null,null,null,null,null,null,null,null,null,null,null,null,null,null,null,"UK-104","TAVUK ve KANATLI HAYVAN KÜMESİ 104","Adet","UK-104","catalog/kumes/UK-104/ahsap-tavuk-kumesi-uk-104-01.jpg",3306,null,"http://www.kayalarkereste.com/image/catalog/kumes/UK-104/ahsap-tavuk-kumesi-uk-104-01.jpg"]
[null,null,null,null,null,null,null,null,null,null,null,null,null,null,null,null,null,null,null,null,null,null,null,null,null,null,null,null,null,null,null,null,null,null,null,null,null,null,null,null,null,null,null,null,null,null,null,null,"KU-102","AHŞAP KÖPRU KU-102","Metre","KU-102","catalog/kopru/KU-102/ku-102-ahsap-kopru-cesitleri-fiyatlari-resimleri-gebze-kocaeli-istanbul-1.jpg",754,null,"http://www.kayalarkereste.com/image/catalog/kopru/KU-102/ku-102-ahsap-kopru-cesitleri-fiyatlari-resimleri-gebze-kocaeli-istanbul-1.jpg"]
[null,null,null,null,null,null,null,null,null,null,null,null,null,null,null,null,null,null,null,null,null,null,null,null,null,null,null,null,null,null,null,null,null,null,null,null,null,null,null,null,null,null,null,null,null,null,null,null,"AS-101","Ahşap Saksı 101","Adet","AS-101","catalog/saksi/AS-101/AS-101-ahsap-saksi-fiyatlari-ahsap-saksi-imalati-buyuk-ahsap saksi-ahsap-saksi-fiyatlari-www.kayalarahsap.com-01.jpg",522,null,"http://www.kayalarkereste.com/image/catalog/saksi/AS-101/AS-101-ahsap-saksi-fiyatlari-ahsap-saksi-imalati-buyuk-ahsap saksi-ahsap-saksi-fiyatlari-www.kayalarahsap.com-01.jpg"]
[null,null,null,null,null,null,null,null,null,null,null,null,null,null,null,null,null,null,null,null,null,null,null,null,null,null,null,null,null,null,null,null,null,null,null,null,null,null,null,null,null,null,null,null,null,null,null,null,"AS-102","Ahşap Saksı 102","Adet","AS-102","catalog/saksi/AS-102/AS-102-ahsap-saksi-fiyatlari-ahsap-saksi-imalati-buyuk-maun-ahsap saksi-ahsap-saksi-fiyatlari-www.kayalarahsap.com-03.jpg",638,null,"http://www.kayalarkereste.com/image/catalog/saksi/AS-102/AS-102-ahsap-saksi-fiyatlari-ahsap-saksi-imalati-buyuk-maun-ahsap saksi-ahsap-saksi-fiyatlari-www.kayalarahsap.com-03.jpg"]
[null,null,null,null,null,null,null,null,null,null,null,null,null,null,null,null,null,null,null,null,null,null,null,null,null,null,null,null,null,null,null,null,null,null,null,null,null,null,null,null,null,null,null,null,null,null,null,null,"AS-103","Ahşap Saksı 103","Adet","AS-103","catalog/saksi/AS-103/AS-103-maun-ahsap-saksi-fiyatlari-ahsap-saksi-imalati-buyuk-maun-ahsap saksi-ahsap-saksi-fiyatlari-www.kayalarahsap.com-01.jpg",638,null,"http://www.kayalarkereste.com/image/catalog/saksi/AS-103/AS-103-maun-ahsap-saksi-fiyatlari-ahsap-saksi-imalati-buyuk-maun-ahsap saksi-ahsap-saksi-fiyatlari-www.kayalarahsap.com-01.jpg"]
[null,null,null,null,null,null,null,null,null,null,null,null,null,null,null,null,null,null,null,null,null,null,null,null,null,null,null,null,null,null,null,null,null,null,null,null,null,null,null,null,null,null,null,null,null,null,null,null,"AS-105","Ahşap Saksı 105","Adet","AS-105","catalog/saksi/AS-105/AS-105-maun-ahsap-saksi-fiyatlari-ahsap-saksi-imalati-buyuk-maun-6gen-ahsap-saksi-ahsap-saksi-fiyatlari-www.kayalarahsap.~3.jpg",348,null,"http://www.kayalarkereste.com/image/catalog/saksi/AS-105/AS-105-maun-ahsap-saksi-fiyatlari-ahsap-saksi-imalati-buyuk-maun-6gen-ahsap-saksi-ahsap-saksi-fiyatlari-www.kayalarahsap.~3.jpg"]
[null,null,null,null,null,null,null,null,null,null,null,null,null,null,null,null,null,null,null,null,null,null,null,null,null,null,null,null,null,null,null,null,null,null,null,null,null,null,null,null,null,null,null,null,null,null,null,null,"AS-106","Ahşap Saksı 106","Adet","AS-106","catalog/saksi/AS-106/AS-106-ahsap-saksi-fiyatlari-ahsap-saksi-imalati-buyuk-konik-8gen-ahsap-saksi-ahsap-saksi-fiyatlari-www.kayalarahsap.com-02.jpg",278.39999999999998,null,"http://www.kayalarkereste.com/image/catalog/saksi/AS-106/AS-106-ahsap-saksi-fiyatlari-ahsap-saksi-imalati-buyuk-konik-8gen-ahsap-saksi-ahsap-saksi-fiyatlari-www.kayalarahsap.com-02.jpg"]
[null,null,null,null,null,null,null,null,null,null,null,null,null,null,null,null,null,null,null,null,null,null,null,null,null,null,null,null,null,null,null,null,null,null,null,null,null,null,null,null,null,null,null,null,null,null,null,null,"AS-107","Ahşap Saksı 107","Adet","AS-107","catalog/saksi/AS-107/AS-107-ahsap-saksi-fiyatlari-ahsap-saksi-imalati-buyuk-uzun-8gen-ahsap-saksi-ahsap-saksi-fiyatlari-www.kayalarahsap.com-01.jpg",278.39999999999998,null,"http://www.kayalarkereste.com/image/catalog/saksi/AS-107/AS-107-ahsap-saksi-fiyatlari-ahsap-saksi-imalati-buyuk-uzun-8gen-ahsap-saksi-ahsap-saksi-fiyatlari-www.kayalarahsap.com-01.jpg"]
[null,null,null,null,null,null,null,null,null,null,null,null,null,null,null,null,null,null,null,null,null,null,null,null,null,null,null,null,null,null,null,null,null,null,null,null,null,null,null,null,null,null,null,null,null,null,null,null,"AS-108","Ahşap Saksı 108","Adet","AS-108","catalog/saksi/AS-108/AS-108-ahsap-saksi-fiyatlari-ahsap-saksi-imalati-buyuk-uzun-8gen-ahsap-saksi-ahsap-saksi-fiyatlari-resimleri-www.kayalara~3.jpg",278.39999999999998,null,"http://www.kayalarkereste.com/image/catalog/saksi/AS-108/AS-108-ahsap-saksi-fiyatlari-ahsap-saksi-imalati-buyuk-uzun-8gen-ahsap-saksi-ahsap-saksi-fiyatlari-resimleri-www.kayalara~3.jpg"]
[null,null,null,null,null,null,null,null,null,null,null,null,null,null,null,null,null,null,null,null,null,null,null,null,null,null,null,null,null,null,null,null,null,null,null,null,null,null,null,null,null,null,null,null,null,null,null,null,"AS-109","Ahşap Saksı 109","Adet","AS-109","catalog/saksi/AS-109/AS-109-ahsap-saksi-fiyatlari-ahsap-saksi-imalati-buyuk-uzun-7gen-ahsap-saksi-yedi-gen-ahsap-saksi-cesitleri-resimleri-yed~3.jpg",278.39999999999998,null,"http://www.kayalarkereste.com/image/catalog/saksi/AS-109/AS-109-ahsap-saksi-fiyatlari-ahsap-saksi-imalati-buyuk-uzun-7gen-ahsap-saksi-yedi-gen-ahsap-saksi-cesitleri-resimleri-yed~3.jpg"]
[null,null,null,null,null,null,null,null,null,null,null,null,null,null,null,null,null,null,null,null,null,null,null,null,null,null,null,null,null,null,null,null,null,null,null,null,null,null,null,null,null,null,null,null,null,null,null,null,"AS-110","Ahşap Saksı 110","Adet","AS-110","catalog/Saksi/AS-110/AS-110-ahsap-saksi-fiyatlari-ahsap-saksi-imalati-6gen-altigen-ahsap-saksi-ahsap-saksi-cesitleri-resimleri-ahsap-saksi-fiyat-www.kayalarahsap.com-052.jpg",278.39999999999998,null,"http://www.kayalarkereste.com/image/catalog/Saksi/AS-110/AS-110-ahsap-saksi-fiyatlari-ahsap-saksi-imalati-6gen-altigen-ahsap-saksi-ahsap-saksi-cesitleri-resimleri-ahsap-saksi-fiyat-www.kayalarahsap.com-052.jpg"]
[null,null,null,null,null,null,null,null,null,null,null,null,null,null,null,null,null,null,null,null,null,null,null,null,null,null,null,null,null,null,null,null,null,null,null,null,null,null,null,null,null,null,null,null,null,null,null,null,"AS-112","Ahşap Saksı 112","Adet","AS-112","catalog/saksi/AS-112/AS-112-ahsap-saksi-fiyatlari-ahsap-saksi-imalati-dikdortgen-ahsap-saksi-ahsap-saksi-cesitleri-resimleri-ahsap-saksi-fiyat~1.jpg",371.2,null,"http://www.kayalarkereste.com/image/catalog/saksi/AS-112/AS-112-ahsap-saksi-fiyatlari-ahsap-saksi-imalati-dikdortgen-ahsap-saksi-ahsap-saksi-cesitleri-resimleri-ahsap-saksi-fiyat~1.jpg"]
[null,null,null,null,null,null,null,null,null,null,null,null,null,null,null,null,null,null,null,null,null,null,null,null,null,null,null,null,null,null,null,null,null,null,null,null,null,null,null,null,null,null,null,null,null,null,null,null,"AS-113","Ahşap Saksı 113","Adet","AS-113","catalog/saksi/AS-113/AS-113-ahsap-saksi-fiyatlari-ahsap-saksi-imalati-uzun-dikdortgen-ahsap-saksi-ahsap-saksi-cesitleri-resimleri-ahsap-saksi-~1.jpg",371.2,null,"http://www.kayalarkereste.com/image/catalog/saksi/AS-113/AS-113-ahsap-saksi-fiyatlari-ahsap-saksi-imalati-uzun-dikdortgen-ahsap-saksi-ahsap-saksi-cesitleri-resimleri-ahsap-saksi-~1.jpg"]
[null,null,null,null,null,null,null,null,null,null,null,null,null,null,null,null,null,null,null,null,null,null,null,null,null,null,null,null,null,null,null,null,null,null,null,null,null,null,null,null,null,null,null,null,null,null,null,null,"AS-114","Ahşap Saksı 114","Adet","AS-114","catalog/saksi/AS-114/AS-114-ahsap-saksi-fiyatlari-ahsap-saksi-imalati-dikdortgen-ahsap-saksi-ahsap-saksi-ciceklik-cesitleri-resimleri-ahsap-sa~2.jpg",371.2,null,"http://www.kayalarkereste.com/image/catalog/saksi/AS-114/AS-114-ahsap-saksi-fiyatlari-ahsap-saksi-imalati-dikdortgen-ahsap-saksi-ahsap-saksi-ciceklik-cesitleri-resimleri-ahsap-sa~2.jpg"]
[null,null,null,null,null,null,null,null,null,null,null,null,null,null,null,null,null,null,null,null,null,null,null,null,null,null,null,null,null,null,null,null,null,null,null,null,null,null,null,null,null,null,null,null,null,null,null,null,"AS-117","Ahşap Saksı 117","Adet","AS-117","catalog/saksi/AS-117-EL-ARABA-SAKSI/AS-117-ahsap-saksi-fiyatlari-el-arabasi-saksi-tekerlekli-araba-saksi-kayalarkereste.com-05.jpg",638,null,"http://www.kayalarkereste.com/image/catalog/saksi/AS-117-EL-ARABA-SAKSI/AS-117-ahsap-saksi-fiyatlari-el-arabasi-saksi-tekerlekli-araba-saksi-kayalarkereste.com-05.jpg"]
[null,null,null,null,null,null,null,null,null,null,null,null,null,null,null,null,null,null,null,null,null,null,null,null,null,null,null,null,null,null,null,null,null,null,null,null,null,null,null,null,null,null,null,null,null,null,null,null,"AS-118","Ahşap Saksı 118","Adet","AS-118","catalog/saksi/AS-118/AS-118-ahsap-saksi-fiyatlari-ahsap-saksi-imalati-uzun-dikdortgen-ahsap-saksi-ahsap-saksi-cesitleri-resimleri-ahsap-saksi-~1.jpg",371.2,null,"http://www.kayalarkereste.com/image/catalog/saksi/AS-118/AS-118-ahsap-saksi-fiyatlari-ahsap-saksi-imalati-uzun-dikdortgen-ahsap-saksi-ahsap-saksi-cesitleri-resimleri-ahsap-saksi-~1.jpg"]
[null,null,null,null,null,null,null,null,null,null,null,null,null,null,null,null,null,null,null,null,null,null,null,null,null,null,null,null,null,null,null,null,null,null,null,null,null,null,null,null,null,null,null,null,null,null,null,null,"AS-119","Ahşap Saksı 119","Adet","AS-119","catalog/saksi/AS-119/AS-119-ahsap-saksi-fiyatlari-ahsap-saksi-imalati-6gen-altigen-ahsap-saksi-ahsap-saksi-cesitleri-resimleri-ahsap-saksi-fiy~1.jpg",278.39999999999998,null,"http://www.kayalarkereste.com/image/catalog/saksi/AS-119/AS-119-ahsap-saksi-fiyatlari-ahsap-saksi-imalati-6gen-altigen-ahsap-saksi-ahsap-saksi-cesitleri-resimleri-ahsap-saksi-fiy~1.jpg"]
[null,null,null,null,null,null,null,null,null,null,null,null,null,null,null,null,null,null,null,null,null,null,null,null,null,null,null,null,null,null,null,null,null,null,null,null,null,null,null,null,null,null,null,null,null,null,null,null,"AS-120","Ahşap Saksı 120","Adet","AS-120","catalog/saksi/AS-120/AS-120-ahsap-saksi-fiyatlari-ahsap-saksi-imalati-yuksek-ahsap-saksi-uzun-ahsap-saksi-cesitleri-resimleri-ahsap-saksi-fiya~2.jpg",406,null,"http://www.kayalarkereste.com/image/catalog/saksi/AS-120/AS-120-ahsap-saksi-fiyatlari-ahsap-saksi-imalati-yuksek-ahsap-saksi-uzun-ahsap-saksi-cesitleri-resimleri-ahsap-saksi-fiya~2.jpg"]
[null,null,null,null,null,null,null,null,null,null,null,null,null,null,null,null,null,null,null,null,null,null,null,null,null,null,null,null,null,null,null,null,null,null,null,null,null,null,null,null,null,null,null,null,null,null,null,null,"AS-122","Ahşap Saksı 122","Metre","AS-122","catalog/saksi/AS-122/ahsap-panel-saksi-fiyatlari-modelleri-istanbul-kocaeli-www.kayalarkereste.com-as-122-05.jpg",417.6,null,"http://www.kayalarkereste.com/image/catalog/saksi/AS-122/ahsap-panel-saksi-fiyatlari-modelleri-istanbul-kocaeli-www.kayalarkereste.com-as-122-05.jpg"]
[null,null,null,null,null,null,null,null,null,null,null,null,null,null,null,null,null,null,null,null,null,null,null,null,null,null,null,null,null,null,null,null,null,null,null,null,null,null,null,null,null,null,null,null,null,null,null,null,"AS-123","Ahşap Saksı 123","Adet","AS-123","catalog/saksi/AS-123 AT ARBASI/AS-123-at-arabasi-ahsap-saksi-01.jpg",2552,null,"http://www.kayalarkereste.com/image/catalog/saksi/AS-123 AT ARBASI/AS-123-at-arabasi-ahsap-saksi-01.jpg"]
[null,null,null,null,null,null,null,null,null,null,null,null,null,null,null,null,null,null,null,null,null,null,null,null,null,null,null,null,null,null,null,null,null,null,null,null,null,null,null,null,null,null,null,null,null,null,null,null,"AV-109","Ahşap Bungalov Yalı baskı Ev (AV-109)","m2","AV-109","catalog/Ev/av-109/ahsap-bungalov-ev-av-109-00.jpg",1566,null,"http://www.kayalarkereste.com/image/catalog/Ev/av-109/ahsap-bungalov-ev-av-109-00.jpg"]
[null,null,null,null,null,null,null,null,null,null,null,null,null,null,null,null,null,null,null,null,null,null,null,null,null,null,null,null,null,null,null,null,null,null,null,null,null,null,null,null,null,null,null,null,null,null,null,null,"YB-101","1,8 x 12 Ahşap Cephe Kaplama Yalı Baskı YB-101","M2","YB-101","catalog/ahsap-cephe-kaplama/YB-101-12-en-2.5-kalin-duz/yb-101-yali-baski-bungalow-ev-cephe-kaplama-www.kayalarahsap.com-04.JPG",55.68,null,"http://www.kayalarkereste.com/image/catalog/ahsap-cephe-kaplama/YB-101-12-en-2.5-kalin-duz/yb-101-yali-baski-bungalow-ev-cephe-kaplama-www.kayalarahsap.com-04.JPG"]
[null,null,null,null,null,null,null,null,null,null,null,null,null,null,null,null,null,null,null,null,null,null,null,null,null,null,null,null,null,null,null,null,null,null,null,null,null,null,null,null,null,null,null,null,null,null,null,null,"YB-102","3,5 x 12,5 Ahşap Cephe Kaplama Yalı Baskı YB-102","M2","YB-102","catalog/ahsap-cephe-kaplama/YB-102-12-EN-5-kalin-duz/ahsap-yali-baski-cephe-kaplama-03.jpg",90.48,null,{"$f":"CONCATENATE($AW$1, BA149)","v":"http://www.kayalarkereste.com/image/catalog/ahsap-cephe-kaplama/YB-102-12-EN-5-kalin-duz/ahsap-yali-baski-cephe-kaplama-03.jpg"}]
[null,null,null,null,null,null,null,null,null,null,null,null,null,null,null,null,null,null,null,null,null,null,null,null,null,null,null,null,null,null,null,null,null,null,null,null,null,null,null,null,null,null,null,null,null,null,null,null,"YB-103","5 x 15 Ahşap Cephe Kaplama Yalı Baskı DÜZ YB-103","M2","YB-103","catalog/ahsap-cephe-kaplama/YB-103-15-en-5-kalin-duz/YaliBaski_5_duz_b.JPG",125.28,null,"http://www.kayalarkereste.com/image/catalog/ahsap-cephe-kaplama/YB-103-15-en-5-kalin-duz/YaliBaski_5_duz_b.JPG"]
[null,null,null,null,null,null,null,null,null,null,null,null,null,null,null,null,null,null,null,null,null,null,null,null,null,null,null,null,null,null,null,null,null,null,null,null,null,null,null,null,null,null,null,null,null,null,null,null,"YB-104","5 x 15 Ahşap Cephe Kaplama Yalı Baskı Yuvarlak Yuzey YB-104","M2","YB-104","catalog/ahsap-cephe-kaplama/YB-104-15-en-5-kalin-yuvarlak/IMG_5117.JPG",125.28,null,"http://www.kayalarkereste.com/image/catalog/ahsap-cephe-kaplama/YB-104-15-en-5-kalin-yuvarlak/IMG_5117.JPG"]
[null,null,null,null,null,null,null,null,null,null,null,null,null,null,null,null,null,null,null,null,null,null,null,null,null,null,null,null,null,null,null,null,null,null,null,null,null,null,null,null,null,null,null,null,null,null,null,null,"YB-105","5 x 20 Ahşap Yalı Baskı Dış Cephe Kaplama Düz Yüzey YB-105","M2","YB-105","catalog/ahsap-cephe-kaplama/YB-105-20-en-5-kalin-duz/YB-105-ahsap-kutuk-yali-baski-bungalow-ev-cephe-kaplama--kutuk-ev-profil-www.kayalarahsap.com-01.jpg",125,null,"http://www.kayalarkereste.com/image/catalog/ahsap-cephe-kaplama/YB-105-20-en-5-kalin-duz/YB-105-ahsap-kutuk-yali-baski-bungalow-ev-cephe-kaplama--kutuk-ev-profil-www.kayalarahsap.com-01.jpg"]
[null,null,null,null,null,null,null,null,null,null,null,null,null,null,null,null,null,null,null,null,null,null,null,null,null,null,null,null,null,null,null,null,null,null,null,null,null,null,null,null,null,null,null,null,null,null,null,null,"YB-106","3 x 23 Geniş Ahşap Yalı Baskı Dış Cephe Kaplama Düz Yüzey YB-106","M2","YB-106","catalog/ahsap-cephe-kaplama/YB-106-23-en-3.5-kalin-duz/YB-106-ahsap-tarihi-eser-ev-dekorasyon-ahsap-yali-baski-bungalow-ev-cephe-kaplama-kutuk-ev-profil-www.kayalarahsap.com-03.jpg",195,null,"http://www.kayalarkereste.com/image/catalog/ahsap-cephe-kaplama/YB-106-23-en-3.5-kalin-duz/YB-106-ahsap-tarihi-eser-ev-dekorasyon-ahsap-yali-baski-bungalow-ev-cephe-kaplama-kutuk-ev-profil-www.kayalarahsap.com-03.jpg"]
[null,null,null,null,null,null,null,null,null,null,null,null,null,null,null,null,null,null,null,null,null,null,null,null,null,null,null,null,null,null,null,null,null,null,null,null,null,null,null,null,null,null,null,null,null,null,null,null,"YB-107","5 x 12,5 Yalı Baskı Dış Cephe Kaplama Düz Yüzey YB-107","M2","YB-107","catalog/ahsap-cephe-kaplama/YB-102-12-EN-5-kalin-duz/ahsap-yali-baski-cephe-kaplama-03.jpg",125.28,null,"http://www.kayalarkereste.com/image/catalog/ahsap-cephe-kaplama/YB-102-12-EN-5-kalin-duz/ahsap-yali-baski-cephe-kaplama-03.jpg"]
[null,null,null,null,null,null,null,null,null,null,null,null,null,null,null,null,null,null,null,null,null,null,null,null,null,null,null,null,null,null,null,null,null,null,null,null,null,null,null,null,null,null,null,null,null,null,null,null,"KM-161","Kamelya - Çardak  161","M2","KM-161","catalog/Kamelya-cardak/KM-161/cardak-kamelya-gazebo-ahsap-oturma-dinlenme-alani-kartal-pendik-gebze-imes-kocaeli-www.kayalarahsap.com-KM-161-06.jpg",800,null,"http://www.kayalarkereste.com/image/catalog/Kamelya-cardak/KM-161/cardak-kamelya-gazebo-ahsap-oturma-dinlenme-alani-kartal-pendik-gebze-imes-kocaeli-www.kayalarahsap.com-KM-161-06.jpg"]
[null,null,null,null,null,null,null,null,null,null,null,null,null,null,null,null,null,null,null,null,null,null,null,null,null,null,null,null,null,null,null,null,null,null,null,null,null,null,null,null,null,null,null,null,null,null,null,null,"LM-107","Rabıta 1-2. Sınıf  (LM-107)","M2","LM-107","catalog/lambiri-ahsap/LM-107-rabita-kalin-yer-doseme-www.kayalarkereste.com-02.jpg",87,null,"http://www.kayalarkereste.com/image/catalog/lambiri-ahsap/LM-107-rabita-kalin-yer-doseme-www.kayalarkereste.com-02.jpg"]
[null,null,null,null,null,null,null,null,null,null,null,null,null,null,null,null,null,null,null,null,null,null,null,null,null,null,null,null,null,null,null,null,null,null,null,null,null,null,null,null,null,null,null,null,null,null,null,null,"DM-101","DM-101 Doğal Lamine 12 kalın LADİN Ahşap Masa 90 x 200cm","Adet","DM-101","catalog/kutuk-masa/dm-101/lamine-ladin-12-kalin-kutuk-masa-fiyatlari-kayalarkereste.com-kutuk-dogal-agac-mobilya-01.jpg",1102,null,"http://www.kayalarkereste.com/image/catalog/kutuk-masa/dm-101/lamine-ladin-12-kalin-kutuk-masa-fiyatlari-kayalarkereste.com-kutuk-dogal-agac-mobilya-01.jpg"]
[null,null,null,null,null,null,null,null,null,null,null,null,null,null,null,null,null,null,null,null,null,null,null,null,null,null,null,null,null,null,null,null,null,null,null,null,null,null,null,null,null,null,null,null,null,null,null,null,"AS-124","Doğal Lamine 12 kalın LADİN Ahşap Masa","Adet","AS-124","catalog/saksi/as-124/AS-124-at-arabasi-kucuk-ahsap-saksi-03.jpg",754,null,"http://www.kayalarkereste.com/image/catalog/saksi/as-124/AS-124-at-arabasi-kucuk-ahsap-saksi-03.jpg"]
[null,null,null,null,null,null,null,null,null,null,null,null,null,null,null,null,null,null,null,null,null,null,null,null,null,null,null,null,null,null,null,null,null,null,null,null,null,null,null,null,null,null,null,null,null,null,null,null,"DM-102","DM-102 Doğal Lamine 12 kalın LADİN Ahşap Masa 80 x 200cm","Adet","DM-102","catalog/kutuk-masa/dm-101/lamine-ladin-12-kalin-kutuk-masa-fiyatlari-kayalarkereste.com-kutuk-dogal-agac-mobilya-012.jpg",928,null,"http://www.kayalarkereste.com/image/catalog/kutuk-masa/dm-101/lamine-ladin-12-kalin-kutuk-masa-fiyatlari-kayalarkereste.com-kutuk-dogal-agac-mobilya-012.jpg"]
[null,null,null,null,null,null,null,null,null,null,null,null,null,null,null,null,null,null,null,null,null,null,null,null,null,null,null,null,null,null,null,null,null,null,null,null,null,null,null,null,null,null,null,null,null,null,null,null,"DM-111","DM-111 Doğal Kütük Ağaç Masa Tablası","Adet","DM-111","catalog/kutuk-masa/dm-111/kutuk-dogal-agac-masa-tabla-fiyatlari-www.kayalarkereste.com-04.jpg",2424.4,null,"http://www.kayalarkereste.com/image/catalog/kutuk-masa/dm-111/kutuk-dogal-agac-masa-tabla-fiyatlari-www.kayalarkereste.com-04.jpg"]
[null,null,null,null,null,null,null,null,null,null,null,null,null,null,null,null,null,null,null,null,null,null,null,null,null,null,null,null,null,null,null,null,null,null,null,null,null,null,null,null,null,null,null,null,null,null,null,null,"DM-112","DM-112-Doğal Kütük Ağaç Masa Tablası","Adet","DM-112","catalog/kutuk-masa/IMG_E3393.JPG",2534.6,null,"http://www.kayalarkereste.com/image/catalog/kutuk-masa/IMG_E3393.JPG"]
[null,null,null,null,null,null,null,null,null,null,null,null,null,null,null,null,null,null,null,null,null,null,null,null,null,null,null,null,null,null,null,null,null,null,null,null,null,null,null,null,null,null,null,null,null,null,null,null,"AV-110","Ahşap Bungalov Kulube-Ev  (AV-110)","Adet","AV-110","catalog/Ev/av-110/av-110-bungalov-ahsap-ev-kutuk--kulube-ev-fiyatlari-yapimi-maliyeti-resimleri-gebze-www.kayalarahsap.com-03.jpg",11136,null,"http://www.kayalarkereste.com/image/catalog/Ev/av-110/av-110-bungalov-ahsap-ev-kutuk--kulube-ev-fiyatlari-yapimi-maliyeti-resimleri-gebze-www.kayalarahsap.com-03.jpg"]
[null,null,null,null,null,null,null,null,null,null,null,null,null,null,null,null,null,null,null,null,null,null,null,null,null,null,null,null,null,null,null,null,null,null,null,null,null,null,null,null,null,null,null,null,null,null,null,null,"KT-105","KT-105 Ahşap Kütük - Bungalov Ev Profil","M2","KT-105","catalog/Profil/Kutuk-Ev/KT-105/KT-105-kutuk-ahsap-bungalov-ev-profil-5-kalin-15-genislik-03.jpg",129.91999999999999,null,"http://www.kayalarkereste.com/image/catalog/Profil/Kutuk-Ev/KT-105/KT-105-kutuk-ahsap-bungalov-ev-profil-5-kalin-15-genislik-03.jpg"]
[null,null,null,null,null,null,null,null,null,null,null,null,null,null,null,null,null,null,null,null,null,null,null,null,null,null,null,null,null,null,null,null,null,null,null,null,null,null,null,null,null,null,null,null,null,null,null,null,"KT-110","KT-110 Ahşap Kütük - Bungalov Ev Profil","M2","KT-110","catalog/Profil/Kutuk-Ev/KT-110/kt-110-kutuk-ahsap-bungalov-ev-ahsap-profil-10-kalin-15-genislik-02.jpg",179.8,null,"http://www.kayalarkereste.com/image/catalog/Profil/Kutuk-Ev/KT-110/kt-110-kutuk-ahsap-bungalov-ev-ahsap-profil-10-kalin-15-genislik-02.jpg"]
[null,null,null,null,null,null,null,null,null,null,null,null,null,null,null,null,null,null,null,null,null,null,null,null,null,null,null,null,null,null,null,null,null,null,null,null,null,null,null,null,null,null,null,null,null,null,null,null,"KT-118","KT-118 Ahşap Kütük - Bungalov Ev Profil","M2","KT-118","catalog/Profil/Kutuk-Ev/KT-118/kt-118-lamine-kutuk-ev-profil-ahsab-15cm-x-18cm-01.jpg",568.4,null,"http://www.kayalarkereste.com/image/catalog/Profil/Kutuk-Ev/KT-118/kt-118-lamine-kutuk-ev-profil-ahsab-15cm-x-18cm-01.jpg"]
[null,null,null,null,null,null,null,null,null,null,null,null,null,null,null,null,null,null,null,null,null,null,null,null,null,null,null,null,null,null,null,null,null,null,null,null,null,null,null,null,null,null,null,null,null,null,null,null,"LM-108","Lambiri -1. Sınıf SİBİRYA  (LM-108)","M2","LM-108","catalog/Profil/Lambiri-Rabita/LM-108-ahsap-lambiri-fiyatlari-sibirya-lambiri-rabita-cesitleri-resimleri-01.jpg",48,null,"http://www.kayalarkereste.com/image/catalog/Profil/Lambiri-Rabita/LM-108-ahsap-lambiri-fiyatlari-sibirya-lambiri-rabita-cesitleri-resimleri-01.jpg"]
[null,null,null,null,null,null,null,null,null,null,null,null,null,null,null,null,null,null,null,null,null,null,null,null,null,null,null,null,null,null,null,null,null,null,null,null,null,null,null,null,null,null,null,null,null,null,null,null,"BT-101","TEAK Burma Kereste  (1.4 cm, 2 cm, 4 cm, 5.3 cm, 6.5 cm kalınlık) x (53 mm geniş) x (90-170 cm arası boy)  BT-101","M3","BT-101","catalog/silinmis-kereste/ks-113-iroko-silinmis-profil-ahsap-kereste-78mm-x-16mm-01.jpg",4725,null,"http://www.kayalarkereste.com/image/catalog/silinmis-kereste/ks-113-iroko-silinmis-profil-ahsap-kereste-78mm-x-16mm-01.jpg"]
[null,null,null,null,null,null,null,null,null,null,null,null,null,null,null,null,null,null,null,null,null,null,null,null,null,null,null,null,null,null,null,null,null,null,null,null,null,null,null,null,null,null,null,null,null,null,null,null,"BT-102","TEAK Burma Kereste (1.4 cm, 2 cm, 4 cm, 5.3 cm, 6.5 cm kalınlık) x   (78 mm geniş) x (90-170 cm boy) BT-102","M3","BT-102","catalog/silinmis-kereste/ks-113-iroko-silinmis-profil-ahsap-kereste-78mm-x-16mm-01.jpg",5145,null,"http://www.kayalarkereste.com/image/catalog/silinmis-kereste/ks-113-iroko-silinmis-profil-ahsap-kereste-78mm-x-16mm-01.jpg"]
[null,null,null,null,null,null,null,null,null,null,null,null,null,null,null,null,null,null,null,null,null,null,null,null,null,null,null,null,null,null,null,null,null,null,null,null,null,null,null,null,null,null,null,null,null,null,null,null,"BT-103","TEAK Burma Kereste (1.4 cm, 2 cm, 4 cm, 5.3 cm, 6.5 cm kalınlık) x   (53 mm geniş) x (180-290 cm boy) BT-103","M3","BT-103","catalog/silinmis-kereste/ks-113-iroko-silinmis-profil-ahsap-kereste-78mm-x-16mm-01.jpg",5250,null,"http://www.kayalarkereste.com/image/catalog/silinmis-kereste/ks-113-iroko-silinmis-profil-ahsap-kereste-78mm-x-16mm-01.jpg"]
[null,null,null,null,null,null,null,null,null,null,null,null,null,null,null,null,null,null,null,null,null,null,null,null,null,null,null,null,null,null,null,null,null,null,null,null,null,null,null,null,null,null,null,null,null,null,null,null,"BT-104","TEAK Burma Kereste (1.4 cm, 2 cm, 4 cm, 5.3 cm, 6.5 cm kalınlık) x (78 mm geniş) x (180-290 cm boy) BT-104","M3","BT-104","catalog/silinmis-kereste/ks-113-iroko-silinmis-profil-ahsap-kereste-78mm-x-16mm-01.jpg",5617,null,"http://www.kayalarkereste.com/image/catalog/silinmis-kereste/ks-113-iroko-silinmis-profil-ahsap-kereste-78mm-x-16mm-01.jpg"]
[null,null,null,null,null,null,null,null,null,null,null,null,null,null,null,null,null,null,null,null,null,null,null,null,null,null,null,null,null,null,null,null,null,null,null,null,null,null,null,null,null,null,null,null,null,null,null,null,"BT-105","TEAK Burma Kereste (1.4 cm, 2 cm, 4 cm, 5.3 cm, 6.5 cm kalınlık) x (103 mm geniş) x (180-290 cm boy) BT-105","M3","BT-105","catalog/silinmis-kereste/ks-113-iroko-silinmis-profil-ahsap-kereste-78mm-x-16mm-01.jpg",6030,null,"http://www.kayalarkereste.com/image/catalog/silinmis-kereste/ks-113-iroko-silinmis-profil-ahsap-kereste-78mm-x-16mm-01.jpg"]
[null,null,null,null,null,null,null,null,null,null,null,null,null,null,null,null,null,null,null,null,null,null,null,null,null,null,null,null,null,null,null,null,null,null,null,null,null,null,null,null,null,null,null,null,null,null,null,null,"BT-106","TEAK Burma Kereste (1.4 cm, 2 cm, 4 cm, 5.3 cm, 6.5 cm kalınlık) x (130 mm geniş) x (180-290 cm boy) BT-106","M3","BT-106","catalog/silinmis-kereste/ks-113-iroko-silinmis-profil-ahsap-kereste-78mm-x-16mm-01.jpg",6142,null,"http://www.kayalarkereste.com/image/catalog/silinmis-kereste/ks-113-iroko-silinmis-profil-ahsap-kereste-78mm-x-16mm-01.jpg"]
[null,null,null,null,null,null,null,null,null,null,null,null,null,null,null,null,null,null,null,null,null,null,null,null,null,null,null,null,null,null,null,null,null,null,null,null,null,null,null,null,null,null,null,null,null,null,null,null,"BT-107","TEAK Burma Kereste (1.4 cm, 2 cm, 4 cm, 5.3 cm, 6.5 cm kalınlık) x (155 mm geniş) x (180-290 cm boy) BT-107","M3","BT-107","catalog/silinmis-kereste/ks-113-iroko-silinmis-profil-ahsap-kereste-78mm-x-16mm-01.jpg",6300,null,"http://www.kayalarkereste.com/image/catalog/silinmis-kereste/ks-113-iroko-silinmis-profil-ahsap-kereste-78mm-x-16mm-01.jpg"]
[null,null,null,null,null,null,null,null,null,null,null,null,null,null,null,null,null,null,null,null,null,null,null,null,null,null,null,null,null,null,null,null,null,null,null,null,null,null,null,null,null,null,null,null,null,null,null,null,"BT-108","TEAK Burma Kereste (1.4 cm, 2 cm, 4 cm, 5.3 cm, 6.5 cm kalınlık) x (180-260 mm geniş) x (180-290 cm boy) BT-108","M3","BT-108","catalog/silinmis-kereste/ks-113-iroko-silinmis-profil-ahsap-kereste-78mm-x-16mm-01.jpg",6825,null,"http://www.kayalarkereste.com/image/catalog/silinmis-kereste/ks-113-iroko-silinmis-profil-ahsap-kereste-78mm-x-16mm-01.jpg"]
[null,null,null,null,null,null,null,null,null,null,null,null,null,null,null,null,null,null,null,null,null,null,null,null,null,null,null,null,null,null,null,null,null,null,null,null,null,null,null,null,null,null,null,null,null,null,null,null,"BT-109","TEAK Burma Kereste (1.4 cm, 2 cm, 4 cm, 5.3 cm, 6.5 cm kalınlık) x (280 mm uzeri geniş) x (180-290 cm boy) BT-109","M3","BT-109","catalog/silinmis-kereste/ks-113-iroko-silinmis-profil-ahsap-kereste-78mm-x-16mm-01.jpg",7350,null,"http://www.kayalarkereste.com/image/catalog/silinmis-kereste/ks-113-iroko-silinmis-profil-ahsap-kereste-78mm-x-16mm-01.jpg"]
[null,null,null,null,null,null,null,null,null,null,null,null,null,null,null,null,null,null,null,null,null,null,null,null,null,null,null,null,null,null,null,null,null,null,null,null,null,null,null,null,null,null,null,null,null,null,null,null,"BT-110","TEAK Burma Kereste (5.5 cm, 6.5 cm, 10 cm ve üzeri kalınlık) x (10 - 13 cm geniş) x (300 cm üzeri boy) BT-110","M3","BT-110","catalog/silinmis-kereste/ks-113-iroko-silinmis-profil-ahsap-kereste-78mm-x-16mm-01.jpg",6825,null,"http://www.kayalarkereste.com/image/catalog/silinmis-kereste/ks-113-iroko-silinmis-profil-ahsap-kereste-78mm-x-16mm-01.jpg"]
[null,null,null,null,null,null,null,null,null,null,null,null,null,null,null,null,null,null,null,null,null,null,null,null,null,null,null,null,null,null,null,null,null,null,null,null,null,null,null,null,null,null,null,null,null,null,null,null,"BT-111","TEAK Burma Kereste (5.5 cm, 6.5 cm, 10 cm ve üzeri kalınlık) x (15,5 - 18 cm geniş) x (300 cm üzeri boy) BT-111","M3","BT-111","catalog/silinmis-kereste/ks-113-iroko-silinmis-profil-ahsap-kereste-78mm-x-16mm-01.jpg",7080,null,"http://www.kayalarkereste.com/image/catalog/silinmis-kereste/ks-113-iroko-silinmis-profil-ahsap-kereste-78mm-x-16mm-01.jpg"]
[null,null,null,null,null,null,null,null,null,null,null,null,null,null,null,null,null,null,null,null,null,null,null,null,null,null,null,null,null,null,null,null,null,null,null,null,null,null,null,null,null,null,null,null,null,null,null,null,{"$f":"HYPERLINK(BD178,AZ178)","v":"BT-112"},"TEAK Burma Kereste (5.5 cm, 6.5 cm, 10 cm ve üzeri kalınlık) x (18 - 26 cm geniş) x (300 cm üzeri boy) BT-112","M3","BT-112","catalog/silinmis-kereste/ks-113-iroko-silinmis-profil-ahsap-kereste-78mm-x-16mm-01.jpg",7350,null,"http://www.kayalarkereste.com/image/catalog/silinmis-kereste/ks-113-iroko-silinmis-profil-ahsap-kereste-78mm-x-16mm-01.jpg"]
[null,null,null,null,null,null,null,null,null,null,null,null,null,null,null,null,null,null,null,null,null,null,null,null,null,null,null,null,null,null,null,null,null,null,null,null,null,null,null,null,null,null,null,null,null,null,null,null,"BT-113","TEAK Burma Kereste (5.5 cm, 6.5 cm, 10 cm ve üzeri kalınlık) x (28 cm üzeri geniş) x (300 cm üzeri boy) BT-113","M3","BT-113","catalog/silinmis-kereste/ks-113-iroko-silinmis-profil-ahsap-kereste-78mm-x-16mm-01.jpg",7880,null,"http://www.kayalarkereste.com/image/catalog/silinmis-kereste/ks-113-iroko-silinmis-profil-ahsap-kereste-78mm-x-16mm-01.jpg"]
[null,null,null,null,null,null,null,null,null,null,null,null,null,null,null,null,null,null,null,null,null,null,null,null,null,null,null,null,null,null,null,null,null,null,null,null,null,null,null,null,null,null,null,null,null,null,null,null,"BT-121","TEAK Burma Kereste  (1 cm kalınlık x 5 cm geniş) x (90 - 170 cm arası boy) BT-121","M2","BT-121","catalog/Profil/silinmis-profil-kereste/bt-121-123-teak-profil-ahsap-silinmis-kereste-50mm-x-10mm.jpg",65,null,"http://www.kayalarkereste.com/image/catalog/Profil/silinmis-profil-kereste/bt-121-123-teak-profil-ahsap-silinmis-kereste-50mm-x-10mm.jpg"]
[null,null,null,null,null,null,null,null,null,null,null,null,null,null,null,null,null,null,null,null,null,null,null,null,null,null,null,null,null,null,null,null,null,null,null,null,null,null,null,null,null,null,null,null,null,null,null,null,"BT-122","TEAK Burma Kereste  (1 cm kalınlık x 7,5 cm geniş) x (90 - 170 cm arası boy) BT-122","M2","BT-122","catalog/silinmis-kereste/ks-113-iroko-silinmis-profil-ahsap-kereste-78mm-x-16mm-01.jpg",71,null,"http://www.kayalarkereste.com/image/catalog/silinmis-kereste/ks-113-iroko-silinmis-profil-ahsap-kereste-78mm-x-16mm-01.jpg"]
[null,null,null,null,null,null,null,null,null,null,null,null,null,null,null,null,null,null,null,null,null,null,null,null,null,null,null,null,null,null,null,null,null,null,null,null,null,null,null,null,null,null,null,null,null,null,null,null,"BT-123","TEAK Burma Kereste  (1 cm kalınlık x 5 cm geniş) x (180 - 240 cm arası boy) BT-123","M2","BT-123","catalog/Profil/silinmis-profil-kereste/bt-121-123-teak-profil-ahsap-silinmis-kereste-50mm-x-10mm.jpg",75,null,"http://www.kayalarkereste.com/image/catalog/Profil/silinmis-profil-kereste/bt-121-123-teak-profil-ahsap-silinmis-kereste-50mm-x-10mm.jpg"]
[null,null,null,null,null,null,null,null,null,null,null,null,null,null,null,null,null,null,null,null,null,null,null,null,null,null,null,null,null,null,null,null,null,null,null,null,null,null,null,null,null,null,null,null,null,null,null,null,"BT-124","TEAK Burma Kereste  (1 cm kalınlık x 7,5 cm geniş) x (180 - 240 cm arası boy) BT-124","M2","BT-124","catalog/silinmis-kereste/ks-113-iroko-silinmis-profil-ahsap-kereste-78mm-x-16mm-01.jpg",80,null,"http://www.kayalarkereste.com/image/catalog/silinmis-kereste/ks-113-iroko-silinmis-profil-ahsap-kereste-78mm-x-16mm-01.jpg"]
[null,null,null,null,null,null,null,null,null,null,null,null,null,null,null,null,null,null,null,null,null,null,null,null,null,null,null,null,null,null,null,null,null,null,null,null,null,null,null,null,null,null,null,null,null,null,null,null,"BT-125","TEAK Burma Kereste  (1 cm kalınlık x 9,5 cm geniş) x (180 - 240 cm arası boy) BT-125","M2","BT-125","catalog/silinmis-kereste/ks-113-iroko-silinmis-profil-ahsap-kereste-78mm-x-16mm-01.jpg",85,null,"http://www.kayalarkereste.com/image/catalog/silinmis-kereste/ks-113-iroko-silinmis-profil-ahsap-kereste-78mm-x-16mm-01.jpg"]
[null,null,null,null,null,null,null,null,null,null,null,null,null,null,null,null,null,null,null,null,null,null,null,null,null,null,null,null,null,null,null,null,null,null,null,null,null,null,null,null,null,null,null,null,null,null,null,null,"BT-126","TEAK Burma Kereste  (1 cm kalınlık x 12,5 cm geniş) x (180 - 240 cm arası boy) BT-126","M2","BT-126","catalog/silinmis-kereste/ks-113-iroko-silinmis-profil-ahsap-kereste-78mm-x-16mm-01.jpg",90,null,"http://www.kayalarkereste.com/image/catalog/silinmis-kereste/ks-113-iroko-silinmis-profil-ahsap-kereste-78mm-x-16mm-01.jpg"]
[null,null,null,null,null,null,null,null,null,null,null,null,null,null,null,null,null,null,null,null,null,null,null,null,null,null,null,null,null,null,null,null,null,null,null,null,null,null,null,null,null,null,null,null,null,null,null,null,"BT-131","TEAK Burma DECK işlenmiş  (1,8 cm kalınlık x 5 cm geniş) x (90 - 170 cm arası boy) BT-131","M2","BT-131","catalog/silinmis-kereste/ks-113-iroko-silinmis-profil-ahsap-kereste-78mm-x-16mm-01.jpg",85,null,"http://www.kayalarkereste.com/image/catalog/silinmis-kereste/ks-113-iroko-silinmis-profil-ahsap-kereste-78mm-x-16mm-01.jpg"]
[null,null,null,null,null,null,null,null,null,null,null,null,null,null,null,null,null,null,null,null,null,null,null,null,null,null,null,null,null,null,null,null,null,null,null,null,null,null,null,null,null,null,null,null,null,null,null,null,"XP-01","Epoksi Masa Tablası  XP-01","Adet","XP-01","catalog/Epoxi-Masa/epoksi-ahsap-ceviz-mese-kestane-masa-XP-01.jpg",4060,null,"http://www.kayalarkereste.com/image/catalog/Epoxi-Masa/epoksi-ahsap-ceviz-mese-kestane-masa-XP-01.jpg"]
[null,null,null,null,null,null,null,null,null,null,null,null,null,null,null,null,null,null,null,null,null,null,null,null,null,null,null,null,null,null,null,null,null,null,null,null,null,null,null,null,null,null,null,null,null,null,null,null,"BT-132","TEAK Burma DECK işlenmiş  (1,8 cm kalınlık x 5 cm geniş) x (90 - 170 cm arası boy) BT-132","M2","BT-132","catalog/silinmis-kereste/ks-113-iroko-silinmis-profil-ahsap-kereste-78mm-x-16mm-01.jpg",79,null,"http://www.kayalarkereste.com/image/catalog/silinmis-kereste/ks-113-iroko-silinmis-profil-ahsap-kereste-78mm-x-16mm-01.jpg"]
[null,null,null,null,null,null,null,null,null,null,null,null,null,null,null,null,null,null,null,null,null,null,null,null,null,null,null,null,null,null,null,null,null,null,null,null,null,null,null,null,null,null,null,null,null,null,null,null,"BT-133","TEAK Burma DECK işlenmiş  (1,8 cm kalınlık x 95 mm geniş) x (90 - 170 cm arası boy) BT-133","M2","BT-133","catalog/silinmis-kereste/ks-113-iroko-silinmis-profil-ahsap-kereste-78mm-x-16mm-01.jpg",85,null,"http://www.kayalarkereste.com/image/catalog/silinmis-kereste/ks-113-iroko-silinmis-profil-ahsap-kereste-78mm-x-16mm-01.jpg"]
[null,null,null,null,null,null,null,null,null,null,null,null,null,null,null,null,null,null,null,null,null,null,null,null,null,null,null,null,null,null,null,null,null,null,null,null,null,null,null,null,null,null,null,null,null,null,null,null,"BT-134","TEAK Burma DECK işlenmiş  (1,8 cm kalınlık x 125 mm geniş) x (90 - 170 cm arası boy) BT-134","M2","BT-134","catalog/silinmis-kereste/ks-113-iroko-silinmis-profil-ahsap-kereste-78mm-x-16mm-01.jpg",90,null,"http://www.kayalarkereste.com/image/catalog/silinmis-kereste/ks-113-iroko-silinmis-profil-ahsap-kereste-78mm-x-16mm-01.jpg"]
[null,null,null,null,null,null,null,null,null,null,null,null,null,null,null,null,null,null,null,null,null,null,null,null,null,null,null,null,null,null,null,null,null,null,null,null,null,null,null,null,null,null,null,null,null,null,null,null,"BT-135","TEAK Burma DECK işlenmiş  (1,8 cm kalınlık x 50 mm geniş) x (180 - 240 cm arası boy) BT-135","M2","BT-135","catalog/silinmis-kereste/ks-113-iroko-silinmis-profil-ahsap-kereste-78mm-x-16mm-01.jpg",85,null,"http://www.kayalarkereste.com/image/catalog/silinmis-kereste/ks-113-iroko-silinmis-profil-ahsap-kereste-78mm-x-16mm-01.jpg"]
[null,null,null,null,null,null,null,null,null,null,null,null,null,null,null,null,null,null,null,null,null,null,null,null,null,null,null,null,null,null,null,null,null,null,null,null,null,null,null,null,null,null,null,null,null,null,null,null,"BT-136","TEAK Burma DECK işlenmiş  (1,8 cm kalınlık x 75 mm geniş) x (180 - 240 cm arası boy) BT-136","M2","BT-136","catalog/silinmis-kereste/ks-113-iroko-silinmis-profil-ahsap-kereste-78mm-x-16mm-01.jpg",89,null,"http://www.kayalarkereste.com/image/catalog/silinmis-kereste/ks-113-iroko-silinmis-profil-ahsap-kereste-78mm-x-16mm-01.jpg"]
[null,null,null,null,null,null,null,null,null,null,null,null,null,null,null,null,null,null,null,null,null,null,null,null,null,null,null,null,null,null,null,null,null,null,null,null,null,null,null,null,null,null,null,null,null,null,null,null,"BT-137","TEAK Burma DECK işlenmiş  (1,8 cm kalınlık x 90 mm geniş) x (180 - 240 cm arası boy) BT-137","M2","BT-137","catalog/silinmis-kereste/ks-113-iroko-silinmis-profil-ahsap-kereste-78mm-x-16mm-01.jpg",99,null,"http://www.kayalarkereste.com/image/catalog/silinmis-kereste/ks-113-iroko-silinmis-profil-ahsap-kereste-78mm-x-16mm-01.jpg"]
[null,null,null,null,null,null,null,null,null,null,null,null,null,null,null,null,null,null,null,null,null,null,null,null,null,null,null,null,null,null,null,null,null,null,null,null,null,null,null,null,null,null,null,null,null,null,null,null,"BT-138","TEAK Burma DECK işlenmiş  (1,8 cm kalınlık x 125 mm geniş) x (180 - 240 cm arası boy) BT-138","M2","BT-138","catalog/silinmis-kereste/ks-113-iroko-silinmis-profil-ahsap-kereste-78mm-x-16mm-01.jpg",115,null,"http://www.kayalarkereste.com/image/catalog/silinmis-kereste/ks-113-iroko-silinmis-profil-ahsap-kereste-78mm-x-16mm-01.jpg"]
[null,null,null,null,null,null,null,null,null,null,null,null,null,null,null,null,null,null,null,null,null,null,null,null,null,null,null,null,null,null,null,null,null,null,null,null,null,null,null,null,null,null,null,null,null,null,null,null,"BT-151","TEAK Burma DECK işlenmiş  (2,4 cm kalınlık x 5 cm geniş) x (90 - 170 cm arası boy) BT-151","M2","BT-151","catalog/silinmis-kereste/ks-113-iroko-silinmis-profil-ahsap-kereste-78mm-x-16mm-01.jpg",93,null,"http://www.kayalarkereste.com/image/catalog/silinmis-kereste/ks-113-iroko-silinmis-profil-ahsap-kereste-78mm-x-16mm-01.jpg"]
[null,null,null,null,null,null,null,null,null,null,null,null,null,null,null,null,null,null,null,null,null,null,null,null,null,null,null,null,null,null,null,null,null,null,null,null,null,null,null,null,null,null,null,null,null,null,null,null,"BT-152","TEAK Burma DECK işlenmiş  (2,4 cm kalınlık x 7,5 cm geniş) x (90 - 170 cm arası boy) BT-152","M2","BT-152","catalog/silinmis-kereste/ks-113-iroko-silinmis-profil-ahsap-kereste-78mm-x-16mm-01.jpg",99,null,"http://www.kayalarkereste.com/image/catalog/silinmis-kereste/ks-113-iroko-silinmis-profil-ahsap-kereste-78mm-x-16mm-01.jpg"]
[null,null,null,null,null,null,null,null,null,null,null,null,null,null,null,null,null,null,null,null,null,null,null,null,null,null,null,null,null,null,null,null,null,null,null,null,null,null,null,null,null,null,null,null,null,null,null,null,"BT-153","TEAK Burma DECK işlenmiş  (2,4 cm kalınlık x 9,5 cm geniş) x (90 - 170 cm arası boy) BT-153","M2","BT-153","catalog/silinmis-kereste/ks-113-iroko-silinmis-profil-ahsap-kereste-78mm-x-16mm-01.jpg",110,null,"http://www.kayalarkereste.com/image/catalog/silinmis-kereste/ks-113-iroko-silinmis-profil-ahsap-kereste-78mm-x-16mm-01.jpg"]
[null,null,null,null,null,null,null,null,null,null,null,null,null,null,null,null,null,null,null,null,null,null,null,null,null,null,null,null,null,null,null,null,null,null,null,null,null,null,null,null,null,null,null,null,null,null,null,null,"BT-154","TEAK Burma DECK işlenmiş  (2,4 cm kalınlık x 12,5 cm geniş) x (90 - 170 cm arası boy) BT-154","M2","BT-154","catalog/silinmis-kereste/ks-113-iroko-silinmis-profil-ahsap-kereste-78mm-x-16mm-01.jpg",125,null,"http://www.kayalarkereste.com/image/catalog/silinmis-kereste/ks-113-iroko-silinmis-profil-ahsap-kereste-78mm-x-16mm-01.jpg"]
[null,null,null,null,null,null,null,null,null,null,null,null,null,null,null,null,null,null,null,null,null,null,null,null,null,null,null,null,null,null,null,null,null,null,null,null,null,null,null,null,null,null,null,null,null,null,null,null,"BT-155","TEAK Burma DECK işlenmiş  (2,4 cm kalınlık x 5 cm geniş) x (180 - 240 cm arası boy) BT-155","M2","BT-155","catalog/silinmis-kereste/ks-113-iroko-silinmis-profil-ahsap-kereste-78mm-x-16mm-01.jpg",120,null,"http://www.kayalarkereste.com/image/catalog/silinmis-kereste/ks-113-iroko-silinmis-profil-ahsap-kereste-78mm-x-16mm-01.jpg"]
[null,null,null,null,null,null,null,null,null,null,null,null,null,null,null,null,null,null,null,null,null,null,null,null,null,null,null,null,null,null,null,null,null,null,null,null,null,null,null,null,null,null,null,null,null,null,null,null,"BT-156","TEAK Burma DECK işlenmiş  (2,4 cm kalınlık x 7,5 cm geniş) x (180 - 240 cm arası boy) BT-156","M2","BT-156","catalog/silinmis-kereste/ks-113-iroko-silinmis-profil-ahsap-kereste-78mm-x-16mm-01.jpg",130,null,"http://www.kayalarkereste.com/image/catalog/silinmis-kereste/ks-113-iroko-silinmis-profil-ahsap-kereste-78mm-x-16mm-01.jpg"]
[null,null,null,null,null,null,null,null,null,null,null,null,null,null,null,null,null,null,null,null,null,null,null,null,null,null,null,null,null,null,null,null,null,null,null,null,null,null,null,null,null,null,null,null,null,null,null,null,"BT-157","TEAK Burma DECK işlenmiş  (2,4 cm kalınlık x 9,5 cm geniş) x (180 - 240 cm arası boy) BT-157","M2","BT-157","catalog/silinmis-kereste/ks-113-iroko-silinmis-profil-ahsap-kereste-78mm-x-16mm-01.jpg",150,null,"http://www.kayalarkereste.com/image/catalog/silinmis-kereste/ks-113-iroko-silinmis-profil-ahsap-kereste-78mm-x-16mm-01.jpg"]
[null,null,null,null,null,null,null,null,null,null,null,null,null,null,null,null,null,null,null,null,null,null,null,null,null,null,null,null,null,null,null,null,null,null,null,null,null,null,null,null,null,null,null,null,null,null,null,null,"BT-158","TEAK Burma DECK işlenmiş  (2,4 cm kalınlık x 12,5 cm geniş) x (180 - 240 cm arası boy) BT-158","M2","BT-158","catalog/silinmis-kereste/ks-113-iroko-silinmis-profil-ahsap-kereste-78mm-x-16mm-01.jpg",165,null,"http://www.kayalarkereste.com/image/catalog/silinmis-kereste/ks-113-iroko-silinmis-profil-ahsap-kereste-78mm-x-16mm-01.jpg"]
[null,null,null,null,null,null,null,null,null,null,null,null,null,null,null,null,null,null,null,null,null,null,null,null,null,null,null,null,null,null,null,null,null,null,null,null,null,null,null,null,null,null,null,null,null,null,null,null,"BT-181","IROKO DECK  (1,8 cm kalınlık x 9,5 cm geniş) x (90 - 190 cm arası boy %25-30 -- 200 - 300 cm arası boy %70-75) BT-181","M2","BT-181","catalog/silinmis-kereste/ks-113-iroko-silinmis-profil-ahsap-kereste-78mm-x-16mm-01.jpg",30,null,"http://www.kayalarkereste.com/image/catalog/silinmis-kereste/ks-113-iroko-silinmis-profil-ahsap-kereste-78mm-x-16mm-01.jpg"]
[null,null,null,null,null,null,null,null,null,null,null,null,null,null,null,null,null,null,null,null,null,null,null,null,null,null,null,null,null,null,null,null,null,null,null,null,null,null,null,null,null,null,null,null,null,null,null,null,"BT-182","IROKO DECK  (2,2 cm kalınlık x 9,5 cm geniş) x (90 - 190 cm arası boy %25-30 -- 200 - 300 cm arası boy %70-75) BT-182","M2","BT-182","catalog/silinmis-kereste/ks-113-iroko-silinmis-profil-ahsap-kereste-78mm-x-16mm-01.jpg",35.5,null,"http://www.kayalarkereste.com/image/catalog/silinmis-kereste/ks-113-iroko-silinmis-profil-ahsap-kereste-78mm-x-16mm-01.jpg"]
[null,null,null,null,null,null,null,null,null,null,null,null,null,null,null,null,null,null,null,null,null,null,null,null,null,null,null,null,null,null,null,null,null,null,null,null,null,null,null,null,null,null,null,null,null,null,null,null,"BT-183","IROKO DECK  (2,9 cm kalınlık x 9,5 cm geniş) x (90 - 190 cm arası boy %25-30 -- 200 - 300 cm arası boy %70-75) BT-183","M2","BT-183","catalog/silinmis-kereste/ks-113-iroko-silinmis-profil-ahsap-kereste-78mm-x-16mm-01.jpg",46.5,null,"http://www.kayalarkereste.com/image/catalog/silinmis-kereste/ks-113-iroko-silinmis-profil-ahsap-kereste-78mm-x-16mm-01.jpg"]
[null,null,null,null,null,null,null,null,null,null,null,null,null,null,null,null,null,null,null,null,null,null,null,null,null,null,null,null,null,null,null,null,null,null,null,null,null,null,null,null,null,null,null,null,null,null,null,null,"BT-184","IROKO DECK  (4,5 cm kalınlık x 9,5 cm geniş) x (90 - 190 cm arası boy %25-30 -- 200 - 300 cm arası boy %70-75) BT-184","M2","BT-184","catalog/silinmis-kereste/ks-113-iroko-silinmis-profil-ahsap-kereste-78mm-x-16mm-01.jpg",68,null,"http://www.kayalarkereste.com/image/catalog/silinmis-kereste/ks-113-iroko-silinmis-profil-ahsap-kereste-78mm-x-16mm-01.jpg"]
[null,null,null,null,null,null,null,null,null,null,null,null,null,null,null,null,null,null,null,null,null,null,null,null,null,null,null,null,null,null,null,null,null,null,null,null,null,null,null,null,null,null,null,null,null,null,null,null,"BT-185","IROKO DECK  (1,8 cm kalınlık x 12,5 cm geniş) x (90 - 190 cm arası boy %25-30 -- 200 - 300 cm arası boy %70-75) BT-185","M2","BT-185","catalog/silinmis-kereste/ks-113-iroko-silinmis-profil-ahsap-kereste-78mm-x-16mm-01.jpg",33,null,"http://www.kayalarkereste.com/image/catalog/silinmis-kereste/ks-113-iroko-silinmis-profil-ahsap-kereste-78mm-x-16mm-01.jpg"]
[null,null,null,null,null,null,null,null,null,null,null,null,null,null,null,null,null,null,null,null,null,null,null,null,null,null,null,null,null,null,null,null,null,null,null,null,null,null,null,null,null,null,null,null,null,null,null,null,"BT-186","IROKO DECK  (2,2 cm kalınlık x 12,5 cm geniş) x (90 - 190 cm arası boy %25-30 -- 200 - 300 cm arası boy %70-75) BT-186","M2","BT-186","catalog/silinmis-kereste/ks-113-iroko-silinmis-profil-ahsap-kereste-78mm-x-16mm-01.jpg",38,null,"http://www.kayalarkereste.com/image/catalog/silinmis-kereste/ks-113-iroko-silinmis-profil-ahsap-kereste-78mm-x-16mm-01.jpg"]
[null,null,null,null,null,null,null,null,null,null,null,null,null,null,null,null,null,null,null,null,null,null,null,null,null,null,null,null,null,null,null,null,null,null,null,null,null,null,null,null,null,null,null,null,null,null,null,null,"BT-187","IROKO DECK  (2,2 cm kalınlık x 12,5 cm geniş) x (90 - 190 cm arası boy %25-30 -- 200 - 300 cm arası boy %70-75) BT-187","M2","BT-187","catalog/silinmis-kereste/ks-113-iroko-silinmis-profil-ahsap-kereste-78mm-x-16mm-01.jpg",50,null,"http://www.kayalarkereste.com/image/catalog/silinmis-kereste/ks-113-iroko-silinmis-profil-ahsap-kereste-78mm-x-16mm-01.jpg"]
[null,null,null,null,null,null,null,null,null,null,null,null,null,null,null,null,null,null,null,null,null,null,null,null,null,null,null,null,null,null,null,null,null,null,null,null,null,null,null,null,null,null,null,null,null,null,null,null,"BT-188","IROKO DECK  (4,5 cm kalınlık x 12,5 cm geniş) x (90 - 190 cm arası boy %25-30 -- 200 - 300 cm arası boy %70-75) BT-188","M2","BT-188","catalog/silinmis-kereste/ks-113-iroko-silinmis-profil-ahsap-kereste-78mm-x-16mm-01.jpg",74,null,"http://www.kayalarkereste.com/image/catalog/silinmis-kereste/ks-113-iroko-silinmis-profil-ahsap-kereste-78mm-x-16mm-01.jpg"]
[null,null,null,null,null,null,null,null,null,null,null,null,null,null,null,null,null,null,null,null,null,null,null,null,null,null,null,null,null,null,null,null,null,null,null,null,null,null,null,null,null,null,null,null,null,null,null,null,"DC-102","SİBİRYA DECK Ahşap ÇAM 18 mm DC-102","M2","DC-102","catalog/deck/cam-dc-101/dc-101-cam-deck-ahsap-profil-yer-doseme-01.jpg",76.56,null,"http://www.kayalarkereste.com/image/catalog/deck/cam-dc-101/dc-101-cam-deck-ahsap-profil-yer-doseme-01.jpg"]
[null,null,null,null,null,null,null,null,null,null,null,null,null,null,null,null,null,null,null,null,null,null,null,null,null,null,null,null,null,null,null,null,null,null,null,null,null,null,null,null,null,null,null,null,null,null,null,null,"KS-100","5 x 10 Silinmiş Kereste Sibirya -KS-100","M3","KS-100","catalog/silinmis-kereste/ks-101-cam-dogramalik-silinmis-sinif-kereste-5x10-01.jpg",2300,null,"http://www.kayalarkereste.com/image/catalog/silinmis-kereste/ks-101-cam-dogramalik-silinmis-sinif-kereste-5x10-01.jpg"]
[null,null,null,null,null,null,null,null,null,null,null,null,null,null,null,null,null,null,null,null,null,null,null,null,null,null,null,null,null,null,null,null,null,null,null,null,null,null,null,null,null,null,null,null,null,null,null,null,"KS-106","5 x 12,5 Silinmiş Kereste SİBİRYA -KS-106","M3","KS-106","catalog/silinmis-kereste/ks-103-cam-dogramalik-silinmis-sinif-kereste-5x15-01.jpg",2300,null,{"$f":"CONCATENATE($AW$1, BA213)","v":"http://www.kayalarkereste.com/image/catalog/silinmis-kereste/ks-103-cam-dogramalik-silinmis-sinif-kereste-5x15-01.jpg"}]
[null,null,null,null,null,null,null,null,null,null,null,null,null,null,null,null,null,null,null,null,null,null,null,null,null,null,null,null,null,null,null,null,null,null,null,null,null,null,null,null,null,null,null,null,null,null,null,null,"XP-02","Epoksi Masa Tablası XP-02","Adet","XP-02","catalog/Epoxi-Masa/epoksi-ahsap-ceviz-mese-kestane-masa-XP-02.jpg",3480,null,"http://www.kayalarkereste.com/image/catalog/Epoxi-Masa/epoksi-ahsap-ceviz-mese-kestane-masa-XP-02.jpg"]
[null,null,null,null,null,null,null,null,null,null,null,null,null,null,null,null,null,null,null,null,null,null,null,null,null,null,null,null,null,null,null,null,null,null,null,null,null,null,null,null,null,null,null,null,null,null,null,null,"AG-101","Kamelya (10 x 10 cm) Demir galvaniz Ayak AG-101","Adet","AG-101","catalog/metal-ayak/AG-101-a.jpg",25,null,"http://www.kayalarkereste.com/image/catalog/metal-ayak/AG-101-a.jpg"]
[null,null,null,null,null,null,null,null,null,null,null,null,null,null,null,null,null,null,null,null,null,null,null,null,null,null,null,null,null,null,null,null,null,null,null,null,null,null,null,null,null,null,null,null,null,null,null,null,"AG-102","Kamelya (11 x 11 cm) Demir galvaniz Ayak AG-102","Adet","AG-102","catalog/metal-ayak/AG-102-a.jpg",30,null,"http://www.kayalarkereste.com/image/catalog/metal-ayak/AG-102-a.jpg"]
[null,null,null,null,null,null,null,null,null,null,null,null,null,null,null,null,null,null,null,null,null,null,null,null,null,null,null,null,null,null,null,null,null,null,null,null,null,null,null,null,null,null,null,null,null,null,null,null,"AG-103","Kamelya (12,5 x 12,5 cm) Demir galvaniz Ayak AG-103","Adet","AG-103","catalog/metal-ayak/AG-103-a.jpg",31.32,null,"http://www.kayalarkereste.com/image/catalog/metal-ayak/AG-103-a.jpg"]
[null,null,null,null,null,null,null,null,null,null,null,null,null,null,null,null,null,null,null,null,null,null,null,null,null,null,null,null,null,null,null,null,null,null,null,null,null,null,null,null,null,null,null,null,null,null,null,null,"AG-104","Çit Demir galvaniz Ayak (9,5 x 9,5 cm) AG-104","Adet","AG-104","catalog/metal-ayak/AG-104-a.jpg",46,null,"http://www.kayalarkereste.com/image/catalog/metal-ayak/AG-104-a.jpg"]
[null,null,null,null,null,null,null,null,null,null,null,null,null,null,null,null,null,null,null,null,null,null,null,null,null,null,null,null,null,null,null,null,null,null,null,null,null,null,null,null,null,null,null,null,null,null,null,null,"AG-111","Demir Masa Tabla Ayakları AG-111","Adet","AG-111","catalog/metal-ayak/AG-111-metal-masa-ayak-01.jpg",464,null,"http://www.kayalarkereste.com/image/catalog/metal-ayak/AG-111-metal-masa-ayak-01.jpg"]
[null,null,null,null,null,null,null,null,null,null,null,null,null,null,null,null,null,null,null,null,null,null,null,null,null,null,null,null,null,null,null,null,null,null,null,null,null,null,null,null,null,null,null,null,null,null,null,null,"XP-03","Epoksi Masa Tablası  XP-03","Adet","XP-03","catalog/Epoxi-Masa/epoksi-ahsap-ceviz-mese-kestane-masa-XP-03.jpg",3480,null,"http://www.kayalarkereste.com/image/catalog/Epoxi-Masa/epoksi-ahsap-ceviz-mese-kestane-masa-XP-03.jpg"]
[null,null,null,null,null,null,null,null,null,null,null,null,null,null,null,null,null,null,null,null,null,null,null,null,null,null,null,null,null,null,null,null,null,null,null,null,null,null,null,null,null,null,null,null,null,null,null,null,"XP-04","Epoksi Masa Tablası  XP-04","Adet","XP-04","catalog/Epoxi-Masa/epoksi-ahsap-ceviz-mese-kestane-masa-XP-04.jpg",4060,null,"http://www.kayalarkereste.com/image/catalog/Epoxi-Masa/epoksi-ahsap-ceviz-mese-kestane-masa-XP-04.jpg"]
[null,null,null,null,null,null,null,null,null,null,null,null,null,null,null,null,null,null,null,null,null,null,null,null,null,null,null,null,null,null,null,null,null,null,null,null,null,null,null,null,null,null,null,null,null,null,null,null,"XP-05","Epoksi Masa Tablası  XP-05","Adet","XP-05","catalog/Epoxi-Masa/epoksi-ahsap-ceviz-mese-kestane-masa-XP-05.jpg",3480,null,"http://www.kayalarkereste.com/image/catalog/Epoxi-Masa/epoksi-ahsap-ceviz-mese-kestane-masa-XP-05.jpg"]
[null,null,null,null,null,null,null,null,null,null,null,null,null,null,null,null,null,null,null,null,null,null,null,null,null,null,null,null,null,null,null,null,null,null,null,null,null,null,null,null,null,null,null,null,null,null,null,null,"XP-06","Epoksi Masa Tablası  XP-06","Adet","XP-06","catalog/Epoxi-Masa/epoksi-ahsap-ceviz-mese-kestane-masa-XP-06.jpg",2900,null,"http://www.kayalarkereste.com/image/catalog/Epoxi-Masa/epoksi-ahsap-ceviz-mese-kestane-masa-XP-06.jpg"]
[null,null,null,null,null,null,null,null,null,null,null,null,null,null,null,null,null,null,null,null,null,null,null,null,null,null,null,null,null,null,null,null,null,null,null,null,null,null,null,null,null,null,null,null,null,null,null,null,"XP-07","Epoksi Masa Tablası  XP-07","Adet","XP-07","catalog/Epoxi-Masa/epoksi-ahsap-ceviz-mese-kestane-masa-XP-07.jpg",2668,null,"http://www.kayalarkereste.com/image/catalog/Epoxi-Masa/epoksi-ahsap-ceviz-mese-kestane-masa-XP-07.jpg"]
[null,null,null,null,null,null,null,null,null,null,null,null,null,null,null,null,null,null,null,null,null,null,null,null,null,null,null,null,null,null,null,null,null,null,null,null,null,null,null,null,null,null,null,null,null,null,null,null,"XP-08","Epoksi Masa Tablası  XP-08","Adet","XP-08","catalog/Epoxi-Masa/epoksi-ahsap-ceviz-mese-kestane-masa-XP-08.jpg",3480,null,"http://www.kayalarkereste.com/image/catalog/Epoxi-Masa/epoksi-ahsap-ceviz-mese-kestane-masa-XP-08.jpg"]
[null,null,null,null,null,null,null,null,null,null,null,null,null,null,null,null,null,null,null,null,null,null,null,null,null,null,null,null,null,null,null,null,null,null,null,null,null,null,null,null,null,null,null,null,null,null,null,null,"XP-09","Epoksi Masa Tablası  XP-09","Adet","XP-09","catalog/Epoxi-Masa/epoksi-ahsap-ceviz-mese-kestane-masa-XP-09.jpg",1508,null,"http://www.kayalarkereste.com/image/catalog/Epoxi-Masa/epoksi-ahsap-ceviz-mese-kestane-masa-XP-09.jpg"]
[null,null,null,null,null,null,null,null,null,null,null,null,null,null,null,null,null,null,null,null,null,null,null,null,null,null,null,null,null,null,null,null,null,null,null,null,null,null,null,null,null,null,null,null,null,null,null,null,"XP-10","Epoksi Masa Tablası  XP-10","Adet","XP-10","catalog/Epoxi-Masa/epoksi-ahsap-ceviz-mese-kestane-masa-XP-10.jpg",6960,null,"http://www.kayalarkereste.com/image/catalog/Epoxi-Masa/epoksi-ahsap-ceviz-mese-kestane-masa-XP-10.jpg"]
[null,null,null,null,null,null,null,null,null,null,null,null,null,null,null,null,null,null,null,null,null,null,null,null,null,null,null,null,null,null,null,null,null,null,null,null,null,null,null,null,null,null,null,null,null,null,null,null,"UK-105","TAVUK ve KANATLI HAYVAN KÜMESİ UK-105","Adet","UK-105","catalog/kumes/UK-105/tavuk-ve-kanatli-hayvan-kumesi-UK-105-03.jpg",4640,null,"http://www.kayalarkereste.com/image/catalog/kumes/UK-105/tavuk-ve-kanatli-hayvan-kumesi-UK-105-03.jpg"]
[null,null,null,null,null,null,null,null,null,null,null,null,null,null,null,null,null,null,null,null,null,null,null,null,null,null,null,null,null,null,null,null,null,null,null,null,null,null,null,null,null,null,null,null,null,null,null,null,"UK-106","TAVUK ve KANATLI HAYVAN KÜMESİ UK-106","Adet","UK-106","catalog/kumes/UK-106/tavuk-kumesi-ve-guvercin-kumesi-www.kayalarkereste.com-uk-106-01.jpg",3712,null,"http://www.kayalarkereste.com/image/catalog/kumes/UK-106/tavuk-kumesi-ve-guvercin-kumesi-www.kayalarkereste.com-uk-106-01.jpg"]
[null,null,null,null,null,null,null,null,null,null,null,null,null,null,null,null,null,null,null,null,null,null,null,null,null,null,null,null,null,null,null,null,null,null,null,null,null,null,null,null,null,null,null,null,null,null,null,null,"KM-164","Kamelya - Çardak  164","Adet","KM-164","catalog/Kamelya-cardak/KM-164/KM-164-kamelya-ahsap-dinlenme-alani-kis-bahcesi-cardak-gazebo-fiyatlari-www.kayalarkereste.com- 01.jpg",9600,null,"http://www.kayalarkereste.com/image/catalog/Kamelya-cardak/KM-164/KM-164-kamelya-ahsap-dinlenme-alani-kis-bahcesi-cardak-gazebo-fiyatlari-www.kayalarkereste.com- 01.jpg"]
[null,null,null,null,null,null,null,null,null,null,null,null,null,null,null,null,null,null,null,null,null,null,null,null,null,null,null,null,null,null,null,null,null,null,null,null,null,null,null,null,null,null,null,null,null,null,null,null,"PM-101","PM-101 Piknik Masa Sibirya Ağacı","Adet","PM-101","catalog/Piknik-Masa/PM-101/ahsap-piknik-masa-fiyatlari-ucuz-kir-piknik-masa-cesitleri-www.kayalarahsap.com-PM-101-10.jpg",700,null,"http://www.kayalarkereste.com/image/catalog/Piknik-Masa/PM-101/ahsap-piknik-masa-fiyatlari-ucuz-kir-piknik-masa-cesitleri-www.kayalarahsap.com-PM-101-10.jpg"]
[null,null,null,null,null,null,null,null,null,null,null,null,null,null,null,null,null,null,null,null,null,null,null,null,null,null,null,null,null,null,null,null,null,null,null,null,null,null,null,null,null,null,null,null,null,null,null,null,"PR-108","Ahşap Pergola  PR-108","Adet","PR-108","catalog/pergola/PR-108/PR-108-pergola-ahsap-cardak-gazebo-fiyatlari-www.kayalarkereste.com- 02.jpg",5500,null,"http://www.kayalarkereste.com/image/catalog/pergola/PR-108/PR-108-pergola-ahsap-cardak-gazebo-fiyatlari-www.kayalarkereste.com- 02.jpg"]
[null,null,null,null,null,null,null,null,null,null,null,null,null,null,null,null,null,null,null,null,null,null,null,null,null,null,null,null,null,null,null,null,null,null,null,null,null,null,null,null,null,null,null,null,null,null,null,null,"KM-167","Kamelya - Çardak sigara içme dinlenme alanı 167","Adet","KM-167","2018/07/fabrika-dinlenme-alani-sigara-icme-alani-gebze-tuzla-sekerpinar-kocaeli-KM-167-3.jpg",10500,null,"http://www.kayalarkereste.com/image/2018/07/fabrika-dinlenme-alani-sigara-icme-alani-gebze-tuzla-sekerpinar-kocaeli-KM-167-3.jpg"]
[null,null,null,null,null,null,null,null,null,null,null,null,null,null,null,null,null,null,null,null,null,null,null,null,null,null,null,null,null,null,null,null,null,null,null,null,null,null,null,null,null,null,null,null,null,null,null,null,"KM-165","Kamelya - Çardak  165","Adet","KM-165","catalog/Kamelya-cardak/KM-165/KM-165-ahsap-kuuk-hazir-kamelya-bahce-cardak-gazebo-fiyatlari-ucuz-kamelya-kameriye-www.kayalarkereste.com-01.jpg",3200,null,"http://www.kayalarkereste.com/image/catalog/Kamelya-cardak/KM-165/KM-165-ahsap-kuuk-hazir-kamelya-bahce-cardak-gazebo-fiyatlari-ucuz-kamelya-kameriye-www.kayalarkereste.com-01.jpg"]
[null,null,null,null,null,null,null,null,null,null,null,null,null,null,null,null,null,null,null,null,null,null,null,null,null,null,null,null,null,null,null,null,null,null,null,null,null,null,null,null,null,null,null,null,null,null,null,null,"KM-166","Kamelya - Çardak sigara içme dinlenme alanı 166","M2","KM-166","catalog/Kamelya-cardak/KM-166/KM-166-ahsap-sigara-icme-dinlenme-kamelya-bahce-cardak-gebze-tuzla-fiyatlari-www.kayalarkereste.com-3.jpg",800,null,"http://www.kayalarkereste.com/image/catalog/Kamelya-cardak/KM-166/KM-166-ahsap-sigara-icme-dinlenme-kamelya-bahce-cardak-gebze-tuzla-fiyatlari-www.kayalarkereste.com-3.jpg"]
[null,null,null,null,null,null,null,null,null,null,null,null,null,null,null,null,null,null,null,null,null,null,null,null,null,null,null,null,null,null,null,null,null,null,null,null,null,null,null,null,null,null,null,null,null,null,null,null,"KM-168","Kamelya - Çardak sigara içme dinlenme alanı 168","M2","KM-168","catalog/Kamelya-cardak/KM-168 GEZER-PLASTITEK/KM-168-ahsap-sigara-icme-dinlenme-kamelya-bahce-cardak-gebze-tuzla-fiyatlari-www.kayalarkereste.com-11.jpg",800,null,"http://www.kayalarkereste.com/image/catalog/Kamelya-cardak/KM-168 GEZER-PLASTITEK/KM-168-ahsap-sigara-icme-dinlenme-kamelya-bahce-cardak-gebze-tuzla-fiyatlari-www.kayalarkereste.com-11.jpg"]
[null,null,null,null,null,null,null,null,null,null,null,null,null,null,null,null,null,null,null,null,null,null,null,null,null,null,null,null,null,null,null,null,null,null,null,null,null,null,null,null,null,null,null,null,null,null,null,null,"KM-169","Kamelya - Çardak sigara içme dinlenme alanı 169","Adet","KM-169","catalog/Kamelya-cardak/KM-169 3X3 CNC/KM-169-ahsap-dinlenme-kamelya-bahce-cardak-gebze-tuzla-fiyatlari-www.kayalarkereste.com-5.jpg",6000,null,"http://www.kayalarkereste.com/image/catalog/Kamelya-cardak/KM-169 3X3 CNC/KM-169-ahsap-dinlenme-kamelya-bahce-cardak-gebze-tuzla-fiyatlari-www.kayalarkereste.com-5.jpg"]
[null,null,null,null,null,null,null,null,null,null,null,null,null,null,null,null,null,null,null,null,null,null,null,null,null,null,null,null,null,null,null,null,null,null,null,null,null,null,null,null,null,null,null,null,null,null,null,null,"KM-173","Kamelya - Çardak sigara içme dinlenme alanı 173","M2","KM-173","catalog/Kamelya-cardak/KM-173 DERI-SAN-6X3/KM-173-ahsap-dinlenme-kamelya-bahce-cardak-gebze-tuzla-fiyatlari-www.kayalarkereste.com-1.jpg",650,null,"http://www.kayalarkereste.com/image/catalog/Kamelya-cardak/KM-173 DERI-SAN-6X3/KM-173-ahsap-dinlenme-kamelya-bahce-cardak-gebze-tuzla-fiyatlari-www.kayalarkereste.com-1.jpg"]
[null,null,null,null,null,null,null,null,null,null,null,null,null,null,null,null,null,null,null,null,null,null,null,null,null,null,null,null,null,null,null,null,null,null,null,null,null,null,null,null,null,null,null,null,null,null,null,null,"KM-174","Kamelya - Çardak sigara içme dinlenme alanı 174","Adet","KM-174","catalog/Kamelya-cardak/KM-174/km-174-ahsap-veranda-kamelya-cardak-kameriye-fiyatlari-www.kayalarkereste.com-07.jpg",8000,null,"http://www.kayalarkereste.com/image/catalog/Kamelya-cardak/KM-174/km-174-ahsap-veranda-kamelya-cardak-kameriye-fiyatlari-www.kayalarkereste.com-07.jpg"]
[null,null,null,null,null,null,null,null,null,null,null,null,null,null,null,null,null,null,null,null,null,null,null,null,null,null,null,null,null,null,null,null,null,null,null,null,null,null,null,null,null,null,null,null,null,null,null,null,"VH-110","Ahşap Çocuk Oyun Evi VH-110","Adet","VH-110","catalog/cocuk-evi/VH-110/VH-110-ahsap-cocuk-oyun-evi-02.jpg",11000,null,"http://www.kayalarkereste.com/image/catalog/cocuk-evi/VH-110/VH-110-ahsap-cocuk-oyun-evi-02.jpg"]
[null,null,null,null,null,null,null,null,null,null,null,null,null,null,null,null,null,null,null,null,null,null,null,null,null,null,null,null,null,null,null,null,null,null,null,null,null,null,null,null,null,null,null,null,null,null,null,null,"VH-111","Ahşap Çocuk Oyun Evi VH-111","Adet","VH-111","catalog/cocuk-evi/VH-111/VH-111-ahsap-cocuk-oyun-evi-fiyatlari-cesitleri-resimleri-gebze-tuzla-pendik-sile-www.kayalarkereste.com-01.gif",9500,null,"http://www.kayalarkereste.com/image/catalog/cocuk-evi/VH-111/VH-111-ahsap-cocuk-oyun-evi-fiyatlari-cesitleri-resimleri-gebze-tuzla-pendik-sile-www.kayalarkereste.com-01.gif"]
[null,null,null,null,null,null,null,null,null,null,null,null,null,null,null,null,null,null,null,null,null,null,null,null,null,null,null,null,null,null,null,null,null,null,null,null,null,null,null,null,null,null,null,null,null,null,null,null,{"$f":"HYPERLINK(BD242,AZ242)","v":"AC-105"},"Ahşap Çit Korkuluk  AC-105","Metre","AC-105","catalog/cit-korkuluk/AC-105/AC-105-ahsap-cit-korkuluk-fiyatlari-cesitleri-resimleri-www.kayalarkereste.com-04.jpg",120,null,"http://www.kayalarkereste.com/image/catalog/cit-korkuluk/AC-105/AC-105-ahsap-cit-korkuluk-fiyatlari-cesitleri-resimleri-www.kayalarkereste.com-04.jpg"]
[null,null,null,null,null,null,null,null,null,null,null,null,null,null,null,null,null,null,null,null,null,null,null,null,null,null,null,null,null,null,null,null,null,null,null,null,null,null,null,null,null,null,null,null,null,null,null,null,"AC-106","Ahşap Çit Korkuluk  AC-106","Metre","AC-106","catalog/cit-korkuluk/AC-106/ac-105-ahsap-cit-korkuluk-modelleri-fiyatlari-resimleri-gebze-tuzla-www.kayalarkereste.com-015.jpg",180,null,"http://www.kayalarkereste.com/image/catalog/cit-korkuluk/AC-106/ac-105-ahsap-cit-korkuluk-modelleri-fiyatlari-resimleri-gebze-tuzla-www.kayalarkereste.com-015.jpg"]
[null,null,null,null,null,null,null,null,null,null,null,null,null,null,null,null,null,null,null,null,null,null,null,null,null,null,null,null,null,null,null,null,null,null,null,null,null,null,null,null,null,null,null,null,null,null,null,null,"VR-101","Veranda - Sundurma VR-101","M2","VR-101","catalog/Veranda/VR-101/IMG_1737.jpg",0,null,"http://www.kayalarkereste.com/image/catalog/Veranda/VR-101/IMG_1737.jpg"]
[null,null,null,null,null,null,null,null,null,null,null,null,null,null,null,null,null,null,null,null,null,null,null,null,null,null,null,null,null,null,null,null,null,null,null,null,null,null,null,null,null,null,null,null,null,null,null,null,"VR-102","Veranda - Sundurma VR-102","m2","VR-102","catalog/Veranda/VR-102/IMG_2399.jpg",0,null,"http://www.kayalarkereste.com/image/catalog/Veranda/VR-102/IMG_2399.jpg"]
[null,null,null,null,null,null,null,null,null,null,null,null,null,null,null,null,null,null,null,null,null,null,null,null,null,null,null,null,null,null,null,null,null,null,null,null,null,null,null,null,null,null,null,null,null,null,null,null,"VR-103","Veranda - Sundurma VR-102","M2","VR-103","catalog/Veranda/VR-103/VR-103-ahsap-veranda-sundurma-fiyatlari-cesitleri-istanbul-www.kayalarkereste.com-02.gif",0,null,"http://www.kayalarkereste.com/image/catalog/Veranda/VR-103/VR-103-ahsap-veranda-sundurma-fiyatlari-cesitleri-istanbul-www.kayalarkereste.com-02.gif"]
[null,null,null,null,null,null,null,null,null,null,null,null,null,null,null,null,null,null,null,null,null,null,null,null,null,null,null,null,null,null,null,null,null,null,null,null,null,null,null,null,null,null,null,null,null,null,null,null,"KS-107","6,5 x 12,5 x 6 boy Silinmiş Kereste SİBİRYA LADİN -KS-107","M3","KS-107","catalog/silinmis-kereste/ks-103-cam-dogramalik-silinmis-sinif-kereste-5x15-01.jpg",2300,null,"http://www.kayalarkereste.com/image/catalog/silinmis-kereste/ks-103-cam-dogramalik-silinmis-sinif-kereste-5x15-01.jpg"]
[null,null,null,null,null,null,null,null,null,null,null,null,null,null,null,null,null,null,null,null,null,null,null,null,null,null,null,null,null,null,null,null,null,null,null,null,null,null,null,null,null,null,null,null,null,null,null,null,"AV-111","Ahşap Bungalov ev [AV-111]","M2","AV-111","catalog/Ev/av-111/av-111-bungalov-kulube-ahsap-ev-kutuk--kulube-ev-fiyatlari-yapimi-maliyeti-resimleri-gebze-www.kayalarahsap.com-013.jpg",1600,null,"http://www.kayalarkereste.com/image/catalog/Ev/av-111/av-111-bungalov-kulube-ahsap-ev-kutuk--kulube-ev-fiyatlari-yapimi-maliyeti-resimleri-gebze-www.kayalarahsap.com-013.jpg"]
[null,null,null,null,null,null,null,null,null,null,null,null,null,null,null,null,null,null,null,null,null,null,null,null,null,null,null,null,null,null,null,null,null,null,null,null,null,null,null,null,null,null,null,null,null,null,null,null,"AV-104","Ahşap Bungalov Ev  (AV-104)",null,"AV-104","catalog/Ev/AV-104/av-104-Ahsap-ev-kutuk-bungalov-ev-fiyatlari-cesitleri-yapimi-maliyeti-www.kayalarahsap.com-12.jpg",1566,null,"http://www.kayalarkereste.com/image/catalog/Ev/AV-104/av-104-Ahsap-ev-kutuk-bungalov-ev-fiyatlari-cesitleri-yapimi-maliyeti-www.kayalarahsap.com-12.jpg"]
[null,null,null,null,null,null,null,null,null,null,null,null,null,null,null,null,null,null,null,null,null,null,null,null,null,null,null,null,null,null,null,null,null,null,null,null,null,null,null,null,null,null,null,null,null,null,null,null,"AG-112","Demir Masa Tabla Ayakları AG-112",null,"AG-112","catalog/metal-ayak/AG-112-metal-masa-ayak-03.jpg",464,null,"http://www.kayalarkereste.com/image/catalog/metal-ayak/AG-112-metal-masa-ayak-03.jpg"]
[null,null,null,null,null,null,null,null,null,null,null,null,null,null,null,null,null,null,null,null,null,null,null,null,null,null,null,null,null,null,null,null,null,null,null,null,null,null,null,null,null,null,null,null,null,null,null,null,"KR-102","İnşaatlık Kereste (43 x 93) - (93 x 93)  [KR-102]",null,"KR-102","catalog/Kereste/Kereste_b.JPG",990,null,"http://www.kayalarkereste.com/image/catalog/Kereste/Kereste_b.JPG"]
[null,null,null,null,null,null,null,null,null,null,null,null,null,null,null,null,null,null,null,null,null,null,null,null,null,null,null,null,null,null,null,null,null,null,null,null,null,null,null,null,null,null,null,null,null,null,null,null,"KR-103","İnşaatlık Kereste (45 x 95) - (95 x 95)  [KR-103]",null,"KR-103","catalog/Kereste/Kereste_3.jpg",990,null,"http://www.kayalarkereste.com/image/catalog/Kereste/Kereste_3.jpg"]
[null,null,null,null,null,null,null,null,null,null,null,null,null,null,null,null,null,null,null,null,null,null,null,null,null,null,null,null,null,null,null,null,null,null,null,null,null,null,null,null,null,null,null,null,null,null,null,null,"UB-80","BANK Yuvarlak UB-80","Adet","UB-80","catalog/Bank/UB-80/ahsap-cam-dis-mekan-altigen-bank-oturma-gruplari-fiyatlari-resimleri-www.parkbahcemobilya.com-UB-80-05.jpg",865,null,"http://www.kayalarkereste.com/image/catalog/Bank/UB-80/ahsap-cam-dis-mekan-altigen-bank-oturma-gruplari-fiyatlari-resimleri-www.parkbahcemobilya.com-UB-80-05.jpg"]
[null,null,null,null,null,null,null,null,null,null,null,null,null,null,null,null,null,null,null,null,null,null,null,null,null,null,null,null,null,null,null,null,null,null,null,null,null,null,null,null,null,null,null,null,null,null,null,null,"KR-104","İnşaatlık Tahta  [KR-104]","m3","KR-104","catalog/Kereste/Tahta_kereste.JPG",990,null,"http://www.kayalarkereste.com/image/catalog/Kereste/Tahta_kereste.JPG"]
[null,null,null,null,null,null,null,null,null,null,null,null,null,null,null,null,null,null,null,null,null,null,null,null,null,null,null,null,null,null,null,null,null,null,null,null,null,null,null,null,null,null,null,null,null,null,null,null,"KR-111","OSB 11mm  [KR-111]","Adet","KR-111","catalog/Kereste/Tahta_kereste.JPG",58,null,"http://www.kayalarkereste.com/image/catalog/Kereste/Tahta_kereste.JPG"]
[null,null,null,null,null,null,null,null,null,null,null,null,null,null,null,null,null,null,null,null,null,null,null,null,null,null,null,null,null,null,null,null,null,null,null,null,null,null,null,null,null,null,null,null,null,null,null,null,"AV-113","Ahşap Bungalov ev  [AV-113]","M2","AV-113","catalog/Ev/av-113/av-113-ahsap-kutuk-bungalov-ev-fiyatlari-01.jpg",1600,null,"http://www.kayalarkereste.com/image/catalog/Ev/av-113/av-113-ahsap-kutuk-bungalov-ev-fiyatlari-01.jpg"]
[null,null,null,null,null,null,null,null,null,null,null,null,null,null,null,null,null,null,null,null,null,null,null,null,null,null,null,null,null,null,null,null,null,null,null,null,null,null,null,null,null,null,null,null,null,null,null,null,"AV-114","Ahşap Bungalov Yalı baskı Ev [AV-114]","M2","AV-114","catalog/Ev/av-114/av-114-ahsap-kutuk-bungalov-ev-fiyatlari-tas-ev-yapimi-15.jpg",1,null,"http://www.kayalarkereste.com/image/catalog/Ev/av-114/av-114-ahsap-kutuk-bungalov-ev-fiyatlari-tas-ev-yapimi-15.jpg"]

{"sheet":"TEKLİF Resim","index":1,"n_rows":258,"n_cols":58,"rows_kept":258,"cut":false,"hidden":false,"merged":[[44,1,44,6],[7,2,7,3],[50,1,50,6],[50,9,50,10],[50,11,50,12],[48,11,48,12],[49,11,49,12],[45,11,45,12],[46,11,46,12],[47,11,47,12],[10,11,10,12],[11,5,11,8],[30,7,30,8],[51,1,51,6],[48,1,48,6],[48,9,48,10],[8,2,8,3],[9,2,9,3],[10,2,10,3],[49,1,49,6],[49,9,49,10],[46,1,46,6],[46,9,46,10],[45,1,45,6],[45,9,45,10],[47,1,47,6],[47,9,47,10],[43,1,43,6],[9,5,9,8],[57,0,57,12],[58,0,58,12],[52,3,52,11],[53,3,53,11],[55,0,55,12],[56,0,56,12],[11,36,11,38],[11,42,11,43],[13,17,13,19],[44,9,44,10],[44,11,44,12],[43,9,43,10],[43,11,43,12],[28,10,28,11],[29,10,29,11],[30,10,30,11],[31,10,31,11],[32,10,32,11],[33,10,33,11],[0,5,0,11],[1,5,4,12],[5,5,5,12],[7,5,7,12],[8,5,8,12],[2,2,2,3],[3,2,3,3],[4,2,4,3],[5,2,5,3],[6,2,6,3]]}
[]
[null,null,null,null,null,"Demka Kereste",null,null,null,null,null,null,null,null,null,null,null,null,null,null,null,null,null,null,null," "]
[null,"Konu :"]
[null,"Firma :"]
[null,"İlgili :"]
[null,"Tarih :",{"$f":"NOW()","v":"2020-03-26T14:07:08.290"}]
[null,"Mail :"]
[null,"Opsiyon :"]
[null,"Vade :","Nakit"]
[null,"Teslimat :","Fabrikamızda kamyon üstü teslim"]
[null,"Stok :","Yarı Hazır Mamül"]
[null,null,null,null,null,null,null,null,null,null,null,null,null,null,null,null,null,null,null,null,null,"1 Ad. cm"]
[]
[null,null,null,null,null,null,null,null,null,null,null,null,null,null,null,null,null,"Kalın Ölç Fiyatı",null,null,null,"kapattığı ","Fiyat","1 m3 kapattığı","aktif satır"]
[null,"KOD",null,"Cinsi",null,"En","Kln","Boy","Miktar",null,"Fiyat","Dm3","Tutar",null,null,null,null,"EN","Kln","Fiyat","M3 /ad.","genişlik","M2"," Alan","Kapattığı M2",null,null,null,null,null,"KOD","Ürün İsmi","Açıklama","Tane mi","Net Ölçü Fiyatı","+kdv","Boy","Kln","En",null,"Fiyatı m3",null,"kln","en",null,"genişlik kaç cm dir  ?","m2 Fiyatı","Kapattığı alan"]
[null,null,null,null,null,null,null,null,null,null,null,null,null,null,null,null,null,null,null,null,null,null,null,null,null,null,null,null,null,null,null,null,null,null,null,null,null,null,null,null,{"$f":"IFERROR(AI16*AM16*AL16/AR16/AQ16,\"\")","v":""}]
[{"$f":"IFERROR(HYPERLINK((VLOOKUP(B17,BB:BF,5,FALSE)),\"█\"),\"1\")","v":"█"},"lm-108",null,{"$f":"IFERROR(VLOOKUP(B17,AE:AF,2,FALSE),\"\")","v":"Lambiri 1.Sınıf Ukrayna"},{"$f":"IF(IFERROR(VLOOKUP(D17,AF:AH,3,FALSE),\"\")<>\"\",\"a\",\"\")","v":""},{"$f":"IFERROR(VLOOKUP(B17,AE:AT,14,FALSE),\"\")","v":10},{"$f":"IFERROR(VLOOKUP(B17,AE:AT,13,FALSE),\"\")","v":2.6},{"$f":"IFERROR(VLOOKUP(B17,AE:AK,7,FALSE),\"\")","v":300},200,null,{"$f":"IFERROR(VLOOKUP(B17,AE:AI,5,FALSE),\"\")","v":1650},{"$f":"IFERROR((F17*G17*H17*I17)/1000,\"\")","v":1560},{"$f":"IFERROR(IF(E17=\"a\",K17*I17,IF(L17<>\"\",K17*L17/1000,\"\")),\"\")","v":2574},null,null,{"$f":"IFERROR(IF(E17=\"a\",(K17*I17)/1,IF(L17<>\"\",K17*L17/1000,\"\")),\"\")","v":2574},null,{"$f":"IF(COUNTA(F17)>=1,IF(F17<4,2.6,IF(F17<5.1,5,IF(F17<10.1,10,IF(F17<15,15)))),\"\")","v":10},{"$f":"IFERROR(IF(G17<=2.6,2.6,IF(G17<5.1,5,IF(G17<10.1,10,IF(G17<15,15)))),\"\")","v":2.6},{"$f":"IFERROR(F17*G17*K17/R17/S17,\"\")","v":1650},{"$f":"IFERROR(IF(I17<>\"\",(1000/H17/G17/F17*1000),\"\"),\"\")","v":128.20512820512823},{"$f":"IFERROR(VLOOKUP(D17,AF:AT,15,FALSE),\"\")","v":7.8},{"$f":"IFERROR(K17/((100/F17/G17)*V17),\"\")","v":55.000000000000007},{"$f":"IFERROR((100/F17/G17)*V17,\"\")","v":29.999999999999996},{"$f":"IFERROR(V17*H17*I17/10000,\"\")","v":46.8},null,{"$f":"IFERROR(HYPERLINK((VLOOKUP(AB17,BB:BF,5,FALSE)),\" ████ Kod: \"),\"Kod :\")","v":" ████ Kod: "},"KT-118",null,null,"KR-107","Kereste 5 x 10 Ukrayna","Ukrayna inşaatlık",null,990,{"$f":"AI17*0.18","v":178.2},300,5,10,null,990,null,5,10,null,null,{"$f":"IFERROR(AI17/((100/AQ17/AR17)*AT17),\"\")","v":""},{"$f":"IF(AH17<>\"\",\"\",IFERROR((100/AQ17/AR17)*AT17,\"\"))","v":0},null,{"$f":"IFERROR(VLOOKUP(B17,AY:BC,5,FALSE),\"\")","v":"catalog/Profil/Lambiri-Rabita/LM-108-ahsap-lambiri-fiyatlari-sibirya-lambiri-rabita-cesitleri-resimleri-01.jpg"},0,"name(tr)","sku","model","image_name","price"]
[{"$f":"IFERROR(HYPERLINK((VLOOKUP(B18,BB:BF,5,FALSE)),\"█\"),\"2\")","v":"█"},"LM-103",null,"Lambiri Extra Ukrayna","",12,6,300,250,null,1800,5400,{"$f":"IFERROR(IF(E18=\"a\",K18*I18,IF(L18<>\"\",K18*L18/1000,\"\")),\"\")","v":9720},null,null,9720,null,15,10,864,46.296296296296298,11,117.8181818181818,15.27777777777778,82.5,null,"Cins :",{"$f":"CONCATENATE(IFERROR(VLOOKUP(AB17,AE:AF,2,FALSE),\"\"),\" - \",IFERROR(VLOOKUP(AB17,AE:AG,3,FALSE),\"\"))","v":"Kütük Ev Duvar Profil  Sibirya Lamine - Sibirya Lamine"},null,null,"KR-108","Kereste 10 x 10 Ukrayna","Ukrayna inşaatlık",null,990,178.2,300,10,10,null,990,null,10,10,null,null,"",0,null,"catalog/lambiri-ahsap/LM-100-Lambiri-Extra-03.jpg",{"$f":"HYPERLINK(BF18,BB18)","v":"PM-103"},"PM-103 Piknik Masa ","Adet","PM-103","catalog/Piknik-Masa/PM-103/PM-103-piknik-masa-ucuz-fiyatlari-imalati-resimleri- www.kayalarkereste.com-01.jpg",870]
[{"$f":"IFERROR(HYPERLINK((VLOOKUP(B19,BB:BF,5,FALSE)),\"█\"),\"3\")","v":"█"},"KS-100",null,"KS-100 silinmiş Sibirya","",10,5,400,120,null,2300,2400,5520,null,null,5520,null,10,5,2300,50,0,"",0,0,null,"En :",{"$f":"IFERROR(VLOOKUP(AB17,AE:AM,9,FALSE),\"\")","v":15},null,null,"KR-101","Kereste 41 x 91 Ukrayna","Ukrayna inşaatlık",null,990,178.2,300,4.0999999999999996,9.1,null,738.73799999999994,null,5,10,null,null,"",0,null,"catalog/silinmis-kereste/ks-101-cam-dogramalik-silinmis-sinif-kereste-5x10-01.jpg","SA-102","SA-102 Ahşap Salıncak ","Adet","SA-102","catalog/Piknik-Masa/SA-102/SA-102-ahsap-salincak-fiyatlari-esitleri-istanbul-08.jpg",2300,null,{"$f":"CONCATENATE($AY$1, BC19)","v":"catalog/Piknik-Masa/SA-102/SA-102-ahsap-salincak-fiyatlari-esitleri-istanbul-08.jpg"}]
[{"$f":"IFERROR(HYPERLINK((VLOOKUP(B20,BB:BF,5,FALSE)),\"█\"),\"4\")","v":"█"},"KS-107",null,"KS-107 silinmiş Sibirya","",12.5,6.5,600,300,null,2300,14625,33637.5,null,null,33637.5,null,15,10,1245.8333333333335,20.512820512820515,0,"",0,0,null,"Net Kalınlık :",{"$f":"IFERROR(VLOOKUP(AB17,AE:AQ,8,FALSE),\"\")","v":13.5},null,null,"KR-102","Kereste 91 x 91 Ukrayna 11111111111111 22222222222222222 ","Ukrayna inşaatlık","b",990,178.2,300,9.1,9.1,null,819.81899999999985,null,10,10,null,null,"","",null,"catalog/silinmis-kereste/ks-103-cam-dogramalik-silinmis-sinif-kereste-5x15-01.jpg","PM-104","PM-104 Piknik Masa","Adet","PM-104","catalog/Piknik-Masa/PM-104/pm-104-piknik-masa-fiyatlari-01.jpg",928,null,"catalog/Piknik-Masa/PM-104/pm-104-piknik-masa-fiyatlari-01.jpg"]
[{"$f":"IFERROR(HYPERLINK((VLOOKUP(B21,BB:BF,5,FALSE)),\"█\"),\"5\")","v":"█"},"LM-112",null,"OSB 11mm Ukrayna","a",122,1.1000000000000001,244,null,null,58,0,0,null,null,0,null,false,2.6,"","",122,0.63800000000000001,90.909090909090907,0,null,"Önceki Ham Kalınlık :",{"$f":"IFERROR(VLOOKUP(AB17,AE:AQ,13,FALSE),\"\")","v":15},null,null,"KR-103","Kereste 43 x 93 Ukrayna","Ukrayna inşaatlık",null,990,178.2,300,4.3,9.3000000000000007,null,791.80199999999991,null,5,10,null,null,"",0,null,"catalog/lambiri-ahsap/lm-112-iroko-lambiri-95mm-18mm-86mmkapatır-01.jpg","PM-106","PM-106 Piknik Masa","Adet","PM-106","catalog/Piknik-Masa/PM-106/pm-106-ahsap-piknik-kir-masa-03.jpg",638,null,"catalog/Piknik-Masa/PM-106/pm-106-ahsap-piknik-kir-masa-03.jpg"]
[{"$f":"IFERROR(HYPERLINK((VLOOKUP(B22,BB:BF,5,FALSE)),\"█\"),\"6\")","v":"6"},null,null,"","","","","",null,null,"","","",null,null,"",null,false,false,"","","","","","",null,"Boy :",{"$f":"IFERROR(VLOOKUP(AB17,AE:BF,27,FALSE),\"\")","v":0},null,null,"KR-102","Kereste 93 x 93 Ukrayna","Ukrayna inşaatlık",null,990,178.2,300,9.3000000000000007,9.3000000000000007,null,856.25099999999998,null,10,10,null,null,"",0,null,"image_name","PM-107","PM-107 Piknik Masa","Adet","PM-107","catalog/Piknik-Masa/PM-107/PM-107-metal-dokum-ayakli-ahsap-maun-bahce-dis-mekan-masa-01.jpg",672.8,null,"catalog/Piknik-Masa/PM-107/PM-107-metal-dokum-ayakli-ahsap-maun-bahce-dis-mekan-masa-01.jpg"]
[{"$f":"IFERROR(HYPERLINK((VLOOKUP(B23,BB:BF,5,FALSE)),\"█\"),\"7\")","v":"7"},null,null,"","",{"$f":"IFERROR(VLOOKUP(B23,AE:AT,14,FALSE),\"\")","v":""},"","",null,null,"","","",null,null,"",null,false,false,"","","","","","",null,"1 adet kapattığı genşlik:",{"$f":"IFERROR(VLOOKUP(AB17,AE:AT,16,FALSE),\"\")","v":13.5},null,null,"KR-105","Kereste 45 x 95 Ukrayna","Ukrayna inşaatlık",null,990,178.2,300,4.5,9.5,null,846.45,null,5,10,null,null,"",0,null,"image_name","PM-108","PM-108 Piknik Masa","Adet","PM-108","catalog/Piknik-Masa/PM-108/pm-108-ahsap-masa-fiyatlari-resimleri-02.jpg",348,null,"catalog/Piknik-Masa/PM-108/pm-108-ahsap-masa-fiyatlari-resimleri-02.jpg"]
[{"$f":"IFERROR(HYPERLINK((VLOOKUP(B24,BB:BF,5,FALSE)),\"█\"),\"8\")","v":"8"},null,null,"","","","","",null,null,"","","",null,null,"",null,false,false,"","","","","","",null,"Kapatığı Alan :",{"$f":"((1000/AB21/AB19)*AB23)/10","v":6},null,null,"KR-106","Kereste 95 x 95 Ukrayna","Ukrayna inşaatlık",null,990,178.2,300,9.5,9.5,null,893.47500000000002,null,10,10,null,null,"",0,null,"image_name","PM-109","PM-109 Piknik Masa","Adet","PM-109","catalog/Piknik-Masa/PM-109/pm-109-ahsap-piknik-masa-fiyatlari-09.jpg",928,null,"catalog/Piknik-Masa/PM-109/pm-109-ahsap-piknik-masa-fiyatlari-09.jpg"]
[{"$f":"IFERROR(HYPERLINK((VLOOKUP(B25,BB:BF,5,FALSE)),\"█\"),\"9\")","v":"9"},null,null,"","","","","",null,null,"","","",null,null,"",null,false,false,"","","","","","",null,"M3 ü kaç Adet :",{"$f":"1000000/AB19/AB21/AB22","v":{"$error":"#DIV/0!"}},null,null,"KR-100","Tahta -10-..-20 Ukrayna","Ukrayna inşaatlık",null,990,178.2,300,2.2000000000000002,10,null,837.69230769230762,null,2.6,10,null,null,"",0,null,"image_name","PM-111","PM-111 Ahşap Piknik Masa ","Adet","PM-111","catalog/Piknik-Masa/pm-111/pm-111-ahsap-piknik-masa-yaslanmali-ucuz-fiyatari-www.parkbahcemobilya.com-03.jpg",696,null,"catalog/Piknik-Masa/pm-111/pm-111-ahsap-piknik-masa-yaslanmali-ucuz-fiyatari-www.parkbahcemobilya.com-03.jpg"]
[{"$f":"IFERROR(HYPERLINK((VLOOKUP(B26,BB:BF,5,FALSE)),\"█\"),\"10\")","v":"10"},null,null,"","","","","",null,null,"","","",null,null,"",null,false,false,"","","","","","",null,"M2' si kaç Adet :",{"$f":"1/(AB22*AB23)*10000","v":{"$error":"#DIV/0!"}},null,null,"LM-108","Lambiri 1.Sınıf Ukrayna","Sibirya",null,1650,297,300,2.2000000000000002,10,null,1396.1538461538462,null,2.6,10,null,7.8,55.000000000000007,29.999999999999996,null,"image_name","PM-110","PM-110 Piknik Masa","Adet","PM-110","catalog/Piknik-Masa/pm-110/pm-110-piknik-masa-ucuz-fiyatlari-03.jpg",1044,null,"catalog/Piknik-Masa/pm-110/pm-110-piknik-masa-ucuz-fiyatlari-03.jpg"]
[null,null,null,null,null,null,null,null,null,null,null,null,null,null,null,"",null,"",2.6,"","","","","","",null,"Tanesi Kaç Dm3 :",{"$f":"AB19*AB20*AB22/1000","v":0},null,null,"LM-103","Lambiri Extra Ukrayna","Ukrayna",null,1800,324,300,2.6,12,null,1800,null,2.6,12,null,11,51.054545454545455,35.256410256410255,null,"image_name","PA-126","PA-126 Çocuk Oyun Parkı","Adet","PA-126","catalog/Oyun-Park/PA-126/oyun-parki-fiyatlari-salincak-tahterevan-www.ahsapfiyatlistesi.com-PA-126-02.jpg",4700,null,"catalog/Oyun-Park/PA-126/oyun-parki-fiyatlari-salincak-tahterevan-www.ahsapfiyatlistesi.com-PA-126-02.jpg"]
[null,"NOT ;",null,null,null,null,null,null,null,null,null,null,null,null,null,{"$f":"IFERROR(IF(E28=\"a\",(K28*I28)/1,IF(K29<>\"\",K28*K29/1000,\"\")),\"\")","v":0},null,"",2.6,"",{"$f":"IFERROR(IF(I28<>\"\",(1000/H29/G28/F28*1000),\"\"),\"\")","v":""},"","","",{"$f":"IFERROR(V28*H29*I28/10000,\"\")","v":""},null,"1 m3 Fiyatı :","Kapattığı Alan  x  m2 Fiyatı  ",null,null,"LM-101","Lambiri 1.Sn. Ukrayna","Ukrayna",null,1550,279,300,2.6,10,null,1550,null,2.6,10,null,7.8,51.666666666666671,29.999999999999996,null,"","PA-127","PA-127 Çocuk Oyun Parkı","Adet","PA-127","catalog/Oyun-Park/PA-127/ahsap-cocuk-oyun-parki-fiyatlari-www.ahsapfiyatlistesi.com-PA-127-05.jpg",7540,null,"catalog/Oyun-Park/PA-127/ahsap-cocuk-oyun-parki-fiyatlari-www.ahsapfiyatlistesi.com-PA-127-05.jpg"]
[null,null,null,null,null,null,null,"Toplam Mik.",null,":",{"$f":"SUM(L17:L26)","v":23985},null,null,null,null,{"$f":"IFERROR(IF(E29=\"a\",(#REF!*I29)/1,IF(L29<>\"\",#REF!*L29/1000,\"\")),\"\")","v":""},null,{"$f":"IF(COUNTA(#REF!)>=1,IF(#REF!<4,2.6,IF(#REF!<5.1,5,IF(#REF!<10.1,10,IF(#REF!<15,15)))),\"\")","v":{"$error":"#REF!"}},2.6,{"$f":"IFERROR(#REF!*G29*#REF!/R29/S29,\"\")","v":""},{"$f":"IFERROR(IF(I29<>\"\",(1000/H30/G29/#REF!*1000),\"\"),\"\")","v":""},"",{"$f":"IFERROR(#REF!/((100/#REF!/G29)*V29),\"\")","v":""},{"$f":"IFERROR((100/#REF!/G29)*V29,\"\")","v":""},{"$f":"IFERROR(V29*H30*I29/10000,\"\")","v":""},null,"Nakliye :","Hariç",null,null,"LM-102","Lambiri 2.Sn. Ukrayna","Ukrayna",null,1450,261,300,2.6,10,null,1450,null,2.6,10,null,7.8,48.333333333333336,29.999999999999996,null,"image_name","PA-128","PA-128 Çocuk Oyun Parkı","Adet","PA-128","catalog/Oyun-Park/PA-128/ahsap-cocuk-oyun-parki-fiyatlari-www-ahsapfiyatlistesi-com-PA-128-02.jpg",4640,null,"catalog/Oyun-Park/PA-128/ahsap-cocuk-oyun-parki-fiyatlari-www-ahsapfiyatlistesi-com-PA-128-02.jpg"]
[null,null,null,null,null,null,null,"Ara Toplam",null,":",{"$f":"SUM(M17:M26)","v":51451.5},null,null,null,null,"",null,{"$f":"IF(COUNTA(#REF!)>=1,IF(#REF!<4,2.6,IF(#REF!<5.1,5,IF(#REF!<10.1,10,IF(#REF!<15,15)))),\"\")","v":{"$error":"#REF!"}},2.6,{"$f":"IFERROR(#REF!*G30*K30/R30/S30,\"\")","v":""},{"$f":"IFERROR(IF(I30<>\"\",(1000/#REF!/G30/#REF!*1000),\"\"),\"\")","v":""},"",{"$f":"IFERROR(K30/((100/#REF!/G30)*V30),\"\")","v":""},{"$f":"IFERROR((100/#REF!/G30)*V30,\"\")","v":""},{"$f":"IFERROR(V30*#REF!*I30/10000,\"\")","v":""},null,"Koruyucu :","İsteğe göre Emprenye Katkılı Su bazlı ahşap koruyucu boya uygulanabilir. fiyat sorunuz",null,null,"LM-112","OSB 11mm Ukrayna",1,"b",58,10.44,244,1.1000000000000001,122,null,58,null,1.1000000000000001,122,null,122,0.63800000000000001,{"$f":"IF(AH30<>\"\",\"\",IFERROR((100/AQ30/AR30)*AT30,\"\"))","v":""},null,"image_name","PA-129","PA-129 Çocuk Oyun Parkı","Adet","PA-129","catalog/Oyun-Park/PA-129/ahsap-oyun-parki-salincak-tahterevan-fiyatlari-www.ahsapfiyatlistesi.com-PA-129-01.jpg",4500,null,"catalog/Oyun-Park/PA-129/ahsap-oyun-parki-salincak-tahterevan-fiyatlari-www.ahsapfiyatlistesi.com-PA-129-01.jpg"]
[null,null,null,null,null,null,null,null,null,":",null,null,null,null,null,"",null,"",2.6,"","","","","","",null,"Teslim Süresi :","Ortalama 1 ile 15 gün arası",null,null,"LM-113","OSB 9mm Ukrayna",null,"a",53,9.5399999999999991,244,0.9,122,null,53,null,0.9,122,null,122,0.47699999999999998,{"$f":"IF(AH31<>\"\",\"\",IFERROR((100/AQ31/AR31)*AT31,\"\"))","v":""},null,"image_name","PA-130","PA-130 Çocuk Oyun Parkı","Adet","PA-130","catalog/Oyun-Park/PA-130/PA-130-havuzlu-platform-cocuk-oyun-parkı-01.jpg",7540,null,"catalog/Oyun-Park/PA-130/PA-130-havuzlu-platform-cocuk-oyun-parkı-01.jpg"]
[null,null,null,null,null,null,null,"Toplam KDV",null,":",{"$f":"K30*0.18","v":9261.27},null,null,null,null,"",null,{"$f":"IF(COUNTA(H32)>=1,IF(H32<4,2.6,IF(H32<5.1,5,IF(H32<10.1,10,IF(H32<15,15)))),\"\")","v":false},2.6,{"$f":"IFERROR(H32*G32*K32/R32/S32,\"\")","v":""},{"$f":"IFERROR(IF(I32<>\"\",(1000/#REF!/G32/H32*1000),\"\"),\"\")","v":""},"",{"$f":"IFERROR(K32/((100/H32/G32)*V32),\"\")","v":""},{"$f":"IFERROR((100/H32/G32)*V32,\"\")","v":""},{"$f":"IFERROR(V32*#REF!*I32/10000,\"\")","v":""},null,"Garanti :","5 Yıl",null,null,"LM-114","Alın Tahtası Ukrayna","Ukrayna","a",30,5.3999999999999995,300,2.2000000000000002,20,null,25.384615384615383,null,2.6,20,null,null,"","",null,"image_name","AC-101","Ahşap Çit Korkuluk  AC-101","Metre","AC-101","catalog/cit-korkuluk/AC-101/AC-101-çit-korkuluk-trabzan-ahşap-korkuluk-03.JPG",139.19999999999999,null,"catalog/cit-korkuluk/AC-101/AC-101-çit-korkuluk-trabzan-ahşap-korkuluk-03.JPG"]
[null,null,null,null,null,null,null,"Ödenen",null,":",{"$f":"SUM(L21:L30)","v":0},null,null,null,null,"",null,{"$f":"IF(COUNTA(H33)>=1,IF(H33<4,2.6,IF(H33<5.1,5,IF(H33<10.1,10,IF(H33<15,15)))),\"\")","v":false},2.6,{"$f":"IFERROR(H33*G33*K33/R33/S33,\"\")","v":""},{"$f":"IFERROR(IF(I33<>\"\",(1000/#REF!/G33/H33*1000),\"\"),\"\")","v":""},"",{"$f":"IFERROR(K33/((100/H33/G33)*V33),\"\")","v":""},{"$f":"IFERROR((100/H33/G33)*V33,\"\")","v":""},{"$f":"IFERROR(V33*#REF!*I33/10000,\"\")","v":""},null,"Bakım :","İlk bakım 1 sene sonra, takip eden bakımlar yaklaşık 2 yılda bir yapılmalıdır.",null,null,"LM-115","süpürgelik Ukrayna","Ukrayna","m",2,0.36,300,2.2000000000000002,5,null,2,null,2.2000000000000002,5,null,null,"","",null,"image_name","AC-102","Ahşap Çit Korkuluk  AC-102","Metre","AC-102","2018/02/ac-102-ahsap-cit-korkuluk-fiyatlari-tuzla-pendik-gebze-04.jpg",98.6,null,"2018/02/ac-102-ahsap-cit-korkuluk-fiyatlari-tuzla-pendik-gebze-04.jpg"]
[null,null,null,null,null,null,null,"Kalan",null,":",{"$f":"K30+K32-K33","v":60712.770000000004},null,null,null,null,"",null,{"$f":"IF(COUNTA(H34)>=1,IF(H34<4,2.6,IF(H34<5.1,5,IF(H34<10.1,10,IF(H34<15,15)))),\"\")","v":false},2.6,{"$f":"IFERROR(H34*G34*K34/R34/S34,\"\")","v":""},{"$f":"IFERROR(IF(I34<>\"\",(1000/#REF!/G34/H34*1000),\"\"),\"\")","v":""},"",{"$f":"IFERROR(K34/((100/H34/G34)*V34),\"\")","v":""},{"$f":"IFERROR((100/H34/G34)*V34,\"\")","v":""},{"$f":"IFERROR(V34*#REF!*I34/10000,\"\")","v":""},null,null,null,null,null,"LM-116","Cephe  12 cm geniş Ukrayna","Ukrayna",null,1700,306,400,3.5,12,null,1700,null,3.5,12,null,9.9,72.12121212121211,23.571428571428573,null,"image_name","AC-103","Ahşap Çit Korkuluk  AC-103","Metre","AC-103","catalog/cit-korkuluk/AC-103/ahsap-cit-korkuluk-modelleri-fiyatlari-AC-103-01.jpg",139.19999999999999,null,"catalog/cit-korkuluk/AC-103/ahsap-cit-korkuluk-modelleri-fiyatlari-AC-103-01.jpg"]
[null,null,null,null,null,null,null,null,null,null,null,null,null,null,null,"",null,"",2.6,"","","","","",""]
[null,null,null,null,null,null,null,null,null,null,null,null,null,null,null,"",null,"",2.6,"","","","","",""]
[null,null,null,null,null,null,null,null,null,null,null,null,null,null,null,"",null,"",2.6,"","","","","",""]
[null,null,null,null,null,null,null,null,null,null,null,null,null,null,null,"",null,"",2.6,"","","","","",""]
[null,null,null,null,null,null,null,null,null,null,null,null,null,null,null,"",null,"",2.6,"","","","","","",null,"1 m2 Fiyatı :",{"$f":"IFERROR((VLOOKUP(AB17,AE:AI,5,FALSE)/Kapatığı_Alan),\"\")","v":533.33333333333337},null,null,"KS-100","KS-100 silinmiş Sibirya","5 x 10 Sibirya",null,2300,414,400,5,10,null,2300,null,5,10,null,null,"",0,null,null,"AC-104","Ahşap Çit Korkuluk  AC-104","Metre","AC-104","catalog/cit-korkuluk/AC-104/ac-104-ahsap-cit-korkuluk-modelleri-fiyatlari-resimleri-www.kayalarkereste.com-07.jpg",139.19999999999999,null,"catalog/cit-korkuluk/AC-104/ac-104-ahsap-cit-korkuluk-modelleri-fiyatlari-resimleri-www.kayalarkereste.com-07.jpg"]
[null,null,null,null,null,null,null,null,null,null,null,null,null,null,null,"",null,"",2.6,"","","","","","",null,null,null,null,null,"KS-101","KS-101 silinmiş Sibirya","5 x 10 Ukrayna",null,1700,306,300,5,10,null,1700,null,5,10,null,null,"",0,null,null,"VH-107","Ahşap Çocuk Oyun Evi","Adet","VH-107","catalog/cocuk-evi/VH-107/cocuk-oyun-evi-oyun-bahce-fiyatlari-modelleri-www.ahsapfiyatlistesi.com-vh-107-05.JPG",6500,null,"catalog/cocuk-evi/VH-107/cocuk-oyun-evi-oyun-bahce-fiyatlari-modelleri-www.ahsapfiyatlistesi.com-vh-107-05.JPG"]
[null,null,null,null,null,null,null,null,null,null,null,null,null,null,null,null,null,null,null,null,null,null,null,null,null,null,null,null,null,null,"KS-103","KS-103 silinmiş Sibirya","5 x 15 Sibirya",null,2300,414,400,5,10,null,2300,null,5,10,null,null,"",0,null,null,"VH-108","Ahşap Çocuk Oyun Evi","Adet","VH-108","catalog/cocuk-evi/VH-108/oyun-evi-www.ahsapfiyatlistesi.com-VH-108-01.JPG",6500,null,"catalog/cocuk-evi/VH-108/oyun-evi-www.ahsapfiyatlistesi.com-VH-108-01.JPG"]
[null,null,null,null,null,null,null,null,null,null,null,null,null,null,null,null,null,null,null,null,null,null,null,null,null,null,null,null,null,null,"KS-106","KS-106 silinmiş Sibirya","5 x 12,5 Sibirya",null,2300,414,400,5,12.5,null,2300,null,5,12.5,null,null,"",0,null,null,"KK-101","Köpek Kulubesi KK-101","Adet","KK-101","catalog/kopek-kulube/KK-101/kk-101-kopek-kulube-evi-fiyatlari-www.kayalarahsap.com-01.jpg",672.8,null,"catalog/kopek-kulube/KK-101/kk-101-kopek-kulube-evi-fiyatlari-www.kayalarahsap.com-01.jpg"]
[null,null,null,null,null,null,null,null,null,null,null,null,null,null,null,null,null,null,null,null,null,null,null,null,null,null,null,null,null,null,"KS-107","KS-107 silinmiş Sibirya","6,5 x 12,5 Ladin",null,2300,414,600,6.5,12.5,null,2300,null,6.5,12.5,null,null,"",0,null,null,"KK-102","Köpek Kulubesi KK-102","Adet","KK-102","catalog/kopek evi/KK-102/kk-102-kopek-kulube-evi-fiyatlari-resimleri-www.kayalarahsap.com-03.jpg",522,null,"catalog/kopek evi/KK-102/kk-102-kopek-kulube-evi-fiyatlari-resimleri-www.kayalarahsap.com-03.jpg"]
[null,null,null,null,null,null,null,null,null,null,null,null,null,null,null,null,null,null,null,null,null,null,null,null,null,null,null,null,null,null,"LM-122","Alın Tahtası","Ukrayna Sınıf Çam","t",30,5.3999999999999995,300,2.2000000000000002,20,null,29.999999999999996,null,2.2000000000000002,20,null,300,4.4000000000000004E-2,"",null,null,"KK-103","Köpek Kulubesi KK-103","Adet","KK-103","catalog/kopek-kulube/KK-103/kk-103-kopek-kulube-evi-fiyatlari-hayvan-barinak-fiyatlari-www.kayalarahsap.com-01.jpg",522,null,"catalog/kopek-kulube/KK-103/kk-103-kopek-kulube-evi-fiyatlari-hayvan-barinak-fiyatlari-www.kayalarahsap.com-01.jpg"]
[null,null,null,null,null,null,null,null,null,null,null,null,null,null,null,null,null,null,null,null,null,null,null,null,null,null,null,null,null,null,"LM-123",null,null,null,null,0,null,null,null,null,"",null,null,null,null,null,"","",null,null,"KK-104","Köpek Kulubesi  KK-104","Adet","KK-104","catalog/kopek-kulube/KK-104/kk-104-kopek-kulube-evi-hayvan-barinak-fiyatlari-www.kayalarahsap.com-01.JPG",522,null,"catalog/kopek-kulube/KK-104/kk-104-kopek-kulube-evi-hayvan-barinak-fiyatlari-www.kayalarahsap.com-01.JPG"]
[null,null,null,null,null,null,null,null,null,null,null,null,null,null,null,null,null,null,null,null,null,null,null,null,null,null,null,null,null,null,null,null,null,null,null,0,null,null,null,null,"",null,null,null,null,null,"","",null,null,"KK-105","Köpek Kulubesi KK-105","Adet","KK-105","catalog/kopek-kulube/KK-105/kk-105-ahsap-kopek-kulube-fıyatları-kocaeli-gebze-www.kayalarkereste.com-02.JPG",754,null,"catalog/kopek-kulube/KK-105/kk-105-ahsap-kopek-kulube-fıyatları-kocaeli-gebze-www.kayalarkereste.com-02.JPG"]
[null,null,null,null,null,null,null,null,null,null,null,null,null,null,null,null,null,null,null,null,null,null,null,null,null,null,null,null,null,null,null,null,null,null,null,0,null,null,null,null,"",null,null,null,null,null,"","",null,null,"PR-101","Ahşap Pergola","M2","PR-101","catalog/pergola/PR-101/PR-101-ahsap-kamelya-pergola-fiyatlari-www.kayalarahsap.com-02.jpg",406,null,"catalog/pergola/PR-101/PR-101-ahsap-kamelya-pergola-fiyatlari-www.kayalarahsap.com-02.jpg"]
[null,null,null,null,null,null,null,null,null,null,null,null,null,null,null,null,null,null,null,null,4.0999999999999996,"x",9.1,"ölçü ve ",930,"TL den alınan kereste",null,null,null,null,"YB-101","Ahşap Yalı Baskı ","Ukrayna",null,1700,306,300,1.8,12,null,1176.9230769230769,null,2.6,12,null,9.9,53.575757575757578,31.73076923076923,null,null,"PR-105","Ahşap Pergola","M2","PR-105","catalog/pergola/PR-105/PR-105-ahsap-kamelya-gazebo-pergola-fiyatlari-www.kayalarahsap.com-02.jpg",406,null,"catalog/pergola/PR-105/PR-105-ahsap-kamelya-gazebo-pergola-fiyatlari-www.kayalarahsap.com-02.jpg"]
[null,null,null,null,null,null,null,null,null,null,null,null,null,null,null,null,null,null,null,null,null,null,null,null,null,null,null,null,null,null,"YB-102","Ahşap Yalı Baskı  Sibirya","Sibirya",null,2300,414,400,3.5,12.5,null,2300,null,3.5,12.5,null,11,91.47727272727272,25.142857142857146,null,null,"PR-106","Ahşap Pergola","M2","PR-106","catalog/pergola/PR-106/PR-106-pergola-gazebo-konsol-pergola-veranda-ahsap-pergole-fiyatlari-01.jpg",406,null,"catalog/pergola/PR-106/PR-106-pergola-gazebo-konsol-pergola-veranda-ahsap-pergole-fiyatlari-01.jpg"]
[null,null,null,null,null,null,null,null,null,null,null,null,null,null,null,null,null,null,null,null,{"$f":"IF(COUNTA(U48)>=1,IF(U48<4,2.6,IF(U48<5.1,5,IF(U48<10.1,10,IF(U48<15,15)))),\"\")","v":5},"x",{"$f":"IF(COUNTA(W48)>=1,IF(U50=2.6,10,IF(W48<5,5,IF(W48<10.1,10,IF(U48<15,15)))),\"\")","v":10},"olarak",{"$f":"U48*W48*Y48/U50/W50","v":693.96599999999989},"TL ye mal olmuş Olur",null,null,null,null,"YB-103","Ahşap Yalı Baskı Sibirya","Sibirya",null,2300,414,400,4.5,15,null,2070,null,5,15,null,13.8,125.00000000000001,18.399999999999999,null,null,"PR-107","Ahşap Pergola  & Jeneratör Kabin","Adet","PR-107","catalog/pergola/PR-107 JENERATÖR KABİNİ/PR-107-pergola-gazebo-konsol-pergola-veranda-ahsap-jenerator-kabini-01.jpg",2552,null,"catalog/pergola/PR-107 JENERATÖR KABİNİ/PR-107-pergola-gazebo-konsol-pergola-veranda-ahsap-jenerator-kabini-01.jpg"]
[null,null,null,null,null,null,null,null,null,null,null,null,null,null,null,null,null,null,null,null,null,null,null,null,null,null,null,null,null,null,"YB-104","Ahşap Yalı Baskı yuvarlak Sibirya","Sibirya",null,2300,414,400,4.5,15,null,2070,null,5,15,null,13.8,125.00000000000001,18.399999999999999,null,null,"AV-102","Ahşap Bungalov Ev (AV-102)","M2","AV-102","catalog/Ev/AV-102/av-102-kutuk-ev-bungalov-ahsap-ev-fiyatlari-ahsap-ev-yapimi-maliyeti-resimleri-www.kayalarkereste.com-01.jpg",1740,null,"catalog/Ev/AV-102/av-102-kutuk-ev-bungalov-ahsap-ev-fiyatlari-ahsap-ev-yapimi-maliyeti-resimleri-www.kayalarkereste.com-01.jpg"]
[null,null,null,null,null,null,null,null,null,null,null,null,null,null,null,null,null,null,null,null,null,null,null,null,null,null,null,null,null,null,"YB-105","Ahşap Yalı Baskı  Sibirya","Sibirya",null,2300,414,400,4.5,20,null,2070,null,5,20,null,18.8,122.34042553191489,18.8,null,null,"AV-105","Ahşap Bungalov Ev - (AV-105)","Adet","AV-105","catalog/Ev/av-105/av-105-ahsap-ev-bungalov-fiyatlari-ahsap-evi-maliyeti-resimleri-gebze-sile-istanbul-www.kayalarkereste.com-06.jpg",12760,null,"catalog/Ev/av-105/av-105-ahsap-ev-bungalov-fiyatlari-ahsap-evi-maliyeti-resimleri-gebze-sile-istanbul-www.kayalarkereste.com-06.jpg"]
[null,null,null,null,null,null,null,null,null,null,null,null,null,null,null,null,null,null,null,null,null,null,null,null,null,null,null,null,null,null,"YB-106","Ahşap Yalı Baskı  Fin-İsves","Fin - İsveç çamı",null,3800,684,400,2.4,23,null,3040,null,3,23,null,21,124.85714285714286,30.434782608695652,null,null,"AV-106","Ahşap Bungalov Ev (AV-106)","M2","AV-106","catalog/Ev/av-106/av-106-ahsap-ev-bungalov-fiyatlari-ahsap-ev-yapimi-maliyeti-resimleri-gebze-www.kayalarkereste.com-01.jpg",1566,null,"catalog/Ev/av-106/av-106-ahsap-ev-bungalov-fiyatlari-ahsap-ev-yapimi-maliyeti-resimleri-gebze-www.kayalarkereste.com-01.jpg"]
[null,null,null,null,null,null,null,null,null,null,null,null,null,null,null,null,null,null,null,null,null,null,null,null,null,null,null,null,null,null,null,null,null,null,null,null,null,null,null,null,"",null,null,null,null,null,"","",null,null,"AV-107","Ahşap Bungalov Ev (AV-107)","M2","AV-107","catalog/Ev/AV-107  KANTAR/KM-140-kamelya-ahsap-dinlenme-sigara-icme-alani-fiyatlari-gebze-kocaeli-tuzla-pendik-istanbul-ahsap-ev-www.kayalarkerest~15.jpg",1102,null,"catalog/Ev/AV-107  KANTAR/KM-140-kamelya-ahsap-dinlenme-sigara-icme-alani-fiyatlari-gebze-kocaeli-tuzla-pendik-istanbul-ahsap-ev-www.kayalarkerest~15.jpg"]
[null,null,null,null,null,null,null,null,null,null,null,null,null,null,null,null,null,null,null,null,null,null,null,null,null,null,null,null,null,null,"KT-105","Kütük Ev Duvar Profil  Sibirya","Sibirya",null,2300,414,400,4.5,15,null,2070,null,5,15,null,13.8,125.00000000000001,18.399999999999999,null,null,"AV-108","Ahşap Bungalov Ev (AV-108)","M2","AV-108","catalog/Ev/av-108/av-108-bungalov-ahsap-ev-kutuk-ev-fiyatlari-yapimi-maliyeti-resimleri-gebze-www.kayalarahsap.com-01.jpg",1566,null,"catalog/Ev/av-108/av-108-bungalov-ahsap-ev-kutuk-ev-fiyatlari-yapimi-maliyeti-resimleri-gebze-www.kayalarahsap.com-01.jpg"]
[null,null,null,null,null,null,null,null,null,null,null,null,null,null,null,null,null,null,null,null,null,null,null,null,null,null,null,null,null,null,"KT-110","Kütük Ev Duvar Profil Ukrayna","Ukrayna",null,2000,360,600,9,15,null,1800,null,10,15,null,13.5,222.22222222222223,9,null,null,"B-101","BANK Döküm ve Metal Ayaklı B-101","Adet","B-101","catalog/Bank/B-101/b-101-Bank-13-citali-ergonomik-ucuz-bank-gebze-www.parkbahcemobilya.com-www.ahsapfiyatlistesi.com-08.jpg",485,null,"catalog/Bank/B-101/b-101-Bank-13-citali-ergonomik-ucuz-bank-gebze-www.parkbahcemobilya.com-www.ahsapfiyatlistesi.com-08.jpg"]
[null,null,null,null,null,null,null,null,null,null,null,null,null,null,null,null,null,null,null,null,null,null,null,null,null,null,null,null,null,null,"KT-118","Kütük Ev Duvar Profil  Sibirya Lamine","Sibirya Lamine",null,3200,576,600,13.5,15,null,2880,null,15,15,null,13.5,533.33333333333337,6,null,null,"B-102","BANK Döküm ve Metal Ayaklı + Kolluk (B-102)","Adet","B-102","catalog/Bank/B-102/b-102-dokum-ayakli-kollu-bank-fiyatlari-gebze-istanbul-kocaeli-izmit-www.kayalarkereste.com-01.jpg",0,null,"catalog/Bank/B-102/b-102-dokum-ayakli-kollu-bank-fiyatlari-gebze-istanbul-kocaeli-izmit-www.kayalarkereste.com-01.jpg"]
[null,null,null,null,null,null,null,null,null,null,null,null,null,null,null,null,null,null,null,null,null,null,null,null,null,null,null,null,null,null,null,null,null,null,null,null,null,null,null,null,"",null,null,null,null,null,"","",null,null,"B-103","BANK Döküm ve Metal Ayaklı - Klasik ","Adet","B-103","catalog/Bank/B-103/b-103-ahsap-dokum-ayakli-oturma-bank-fiyatlari-www.parkbahcemobilya.com-01.jpg",340,null,"catalog/Bank/B-103/b-103-ahsap-dokum-ayakli-oturma-bank-fiyatlari-www.parkbahcemobilya.com-01.jpg"]
[null,null,null,null,null,null,null,null,null,null,null,null,null,null,null,null,null,null,null,null,null,null,null,null,null,null,null,null,null,null,null,null,null,null,null,null,null,null,null,null,"",null,null,null,null,null,"","",null,null,"KB-201","BANK  - Ahşap Ayaklı KB-201","Adet","KB-201","catalog/Bank/KB-201/kb-201-ahsap-bank-masa-modelleri-fiyatlari-resimleri-www.parkbahcemobilya.com-03.jpg",139.19999999999999,null,"catalog/Bank/KB-201/kb-201-ahsap-bank-masa-modelleri-fiyatlari-resimleri-www.parkbahcemobilya.com-03.jpg"]
[" ",null,null,null,null,null,null,null,null,null,null,null,null,null,null,null,null,null,null,null,null,null,null,null,null,null,null,null,null,null,null,null,null,null,null,null,null,null,null,null,"",null,null,null,null,null,"","",null,null,"K-204","BANK Döküm ve Metal Ayaklı - Kollu","Adet","K-204","catalog/Bank/K-204/kd-204-dokum-ayakli-kollu-ahsap-bank-modelleri-fiyatlari-resimleri-gebze-www.parkbahcemobilya.com-01.jpg",565,null,"catalog/Bank/K-204/kd-204-dokum-ayakli-kollu-ahsap-bank-modelleri-fiyatlari-resimleri-gebze-www.parkbahcemobilya.com-01.jpg"]
[null,null,null,null,null,null,null,null,null,null,null,null,null,null,null,null,null,null,null,null,null,null,null,null,null,null,null,null,null,null,null,null,null,null,null,null,null,null,null,null,"",null,null,null,null,null,"","",null,null,"K-219","BANK Döküm ve Metal Ayaklı - Klasik Kollu","Adet","K-219","catalog/Bank/K-219/k-219-dokum-ayakli-kollu-ahsap-bank-modelleri-fiyatlari-resimleri-www.parkbahcemobilya.com-02.jpg",560,null,"catalog/Bank/K-219/k-219-dokum-ayakli-kollu-ahsap-bank-modelleri-fiyatlari-resimleri-www.parkbahcemobilya.com-02.jpg"]
[null,null,null,null,null,null,null,null,null,null,null,null,null,null,null,null,null,null,null,null,null,null,null,null,null,null,null,null,null,null,null,null,null,null,null,null,null,null,null,null,"",null,null,null,null,null,"","",null,null,"KD-203","BANK Döküm ve Metal Ayaklı - Kollu ","Adet","KD-203","catalog/Bank/KD-203/kd-203-ahsap-dokum-ayakli-kollu-bank-fiyatlari-resimleri-www.parkbahcemobilya.com-08.jpg",720,null,"catalog/Bank/KD-203/kd-203-ahsap-dokum-ayakli-kollu-bank-fiyatlari-resimleri-www.parkbahcemobilya.com-08.jpg"]
[null,null,null,null,null,null,null,null,null,null,null,null,null,null,null,null,null,null,null,null,null,null,null,null,null,null,null,null,null,null,null,null,null,null,null,null,null,null,null,null,"",null,null,null,null,null,"","",null,null,"UB-97","BANK Yuvarlak Oturum Maun veya İroko","Adet","UB-97","catalog/Bank/UB-97/ub-97-ahsap-maun-dis-mekan-yuvarlak-metal-ayakli-bank-oturma-gruplari-fiyatlari-resimleri-www.parkbahcemobilya.com-01.JPG",4234,null,"catalog/Bank/UB-97/ub-97-ahsap-maun-dis-mekan-yuvarlak-metal-ayakli-bank-oturma-gruplari-fiyatlari-resimleri-www.parkbahcemobilya.com-01.JPG"]
[null,null,null,null,null,null,null,null,null,null,null,null,null,null,null,null,null,null,null,null,null,null,null,null,null,null,null,null,null,null,null,null,null,null,null,null,null,null,null,null,"",null,null,null,null,null,"","",null,null,"B-104","BANK Döküm ve Metal Ayaklı B-104","Adet","B-104","catalog/Bank/B-104/b-104-metal-ayali-yaslanmasiz-soyunma-odasi-bank-fiyatlari-gebze-istanbul-www.parkbahcemobilya.com-02.jpg",266.8,null,"catalog/Bank/B-104/b-104-metal-ayali-yaslanmasiz-soyunma-odasi-bank-fiyatlari-gebze-istanbul-www.parkbahcemobilya.com-02.jpg"]
[null,null,null,null,null,null,null,null,null,null,null,null,null,null,null,null,null,null,null,null,null,null,null,null,null,null,null,null,null,null,null,null,null,null,null,null,null,null,null,null,"",null,null,null,null,null,"","",null,null,"B-105","BANK Döküm ve Metal Ayaklı - Soyunma odaları için","Adet","B-105","catalog/Bank/B-105/b-105-soyunma-odasi-bank-fiyatlari-www.parkbahcemobilya.com-01.jpg",285,null,"catalog/Bank/B-105/b-105-soyunma-odasi-bank-fiyatlari-www.parkbahcemobilya.com-01.jpg"]
[null,null,null,null,null,null,null,null,null,null,null,null,null,null,null,null,null,null,null,null,null,null,null,null,null,null,null,null,null,null,null,null,null,null,null,null,null,null,null,null,"",null,null,null,null,null,"","",null,null,"DC-101","DECK Ahşap ÇAM 18 mm DC-101","M2","DC-101","catalog/deck/cam-dc-101/dc-101-cam-deck-ahsap-profil-yer-doseme-01.jpg",57,null,"catalog/deck/cam-dc-101/dc-101-cam-deck-ahsap-profil-yer-doseme-01.jpg"]
[null,null,null,null,null,null,null,null,null,null,null,null,null,null,null,null,null,null,null,null,null,null,null,null,null,null,null,null,null,null,null,null,null,null,null,null,null,null,null,null,"",null,null,null,null,null,"","",null,null,"KR-101","İnşaatlık Kereste (41 x 91) - (91 x 91) [KR-101]","M3","KR-101","catalog/Kereste/Kereste_paket.JPG",990,null,"catalog/Kereste/Kereste_paket.JPG"]
[null,null,null,null,null,null,null,null,null,null,null,null,null,null,null,null,null,null,null,null,null,null,null,null,null,null,null,null,null,null,null,null,null,null,null,null,null,null,null,null,"",null,null,null,null,null,"","",null,null,"LM-111","İROKO Lambiri - Rabıta 130mm (LM-111)","M2","LM-111","catalog/lambiri-ahsap/lm-111-iroko-lambiri-130mm-18mm-120mmkapatir-01.jpg",30,null,"catalog/lambiri-ahsap/lm-111-iroko-lambiri-130mm-18mm-120mmkapatir-01.jpg"]
[null,null,null,null,null,null,null,null,null,null,null,null,null,null,null,null,null,null,null,null,null,null,null,null,null,null,null,null,null,null,null,null,null,null,null,null,null,null,null,null,"",null,null,null,null,null,"","",null,null,"LM-101","Lambiri - Rabıta 1. Sınıf  (LM-101)","M2","LM-101","catalog/lambiri-ahsap/LM-101-Lambiri 1-Sinif-01.jpg",52,null,"catalog/lambiri-ahsap/LM-101-Lambiri 1-Sinif-01.jpg"]
[null,null,null,null,null,null,null,null,null,null,null,null,null,null,null,null,null,null,null,null,null,null,null,null,null,null,null,null,null,null,null,null,null,null,null,null,null,null,null,null,"",null,null,null,null,null,"","",null,null,"LM-102","Lambiri - Rabıta 2. Standart Sınıf Lambiri Rabıta  (LM-102)","M2","LM-102","catalog/lambiri-ahsap/LM-102-Lambiri 2-Sinif-01.jpg",45,null,"catalog/lambiri-ahsap/LM-102-Lambiri 2-Sinif-01.jpg"]
[null,null,null,null,null,null,null,null,null,null,null,null,null,null,null,null,null,null,null,null,null,null,null,null,null,null,null,null,null,null,null,null,null,null,null,null,null,null,null,null,"",null,null,null,null,null,"","",null,null,"LM-104","Ahşap Süpürgelik","Metre","LM-104","catalog/lambiri-ahsap/supurgelik-5lik-a.jpg",2.0299999999999998,null,"catalog/lambiri-ahsap/supurgelik-5lik-a.jpg"]
[null,null,null,null,null,null,null,null,null,null,null,null,null,null,null,null,null,null,null,null,null,null,null,null,null,null,null,null,null,null,null,null,null,null,null,null,null,null,null,null,null,null,null,null,null,null,"","",null,null,"LM-103","Lambiri - Rabıta Extra Sınıf  (LM-103)","M2","LM-103","catalog/lambiri-ahsap/LM-100-Lambiri-Extra-03.jpg",60,null,"catalog/lambiri-ahsap/LM-100-Lambiri-Extra-03.jpg"]
[null,null,null,null,null,null,null,null,null,null,null,null,null,null,null,null,null,null,null,null,null,null,null,null,null,null,null,null,null,null,null,null,null,null,null,null,null,null,null,null,null,null,null,null,null,null,"","",null,null,"LM-112","İROKO Lambiri - Rabıta 95 mm geniş (lm-112)","M2","LM-112","catalog/lambiri-ahsap/lm-112-iroko-lambiri-95mm-18mm-86mmkapatır-01.jpg",30,null,"catalog/lambiri-ahsap/lm-112-iroko-lambiri-95mm-18mm-86mmkapatır-01.jpg"]
[null,null,null,null,null,null,null,null,null,null,null,null,null,null,null,null,null,null,null,null,null,null,null,null,null,null,null,null,null,null,null,null,null,null,null,null,null,null,null,null,null,null,null,null,null,null,"","",null,null,"LM-113","İROKO Lambiri - Rabıta 95 mm geniş (LM-113)","M2","LM-113","catalog/lambiri-ahsap/lm-113-iroko-rabita-yer-doseme-10cm-x-45cm-12mm-95mmkapatir-01.jpg",30,null,"catalog/lambiri-ahsap/lm-113-iroko-rabita-yer-doseme-10cm-x-45cm-12mm-95mmkapatir-01.jpg"]
[null,null,null,null,null,null,null,null,null,null,null,null,null,null,null,null,null,null,null,null,null,null,null,null,null,null,null,null,null,null,null,null,null,null,null,null,null,null,null,null,null,null,null,null,null,null,"","",null,null,"KS-101","5 x 10 Silinmiş Kereste  Ukrayna -KS-101","M3","KS-101","catalog/silinmis-kereste/ks-101-cam-dogramalik-silinmis-sinif-kereste-5x10-01.jpg",1700,null,"catalog/silinmis-kereste/ks-101-cam-dogramalik-silinmis-sinif-kereste-5x10-01.jpg"]
[null,null,null,null,null,null,null,null,null,null,null,null,null,null,null,null,null,null,null,null,null,null,null,null,null,null,null,null,null,null,null,null,null,null,null,null,null,null,null,null,null,null,null,null,null,null,"","",null,null,"KS-102","10 x 10 Silinmiş Kereste UKRAYNA KS-102","M3","KS-102","catalog/silinmis-kereste/ks-102-cam-dogramalik-silinmis-sinif-kereste-10x10-01.jpg",1700,null,"catalog/silinmis-kereste/ks-102-cam-dogramalik-silinmis-sinif-kereste-10x10-01.jpg"]
[null,null,null,null,null,null,null,null,null,null,null,null,null,null,null,null,null,null,null,null,null,null,null,null,null,null,null,null,null,null,null,null,null,null,null,null,null,null,null,null,null,null,null,null,null,null,"","",null,null,"KS-103","5 x 15 Silinmiş Kereste Sibirya -KS-103","M3","KS-103","catalog/silinmis-kereste/ks-103-cam-dogramalik-silinmis-sinif-kereste-5x15-01.jpg",2300,null,"catalog/silinmis-kereste/ks-103-cam-dogramalik-silinmis-sinif-kereste-5x15-01.jpg"]
[null,null,null,null,null,null,null,null,null,null,null,null,null,null,null,null,null,null,null,null,null,null,null,null,null,null,null,null,null,null,null,null,null,null,null,null,null,null,null,null,null,null,null,null,null,null,"","",null,null,"KS-104","3,5x15 Silinmiş Kereste Sibirya KS-104","M3","KS-104","catalog/silinmis-kereste/ks-104-cam-ladin-dogramalik-silinmis-sinif-kereste-35x125-01.jpg",2300,null,"catalog/silinmis-kereste/ks-104-cam-ladin-dogramalik-silinmis-sinif-kereste-35x125-01.jpg"]
[null,null,null,null,null,null,null,null,{"$f":"IFERROR(VLOOKUP(F79,AF:AG,2,FALSE),\"\")","v":""},null,null,null,null,null,null,null,null,null,null,null,null,null,null,null,null,null,null,null,null,null,null,null,null,null,null,null,null,null,null,null,null,null,null,null,null,null,"","",null,null,"KS-105","3,5 x 12,5 Silinmiş Kereste SİBİRYA KS-105","M3","KS-105","catalog/silinmis-kereste/ks-103-cam-dogramalik-silinmis-sinif-kereste-5x15-01.jpg",2300,null,"catalog/silinmis-kereste/ks-103-cam-dogramalik-silinmis-sinif-kereste-5x15-01.jpg"]
[null,null,null,null,null,null,null,null,null,null,null,null,null,null,null,null,null,null,null,null,null,null,null,null,null,null,null,null,null,null,null,null,null,null,null,null,null,null,null,null,null,null,null,null,null,null,"","",null,null,"KM-101","Kamelya - Çardak -101","Adet","KM-101","catalog/Kamelya-cardak/KM-101/KM-101-ucuz-ahsap-cardak-kamelya-kameriye-ahsap-ev-gazebo-pergola-kutuk-ev-pergole-fiyatlari-gebze-www.kayalarahsap.com-01.jpg",20880,null,"catalog/Kamelya-cardak/KM-101/KM-101-ucuz-ahsap-cardak-kamelya-kameriye-ahsap-ev-gazebo-pergola-kutuk-ev-pergole-fiyatlari-gebze-www.kayalarahsap.com-01.jpg"]
[null,null,null,null,null,null,null,null,null,null,null,null,null,null,null,null,null,null,null,null,null,null,null,null,null,null,null,null,null,null,null,null,null,null,null,null,null,null,null,null,null,null,null,null,null,null,"","",null,null,"KM-102","Kamelya & Çardak  -102","Adet","KM-102","catalog/Kamelya-cardak/KM-102/KM-102-ucuz-ahsap-cardak-kamelya-kameriye-gazebo-pergola-pergole-fiyatlari-gebze-www.kayalarahsap.com-08.jpg",6670,null,"catalog/Kamelya-cardak/KM-102/KM-102-ucuz-ahsap-cardak-kamelya-kameriye-gazebo-pergola-pergole-fiyatlari-gebze-www.kayalarahsap.com-08.jpg"]
[null,null,null,null,null,null,null,null,null,null,null,null,null,null,null,null,null,null,null,null,null,null,null,null,null,null,null,null,null,null,null,null,null,null,null,null,null,null,null,null,null,null,null,null,null,null,"","",null,null,{"$f":"HYPERLINK(BF82,BB82)","v":"KM-103"},"Kamelya - Çardak  -103","Adet","KM-103","catalog/Kamelya-cardak/KM-103/KM-103-ucuz-ahsap-cardak-kamelya-kameriye-gazebo-pergola-pergole-fiyatlari-www.kayalarahsap.com-02.jpg",5800,null,"catalog/Kamelya-cardak/KM-103/KM-103-ucuz-ahsap-cardak-kamelya-kameriye-gazebo-pergola-pergole-fiyatlari-www.kayalarahsap.com-02.jpg"]
[null,null,null,null,null,null,null,null,null,null,null,null,null,null,null,null,null,null,null,null,null,null,null,null,null,null,null,null,null,null,null,null,null,null,null,null,null,null,null,null,null,null,null,null,null,null,"","",null,null,"KM-107","Kamelya - Çardak -107","Adet","KM-107","catalog/Kamelya-cardak/KM-106/kamelya-cardak-www.parkbahcemobilya.com-km-107-16.jpg",2320,null,"catalog/Kamelya-cardak/KM-106/kamelya-cardak-www.parkbahcemobilya.com-km-107-16.jpg"]
[null,null,null,null,null,null,null,null,null,null,null,null,null,null,null,null,null,null,null,null,null,null,null,null,null,null,null,null,null,null,null,null,null,null,null,null,null,null,null,null,null,null,null,null,null,null,"","",null,null,"KM-105","Kamelya - Çardak  KM-105","Adet","KM-105","catalog/Kamelya-cardak/KM-105/KM-105-cardak-kamelya-seyyar-gazebo-ucuz-ahsap-kamelya-cardak-www.kayalarahsap.com-04.jpg",3770,null,"catalog/Kamelya-cardak/KM-105/KM-105-cardak-kamelya-seyyar-gazebo-ucuz-ahsap-kamelya-cardak-www.kayalarahsap.com-04.jpg"]
[null,null,null,null,null,null,null,null,null,null,null,null,null,null,null,null,null,null,null,null,null,null,null,null,null,null,null,null,null,null,null,null,null,null,null,null,null,null,null,null,null,null,null,null,null,null,{"$f":"IFERROR(AI85/((100/AQ85/AR85)*AT85),\"\")","v":""},"",null,null,"KM-104","Kamelya - Çardak  KM-104","Adet","KM-104","catalog/Kamelya-cardak/KM-104/KM-104-ahsap-ucuz-cardak-kamelya-kameriye-gazebo-fiyatlari-www.kayalarahsap.com-01.jpg",7540,null,"catalog/Kamelya-cardak/KM-104/KM-104-ahsap-ucuz-cardak-kamelya-kameriye-gazebo-fiyatlari-www.kayalarahsap.com-01.jpg"]
[null,null,null,null,null,null,null,null,null,null,null,null,null,null,null,null,null,null,null,null,null,null,null,null,null,null,null,null,null,null,null,null,null,null,null,null,null,null,null,null,null,null,null,null,null,null,{"$f":"IFERROR(AI86/((100/AQ86/AR86)*AT86),\"\")","v":""},null,null,null,"VH-109","Ahşap Çocuk Oyun Evi VH-109","Adet","VH-109","catalog/cocuk-evi/VH-109/VH-109-cocuk-ahsap-oyun-evi-gebze-tuzla-pendik-istanbul-fiyatlari-07.JPG",6728,null,{"$f":"CONCATENATE($AY$1, BC86)","v":"catalog/cocuk-evi/VH-109/VH-109-cocuk-ahsap-oyun-evi-gebze-tuzla-pendik-istanbul-fiyatlari-07.JPG"}]
[null,null,null,null,null,null,null,null,null,null,null,null,null,null,null,null,null,null,null,null,null,null,null,null,null,null,null,null,null,null,null,null,null,null,null,null,null,null,null,null,null,null,null,null,null,null,{"$f":"IFERROR(AI87/((100/AQ87/AR87)*AT87),\"\")","v":""},null,null,null,"KM-108","Kamelya - Çardak  KM-108","Adet","KM-108","catalog/Kamelya-cardak/KM-108/KM-108-kamelya-cardak-ucuz-kameriye-fiyatlari-www.parkbahcemobilya.com-www.ahsapfiyatlistesi.com-km-108-02.jpg",7540,null,"catalog/Kamelya-cardak/KM-108/KM-108-kamelya-cardak-ucuz-kameriye-fiyatlari-www.parkbahcemobilya.com-www.ahsapfiyatlistesi.com-km-108-02.jpg"]
[null,null,null,null,null,null,null,null,null,null,null,null,null,null,null,null,null,null,null,null,null,null,null,null,null,null,null,null,null,null,null,null,null,null,null,null,null,null,null,null,null,null,null,null,null,null,{"$f":"IFERROR(AI88/((100/AQ88/AR88)*AT88),\"\")","v":""},null,null,null,"KM-124","Kamelya - Çardak  KM-124","Adet","KM-124","catalog/Kamelya-cardak/KM-124_Demir_200cm/km-124-demir-kamelya-ahsap-08.jpg",3944,null,"catalog/Kamelya-cardak/KM-124_Demir_200cm/km-124-demir-kamelya-ahsap-08.jpg"]
[null,null,null,null,null,null,null,null,null,null,null,null,null,null,null,null,null,null,null,null,null,null,null,null,null,null,null,null,null,null,null,null,null,null,null,null,null,null,null,null,null,null,null,null,null,null,null,null,null,null,"KM-125","Kamelya - Çardak  KM-125","Adet","KM-125","catalog/Kamelya-cardak/KM-125 6GEN 5-15 DIREKLI/KM-125-kamelya-kare-dikdortgen-ahsap-dinlenme-cardak-gazebo-ucuz-kameriye-pergola-fiyatlari-www.kayalarkereste.com-32.jpg",6670,null,"catalog/Kamelya-cardak/KM-125 6GEN 5-15 DIREKLI/KM-125-kamelya-kare-dikdortgen-ahsap-dinlenme-cardak-gazebo-ucuz-kameriye-pergola-fiyatlari-www.kayalarkereste.com-32.jpg"]
[null,null,null,null,null,null,null,null,null,null,null,null,null,null,null,null,null,null,null,null,null,null,null,null,null,null,null,null,null,null,null,null,null,null,null,null,null,null,null,null,null,null,null,null,null,null,null,null,null,null,"KM-126","Kamelya - Çardak  KM-126","M2","KM-126","catalog/Kamelya-cardak/KM-126 DIKDORTGEN cATALcA/KM-126-kamelya-kare-dikdortgen-ahsap-dinlenme-cardak-gazebo-ucuz-kameriye-fiyatlari-www.kayalarkereste.com-02.jpg",638,null,"catalog/Kamelya-cardak/KM-126 DIKDORTGEN cATALcA/KM-126-kamelya-kare-dikdortgen-ahsap-dinlenme-cardak-gazebo-ucuz-kameriye-fiyatlari-www.kayalarkereste.com-02.jpg"]
[null,null,null,null,null,null,null,null,null,null,null,null,null,null,null,null,null,null,null,null,null,null,null,null,null,null,null,null,null,null,null,null,null,null,null,null,null,null,null,null,null,null,null,null,null,null,null,null,null,null,"KM-127","Kamelya - Çardak  KM-127","Adet","KM-127","catalog/Kamelya-cardak/KM-127 KARE KAMELYA/KM-127-kamelya-ahsap-dinlenme-cardak-gazebo-kameriye-fiyatlari-resimleri-www.kayalarkereste.com-06.jpg",6670,null,"catalog/Kamelya-cardak/KM-127 KARE KAMELYA/KM-127-kamelya-ahsap-dinlenme-cardak-gazebo-kameriye-fiyatlari-resimleri-www.kayalarkereste.com-06.jpg"]
[null,null,null,null,null,null,null,null,null,null,null,null,null,null,null,null,null,null,null,null,null,null,null,null,null,null,null,null,null,null,null,null,null,null,null,null,null,null,null,null,null,null,null,null,null,null,null,null,null,null,"KM-128","Kamelya - Çardak  KM-128","Adet","KM-128","catalog/Kamelya-cardak/KM-128 SEKIZGEN KAMELYA 5-15 DiREKLi/KM-128-kamelya-sekizgen-www.kayalarkereste.com-07.jpg",9860,null,"catalog/Kamelya-cardak/KM-128 SEKIZGEN KAMELYA 5-15 DiREKLi/KM-128-kamelya-sekizgen-www.kayalarkereste.com-07.jpg"]
[null,null,null,null,null,null,null,null,null,null,null,null,null,null,null,null,null,null,null,null,null,null,null,null,null,null,null,null,null,null,null,null,null,null,null,null,null,null,null,null,null,null,null,null,null,null,null,null,null,null,"KM-129","Kamelya - Çardak KM-129","M2","KM-129","catalog/Kamelya-cardak/KM-129 ARIMPEKS -BEMAS/KM-129-kamelya-cardak-pergola-fiyatlari-dinlenme-alani-ahsap-sigara-icme-alani-www.kayalarkereste.com-17.jpg",812,null,"catalog/Kamelya-cardak/KM-129 ARIMPEKS -BEMAS/KM-129-kamelya-cardak-pergola-fiyatlari-dinlenme-alani-ahsap-sigara-icme-alani-www.kayalarkereste.com-17.jpg"]
[null,null,null,null,null,null,null,null,null,null,null,null,null,null,null,null,null,null,null,null,null,null,null,null,null,null,null,null,null,null,null,null,null,null,null,null,null,null,null,null,null,null,null,null,null,null,null,null,null,null,"KM-130","Kamelya - Çardak  KM-130","Adet","KM-130","catalog/Kamelya-cardak/KM-130 SEKIZGEN SAPKALI cAPRAZ KORKULUK/KM-130-kamelya-cardak-fiyatlari-gazebo-pargola-www.kayalarahsap-www.parkbahcemobilya.com-01.jpg",10208,null,"catalog/Kamelya-cardak/KM-130 SEKIZGEN SAPKALI cAPRAZ KORKULUK/KM-130-kamelya-cardak-fiyatlari-gazebo-pargola-www.kayalarahsap-www.parkbahcemobilya.com-01.jpg"]
[null,null,null,null,null,null,null,null,null,null,null,null,null,null,null,null,null,null,null,null,null,null,null,null,null,null,null,null,null,null,null,null,null,null,null,null,null,null,null,null,null,null,null,null,null,null,null,null,null,null,"KM-131","Kamelya - Çardak  KM-131","M2","KM-131","catalog/Kamelya-cardak/KM-131-TOYOTETSU-MERKEZ/KM-131-ahsap-sigara icme-dinlenme-kamelya-cardak-alani-www.kayalarkereste.com-01.jpg",812,null,"catalog/Kamelya-cardak/KM-131-TOYOTETSU-MERKEZ/KM-131-ahsap-sigara icme-dinlenme-kamelya-cardak-alani-www.kayalarkereste.com-01.jpg"]
[null,null,null,null,null,null,null,null,null,null,null,null,null,null,null,null,null,null,null,null,null,null,null,null,null,null,null,null,null,null,null,null,null,null,null,null,null,null,null,null,null,null,null,null,null,null,null,null,null,null,"KM-132","Kamelya - Çardak 132","Adet","KM-132","catalog/Kamelya-cardak/KM-132/KM-132-kamelya-ahsap-dinlenme-sigara-icme-cardak-www.kayalarkereste.com-08.jpg",6670,null,"catalog/Kamelya-cardak/KM-132/KM-132-kamelya-ahsap-dinlenme-sigara-icme-cardak-www.kayalarkereste.com-08.jpg"]
[null,null,null,null,null,null,null,null,null,null,null,null,null,null,null,null,null,null,null,null,null,null,null,null,null,null,null,null,null,null,null,null,null,null,null,null,null,null,null,null,null,null,null,null,null,null,null,null,null,null,"KM-134","Kamelya - Çardak 134","Adet","KM-134","catalog/Kamelya-cardak/KM-134 CARDAK/KM-134-kamelya-ahsap-dinlenme-sigara-icme-cardak-gazebo-kameriye-fiyatlari-gebze-www.kayalarkereste.com-15.jpg",3016,null,"catalog/Kamelya-cardak/KM-134 CARDAK/KM-134-kamelya-ahsap-dinlenme-sigara-icme-cardak-gazebo-kameriye-fiyatlari-gebze-www.kayalarkereste.com-15.jpg"]
[null,null,null,null,null,null,null,null,null,null,null,null,null,null,null,null,null,null,null,null,null,null,null,null,null,null,null,null,null,null,null,null,null,null,null,null,null,null,null,null,null,null,null,null,null,null,null,null,null,null,"KM-135","Kamelya - Çardak 135","Adet","KM-135","catalog/Kamelya-cardak/KM-135-KAMELYA-CARDAK/KM-135-kamelya-ahsap-cardak-gazebo-kameriye-fiyatlari-istanbul-www.kayalarkereste.com-01.jpg",6670,null,"catalog/Kamelya-cardak/KM-135-KAMELYA-CARDAK/KM-135-kamelya-ahsap-cardak-gazebo-kameriye-fiyatlari-istanbul-www.kayalarkereste.com-01.jpg"]
[null,null,null,null,null,null,null,null,null,null,null,null,null,null,null,null,null,null,null,null,null,null,null,null,null,null,null,null,null,null,null,null,null,null,null,null,null,null,null,null,null,null,null,null,null,null,null,null,null,null,"KM-136","Kamelya - Çardak Bahçe Dinlenme Alanı 136","M2","KM-136","catalog/Kamelya-cardak/KM-136 BAHCE KAMELYA/KM-136-bahce-kamelya-ahsap-cardak-gazebo-kameriye-fiyatlari-istanbul-www.kayalarkereste.com-01.jpg",1102,null,"catalog/Kamelya-cardak/KM-136 BAHCE KAMELYA/KM-136-bahce-kamelya-ahsap-cardak-gazebo-kameriye-fiyatlari-istanbul-www.kayalarkereste.com-01.jpg"]
[null,null,null,null,null,null,null,null,null,null,null,null,null,null,null,null,null,null,null,null,null,null,null,null,null,null,null,null,null,null,null,null,null,null,null,null,null,null,null,null,null,null,null,null,null,null,null,null,null,null,"KM-137","Kamelya - Çardak platform 137","Adet","KM-137","catalog/Kamelya-cardak/KM-137 PLATFORM/km-137-platform-kamelya-cardak-fiyatlari-www.kayalarahsap.com-01.jpg",7656,null,"catalog/Kamelya-cardak/KM-137 PLATFORM/km-137-platform-kamelya-cardak-fiyatlari-www.kayalarahsap.com-01.jpg"]
[null,null,null,null,null,null,null,null,null,null,null,null,null,null,null,null,null,null,null,null,null,null,null,null,null,null,null,null,null,null,null,null,null,null,null,null,null,null,null,null,null,null,null,null,null,null,null,null,null,null,"KM-138","Kamelya - Çardak Kapalı dinlenme Alanı 138","M2","KM-138","catalog/Kamelya-cardak/KM-138 TOYOTETSU PC/KM-138-kamelya-ahsap-cardak-dinlenme-sigara-icme-alani-kameriye-fiyatlaril-gebze-www.kayalarkereste.com-01.jpg",1102,null,"catalog/Kamelya-cardak/KM-138 TOYOTETSU PC/KM-138-kamelya-ahsap-cardak-dinlenme-sigara-icme-alani-kameriye-fiyatlaril-gebze-www.kayalarkereste.com-01.jpg"]
[null,null,null,null,null,null,null,null,null,null,null,null,null,null,null,null,null,null,null,null,null,null,null,null,null,null,null,null,null,null,null,null,null,null,null,null,null,null,null,null,null,null,null,null,null,null,null,null,null,null,"KM-139","Kamelya - Çardak platform 139","M2","KM-139","catalog/Kamelya-cardak/KM-139 TOYOTETSU PRES/KM-139-kamelya-ahsap-cardak-dinlenme-sigara-icme-alani-fiyatlari-gebze-kocaeli-istanbul-www.kayalarkereste.com-01.jpg",1102,null,"catalog/Kamelya-cardak/KM-139 TOYOTETSU PRES/KM-139-kamelya-ahsap-cardak-dinlenme-sigara-icme-alani-fiyatlari-gebze-kocaeli-istanbul-www.kayalarkereste.com-01.jpg"]
[null,null,null,null,null,null,null,null,null,null,null,null,null,null,null,null,null,null,null,null,null,null,null,null,null,null,null,null,null,null,null,null,null,null,null,null,null,null,null,null,null,null,null,null,null,null,null,null,null,null,"KM-141","Kamelya - Çardak platform 141","M2","KM-141","catalog/Kamelya-cardak/KM-141 DENSO HUUN/KM-141-kamelya-ahsap-cardak-dinlenme-sigara-icme-alani-fiyatlari-gebze-kocaeli-izmit-istanbul-www.kayalarkereste.com-11.jpg",1102,null,"catalog/Kamelya-cardak/KM-141 DENSO HUUN/KM-141-kamelya-ahsap-cardak-dinlenme-sigara-icme-alani-fiyatlari-gebze-kocaeli-izmit-istanbul-www.kayalarkereste.com-11.jpg"]
[null,null,null,null,null,null,null,null,null,null,null,null,null,null,null,null,null,null,null,null,null,null,null,null,null,null,null,null,null,null,null,null,null,null,null,null,null,null,null,null,null,null,null,null,null,null,null,null,null,null,"KM-142","Kamelya - Çardak platform 142","M2","KM-142","catalog/Kamelya-cardak/KM-142/KM-142-kamelya-ahsap-cardak-dinlenme-sigara-icme-alani-fiyatlari-gebze-kocaeli-izmit-istanbul-www.kayalarkereste.com-08.jpg",1102,null,"catalog/Kamelya-cardak/KM-142/KM-142-kamelya-ahsap-cardak-dinlenme-sigara-icme-alani-fiyatlari-gebze-kocaeli-izmit-istanbul-www.kayalarkereste.com-08.jpg"]
[null,null,null,null,null,null,null,null,null,null,null,null,null,null,null,null,null,null,null,null,null,null,null,null,null,null,null,null,null,null,null,null,null,null,null,null,null,null,null,null,null,null,null,null,null,null,null,null,null,null,"KM-143","Kamelya - Çardak platform 143","M2","KM-143","catalog/Kamelya-cardak/KM-143/km-143-ahsap-dinlenme-sigara-icme-alani-kamelya-fiyatlari-gebze-kocaeli-tuzla-pendik-istanbul-ahsap-ev-www.kayalarkereste~9.jpg",1102,null,"catalog/Kamelya-cardak/KM-143/km-143-ahsap-dinlenme-sigara-icme-alani-kamelya-fiyatlari-gebze-kocaeli-tuzla-pendik-istanbul-ahsap-ev-www.kayalarkereste~9.jpg"]
[null,null,null,null,null,null,null,null,null,null,null,null,null,null,null,null,null,null,null,null,null,null,null,null,null,null,null,null,null,null,null,null,null,null,null,null,null,null,null,null,null,null,null,null,null,null,null,null,null,null,"KM-144","Kamelya - Çardak platform 144","Adet","KM-144","catalog/Kamelya-cardak/KM-144/KM-144-kamelya-cardak-kameriye-gazebo-pargola-fiyatlari-www.kayalarahsap-www.kayalarkereste.com-6.jpg",6670,null,"catalog/Kamelya-cardak/KM-144/KM-144-kamelya-cardak-kameriye-gazebo-pargola-fiyatlari-www.kayalarahsap-www.kayalarkereste.com-6.jpg"]
[null,null,null,null,null,null,null,null,null,null,null,null,null,null,null,null,null,null,null,null,null,null,null,null,null,null,null,null,null,null,null,null,null,null,null,null,null,null,null,null,null,null,null,null,null,null,null,null,null,null,"KM-145","Kamelya - Çardak  145","M2","KM-145","catalog/Kamelya-cardak/KM-145 KIA/KM-145-kamelya-kis-bahce-cardak-pargola-fiyatlari-www.kayalarkereste.com-01.jpg",812,null,"catalog/Kamelya-cardak/KM-145 KIA/KM-145-kamelya-kis-bahce-cardak-pargola-fiyatlari-www.kayalarkereste.com-01.jpg"]
[null,null,null,null,null,null,null,null,null,null,null,null,null,null,null,null,null,null,null,null,null,null,null,null,null,null,null,null,null,null,null,null,null,null,null,null,null,null,null,null,null,null,null,null,null,null,null,null,null,null,"KM-146","Kamelya - Çardak  146","Adet","KM-146","catalog/Kamelya-cardak/KM-146 BODYCOTE/KM-146-kamelya-kis-bahce-cardak-fabrika-sigara-icme-alani-fiyatlari-www.kayalarkereste.com-03.jpg",5800,null,"catalog/Kamelya-cardak/KM-146 BODYCOTE/KM-146-kamelya-kis-bahce-cardak-fabrika-sigara-icme-alani-fiyatlari-www.kayalarkereste.com-03.jpg"]
[null,null,null,null,null,null,null,null,null,null,null,null,null,null,null,null,null,null,null,null,null,null,null,null,null,null,null,null,null,null,null,null,null,null,null,null,null,null,null,null,null,null,null,null,null,null,null,null,null,null,"KM-147","Kamelya - Çardak  147","Adet","KM-147","2018/02/KM-147-kemer-kamelya-ahsap-dinlenme-alani-kis-bahcesi-cardak-gazebo-fiyatlari-www.kayalarkereste.com- 06.jpg",7540,null,"2018/02/KM-147-kemer-kamelya-ahsap-dinlenme-alani-kis-bahcesi-cardak-gazebo-fiyatlari-www.kayalarkereste.com- 06.jpg"]
[null,null,null,null,null,null,null,null,null,null,null,null,null,null,null,null,null,null,null,null,null,null,null,null,null,null,null,null,null,null,null,null,null,null,null,null,null,null,null,null,null,null,null,null,null,null,null,null,null,null,"KM-148","Kamelya - Çardak  148","M2","KM-148","catalog/Kamelya-cardak/KM-148 MORYAYLA/bahce-kamelya-km-148-04.jpg",812,null,"catalog/Kamelya-cardak/KM-148 MORYAYLA/bahce-kamelya-km-148-04.jpg"]
[null,null,null,null,null,null,null,null,null,null,null,null,null,null,null,null,null,null,null,null,null,null,null,null,null,null,null,null,null,null,null,null,null,null,null,null,null,null,null,null,null,null,null,null,null,null,null,null,null,null,"KM-150","Kamelya - Çardak  150","Adet","KM-150","catalog/Kamelya-cardak/KM-150/KM-150-kamelya-ahsap-kis-bahce-cardak-fiyatlari-ucuz-kameriye-www.kayalarkereste.com-13.jpg",6000,null,"catalog/Kamelya-cardak/KM-150/KM-150-kamelya-ahsap-kis-bahce-cardak-fiyatlari-ucuz-kameriye-www.kayalarkereste.com-13.jpg"]
[null,null,null,null,null,null,null,null,null,null,null,null,null,null,null,null,null,null,null,null,null,null,null,null,null,null,null,null,null,null,null,null,null,null,null,null,null,null,null,null,null,null,null,null,null,null,null,null,null,null,"KM-151","Kamelya - Çardak  151","Adet","KM-151","catalog/Kamelya-cardak/KM-151 BOSAL/ahsap-cardak-kamelya-dinlenme-sigara-icme-alani-gebze-pelitli-balcik-www.kayalarkereste.com-km-148-03.jpg",12000,null,"catalog/Kamelya-cardak/KM-151 BOSAL/ahsap-cardak-kamelya-dinlenme-sigara-icme-alani-gebze-pelitli-balcik-www.kayalarkereste.com-km-148-03.jpg"]
[null,null,null,null,null,null,null,null,null,null,null,null,null,null,null,null,null,null,null,null,null,null,null,null,null,null,null,null,null,null,null,null,null,null,null,null,null,null,null,null,null,null,null,null,null,null,null,null,null,null,"KM-152","Kamelya -  Fabrika Dinlenme Alanı Çardak  152","Adet","KM-152","catalog/Kamelya-cardak/KM-152 FATER/KM-152-kamelya-ahsap-cardak-fiyatlari-ucuz-kameriye-www.kayalarkereste.com-01.jpg",8000,null,"catalog/Kamelya-cardak/KM-152 FATER/KM-152-kamelya-ahsap-cardak-fiyatlari-ucuz-kameriye-www.kayalarkereste.com-01.jpg"]
[null,null,null,null,null,null,null,null,null,null,null,null,null,null,null,null,null,null,null,null,null,null,null,null,null,null,null,null,null,null,null,null,null,null,null,null,null,null,null,null,null,null,null,null,null,null,null,null,null,null,"KM-153","Kamelya - Çardak  153","Adet","KM-153","catalog/Kamelya-cardak/KM-153/km-153-ahsap-kamelya-bahce-platform-dinlenme-alani-04.jpg",4200,null,"catalog/Kamelya-cardak/KM-153/km-153-ahsap-kamelya-bahce-platform-dinlenme-alani-04.jpg"]
[null,null,null,null,null,null,null,null,null,null,null,null,null,null,null,null,null,null,null,null,null,null,null,null,null,null,null,null,null,null,null,null,null,null,null,null,null,null,null,null,null,null,null,null,null,null,null,null,null,null,"KM-154","Kamelya - Çardak  154","Adet","KM-154","catalog/Kamelya-cardak/KM-154/cardak-kamelya-gazebo-ahsap-oturma-dinlenme-alani-kartal-pendik-gebze-www.kayalarahsap.com-KM-154-01.jpg",5500,null,"catalog/Kamelya-cardak/KM-154/cardak-kamelya-gazebo-ahsap-oturma-dinlenme-alani-kartal-pendik-gebze-www.kayalarahsap.com-KM-154-01.jpg"]
[null,null,null,null,null,null,null,null,null,null,null,null,null,null,null,null,null,null,null,null,null,null,null,null,null,null,null,null,null,null,null,null,null,null,null,null,null,null,null,null,null,null,null,null,null,null,null,null,null,null,"KM-155","Kamelya - Çardak  155","Adet","KM-155","catalog/Kamelya-cardak/KM-155 SANGO UZUN/cardak-kamelya-gazebo-ahsap-sigara-icme-oturma-dinlenme-alani-sango-gebze-www.kayalarahsap.com-KM-155-01.jpg",19800,null,"catalog/Kamelya-cardak/KM-155 SANGO UZUN/cardak-kamelya-gazebo-ahsap-sigara-icme-oturma-dinlenme-alani-sango-gebze-www.kayalarahsap.com-KM-155-01.jpg"]
[null,null,null,null,null,null,null,null,null,null,null,null,null,null,null,null,null,null,null,null,null,null,null,null,null,null,null,null,null,null,null,null,null,null,null,null,null,null,null,null,null,null,null,null,null,null,null,null,null,null,"KM-156","Kamelya - Çardak  156","Adet","KM-156","catalog/Kamelya-cardak/KM-156/cardak-kamelya-gazebo-ahsap-sigara-icme-oturma-dinlenme-alani-sango-gebze-www.kayalarahsap.com-KM-156-01.jpg",9000,null,"catalog/Kamelya-cardak/KM-156/cardak-kamelya-gazebo-ahsap-sigara-icme-oturma-dinlenme-alani-sango-gebze-www.kayalarahsap.com-KM-156-01.jpg"]
[null,null,null,null,null,null,null,null,null,null,null,null,null,null,null,null,null,null,null,null,null,null,null,null,null,null,null,null,null,null,null,null,null,null,null,null,null,null,null,null,null,null,null,null,null,null,null,null,null,null,"KM-157","Kamelya - Çardak  157","Adet","KM-157","catalog/Kamelya-cardak/KM-157 AYDINLI YAVUZHAN 4X4/KM-157-kamelya-ahsap-kis-bahce-cardak-gazebo-fiyatlari-ucuz-kamelya-kameriye-www.kayalarkereste.com-04.jpg",9600,null,"catalog/Kamelya-cardak/KM-157 AYDINLI YAVUZHAN 4X4/KM-157-kamelya-ahsap-kis-bahce-cardak-gazebo-fiyatlari-ucuz-kamelya-kameriye-www.kayalarkereste.com-04.jpg"]
[null,null,null,null,null,null,null,null,null,null,null,null,null,null,null,null,null,null,null,null,null,null,null,null,null,null,null,null,null,null,null,null,null,null,null,null,null,null,null,null,null,null,null,null,null,null,null,null,null,null,"KM-158","Kamelya - Çardak  158","Adet","KM-158","catalog/Kamelya-cardak/KM-158/KM-158-kamelya-ahsap-cardak-gazebo-kameriye-ucuz-kamelya-fiyatlari-istanbul-gebze-www.kayalarkereste.com-07.JPG",9600,null,"catalog/Kamelya-cardak/KM-158/KM-158-kamelya-ahsap-cardak-gazebo-kameriye-ucuz-kamelya-fiyatlari-istanbul-gebze-www.kayalarkereste.com-07.JPG"]
[null,null,null,null,null,null,null,null,null,null,null,null,null,null,null,null,null,null,null,null,null,null,null,null,null,null,null,null,null,null,null,null,null,null,null,null,null,null,null,null,null,null,null,null,null,null,null,null,null,null,"KM-159","Kamelya - Çardak  159","Adet","KM-159","catalog/Kamelya-cardak/KM-159 TUZLA YAVUZHAN 3,5 X 3,5/km-159-cardak-ahsap-kamelya-tuzla-pendik-gebze-gazebo-ucuz-kamelya-fiyatlari-www.kayalarkereste.com-02.jpg",8150,null,"catalog/Kamelya-cardak/KM-159 TUZLA YAVUZHAN 3,5 X 3,5/km-159-cardak-ahsap-kamelya-tuzla-pendik-gebze-gazebo-ucuz-kamelya-fiyatlari-www.kayalarkereste.com-02.jpg"]
[null,null,null,null,null,null,null,null,null,null,null,null,null,null,null,null,null,null,null,null,null,null,null,null,null,null,null,null,null,null,null,null,null,null,null,null,null,null,null,null,null,null,null,null,null,null,null,null,null,null,"KM-160","Kamelya - Çardak  160","Adet","KM-160","catalog/Kamelya-cardak/KM-160 AYDINLI YAVUZHAN 3X5/KM-160-kamelya-kis-bahce-cardak-site-dinlenme-alani-cardak-fiyatlari-gebze-tuzla-pendik-www.kayalarkereste.com-01.jpg",10500,null,"catalog/Kamelya-cardak/KM-160 AYDINLI YAVUZHAN 3X5/KM-160-kamelya-kis-bahce-cardak-site-dinlenme-alani-cardak-fiyatlari-gebze-tuzla-pendik-www.kayalarkereste.com-01.jpg"]
[null,null,null,null,null,null,null,null,null,null,null,null,null,null,null,null,null,null,null,null,null,null,null,null,null,null,null,null,null,null,null,null,null,null,null,null,null,null,null,null,null,null,null,null,null,null,null,null,null,null,"KM-162","Serender - Nayla  162","Adet","KM-162","catalog/Kamelya-cardak/KM-162/km-162-nayla-serender-cift-katli-kamelya-ahsap-nayla-serender-fiyatlari-www.kayalarkereste.com-01.jpg",18000,null,"catalog/Kamelya-cardak/KM-162/km-162-nayla-serender-cift-katli-kamelya-ahsap-nayla-serender-fiyatlari-www.kayalarkereste.com-01.jpg"]
[null,null,null,null,null,null,null,null,null,null,null,null,null,null,null,null,null,null,null,null,null,null,null,null,null,null,null,null,null,null,null,null,null,null,null,null,null,null,null,null,null,null,null,null,null,null,null,null,null,null,"KM-163","Kamelya - Çardak  163","Adet","KM-163","catalog/Kamelya-cardak/KM-163/km-163-ahsap-sekizgen-yuvarlak-kamelya-cardak-gazebo-fiyatlari-gebze-tuzla-pendik-kurtkoy-www.kayalarkereste.com-07.jpg",9600,null,"catalog/Kamelya-cardak/KM-163/km-163-ahsap-sekizgen-yuvarlak-kamelya-cardak-gazebo-fiyatlari-gebze-tuzla-pendik-kurtkoy-www.kayalarkereste.com-07.jpg"]
[null,null,null,null,null,null,null,null,null,null,null,null,null,null,null,null,null,null,null,null,null,null,null,null,null,null,null,null,null,null,null,null,null,null,null,null,null,null,null,null,null,null,null,null,null,null,null,null,null,null,"PA-131","PA-131 Çocuk Oyun Parkı","Adet","PA-131","catalog/Oyun-Park/PA-131/cocuk-oyun-parki-gebze-ahsap-oyun-alani-fiyatlari-www.ahsapfiyatlistesi.com-PA-131-01.jpg",7540,null,"catalog/Oyun-Park/PA-131/cocuk-oyun-parki-gebze-ahsap-oyun-alani-fiyatlari-www.ahsapfiyatlistesi.com-PA-131-01.jpg"]
[null,null,null,null,null,null,null,null,null,null,null,null,null,null,null,null,null,null,null,null,null,null,null,null,null,null,null,null,null,null,null,null,null,null,null,null,null,null,null,null,null,null,null,null,null,null,null,null,null,null,"UK-101","TAVUK ve KANATLI HAYVAN KÜMESİ 101","Adet","UK-101","catalog/kumes/UK-101/IMG_1923.jpg",2204,null,"catalog/kumes/UK-101/IMG_1923.jpg"]
[null,null,null,null,null,null,null,null,null,null,null,null,null,null,null,null,null,null,null,null,null,null,null,null,null,null,null,null,null,null,null,null,null,null,null,null,null,null,null,null,null,null,null,null,null,null,null,null,null,null,"UK-102","TAVUK ve KANATLI HAYVAN KÜMESİ 102","Adet","UK-102","catalog/kumes/UK-102/IMG_1678.jpg",2204,null,"catalog/kumes/UK-102/IMG_1678.jpg"]
[null,null,null,null,null,null,null,null,null,null,null,null,null,null,null,null,null,null,null,null,null,null,null,null,null,null,null,null,null,null,null,null,null,null,null,null,null,null,null,null,null,null,null,null,null,null,null,null,null,null,"UK-103","TAVUK ve KANATLI HAYVAN KÜMESİ 103","Adet","UK-103","catalog/kumes/UK-103/ahsap-tavuk-guvercin-kumes-uk-103-03.jpg",3306,null,"catalog/kumes/UK-103/ahsap-tavuk-guvercin-kumes-uk-103-03.jpg"]
[null,null,null,null,null,null,null,null,null,null,null,null,null,null,null,null,null,null,null,null,null,null,null,null,null,null,null,null,null,null,null,null,null,null,null,null,null,null,null,null,null,null,null,null,null,null,null,null,null,null,"UK-104","TAVUK ve KANATLI HAYVAN KÜMESİ 104","Adet","UK-104","catalog/kumes/UK-104/ahsap-tavuk-kumesi-uk-104-01.jpg",3306,null,"catalog/kumes/UK-104/ahsap-tavuk-kumesi-uk-104-01.jpg"]
[null,null,null,null,null,null,null,null,null,null,null,null,null,null,null,null,null,null,null,null,null,null,null,null,null,null,null,null,null,null,null,null,null,null,null,null,null,null,null,null,null,null,null,null,null,null,null,null,null,null,"KU-102","AHŞAP KÖPRU KU-102","Metre","KU-102","catalog/kopru/KU-102/ku-102-ahsap-kopru-cesitleri-fiyatlari-resimleri-gebze-kocaeli-istanbul-1.jpg",754,null,"catalog/kopru/KU-102/ku-102-ahsap-kopru-cesitleri-fiyatlari-resimleri-gebze-kocaeli-istanbul-1.jpg"]
[null,null,null,null,null,null,null,null,null,null,null,null,null,null,null,null,null,null,null,null,null,null,null,null,null,null,null,null,null,null,null,null,null,null,null,null,null,null,null,null,null,null,null,null,null,null,null,null,null,null,"AS-101","Ahşap Saksı 101","Adet","AS-101","catalog/saksi/AS-101/AS-101-ahsap-saksi-fiyatlari-ahsap-saksi-imalati-buyuk-ahsap saksi-ahsap-saksi-fiyatlari-www.kayalarahsap.com-01.jpg",522,null,"catalog/saksi/AS-101/AS-101-ahsap-saksi-fiyatlari-ahsap-saksi-imalati-buyuk-ahsap saksi-ahsap-saksi-fiyatlari-www.kayalarahsap.com-01.jpg"]
[null,null,null,null,null,null,null,null,null,null,null,null,null,null,null,null,null,null,null,null,null,null,null,null,null,null,null,null,null,null,null,null,null,null,null,null,null,null,null,null,null,null,null,null,null,null,null,null,null,null,"AS-102","Ahşap Saksı 102","Adet","AS-102","catalog/saksi/AS-102/AS-102-ahsap-saksi-fiyatlari-ahsap-saksi-imalati-buyuk-maun-ahsap saksi-ahsap-saksi-fiyatlari-www.kayalarahsap.com-03.jpg",638,null,"catalog/saksi/AS-102/AS-102-ahsap-saksi-fiyatlari-ahsap-saksi-imalati-buyuk-maun-ahsap saksi-ahsap-saksi-fiyatlari-www.kayalarahsap.com-03.jpg"]
[null,null,null,null,null,null,null,null,null,null,null,null,null,null,null,null,null,null,null,null,null,null,null,null,null,null,null,null,null,null,null,null,null,null,null,null,null,null,null,null,null,null,null,null,null,null,null,null,null,null,"AS-103","Ahşap Saksı 103","Adet","AS-103","catalog/saksi/AS-103/AS-103-maun-ahsap-saksi-fiyatlari-ahsap-saksi-imalati-buyuk-maun-ahsap saksi-ahsap-saksi-fiyatlari-www.kayalarahsap.com-01.jpg",638,null,"catalog/saksi/AS-103/AS-103-maun-ahsap-saksi-fiyatlari-ahsap-saksi-imalati-buyuk-maun-ahsap saksi-ahsap-saksi-fiyatlari-www.kayalarahsap.com-01.jpg"]
[null,null,null,null,null,null,null,null,null,null,null,null,null,null,null,null,null,null,null,null,null,null,null,null,null,null,null,null,null,null,null,null,null,null,null,null,null,null,null,null,null,null,null,null,null,null,null,null,null,null,"AS-105","Ahşap Saksı 105","Adet","AS-105","catalog/saksi/AS-105/AS-105-maun-ahsap-saksi-fiyatlari-ahsap-saksi-imalati-buyuk-maun-6gen-ahsap-saksi-ahsap-saksi-fiyatlari-www.kayalarahsap.~3.jpg",348,null,"catalog/saksi/AS-105/AS-105-maun-ahsap-saksi-fiyatlari-ahsap-saksi-imalati-buyuk-maun-6gen-ahsap-saksi-ahsap-saksi-fiyatlari-www.kayalarahsap.~3.jpg"]
[null,null,null,null,null,null,null,null,null,null,null,null,null,null,null,null,null,null,null,null,null,null,null,null,null,null,null,null,null,null,null,null,null,null,null,null,null,null,null,null,null,null,null,null,null,null,null,null,null,null,"AS-106","Ahşap Saksı 106","Adet","AS-106","catalog/saksi/AS-106/AS-106-ahsap-saksi-fiyatlari-ahsap-saksi-imalati-buyuk-konik-8gen-ahsap-saksi-ahsap-saksi-fiyatlari-www.kayalarahsap.com-02.jpg",278.39999999999998,null,"catalog/saksi/AS-106/AS-106-ahsap-saksi-fiyatlari-ahsap-saksi-imalati-buyuk-konik-8gen-ahsap-saksi-ahsap-saksi-fiyatlari-www.kayalarahsap.com-02.jpg"]
[null,null,null,null,null,null,null,null,null,null,null,null,null,null,null,null,null,null,null,null,null,null,null,null,null,null,null,null,null,null,null,null,null,null,null,null,null,null,null,null,null,null,null,null,null,null,null,null,null,null,"AS-107","Ahşap Saksı 107","Adet","AS-107","catalog/saksi/AS-107/AS-107-ahsap-saksi-fiyatlari-ahsap-saksi-imalati-buyuk-uzun-8gen-ahsap-saksi-ahsap-saksi-fiyatlari-www.kayalarahsap.com-01.jpg",278.39999999999998,null,"catalog/saksi/AS-107/AS-107-ahsap-saksi-fiyatlari-ahsap-saksi-imalati-buyuk-uzun-8gen-ahsap-saksi-ahsap-saksi-fiyatlari-www.kayalarahsap.com-01.jpg"]
[null,null,null,null,null,null,null,null,null,null,null,null,null,null,null,null,null,null,null,null,null,null,null,null,null,null,null,null,null,null,null,null,null,null,null,null,null,null,null,null,null,null,null,null,null,null,null,null,null,null,"AS-108","Ahşap Saksı 108","Adet","AS-108","catalog/saksi/AS-108/AS-108-ahsap-saksi-fiyatlari-ahsap-saksi-imalati-buyuk-uzun-8gen-ahsap-saksi-ahsap-saksi-fiyatlari-resimleri-www.kayalara~3.jpg",278.39999999999998,null,"catalog/saksi/AS-108/AS-108-ahsap-saksi-fiyatlari-ahsap-saksi-imalati-buyuk-uzun-8gen-ahsap-saksi-ahsap-saksi-fiyatlari-resimleri-www.kayalara~3.jpg"]
[null,null,null,null,null,null,null,null,null,null,null,null,null,null,null,null,null,null,null,null,null,null,null,null,null,null,null,null,null,null,null,null,null,null,null,null,null,null,null,null,null,null,null,null,null,null,null,null,null,null,"AS-109","Ahşap Saksı 109","Adet","AS-109","catalog/saksi/AS-109/AS-109-ahsap-saksi-fiyatlari-ahsap-saksi-imalati-buyuk-uzun-7gen-ahsap-saksi-yedi-gen-ahsap-saksi-cesitleri-resimleri-yed~3.jpg",278.39999999999998,null,"catalog/saksi/AS-109/AS-109-ahsap-saksi-fiyatlari-ahsap-saksi-imalati-buyuk-uzun-7gen-ahsap-saksi-yedi-gen-ahsap-saksi-cesitleri-resimleri-yed~3.jpg"]
[null,null,null,null,null,null,null,null,null,null,null,null,null,null,null,null,null,null,null,null,null,null,null,null,null,null,null,null,null,null,null,null,null,null,null,null,null,null,null,null,null,null,null,null,null,null,null,null,null,null,"AS-110","Ahşap Saksı 110","Adet","AS-110","catalog/Saksi/AS-110/AS-110-ahsap-saksi-fiyatlari-ahsap-saksi-imalati-6gen-altigen-ahsap-saksi-ahsap-saksi-cesitleri-resimleri-ahsap-saksi-fiyat-www.kayalarahsap.com-052.jpg",278.39999999999998,null,"catalog/Saksi/AS-110/AS-110-ahsap-saksi-fiyatlari-ahsap-saksi-imalati-6gen-altigen-ahsap-saksi-ahsap-saksi-cesitleri-resimleri-ahsap-saksi-fiyat-www.kayalarahsap.com-052.jpg"]
[null,null,null,null,null,null,null,null,null,null,null,null,null,null,null,null,null,null,null,null,null,null,null,null,null,null,null,null,null,null,null,null,null,null,null,null,null,null,null,null,null,null,null,null,null,null,null,null,null,null,"AS-112","Ahşap Saksı 112","Adet","AS-112","catalog/saksi/AS-112/AS-112-ahsap-saksi-fiyatlari-ahsap-saksi-imalati-dikdortgen-ahsap-saksi-ahsap-saksi-cesitleri-resimleri-ahsap-saksi-fiyat~1.jpg",371.2,null,"catalog/saksi/AS-112/AS-112-ahsap-saksi-fiyatlari-ahsap-saksi-imalati-dikdortgen-ahsap-saksi-ahsap-saksi-cesitleri-resimleri-ahsap-saksi-fiyat~1.jpg"]
[null,null,null,null,null,null,null,null,null,null,null,null,null,null,null,null,null,null,null,null,null,null,null,null,null,null,null,null,null,null,null,null,null,null,null,null,null,null,null,null,null,null,null,null,null,null,null,null,null,null,"AS-113","Ahşap Saksı 113","Adet","AS-113","catalog/saksi/AS-113/AS-113-ahsap-saksi-fiyatlari-ahsap-saksi-imalati-uzun-dikdortgen-ahsap-saksi-ahsap-saksi-cesitleri-resimleri-ahsap-saksi-~1.jpg",371.2,null,"catalog/saksi/AS-113/AS-113-ahsap-saksi-fiyatlari-ahsap-saksi-imalati-uzun-dikdortgen-ahsap-saksi-ahsap-saksi-cesitleri-resimleri-ahsap-saksi-~1.jpg"]
[null,null,null,null,null,null,null,null,null,null,null,null,null,null,null,null,null,null,null,null,null,null,null,null,null,null,null,null,null,null,null,null,null,null,null,null,null,null,null,null,null,null,null,null,null,null,null,null,null,null,"AS-114","Ahşap Saksı 114","Adet","AS-114","catalog/saksi/AS-114/AS-114-ahsap-saksi-fiyatlari-ahsap-saksi-imalati-dikdortgen-ahsap-saksi-ahsap-saksi-ciceklik-cesitleri-resimleri-ahsap-sa~2.jpg",371.2,null,"catalog/saksi/AS-114/AS-114-ahsap-saksi-fiyatlari-ahsap-saksi-imalati-dikdortgen-ahsap-saksi-ahsap-saksi-ciceklik-cesitleri-resimleri-ahsap-sa~2.jpg"]
[null,null,null,null,null,null,null,null,null,null,null,null,null,null,null,null,null,null,null,null,null,null,null,null,null,null,null,null,null,null,null,null,null,null,null,null,null,null,null,null,null,null,null,null,null,null,null,null,null,null,"AS-117","Ahşap Saksı 117","Adet","AS-117","catalog/saksi/AS-117-EL-ARABA-SAKSI/AS-117-ahsap-saksi-fiyatlari-el-arabasi-saksi-tekerlekli-araba-saksi-kayalarkereste.com-05.jpg",638,null,"catalog/saksi/AS-117-EL-ARABA-SAKSI/AS-117-ahsap-saksi-fiyatlari-el-arabasi-saksi-tekerlekli-araba-saksi-kayalarkereste.com-05.jpg"]
[null,null,null,null,null,null,null,null,null,null,null,null,null,null,null,null,null,null,null,null,null,null,null,null,null,null,null,null,null,null,null,null,null,null,null,null,null,null,null,null,null,null,null,null,null,null,null,null,null,null,"AS-118","Ahşap Saksı 118","Adet","AS-118","catalog/saksi/AS-118/AS-118-ahsap-saksi-fiyatlari-ahsap-saksi-imalati-uzun-dikdortgen-ahsap-saksi-ahsap-saksi-cesitleri-resimleri-ahsap-saksi-~1.jpg",371.2,null,"catalog/saksi/AS-118/AS-118-ahsap-saksi-fiyatlari-ahsap-saksi-imalati-uzun-dikdortgen-ahsap-saksi-ahsap-saksi-cesitleri-resimleri-ahsap-saksi-~1.jpg"]
[null,null,null,null,null,null,null,null,null,null,null,null,null,null,null,null,null,null,null,null,null,null,null,null,null,null,null,null,null,null,null,null,null,null,null,null,null,null,null,null,null,null,null,null,null,null,null,null,null,null,"AS-119","Ahşap Saksı 119","Adet","AS-119","catalog/saksi/AS-119/AS-119-ahsap-saksi-fiyatlari-ahsap-saksi-imalati-6gen-altigen-ahsap-saksi-ahsap-saksi-cesitleri-resimleri-ahsap-saksi-fiy~1.jpg",278.39999999999998,null,"catalog/saksi/AS-119/AS-119-ahsap-saksi-fiyatlari-ahsap-saksi-imalati-6gen-altigen-ahsap-saksi-ahsap-saksi-cesitleri-resimleri-ahsap-saksi-fiy~1.jpg"]
[null,null,null,null,null,null,null,null,null,null,null,null,null,null,null,null,null,null,null,null,null,null,null,null,null,null,null,null,null,null,null,null,null,null,null,null,null,null,null,null,null,null,null,null,null,null,null,null,null,null,"AS-120","Ahşap Saksı 120","Adet","AS-120","catalog/saksi/AS-120/AS-120-ahsap-saksi-fiyatlari-ahsap-saksi-imalati-yuksek-ahsap-saksi-uzun-ahsap-saksi-cesitleri-resimleri-ahsap-saksi-fiya~2.jpg",406,null,"catalog/saksi/AS-120/AS-120-ahsap-saksi-fiyatlari-ahsap-saksi-imalati-yuksek-ahsap-saksi-uzun-ahsap-saksi-cesitleri-resimleri-ahsap-saksi-fiya~2.jpg"]
[null,null,null,null,null,null,null,null,null,null,null,null,null,null,null,null,null,null,null,null,null,null,null,null,null,null,null,null,null,null,null,null,null,null,null,null,null,null,null,null,null,null,null,null,null,null,null,null,null,null,{"$f":"HYPERLINK(BF146,BB146)","v":"AS-122"},"Ahşap Saksı 122","Metre","AS-122","catalog/saksi/AS-122/ahsap-panel-saksi-fiyatlari-modelleri-istanbul-kocaeli-www.kayalarkereste.com-as-122-05.jpg",417.6,null,"catalog/saksi/AS-122/ahsap-panel-saksi-fiyatlari-modelleri-istanbul-kocaeli-www.kayalarkereste.com-as-122-05.jpg"]
[null,null,null,null,null,null,null,null,null,null,null,null,null,null,null,null,null,null,null,null,null,null,null,null,null,null,null,null,null,null,null,null,null,null,null,null,null,null,null,null,null,null,null,null,null,null,null,null,null,null,"AS-123","Ahşap Saksı 123","Adet","AS-123","catalog/saksi/AS-123 AT ARBASI/AS-123-at-arabasi-ahsap-saksi-01.jpg",2552,null,"catalog/saksi/AS-123 AT ARBASI/AS-123-at-arabasi-ahsap-saksi-01.jpg"]
[null,null,null,null,null,null,null,null,null,null,null,null,null,null,null,null,null,null,null,null,null,null,null,null,null,null,null,null,null,null,null,null,null,null,null,null,null,null,null,null,null,null,null,null,null,null,null,null,null,null,"AV-109","Ahşap Bungalov Yalı baskı Ev (AV-109)","m2","AV-109","catalog/Ev/av-109/ahsap-bungalov-ev-av-109-00.jpg",1566,null,"catalog/Ev/av-109/ahsap-bungalov-ev-av-109-00.jpg"]
[null,null,null,null,null,null,null,null,null,null,null,null,null,null,null,null,null,null,null,null,null,null,null,null,null,null,null,null,null,null,null,null,null,null,null,null,null,null,null,null,null,null,null,null,null,null,null,null,null,null,"YB-101","1,8 x 12 Ahşap Cephe Kaplama Yalı Baskı YB-101","M2","YB-101","catalog/ahsap-cephe-kaplama/YB-101-12-en-2.5-kalin-duz/yb-101-yali-baski-bungalow-ev-cephe-kaplama-www.kayalarahsap.com-04.JPG",55.68,null,"catalog/ahsap-cephe-kaplama/YB-101-12-en-2.5-kalin-duz/yb-101-yali-baski-bungalow-ev-cephe-kaplama-www.kayalarahsap.com-04.JPG"]
[null,null,null,null,null,null,null,null,null,null,null,null,null,null,null,null,null,null,null,null,null,null,null,null,null,null,null,null,null,null,null,null,null,null,null,null,null,null,null,null,null,null,null,null,null,null,null,null,null,null,"YB-102","3,5 x 12,5 Ahşap Cephe Kaplama Yalı Baskı YB-102","M2","YB-102","catalog/ahsap-cephe-kaplama/YB-102-12-EN-5-kalin-duz/ahsap-yali-baski-cephe-kaplama-03.jpg",90.48,null,{"$f":"CONCATENATE($AY$1, BC150)","v":"catalog/ahsap-cephe-kaplama/YB-102-12-EN-5-kalin-duz/ahsap-yali-baski-cephe-kaplama-03.jpg"}]
[null,null,null,null,null,null,null,null,null,null,null,null,null,null,null,null,null,null,null,null,null,null,null,null,null,null,null,null,null,null,null,null,null,null,null,null,null,null,null,null,null,null,null,null,null,null,null,null,null,null,"YB-103","5 x 15 Ahşap Cephe Kaplama Yalı Baskı DÜZ YB-103","M2","YB-103","catalog/ahsap-cephe-kaplama/YB-103-15-en-5-kalin-duz/YaliBaski_5_duz_b.JPG",125.28,null,"catalog/ahsap-cephe-kaplama/YB-103-15-en-5-kalin-duz/YaliBaski_5_duz_b.JPG"]
[null,null,null,null,null,null,null,null,null,null,null,null,null,null,null,null,null,null,null,null,null,null,null,null,null,null,null,null,null,null,null,null,null,null,null,null,null,null,null,null,null,null,null,null,null,null,null,null,null,null,"YB-104","5 x 15 Ahşap Cephe Kaplama Yalı Baskı Yuvarlak Yuzey YB-104","M2","YB-104","catalog/ahsap-cephe-kaplama/YB-104-15-en-5-kalin-yuvarlak/IMG_5117.JPG",125.28,null,"catalog/ahsap-cephe-kaplama/YB-104-15-en-5-kalin-yuvarlak/IMG_5117.JPG"]
[null,null,null,null,null,null,null,null,null,null,null,null,null,null,null,null,null,null,null,null,null,null,null,null,null,null,null,null,null,null,null,null,null,null,null,null,null,null,null,null,null,null,null,null,null,null,null,null,null,null,"YB-105","5 x 20 Ahşap Yalı Baskı Dış Cephe Kaplama Düz Yüzey YB-105","M2","YB-105","catalog/ahsap-cephe-kaplama/YB-105-20-en-5-kalin-duz/YB-105-ahsap-kutuk-yali-baski-bungalow-ev-cephe-kaplama--kutuk-ev-profil-www.kayalarahsap.com-01.jpg",125,null,"catalog/ahsap-cephe-kaplama/YB-105-20-en-5-kalin-duz/YB-105-ahsap-kutuk-yali-baski-bungalow-ev-cephe-kaplama--kutuk-ev-profil-www.kayalarahsap.com-01.jpg"]
[null,null,null,null,null,null,null,null,null,null,null,null,null,null,null,null,null,null,null,null,null,null,null,null,null,null,null,null,null,null,null,null,null,null,null,null,null,null,null,null,null,null,null,null,null,null,null,null,null,null,"YB-106","3 x 23 Geniş Ahşap Yalı Baskı Dış Cephe Kaplama Düz Yüzey YB-106","M2","YB-106","catalog/ahsap-cephe-kaplama/YB-106-23-en-3.5-kalin-duz/YB-106-ahsap-tarihi-eser-ev-dekorasyon-ahsap-yali-baski-bungalow-ev-cephe-kaplama-kutuk-ev-profil-www.kayalarahsap.com-03.jpg",195,null,"catalog/ahsap-cephe-kaplama/YB-106-23-en-3.5-kalin-duz/YB-106-ahsap-tarihi-eser-ev-dekorasyon-ahsap-yali-baski-bungalow-ev-cephe-kaplama-kutuk-ev-profil-www.kayalarahsap.com-03.jpg"]
[null,null,null,null,null,null,null,null,null,null,null,null,null,null,null,null,null,null,null,null,null,null,null,null,null,null,null,null,null,null,null,null,null,null,null,null,null,null,null,null,null,null,null,null,null,null,null,null,null,null,"YB-107","5 x 12,5 Yalı Baskı Dış Cephe Kaplama Düz Yüzey YB-107","M2","YB-107","catalog/ahsap-cephe-kaplama/YB-102-12-EN-5-kalin-duz/ahsap-yali-baski-cephe-kaplama-03.jpg",125.28,null,"catalog/ahsap-cephe-kaplama/YB-102-12-EN-5-kalin-duz/ahsap-yali-baski-cephe-kaplama-03.jpg"]
[null,null,null,null,null,null,null,null,null,null,null,null,null,null,null,null,null,null,null,null,null,null,null,null,null,null,null,null,null,null,null,null,null,null,null,null,null,null,null,null,null,null,null,null,null,null,null,null,null,null,"KM-161","Kamelya - Çardak  161","M2","KM-161","catalog/Kamelya-cardak/KM-161/cardak-kamelya-gazebo-ahsap-oturma-dinlenme-alani-kartal-pendik-gebze-imes-kocaeli-www.kayalarahsap.com-KM-161-06.jpg",800,null,"catalog/Kamelya-cardak/KM-161/cardak-kamelya-gazebo-ahsap-oturma-dinlenme-alani-kartal-pendik-gebze-imes-kocaeli-www.kayalarahsap.com-KM-161-06.jpg"]
[null,null,null,null,null,null,null,null,null,null,null,null,null,null,null,null,null,null,null,null,null,null,null,null,null,null,null,null,null,null,null,null,null,null,null,null,null,null,null,null,null,null,null,null,null,null,null,null,null,null,"LM-107","Rabıta 1-2. Sınıf  (LM-107)","M2","LM-107","catalog/lambiri-ahsap/LM-107-rabita-kalin-yer-doseme-www.kayalarkereste.com-02.jpg",87,null,"catalog/lambiri-ahsap/LM-107-rabita-kalin-yer-doseme-www.kayalarkereste.com-02.jpg"]
[null,null,null,null,null,null,null,null,null,null,null,null,null,null,null,null,null,null,null,null,null,null,null,null,null,null,null,null,null,null,null,null,null,null,null,null,null,null,null,null,null,null,null,null,null,null,null,null,null,null,"DM-101","DM-101 Doğal Lamine 12 kalın LADİN Ahşap Masa 90 x 200cm","Adet","DM-101","catalog/kutuk-masa/dm-101/lamine-ladin-12-kalin-kutuk-masa-fiyatlari-kayalarkereste.com-kutuk-dogal-agac-mobilya-01.jpg",1102,null,"catalog/kutuk-masa/dm-101/lamine-ladin-12-kalin-kutuk-masa-fiyatlari-kayalarkereste.com-kutuk-dogal-agac-mobilya-01.jpg"]
[null,null,null,null,null,null,null,null,null,null,null,null,null,null,null,null,null,null,null,null,null,null,null,null,null,null,null,null,null,null,null,null,null,null,null,null,null,null,null,null,null,null,null,null,null,null,null,null,null,null,"AS-124","Doğal Lamine 12 kalın LADİN Ahşap Masa","Adet","AS-124","catalog/saksi/as-124/AS-124-at-arabasi-kucuk-ahsap-saksi-03.jpg",754,null,"catalog/saksi/as-124/AS-124-at-arabasi-kucuk-ahsap-saksi-03.jpg"]
[null,null,null,null,null,null,null,null,null,null,null,null,null,null,null,null,null,null,null,null,null,null,null,null,null,null,null,null,null,null,null,null,null,null,null,null,null,null,null,null,null,null,null,null,null,null,null,null,null,null,"DM-102","DM-102 Doğal Lamine 12 kalın LADİN Ahşap Masa 80 x 200cm","Adet","DM-102","catalog/kutuk-masa/dm-101/lamine-ladin-12-kalin-kutuk-masa-fiyatlari-kayalarkereste.com-kutuk-dogal-agac-mobilya-012.jpg",928,null,"catalog/kutuk-masa/dm-101/lamine-ladin-12-kalin-kutuk-masa-fiyatlari-kayalarkereste.com-kutuk-dogal-agac-mobilya-012.jpg"]
[null,null,null,null,null,null,null,null,null,null,null,null,null,null,null,null,null,null,null,null,null,null,null,null,null,null,null,null,null,null,null,null,null,null,null,null,null,null,null,null,null,null,null,null,null,null,null,null,null,null,"DM-111","DM-111 Doğal Kütük Ağaç Masa Tablası","Adet","DM-111","catalog/kutuk-masa/dm-111/kutuk-dogal-agac-masa-tabla-fiyatlari-www.kayalarkereste.com-04.jpg",2424.4,null,"catalog/kutuk-masa/dm-111/kutuk-dogal-agac-masa-tabla-fiyatlari-www.kayalarkereste.com-04.jpg"]
[null,null,null,null,null,null,null,null,null,null,null,null,null,null,null,null,null,null,null,null,null,null,null,null,null,null,null,null,null,null,null,null,null,null,null,null,null,null,null,null,null,null,null,null,null,null,null,null,null,null,"DM-112","DM-112-Doğal Kütük Ağaç Masa Tablası","Adet","DM-112","catalog/kutuk-masa/IMG_E3393.JPG",2534.6,null,"catalog/kutuk-masa/IMG_E3393.JPG"]
[null,null,null,null,null,null,null,null,null,null,null,null,null,null,null,null,null,null,null,null,null,null,null,null,null,null,null,null,null,null,null,null,null,null,null,null,null,null,null,null,null,null,null,null,null,null,null,null,null,null,"AV-110","Ahşap Bungalov Kulube-Ev  (AV-110)","Adet","AV-110","catalog/Ev/av-110/av-110-bungalov-ahsap-ev-kutuk--kulube-ev-fiyatlari-yapimi-maliyeti-resimleri-gebze-www.kayalarahsap.com-03.jpg",11136,null,"catalog/Ev/av-110/av-110-bungalov-ahsap-ev-kutuk--kulube-ev-fiyatlari-yapimi-maliyeti-resimleri-gebze-www.kayalarahsap.com-03.jpg"]
[null,null,null,null,null,null,null,null,null,null,null,null,null,null,null,null,null,null,null,null,null,null,null,null,null,null,null,null,null,null,null,null,null,null,null,null,null,null,null,null,null,null,null,null,null,null,null,null,null,null,"KT-105","KT-105 Ahşap Kütük - Bungalov Ev Profil","M2","KT-105","catalog/Profil/Kutuk-Ev/KT-105/KT-105-kutuk-ahsap-bungalov-ev-profil-5-kalin-15-genislik-03.jpg",129.91999999999999,null,"catalog/Profil/Kutuk-Ev/KT-105/KT-105-kutuk-ahsap-bungalov-ev-profil-5-kalin-15-genislik-03.jpg"]
[null,null,null,null,null,null,null,null,null,null,null,null,null,null,null,null,null,null,null,null,null,null,null,null,null,null,null,null,null,null,null,null,null,null,null,null,null,null,null,null,null,null,null,null,null,null,null,null,null,null,"KT-110","KT-110 Ahşap Kütük - Bungalov Ev Profil","M2","KT-110","catalog/Profil/Kutuk-Ev/KT-110/kt-110-kutuk-ahsap-bungalov-ev-ahsap-profil-10-kalin-15-genislik-02.jpg",179.8,null,"catalog/Profil/Kutuk-Ev/KT-110/kt-110-kutuk-ahsap-bungalov-ev-ahsap-profil-10-kalin-15-genislik-02.jpg"]
[null,null,null,null,null,null,null,null,null,null,null,null,null,null,null,null,null,null,null,null,null,null,null,null,null,null,null,null,null,null,null,null,null,null,null,null,null,null,null,null,null,null,null,null,null,null,null,null,null,null,"KT-118","KT-118 Ahşap Kütük - Bungalov Ev Profil","M2","KT-118","catalog/Profil/Kutuk-Ev/KT-118/kt-118-lamine-kutuk-ev-profil-ahsab-15cm-x-18cm-01.jpg",568.4,null,"catalog/Profil/Kutuk-Ev/KT-118/kt-118-lamine-kutuk-ev-profil-ahsab-15cm-x-18cm-01.jpg"]
[null,null,null,null,null,null,null,null,null,null,null,null,null,null,null,null,null,null,null,null,null,null,null,null,null,null,null,null,null,null,null,null,null,null,null,null,null,null,null,null,null,null,null,null,null,null,null,null,null,null,"LM-108","Lambiri -1. Sınıf SİBİRYA  (LM-108)","M2","LM-108","catalog/Profil/Lambiri-Rabita/LM-108-ahsap-lambiri-fiyatlari-sibirya-lambiri-rabita-cesitleri-resimleri-01.jpg",48,null,"catalog/Profil/Lambiri-Rabita/LM-108-ahsap-lambiri-fiyatlari-sibirya-lambiri-rabita-cesitleri-resimleri-01.jpg"]
[null,null,null,null,null,null,null,null,null,null,null,null,null,null,null,null,null,null,null,null,null,null,null,null,null,null,null,null,null,null,null,null,null,null,null,null,null,null,null,null,null,null,null,null,null,null,null,null,null,null,"BT-101","TEAK Burma Kereste  (1.4 cm, 2 cm, 4 cm, 5.3 cm, 6.5 cm kalınlık) x (53 mm geniş) x (90-170 cm arası boy)  BT-101","M3","BT-101","catalog/silinmis-kereste/ks-113-iroko-silinmis-profil-ahsap-kereste-78mm-x-16mm-01.jpg",4725,null,"catalog/silinmis-kereste/ks-113-iroko-silinmis-profil-ahsap-kereste-78mm-x-16mm-01.jpg"]
[null,null,null,null,null,null,null,null,null,null,null,null,null,null,null,null,null,null,null,null,null,null,null,null,null,null,null,null,null,null,null,null,null,null,null,null,null,null,null,null,null,null,null,null,null,null,null,null,null,null,"BT-102","TEAK Burma Kereste (1.4 cm, 2 cm, 4 cm, 5.3 cm, 6.5 cm kalınlık) x   (78 mm geniş) x (90-170 cm boy) BT-102","M3","BT-102","catalog/silinmis-kereste/ks-113-iroko-silinmis-profil-ahsap-kereste-78mm-x-16mm-01.jpg",5145,null,"catalog/silinmis-kereste/ks-113-iroko-silinmis-profil-ahsap-kereste-78mm-x-16mm-01.jpg"]
[null,null,null,null,null,null,null,null,null,null,null,null,null,null,null,null,null,null,null,null,null,null,null,null,null,null,null,null,null,null,null,null,null,null,null,null,null,null,null,null,null,null,null,null,null,null,null,null,null,null,"BT-103","TEAK Burma Kereste (1.4 cm, 2 cm, 4 cm, 5.3 cm, 6.5 cm kalınlık) x   (53 mm geniş) x (180-290 cm boy) BT-103","M3","BT-103","catalog/silinmis-kereste/ks-113-iroko-silinmis-profil-ahsap-kereste-78mm-x-16mm-01.jpg",5250,null,"catalog/silinmis-kereste/ks-113-iroko-silinmis-profil-ahsap-kereste-78mm-x-16mm-01.jpg"]
[null,null,null,null,null,null,null,null,null,null,null,null,null,null,null,null,null,null,null,null,null,null,null,null,null,null,null,null,null,null,null,null,null,null,null,null,null,null,null,null,null,null,null,null,null,null,null,null,null,null,"BT-104","TEAK Burma Kereste (1.4 cm, 2 cm, 4 cm, 5.3 cm, 6.5 cm kalınlık) x (78 mm geniş) x (180-290 cm boy) BT-104","M3","BT-104","catalog/silinmis-kereste/ks-113-iroko-silinmis-profil-ahsap-kereste-78mm-x-16mm-01.jpg",5617,null,"catalog/silinmis-kereste/ks-113-iroko-silinmis-profil-ahsap-kereste-78mm-x-16mm-01.jpg"]
[null,null,null,null,null,null,null,null,null,null,null,null,null,null,null,null,null,null,null,null,null,null,null,null,null,null,null,null,null,null,null,null,null,null,null,null,null,null,null,null,null,null,null,null,null,null,null,null,null,null,"BT-105","TEAK Burma Kereste (1.4 cm, 2 cm, 4 cm, 5.3 cm, 6.5 cm kalınlık) x (103 mm geniş) x (180-290 cm boy) BT-105","M3","BT-105","catalog/silinmis-kereste/ks-113-iroko-silinmis-profil-ahsap-kereste-78mm-x-16mm-01.jpg",6030,null,"catalog/silinmis-kereste/ks-113-iroko-silinmis-profil-ahsap-kereste-78mm-x-16mm-01.jpg"]
[null,null,null,null,null,null,null,null,null,null,null,null,null,null,null,null,null,null,null,null,null,null,null,null,null,null,null,null,null,null,null,null,null,null,null,null,null,null,null,null,null,null,null,null,null,null,null,null,null,null,"BT-106","TEAK Burma Kereste (1.4 cm, 2 cm, 4 cm, 5.3 cm, 6.5 cm kalınlık) x (130 mm geniş) x (180-290 cm boy) BT-106","M3","BT-106","catalog/silinmis-kereste/ks-113-iroko-silinmis-profil-ahsap-kereste-78mm-x-16mm-01.jpg",6142,null,"catalog/silinmis-kereste/ks-113-iroko-silinmis-profil-ahsap-kereste-78mm-x-16mm-01.jpg"]
[null,null,null,null,null,null,null,null,null,null,null,null,null,null,null,null,null,null,null,null,null,null,null,null,null,null,null,null,null,null,null,null,null,null,null,null,null,null,null,null,null,null,null,null,null,null,null,null,null,null,"BT-107","TEAK Burma Kereste (1.4 cm, 2 cm, 4 cm, 5.3 cm, 6.5 cm kalınlık) x (155 mm geniş) x (180-290 cm boy) BT-107","M3","BT-107","catalog/silinmis-kereste/ks-113-iroko-silinmis-profil-ahsap-kereste-78mm-x-16mm-01.jpg",6300,null,"catalog/silinmis-kereste/ks-113-iroko-silinmis-profil-ahsap-kereste-78mm-x-16mm-01.jpg"]
[null,null,null,null,null,null,null,null,null,null,null,null,null,null,null,null,null,null,null,null,null,null,null,null,null,null,null,null,null,null,null,null,null,null,null,null,null,null,null,null,null,null,null,null,null,null,null,null,null,null,"BT-108","TEAK Burma Kereste (1.4 cm, 2 cm, 4 cm, 5.3 cm, 6.5 cm kalınlık) x (180-260 mm geniş) x (180-290 cm boy) BT-108","M3","BT-108","catalog/silinmis-kereste/ks-113-iroko-silinmis-profil-ahsap-kereste-78mm-x-16mm-01.jpg",6825,null,"catalog/silinmis-kereste/ks-113-iroko-silinmis-profil-ahsap-kereste-78mm-x-16mm-01.jpg"]
[null,null,null,null,null,null,null,null,null,null,null,null,null,null,null,null,null,null,null,null,null,null,null,null,null,null,null,null,null,null,null,null,null,null,null,null,null,null,null,null,null,null,null,null,null,null,null,null,null,null,"BT-109","TEAK Burma Kereste (1.4 cm, 2 cm, 4 cm, 5.3 cm, 6.5 cm kalınlık) x (280 mm uzeri geniş) x (180-290 cm boy) BT-109","M3","BT-109","catalog/silinmis-kereste/ks-113-iroko-silinmis-profil-ahsap-kereste-78mm-x-16mm-01.jpg",7350,null,"catalog/silinmis-kereste/ks-113-iroko-silinmis-profil-ahsap-kereste-78mm-x-16mm-01.jpg"]
[null,null,null,null,null,null,null,null,null,null,null,null,null,null,null,null,null,null,null,null,null,null,null,null,null,null,null,null,null,null,null,null,null,null,null,null,null,null,null,null,null,null,null,null,null,null,null,null,null,null,"BT-110","TEAK Burma Kereste (5.5 cm, 6.5 cm, 10 cm ve üzeri kalınlık) x (10 - 13 cm geniş) x (300 cm üzeri boy) BT-110","M3","BT-110","catalog/silinmis-kereste/ks-113-iroko-silinmis-profil-ahsap-kereste-78mm-x-16mm-01.jpg",6825,null,"catalog/silinmis-kereste/ks-113-iroko-silinmis-profil-ahsap-kereste-78mm-x-16mm-01.jpg"]
[null,null,null,null,null,null,null,null,null,null,null,null,null,null,null,null,null,null,null,null,null,null,null,null,null,null,null,null,null,null,null,null,null,null,null,null,null,null,null,null,null,null,null,null,null,null,null,null,null,null,"BT-111","TEAK Burma Kereste (5.5 cm, 6.5 cm, 10 cm ve üzeri kalınlık) x (15,5 - 18 cm geniş) x (300 cm üzeri boy) BT-111","M3","BT-111","catalog/silinmis-kereste/ks-113-iroko-silinmis-profil-ahsap-kereste-78mm-x-16mm-01.jpg",7080,null,"catalog/silinmis-kereste/ks-113-iroko-silinmis-profil-ahsap-kereste-78mm-x-16mm-01.jpg"]
[null,null,null,null,null,null,null,null,null,null,null,null,null,null,null,null,null,null,null,null,null,null,null,null,null,null,null,null,null,null,null,null,null,null,null,null,null,null,null,null,null,null,null,null,null,null,null,null,null,null,"BT-112","TEAK Burma Kereste (5.5 cm, 6.5 cm, 10 cm ve üzeri kalınlık) x (18 - 26 cm geniş) x (300 cm üzeri boy) BT-112","M3","BT-112","catalog/silinmis-kereste/ks-113-iroko-silinmis-profil-ahsap-kereste-78mm-x-16mm-01.jpg",7350,null,"catalog/silinmis-kereste/ks-113-iroko-silinmis-profil-ahsap-kereste-78mm-x-16mm-01.jpg"]
[null,null,null,null,null,null,null,null,null,null,null,null,null,null,null,null,null,null,null,null,null,null,null,null,null,null,null,null,null,null,null,null,null,null,null,null,null,null,null,null,null,null,null,null,null,null,null,null,null,null,"BT-113","TEAK Burma Kereste (5.5 cm, 6.5 cm, 10 cm ve üzeri kalınlık) x (28 cm üzeri geniş) x (300 cm üzeri boy) BT-113","M3","BT-113","catalog/silinmis-kereste/ks-113-iroko-silinmis-profil-ahsap-kereste-78mm-x-16mm-01.jpg",7880,null,"catalog/silinmis-kereste/ks-113-iroko-silinmis-profil-ahsap-kereste-78mm-x-16mm-01.jpg"]
[null,null,null,null,null,null,null,null,null,null,null,null,null,null,null,null,null,null,null,null,null,null,null,null,null,null,null,null,null,null,null,null,null,null,null,null,null,null,null,null,null,null,null,null,null,null,null,null,null,null,"BT-121","TEAK Burma Kereste  (1 cm kalınlık x 5 cm geniş) x (90 - 170 cm arası boy) BT-121","M2","BT-121","catalog/Profil/silinmis-profil-kereste/bt-121-123-teak-profil-ahsap-silinmis-kereste-50mm-x-10mm.jpg",65,null,"catalog/Profil/silinmis-profil-kereste/bt-121-123-teak-profil-ahsap-silinmis-kereste-50mm-x-10mm.jpg"]
[null,null,null,null,null,null,null,null,null,null,null,null,null,null,null,null,null,null,null,null,null,null,null,null,null,null,null,null,null,null,null,null,null,null,null,null,null,null,null,null,null,null,null,null,null,null,null,null,null,null,"BT-122","TEAK Burma Kereste  (1 cm kalınlık x 7,5 cm geniş) x (90 - 170 cm arası boy) BT-122","M2","BT-122","catalog/silinmis-kereste/ks-113-iroko-silinmis-profil-ahsap-kereste-78mm-x-16mm-01.jpg",71,null,"catalog/silinmis-kereste/ks-113-iroko-silinmis-profil-ahsap-kereste-78mm-x-16mm-01.jpg"]
[null,null,null,null,null,null,null,null,null,null,null,null,null,null,null,null,null,null,null,null,null,null,null,null,null,null,null,null,null,null,null,null,null,null,null,null,null,null,null,null,null,null,null,null,null,null,null,null,null,null,"BT-123","TEAK Burma Kereste  (1 cm kalınlık x 5 cm geniş) x (180 - 240 cm arası boy) BT-123","M2","BT-123","catalog/Profil/silinmis-profil-kereste/bt-121-123-teak-profil-ahsap-silinmis-kereste-50mm-x-10mm.jpg",75,null,"catalog/Profil/silinmis-profil-kereste/bt-121-123-teak-profil-ahsap-silinmis-kereste-50mm-x-10mm.jpg"]
[null,null,null,null,null,null,null,null,null,null,null,null,null,null,null,null,null,null,null,null,null,null,null,null,null,null,null,null,null,null,null,null,null,null,null,null,null,null,null,null,null,null,null,null,null,null,null,null,null,null,"BT-124","TEAK Burma Kereste  (1 cm kalınlık x 7,5 cm geniş) x (180 - 240 cm arası boy) BT-124","M2","BT-124","catalog/silinmis-kereste/ks-113-iroko-silinmis-profil-ahsap-kereste-78mm-x-16mm-01.jpg",80,null,"catalog/silinmis-kereste/ks-113-iroko-silinmis-profil-ahsap-kereste-78mm-x-16mm-01.jpg"]
[null,null,null,null,null,null,null,null,null,null,null,null,null,null,null,null,null,null,null,null,null,null,null,null,null,null,null,null,null,null,null,null,null,null,null,null,null,null,null,null,null,null,null,null,null,null,null,null,null,null,"BT-125","TEAK Burma Kereste  (1 cm kalınlık x 9,5 cm geniş) x (180 - 240 cm arası boy) BT-125","M2","BT-125","catalog/silinmis-kereste/ks-113-iroko-silinmis-profil-ahsap-kereste-78mm-x-16mm-01.jpg",85,null,"catalog/silinmis-kereste/ks-113-iroko-silinmis-profil-ahsap-kereste-78mm-x-16mm-01.jpg"]
[null,null,null,null,null,null,null,null,null,null,null,null,null,null,null,null,null,null,null,null,null,null,null,null,null,null,null,null,null,null,null,null,null,null,null,null,null,null,null,null,null,null,null,null,null,null,null,null,null,null,"BT-126","TEAK Burma Kereste  (1 cm kalınlık x 12,5 cm geniş) x (180 - 240 cm arası boy) BT-126","M2","BT-126","catalog/silinmis-kereste/ks-113-iroko-silinmis-profil-ahsap-kereste-78mm-x-16mm-01.jpg",90,null,"catalog/silinmis-kereste/ks-113-iroko-silinmis-profil-ahsap-kereste-78mm-x-16mm-01.jpg"]
[null,null,null,null,null,null,null,null,null,null,null,null,null,null,null,null,null,null,null,null,null,null,null,null,null,null,null,null,null,null,null,null,null,null,null,null,null,null,null,null,null,null,null,null,null,null,null,null,null,null,"BT-131","TEAK Burma DECK işlenmiş  (1,8 cm kalınlık x 5 cm geniş) x (90 - 170 cm arası boy) BT-131","M2","BT-131","catalog/silinmis-kereste/ks-113-iroko-silinmis-profil-ahsap-kereste-78mm-x-16mm-01.jpg",85,null,"catalog/silinmis-kereste/ks-113-iroko-silinmis-profil-ahsap-kereste-78mm-x-16mm-01.jpg"]
[null,null,null,null,null,null,null,null,null,null,null,null,null,null,null,null,null,null,null,null,null,null,null,null,null,null,null,null,null,null,null,null,null,null,null,null,null,null,null,null,null,null,null,null,null,null,null,null,null,null,"XP-01","Epoksi Masa Tablası  XP-01","Adet","XP-01","catalog/Epoxi-Masa/epoksi-ahsap-ceviz-mese-kestane-masa-XP-01.jpg",4060,null,"catalog/Epoxi-Masa/epoksi-ahsap-ceviz-mese-kestane-masa-XP-01.jpg"]
[null,null,null,null,null,null,null,null,null,null,null,null,null,null,null,null,null,null,null,null,null,null,null,null,null,null,null,null,null,null,null,null,null,null,null,null,null,null,null,null,null,null,null,null,null,null,null,null,null,null,"BT-132","TEAK Burma DECK işlenmiş  (1,8 cm kalınlık x 5 cm geniş) x (90 - 170 cm arası boy) BT-132","M2","BT-132","catalog/silinmis-kereste/ks-113-iroko-silinmis-profil-ahsap-kereste-78mm-x-16mm-01.jpg",79,null,"catalog/silinmis-kereste/ks-113-iroko-silinmis-profil-ahsap-kereste-78mm-x-16mm-01.jpg"]
[null,null,null,null,null,null,null,null,null,null,null,null,null,null,null,null,null,null,null,null,null,null,null,null,null,null,null,null,null,null,null,null,null,null,null,null,null,null,null,null,null,null,null,null,null,null,null,null,null,null,"BT-133","TEAK Burma DECK işlenmiş  (1,8 cm kalınlık x 95 mm geniş) x (90 - 170 cm arası boy) BT-133","M2","BT-133","catalog/silinmis-kereste/ks-113-iroko-silinmis-profil-ahsap-kereste-78mm-x-16mm-01.jpg",85,null,"catalog/silinmis-kereste/ks-113-iroko-silinmis-profil-ahsap-kereste-78mm-x-16mm-01.jpg"]
[null,null,null,null,null,null,null,null,null,null,null,null,null,null,null,null,null,null,null,null,null,null,null,null,null,null,null,null,null,null,null,null,null,null,null,null,null,null,null,null,null,null,null,null,null,null,null,null,null,null,"BT-134","TEAK Burma DECK işlenmiş  (1,8 cm kalınlık x 125 mm geniş) x (90 - 170 cm arası boy) BT-134","M2","BT-134","catalog/silinmis-kereste/ks-113-iroko-silinmis-profil-ahsap-kereste-78mm-x-16mm-01.jpg",90,null,"catalog/silinmis-kereste/ks-113-iroko-silinmis-profil-ahsap-kereste-78mm-x-16mm-01.jpg"]
[null,null,null,null,null,null,null,null,null,null,null,null,null,null,null,null,null,null,null,null,null,null,null,null,null,null,null,null,null,null,null,null,null,null,null,null,null,null,null,null,null,null,null,null,null,null,null,null,null,null,"BT-135","TEAK Burma DECK işlenmiş  (1,8 cm kalınlık x 50 mm geniş) x (180 - 240 cm arası boy) BT-135","M2","BT-135","catalog/silinmis-kereste/ks-113-iroko-silinmis-profil-ahsap-kereste-78mm-x-16mm-01.jpg",85,null,"catalog/silinmis-kereste/ks-113-iroko-silinmis-profil-ahsap-kereste-78mm-x-16mm-01.jpg"]
[null,null,null,null,null,null,null,null,null,null,null,null,null,null,null,null,null,null,null,null,null,null,null,null,null,null,null,null,null,null,null,null,null,null,null,null,null,null,null,null,null,null,null,null,null,null,null,null,null,null,"BT-136","TEAK Burma DECK işlenmiş  (1,8 cm kalınlık x 75 mm geniş) x (180 - 240 cm arası boy) BT-136","M2","BT-136","catalog/silinmis-kereste/ks-113-iroko-silinmis-profil-ahsap-kereste-78mm-x-16mm-01.jpg",89,null,"catalog/silinmis-kereste/ks-113-iroko-silinmis-profil-ahsap-kereste-78mm-x-16mm-01.jpg"]
[null,null,null,null,null,null,null,null,null,null,null,null,null,null,null,null,null,null,null,null,null,null,null,null,null,null,null,null,null,null,null,null,null,null,null,null,null,null,null,null,null,null,null,null,null,null,null,null,null,null,"BT-137","TEAK Burma DECK işlenmiş  (1,8 cm kalınlık x 90 mm geniş) x (180 - 240 cm arası boy) BT-137","M2","BT-137","catalog/silinmis-kereste/ks-113-iroko-silinmis-profil-ahsap-kereste-78mm-x-16mm-01.jpg",99,null,"catalog/silinmis-kereste/ks-113-iroko-silinmis-profil-ahsap-kereste-78mm-x-16mm-01.jpg"]
[null,null,null,null,null,null,null,null,null,null,null,null,null,null,null,null,null,null,null,null,null,null,null,null,null,null,null,null,null,null,null,null,null,null,null,null,null,null,null,null,null,null,null,null,null,null,null,null,null,null,"BT-138","TEAK Burma DECK işlenmiş  (1,8 cm kalınlık x 125 mm geniş) x (180 - 240 cm arası boy) BT-138","M2","BT-138","catalog/silinmis-kereste/ks-113-iroko-silinmis-profil-ahsap-kereste-78mm-x-16mm-01.jpg",115,null,"catalog/silinmis-kereste/ks-113-iroko-silinmis-profil-ahsap-kereste-78mm-x-16mm-01.jpg"]
[null,null,null,null,null,null,null,null,null,null,null,null,null,null,null,null,null,null,null,null,null,null,null,null,null,null,null,null,null,null,null,null,null,null,null,null,null,null,null,null,null,null,null,null,null,null,null,null,null,null,"BT-151","TEAK Burma DECK işlenmiş  (2,4 cm kalınlık x 5 cm geniş) x (90 - 170 cm arası boy) BT-151","M2","BT-151","catalog/silinmis-kereste/ks-113-iroko-silinmis-profil-ahsap-kereste-78mm-x-16mm-01.jpg",93,null,"catalog/silinmis-kereste/ks-113-iroko-silinmis-profil-ahsap-kereste-78mm-x-16mm-01.jpg"]
[null,null,null,null,null,null,null,null,null,null,null,null,null,null,null,null,null,null,null,null,null,null,null,null,null,null,null,null,null,null,null,null,null,null,null,null,null,null,null,null,null,null,null,null,null,null,null,null,null,null,"BT-152","TEAK Burma DECK işlenmiş  (2,4 cm kalınlık x 7,5 cm geniş) x (90 - 170 cm arası boy) BT-152","M2","BT-152","catalog/silinmis-kereste/ks-113-iroko-silinmis-profil-ahsap-kereste-78mm-x-16mm-01.jpg",99,null,"catalog/silinmis-kereste/ks-113-iroko-silinmis-profil-ahsap-kereste-78mm-x-16mm-01.jpg"]
[null,null,null,null,null,null,null,null,null,null,null,null,null,null,null,null,null,null,null,null,null,null,null,null,null,null,null,null,null,null,null,null,null,null,null,null,null,null,null,null,null,null,null,null,null,null,null,null,null,null,"BT-153","TEAK Burma DECK işlenmiş  (2,4 cm kalınlık x 9,5 cm geniş) x (90 - 170 cm arası boy) BT-153","M2","BT-153","catalog/silinmis-kereste/ks-113-iroko-silinmis-profil-ahsap-kereste-78mm-x-16mm-01.jpg",110,null,"catalog/silinmis-kereste/ks-113-iroko-silinmis-profil-ahsap-kereste-78mm-x-16mm-01.jpg"]
[null,null,null,null,null,null,null,null,null,null,null,null,null,null,null,null,null,null,null,null,null,null,null,null,null,null,null,null,null,null,null,null,null,null,null,null,null,null,null,null,null,null,null,null,null,null,null,null,null,null,"BT-154","TEAK Burma DECK işlenmiş  (2,4 cm kalınlık x 12,5 cm geniş) x (90 - 170 cm arası boy) BT-154","M2","BT-154","catalog/silinmis-kereste/ks-113-iroko-silinmis-profil-ahsap-kereste-78mm-x-16mm-01.jpg",125,null,"catalog/silinmis-kereste/ks-113-iroko-silinmis-profil-ahsap-kereste-78mm-x-16mm-01.jpg"]
[null,null,null,null,null,null,null,null,null,null,null,null,null,null,null,null,null,null,null,null,null,null,null,null,null,null,null,null,null,null,null,null,null,null,null,null,null,null,null,null,null,null,null,null,null,null,null,null,null,null,"BT-155","TEAK Burma DECK işlenmiş  (2,4 cm kalınlık x 5 cm geniş) x (180 - 240 cm arası boy) BT-155","M2","BT-155","catalog/silinmis-kereste/ks-113-iroko-silinmis-profil-ahsap-kereste-78mm-x-16mm-01.jpg",120,null,"catalog/silinmis-kereste/ks-113-iroko-silinmis-profil-ahsap-kereste-78mm-x-16mm-01.jpg"]
[null,null,null,null,null,null,null,null,null,null,null,null,null,null,null,null,null,null,null,null,null,null,null,null,null,null,null,null,null,null,null,null,null,null,null,null,null,null,null,null,null,null,null,null,null,null,null,null,null,null,"BT-156","TEAK Burma DECK işlenmiş  (2,4 cm kalınlık x 7,5 cm geniş) x (180 - 240 cm arası boy) BT-156","M2","BT-156","catalog/silinmis-kereste/ks-113-iroko-silinmis-profil-ahsap-kereste-78mm-x-16mm-01.jpg",130,null,"catalog/silinmis-kereste/ks-113-iroko-silinmis-profil-ahsap-kereste-78mm-x-16mm-01.jpg"]
[null,null,null,null,null,null,null,null,null,null,null,null,null,null,null,null,null,null,null,null,null,null,null,null,null,null,null,null,null,null,null,null,null,null,null,null,null,null,null,null,null,null,null,null,null,null,null,null,null,null,"BT-157","TEAK Burma DECK işlenmiş  (2,4 cm kalınlık x 9,5 cm geniş) x (180 - 240 cm arası boy) BT-157","M2","BT-157","catalog/silinmis-kereste/ks-113-iroko-silinmis-profil-ahsap-kereste-78mm-x-16mm-01.jpg",150,null,"catalog/silinmis-kereste/ks-113-iroko-silinmis-profil-ahsap-kereste-78mm-x-16mm-01.jpg"]
[null,null,null,null,null,null,null,null,null,null,null,null,null,null,null,null,null,null,null,null,null,null,null,null,null,null,null,null,null,null,null,null,null,null,null,null,null,null,null,null,null,null,null,null,null,null,null,null,null,null,"BT-158","TEAK Burma DECK işlenmiş  (2,4 cm kalınlık x 12,5 cm geniş) x (180 - 240 cm arası boy) BT-158","M2","BT-158","catalog/silinmis-kereste/ks-113-iroko-silinmis-profil-ahsap-kereste-78mm-x-16mm-01.jpg",165,null,"catalog/silinmis-kereste/ks-113-iroko-silinmis-profil-ahsap-kereste-78mm-x-16mm-01.jpg"]
[null,null,null,null,null,null,null,null,null,null,null,null,null,null,null,null,null,null,null,null,null,null,null,null,null,null,null,null,null,null,null,null,null,null,null,null,null,null,null,null,null,null,null,null,null,null,null,null,null,null,"BT-181","IROKO DECK  (1,8 cm kalınlık x 9,5 cm geniş) x (90 - 190 cm arası boy %25-30 -- 200 - 300 cm arası boy %70-75) BT-181","M2","BT-181","catalog/silinmis-kereste/ks-113-iroko-silinmis-profil-ahsap-kereste-78mm-x-16mm-01.jpg",30,null,"catalog/silinmis-kereste/ks-113-iroko-silinmis-profil-ahsap-kereste-78mm-x-16mm-01.jpg"]
[null,null,null,null,null,null,null,null,null,null,null,null,null,null,null,null,null,null,null,null,null,null,null,null,null,null,null,null,null,null,null,null,null,null,null,null,null,null,null,null,null,null,null,null,null,null,null,null,null,null,"BT-182","IROKO DECK  (2,2 cm kalınlık x 9,5 cm geniş) x (90 - 190 cm arası boy %25-30 -- 200 - 300 cm arası boy %70-75) BT-182","M2","BT-182","catalog/silinmis-kereste/ks-113-iroko-silinmis-profil-ahsap-kereste-78mm-x-16mm-01.jpg",35.5,null,"catalog/silinmis-kereste/ks-113-iroko-silinmis-profil-ahsap-kereste-78mm-x-16mm-01.jpg"]
[null,null,null,null,null,null,null,null,null,null,null,null,null,null,null,null,null,null,null,null,null,null,null,null,null,null,null,null,null,null,null,null,null,null,null,null,null,null,null,null,null,null,null,null,null,null,null,null,null,null,"BT-183","IROKO DECK  (2,9 cm kalınlık x 9,5 cm geniş) x (90 - 190 cm arası boy %25-30 -- 200 - 300 cm arası boy %70-75) BT-183","M2","BT-183","catalog/silinmis-kereste/ks-113-iroko-silinmis-profil-ahsap-kereste-78mm-x-16mm-01.jpg",46.5,null,"catalog/silinmis-kereste/ks-113-iroko-silinmis-profil-ahsap-kereste-78mm-x-16mm-01.jpg"]
[null,null,null,null,null,null,null,null,null,null,null,null,null,null,null,null,null,null,null,null,null,null,null,null,null,null,null,null,null,null,null,null,null,null,null,null,null,null,null,null,null,null,null,null,null,null,null,null,null,null,"BT-184","IROKO DECK  (4,5 cm kalınlık x 9,5 cm geniş) x (90 - 190 cm arası boy %25-30 -- 200 - 300 cm arası boy %70-75) BT-184","M2","BT-184","catalog/silinmis-kereste/ks-113-iroko-silinmis-profil-ahsap-kereste-78mm-x-16mm-01.jpg",68,null,"catalog/silinmis-kereste/ks-113-iroko-silinmis-profil-ahsap-kereste-78mm-x-16mm-01.jpg"]
[null,null,null,null,null,null,null,null,null,null,null,null,null,null,null,null,null,null,null,null,null,null,null,null,null,null,null,null,null,null,null,null,null,null,null,null,null,null,null,null,null,null,null,null,null,null,null,null,null,null,"BT-185","IROKO DECK  (1,8 cm kalınlık x 12,5 cm geniş) x (90 - 190 cm arası boy %25-30 -- 200 - 300 cm arası boy %70-75) BT-185","M2","BT-185","catalog/silinmis-kereste/ks-113-iroko-silinmis-profil-ahsap-kereste-78mm-x-16mm-01.jpg",33,null,"catalog/silinmis-kereste/ks-113-iroko-silinmis-profil-ahsap-kereste-78mm-x-16mm-01.jpg"]
[null,null,null,null,null,null,null,null,null,null,null,null,null,null,null,null,null,null,null,null,null,null,null,null,null,null,null,null,null,null,null,null,null,null,null,null,null,null,null,null,null,null,null,null,null,null,null,null,null,null,"BT-186","IROKO DECK  (2,2 cm kalınlık x 12,5 cm geniş) x (90 - 190 cm arası boy %25-30 -- 200 - 300 cm arası boy %70-75) BT-186","M2","BT-186","catalog/silinmis-kereste/ks-113-iroko-silinmis-profil-ahsap-kereste-78mm-x-16mm-01.jpg",38,null,"catalog/silinmis-kereste/ks-113-iroko-silinmis-profil-ahsap-kereste-78mm-x-16mm-01.jpg"]
[null,null,null,null,null,null,null,null,null,null,null,null,null,null,null,null,null,null,null,null,null,null,null,null,null,null,null,null,null,null,null,null,null,null,null,null,null,null,null,null,null,null,null,null,null,null,null,null,null,null,{"$f":"HYPERLINK(BF210,BB210)","v":"BT-187"},"IROKO DECK  (2,2 cm kalınlık x 12,5 cm geniş) x (90 - 190 cm arası boy %25-30 -- 200 - 300 cm arası boy %70-75) BT-187","M2","BT-187","catalog/silinmis-kereste/ks-113-iroko-silinmis-profil-ahsap-kereste-78mm-x-16mm-01.jpg",50,null,"catalog/silinmis-kereste/ks-113-iroko-silinmis-profil-ahsap-kereste-78mm-x-16mm-01.jpg"]
[null,null,null,null,null,null,null,null,null,null,null,null,null,null,null,null,null,null,null,null,null,null,null,null,null,null,null,null,null,null,null,null,null,null,null,null,null,null,null,null,null,null,null,null,null,null,null,null,null,null,"BT-188","IROKO DECK  (4,5 cm kalınlık x 12,5 cm geniş) x (90 - 190 cm arası boy %25-30 -- 200 - 300 cm arası boy %70-75) BT-188","M2","BT-188","catalog/silinmis-kereste/ks-113-iroko-silinmis-profil-ahsap-kereste-78mm-x-16mm-01.jpg",74,null,"catalog/silinmis-kereste/ks-113-iroko-silinmis-profil-ahsap-kereste-78mm-x-16mm-01.jpg"]
[null,null,null,null,null,null,null,null,null,null,null,null,null,null,null,null,null,null,null,null,null,null,null,null,null,null,null,null,null,null,null,null,null,null,null,null,null,null,null,null,null,null,null,null,null,null,null,null,null,null,"DC-102","SİBİRYA DECK Ahşap ÇAM 18 mm DC-102","M2","DC-102","catalog/deck/cam-dc-101/dc-101-cam-deck-ahsap-profil-yer-doseme-01.jpg",76.56,null,"catalog/deck/cam-dc-101/dc-101-cam-deck-ahsap-profil-yer-doseme-01.jpg"]
[null,null,null,null,null,null,null,null,null,null,null,null,null,null,null,null,null,null,null,null,null,null,null,null,null,null,null,null,null,null,null,null,null,null,null,null,null,null,null,null,null,null,null,null,null,null,null,null,null,null,"KS-100","5 x 10 Silinmiş Kereste Sibirya -KS-100","M3","KS-100","catalog/silinmis-kereste/ks-101-cam-dogramalik-silinmis-sinif-kereste-5x10-01.jpg",2300,null,"catalog/silinmis-kereste/ks-101-cam-dogramalik-silinmis-sinif-kereste-5x10-01.jpg"]
[null,null,null,null,null,null,null,null,null,null,null,null,null,null,null,null,null,null,null,null,null,null,null,null,null,null,null,null,null,null,null,null,null,null,null,null,null,null,null,null,null,null,null,null,null,null,null,null,null,null,"KS-106","5 x 12,5 Silinmiş Kereste SİBİRYA -KS-106","M3","KS-106","catalog/silinmis-kereste/ks-103-cam-dogramalik-silinmis-sinif-kereste-5x15-01.jpg",2300,null,{"$f":"CONCATENATE($AY$1, BC214)","v":"catalog/silinmis-kereste/ks-103-cam-dogramalik-silinmis-sinif-kereste-5x15-01.jpg"}]
[null,null,null,null,null,null,null,null,null,null,null,null,null,null,null,null,null,null,null,null,null,null,null,null,null,null,null,null,null,null,null,null,null,null,null,null,null,null,null,null,null,null,null,null,null,null,null,null,null,null,"XP-02","Epoksi Masa Tablası XP-02","Adet","XP-02","catalog/Epoxi-Masa/epoksi-ahsap-ceviz-mese-kestane-masa-XP-02.jpg",3480,null,"catalog/Epoxi-Masa/epoksi-ahsap-ceviz-mese-kestane-masa-XP-02.jpg"]
[null,null,null,null,null,null,null,null,null,null,null,null,null,null,null,null,null,null,null,null,null,null,null,null,null,null,null,null,null,null,null,null,null,null,null,null,null,null,null,null,null,null,null,null,null,null,null,null,null,null,"AG-101","Kamelya (10 x 10 cm) Demir galvaniz Ayak AG-101","Adet","AG-101","catalog/metal-ayak/AG-101-a.jpg",25,null,"catalog/metal-ayak/AG-101-a.jpg"]
[null,null,null,null,null,null,null,null,null,null,null,null,null,null,null,null,null,null,null,null,null,null,null,null,null,null,null,null,null,null,null,null,null,null,null,null,null,null,null,null,null,null,null,null,null,null,null,null,null,null,"AG-102","Kamelya (11 x 11 cm) Demir galvaniz Ayak AG-102","Adet","AG-102","catalog/metal-ayak/AG-102-a.jpg",30,null,"catalog/metal-ayak/AG-102-a.jpg"]
[null,null,null,null,null,null,null,null,null,null,null,null,null,null,null,null,null,null,null,null,null,null,null,null,null,null,null,null,null,null,null,null,null,null,null,null,null,null,null,null,null,null,null,null,null,null,null,null,null,null,"AG-103","Kamelya (12,5 x 12,5 cm) Demir galvaniz Ayak AG-103","Adet","AG-103","catalog/metal-ayak/AG-103-a.jpg",31.32,null,"catalog/metal-ayak/AG-103-a.jpg"]
[null,null,null,null,null,null,null,null,null,null,null,null,null,null,null,null,null,null,null,null,null,null,null,null,null,null,null,null,null,null,null,null,null,null,null,null,null,null,null,null,null,null,null,null,null,null,null,null,null,null,"AG-104","Çit Demir galvaniz Ayak (9,5 x 9,5 cm) AG-104","Adet","AG-104","catalog/metal-ayak/AG-104-a.jpg",46,null,"catalog/metal-ayak/AG-104-a.jpg"]
[null,null,null,null,null,null,null,null,null,null,null,null,null,null,null,null,null,null,null,null,null,null,null,null,null,null,null,null,null,null,null,null,null,null,null,null,null,null,null,null,null,null,null,null,null,null,null,null,null,null,"AG-111","Demir Masa Tabla Ayakları AG-111","Adet","AG-111","catalog/metal-ayak/AG-111-metal-masa-ayak-01.jpg",464,null,"catalog/metal-ayak/AG-111-metal-masa-ayak-01.jpg"]
[null,null,null,null,null,null,null,null,null,null,null,null,null,null,null,null,null,null,null,null,null,null,null,null,null,null,null,null,null,null,null,null,null,null,null,null,null,null,null,null,null,null,null,null,null,null,null,null,null,null,"XP-03","Epoksi Masa Tablası  XP-03","Adet","XP-03","catalog/Epoxi-Masa/epoksi-ahsap-ceviz-mese-kestane-masa-XP-03.jpg",3480,null,"catalog/Epoxi-Masa/epoksi-ahsap-ceviz-mese-kestane-masa-XP-03.jpg"]
[null,null,null,null,null,null,null,null,null,null,null,null,null,null,null,null,null,null,null,null,null,null,null,null,null,null,null,null,null,null,null,null,null,null,null,null,null,null,null,null,null,null,null,null,null,null,null,null,null,null,"XP-04","Epoksi Masa Tablası  XP-04","Adet","XP-04","catalog/Epoxi-Masa/epoksi-ahsap-ceviz-mese-kestane-masa-XP-04.jpg",4060,null,"catalog/Epoxi-Masa/epoksi-ahsap-ceviz-mese-kestane-masa-XP-04.jpg"]
[null,null,null,null,null,null,null,null,null,null,null,null,null,null,null,null,null,null,null,null,null,null,null,null,null,null,null,null,null,null,null,null,null,null,null,null,null,null,null,null,null,null,null,null,null,null,null,null,null,null,"XP-05","Epoksi Masa Tablası  XP-05","Adet","XP-05","catalog/Epoxi-Masa/epoksi-ahsap-ceviz-mese-kestane-masa-XP-05.jpg",3480,null,"catalog/Epoxi-Masa/epoksi-ahsap-ceviz-mese-kestane-masa-XP-05.jpg"]
[null,null,null,null,null,null,null,null,null,null,null,null,null,null,null,null,null,null,null,null,null,null,null,null,null,null,null,null,null,null,null,null,null,null,null,null,null,null,null,null,null,null,null,null,null,null,null,null,null,null,"XP-06","Epoksi Masa Tablası  XP-06","Adet","XP-06","catalog/Epoxi-Masa/epoksi-ahsap-ceviz-mese-kestane-masa-XP-06.jpg",2900,null,"catalog/Epoxi-Masa/epoksi-ahsap-ceviz-mese-kestane-masa-XP-06.jpg"]
[null,null,null,null,null,null,null,null,null,null,null,null,null,null,null,null,null,null,null,null,null,null,null,null,null,null,null,null,null,null,null,null,null,null,null,null,null,null,null,null,null,null,null,null,null,null,null,null,null,null,"XP-07","Epoksi Masa Tablası  XP-07","Adet","XP-07","catalog/Epoxi-Masa/epoksi-ahsap-ceviz-mese-kestane-masa-XP-07.jpg",2668,null,"catalog/Epoxi-Masa/epoksi-ahsap-ceviz-mese-kestane-masa-XP-07.jpg"]
[null,null,null,null,null,null,null,null,null,null,null,null,null,null,null,null,null,null,null,null,null,null,null,null,null,null,null,null,null,null,null,null,null,null,null,null,null,null,null,null,null,null,null,null,null,null,null,null,null,null,"XP-08","Epoksi Masa Tablası  XP-08","Adet","XP-08","catalog/Epoxi-Masa/epoksi-ahsap-ceviz-mese-kestane-masa-XP-08.jpg",3480,null,"catalog/Epoxi-Masa/epoksi-ahsap-ceviz-mese-kestane-masa-XP-08.jpg"]
[null,null,null,null,null,null,null,null,null,null,null,null,null,null,null,null,null,null,null,null,null,null,null,null,null,null,null,null,null,null,null,null,null,null,null,null,null,null,null,null,null,null,null,null,null,null,null,null,null,null,"XP-09","Epoksi Masa Tablası  XP-09","Adet","XP-09","catalog/Epoxi-Masa/epoksi-ahsap-ceviz-mese-kestane-masa-XP-09.jpg",1508,null,"catalog/Epoxi-Masa/epoksi-ahsap-ceviz-mese-kestane-masa-XP-09.jpg"]
[null,null,null,null,null,null,null,null,null,null,null,null,null,null,null,null,null,null,null,null,null,null,null,null,null,null,null,null,null,null,null,null,null,null,null,null,null,null,null,null,null,null,null,null,null,null,null,null,null,null,"XP-10","Epoksi Masa Tablası  XP-10","Adet","XP-10","catalog/Epoxi-Masa/epoksi-ahsap-ceviz-mese-kestane-masa-XP-10.jpg",6960,null,"catalog/Epoxi-Masa/epoksi-ahsap-ceviz-mese-kestane-masa-XP-10.jpg"]
[null,null,null,null,null,null,null,null,null,null,null,null,null,null,null,null,null,null,null,null,null,null,null,null,null,null,null,null,null,null,null,null,null,null,null,null,null,null,null,null,null,null,null,null,null,null,null,null,null,null,"UK-105","TAVUK ve KANATLI HAYVAN KÜMESİ UK-105","Adet","UK-105","catalog/kumes/UK-105/tavuk-ve-kanatli-hayvan-kumesi-UK-105-03.jpg",4640,null,"catalog/kumes/UK-105/tavuk-ve-kanatli-hayvan-kumesi-UK-105-03.jpg"]
[null,null,null,null,null,null,null,null,null,null,null,null,null,null,null,null,null,null,null,null,null,null,null,null,null,null,null,null,null,null,null,null,null,null,null,null,null,null,null,null,null,null,null,null,null,null,null,null,null,null,"UK-106","TAVUK ve KANATLI HAYVAN KÜMESİ UK-106","Adet","UK-106","catalog/kumes/UK-106/tavuk-kumesi-ve-guvercin-kumesi-www.kayalarkereste.com-uk-106-01.jpg",3712,null,"catalog/kumes/UK-106/tavuk-kumesi-ve-guvercin-kumesi-www.kayalarkereste.com-uk-106-01.jpg"]
[null,null,null,null,null,null,null,null,null,null,null,null,null,null,null,null,null,null,null,null,null,null,null,null,null,null,null,null,null,null,null,null,null,null,null,null,null,null,null,null,null,null,null,null,null,null,null,null,null,null,"KM-164","Kamelya - Çardak  164","Adet","KM-164","catalog/Kamelya-cardak/KM-164/KM-164-kamelya-ahsap-dinlenme-alani-kis-bahcesi-cardak-gazebo-fiyatlari-www.kayalarkereste.com- 01.jpg",9600,null,"catalog/Kamelya-cardak/KM-164/KM-164-kamelya-ahsap-dinlenme-alani-kis-bahcesi-cardak-gazebo-fiyatlari-www.kayalarkereste.com- 01.jpg"]
[null,null,null,null,null,null,null,null,null,null,null,null,null,null,null,null,null,null,null,null,null,null,null,null,null,null,null,null,null,null,null,null,null,null,null,null,null,null,null,null,null,null,null,null,null,null,null,null,null,null,"PM-101","PM-101 Piknik Masa Sibirya Ağacı","Adet","PM-101","catalog/Piknik-Masa/PM-101/ahsap-piknik-masa-fiyatlari-ucuz-kir-piknik-masa-cesitleri-www.kayalarahsap.com-PM-101-10.jpg",700,null,"catalog/Piknik-Masa/PM-101/ahsap-piknik-masa-fiyatlari-ucuz-kir-piknik-masa-cesitleri-www.kayalarahsap.com-PM-101-10.jpg"]
[null,null,null,null,null,null,null,null,null,null,null,null,null,null,null,null,null,null,null,null,null,null,null,null,null,null,null,null,null,null,null,null,null,null,null,null,null,null,null,null,null,null,null,null,null,null,null,null,null,null,"PR-108","Ahşap Pergola  PR-108","Adet","PR-108","catalog/pergola/PR-108/PR-108-pergola-ahsap-cardak-gazebo-fiyatlari-www.kayalarkereste.com- 02.jpg",5500,null,"catalog/pergola/PR-108/PR-108-pergola-ahsap-cardak-gazebo-fiyatlari-www.kayalarkereste.com- 02.jpg"]
[null,null,null,null,null,null,null,null,null,null,null,null,null,null,null,null,null,null,null,null,null,null,null,null,null,null,null,null,null,null,null,null,null,null,null,null,null,null,null,null,null,null,null,null,null,null,null,null,null,null,"KM-167","Kamelya - Çardak sigara içme dinlenme alanı 167","Adet","KM-167","2018/07/fabrika-dinlenme-alani-sigara-icme-alani-gebze-tuzla-sekerpinar-kocaeli-KM-167-3.jpg",10500,null,"2018/07/fabrika-dinlenme-alani-sigara-icme-alani-gebze-tuzla-sekerpinar-kocaeli-KM-167-3.jpg"]
[null,null,null,null,null,null,null,null,null,null,null,null,null,null,null,null,null,null,null,null,null,null,null,null,null,null,null,null,null,null,null,null,null,null,null,null,null,null,null,null,null,null,null,null,null,null,null,null,null,null,"KM-165","Kamelya - Çardak  165","Adet","KM-165","catalog/Kamelya-cardak/KM-165/KM-165-ahsap-kuuk-hazir-kamelya-bahce-cardak-gazebo-fiyatlari-ucuz-kamelya-kameriye-www.kayalarkereste.com-01.jpg",3200,null,"catalog/Kamelya-cardak/KM-165/KM-165-ahsap-kuuk-hazir-kamelya-bahce-cardak-gazebo-fiyatlari-ucuz-kamelya-kameriye-www.kayalarkereste.com-01.jpg"]
[null,null,null,null,null,null,null,null,null,null,null,null,null,null,null,null,null,null,null,null,null,null,null,null,null,null,null,null,null,null,null,null,null,null,null,null,null,null,null,null,null,null,null,null,null,null,null,null,null,null,"KM-166","Kamelya - Çardak sigara içme dinlenme alanı 166","M2","KM-166","catalog/Kamelya-cardak/KM-166/KM-166-ahsap-sigara-icme-dinlenme-kamelya-bahce-cardak-gebze-tuzla-fiyatlari-www.kayalarkereste.com-3.jpg",800,null,"catalog/Kamelya-cardak/KM-166/KM-166-ahsap-sigara-icme-dinlenme-kamelya-bahce-cardak-gebze-tuzla-fiyatlari-www.kayalarkereste.com-3.jpg"]
[null,null,null,null,null,null,null,null,null,null,null,null,null,null,null,null,null,null,null,null,null,null,null,null,null,null,null,null,null,null,null,null,null,null,null,null,null,null,null,null,null,null,null,null,null,null,null,null,null,null,"KM-168","Kamelya - Çardak sigara içme dinlenme alanı 168","M2","KM-168","catalog/Kamelya-cardak/KM-168 GEZER-PLASTITEK/KM-168-ahsap-sigara-icme-dinlenme-kamelya-bahce-cardak-gebze-tuzla-fiyatlari-www.kayalarkereste.com-11.jpg",800,null,"catalog/Kamelya-cardak/KM-168 GEZER-PLASTITEK/KM-168-ahsap-sigara-icme-dinlenme-kamelya-bahce-cardak-gebze-tuzla-fiyatlari-www.kayalarkereste.com-11.jpg"]
[null,null,null,null,null,null,null,null,null,null,null,null,null,null,null,null,null,null,null,null,null,null,null,null,null,null,null,null,null,null,null,null,null,null,null,null,null,null,null,null,null,null,null,null,null,null,null,null,null,null,"KM-169","Kamelya - Çardak sigara içme dinlenme alanı 169","Adet","KM-169","catalog/Kamelya-cardak/KM-169 3X3 CNC/KM-169-ahsap-dinlenme-kamelya-bahce-cardak-gebze-tuzla-fiyatlari-www.kayalarkereste.com-5.jpg",6000,null,"catalog/Kamelya-cardak/KM-169 3X3 CNC/KM-169-ahsap-dinlenme-kamelya-bahce-cardak-gebze-tuzla-fiyatlari-www.kayalarkereste.com-5.jpg"]
[null,null,null,null,null,null,null,null,null,null,null,null,null,null,null,null,null,null,null,null,null,null,null,null,null,null,null,null,null,null,null,null,null,null,null,null,null,null,null,null,null,null,null,null,null,null,null,null,null,null,"KM-173","Kamelya - Çardak sigara içme dinlenme alanı 173","M2","KM-173","catalog/Kamelya-cardak/KM-173 DERI-SAN-6X3/KM-173-ahsap-dinlenme-kamelya-bahce-cardak-gebze-tuzla-fiyatlari-www.kayalarkereste.com-1.jpg",650,null,"catalog/Kamelya-cardak/KM-173 DERI-SAN-6X3/KM-173-ahsap-dinlenme-kamelya-bahce-cardak-gebze-tuzla-fiyatlari-www.kayalarkereste.com-1.jpg"]
[null,null,null,null,null,null,null,null,null,null,null,null,null,null,null,null,null,null,null,null,null,null,null,null,null,null,null,null,null,null,null,null,null,null,null,null,null,null,null,null,null,null,null,null,null,null,null,null,null,null,"KM-174","Kamelya - Çardak sigara içme dinlenme alanı 174","Adet","KM-174","catalog/Kamelya-cardak/KM-174/km-174-ahsap-veranda-kamelya-cardak-kameriye-fiyatlari-www.kayalarkereste.com-07.jpg",8000,null,"catalog/Kamelya-cardak/KM-174/km-174-ahsap-veranda-kamelya-cardak-kameriye-fiyatlari-www.kayalarkereste.com-07.jpg"]
[null,null,null,null,null,null,null,null,null,null,null,null,null,null,null,null,null,null,null,null,null,null,null,null,null,null,null,null,null,null,null,null,null,null,null,null,null,null,null,null,null,null,null,null,null,null,null,null,null,null,"VH-110","Ahşap Çocuk Oyun Evi VH-110","Adet","VH-110","catalog/cocuk-evi/VH-110/VH-110-ahsap-cocuk-oyun-evi-02.jpg",11000,null,"catalog/cocuk-evi/VH-110/VH-110-ahsap-cocuk-oyun-evi-02.jpg"]
[null,null,null,null,null,null,null,null,null,null,null,null,null,null,null,null,null,null,null,null,null,null,null,null,null,null,null,null,null,null,null,null,null,null,null,null,null,null,null,null,null,null,null,null,null,null,null,null,null,null,"VH-111","Ahşap Çocuk Oyun Evi VH-111","Adet","VH-111","catalog/cocuk-evi/VH-111/VH-111-ahsap-cocuk-oyun-evi-fiyatlari-cesitleri-resimleri-gebze-tuzla-pendik-sile-www.kayalarkereste.com-01.gif",9500,null,"catalog/cocuk-evi/VH-111/VH-111-ahsap-cocuk-oyun-evi-fiyatlari-cesitleri-resimleri-gebze-tuzla-pendik-sile-www.kayalarkereste.com-01.gif"]
[null,null,null,null,null,null,null,null,null,null,null,null,null,null,null,null,null,null,null,null,null,null,null,null,null,null,null,null,null,null,null,null,null,null,null,null,null,null,null,null,null,null,null,null,null,null,null,null,null,null,"AC-105","Ahşap Çit Korkuluk  AC-105","Metre","AC-105","catalog/cit-korkuluk/AC-105/AC-105-ahsap-cit-korkuluk-fiyatlari-cesitleri-resimleri-www.kayalarkereste.com-04.jpg",120,null,"catalog/cit-korkuluk/AC-105/AC-105-ahsap-cit-korkuluk-fiyatlari-cesitleri-resimleri-www.kayalarkereste.com-04.jpg"]
[null,null,null,null,null,null,null,null,null,null,null,null,null,null,null,null,null,null,null,null,null,null,null,null,null,null,null,null,null,null,null,null,null,null,null,null,null,null,null,null,null,null,null,null,null,null,null,null,null,null,"AC-106","Ahşap Çit Korkuluk  AC-106","Metre","AC-106","catalog/cit-korkuluk/AC-106/ac-105-ahsap-cit-korkuluk-modelleri-fiyatlari-resimleri-gebze-tuzla-www.kayalarkereste.com-015.jpg",180,null,"catalog/cit-korkuluk/AC-106/ac-105-ahsap-cit-korkuluk-modelleri-fiyatlari-resimleri-gebze-tuzla-www.kayalarkereste.com-015.jpg"]
[null,null,null,null,null,null,null,null,null,null,null,null,null,null,null,null,null,null,null,null,null,null,null,null,null,null,null,null,null,null,null,null,null,null,null,null,null,null,null,null,null,null,null,null,null,null,null,null,null,null,"VR-101","Veranda - Sundurma VR-101","M2","VR-101","catalog/Veranda/VR-101/IMG_1737.jpg",0,null,"catalog/Veranda/VR-101/IMG_1737.jpg"]
[null,null,null,null,null,null,null,null,null,null,null,null,null,null,null,null,null,null,null,null,null,null,null,null,null,null,null,null,null,null,null,null,null,null,null,null,null,null,null,null,null,null,null,null,null,null,null,null,null,null,"VR-102","Veranda - Sundurma VR-102","m2","VR-102","catalog/Veranda/VR-102/IMG_2399.jpg",0,null,"catalog/Veranda/VR-102/IMG_2399.jpg"]
[null,null,null,null,null,null,null,null,null,null,null,null,null,null,null,null,null,null,null,null,null,null,null,null,null,null,null,null,null,null,null,null,null,null,null,null,null,null,null,null,null,null,null,null,null,null,null,null,null,null,"VR-103","Veranda - Sundurma VR-102","M2","VR-103","catalog/Veranda/VR-103/VR-103-ahsap-veranda-sundurma-fiyatlari-cesitleri-istanbul-www.kayalarkereste.com-02.gif",0,null,"catalog/Veranda/VR-103/VR-103-ahsap-veranda-sundurma-fiyatlari-cesitleri-istanbul-www.kayalarkereste.com-02.gif"]
[null,null,null,null,null,null,null,null,null,null,null,null,null,null,null,null,null,null,null,null,null,null,null,null,null,null,null,null,null,null,null,null,null,null,null,null,null,null,null,null,null,null,null,null,null,null,null,null,null,null,"KS-107","6,5 x 12,5 x 6 boy Silinmiş Kereste SİBİRYA LADİN -KS-107","M3","KS-107","catalog/silinmis-kereste/ks-103-cam-dogramalik-silinmis-sinif-kereste-5x15-01.jpg",2300,null,"catalog/silinmis-kereste/ks-103-cam-dogramalik-silinmis-sinif-kereste-5x15-01.jpg"]
[null,null,null,null,null,null,null,null,null,null,null,null,null,null,null,null,null,null,null,null,null,null,null,null,null,null,null,null,null,null,null,null,null,null,null,null,null,null,null,null,null,null,null,null,null,null,null,null,null,null,"AV-111","Ahşap Bungalov ev [AV-111]","M2","AV-111","catalog/Ev/av-111/av-111-bungalov-kulube-ahsap-ev-kutuk--kulube-ev-fiyatlari-yapimi-maliyeti-resimleri-gebze-www.kayalarahsap.com-013.jpg",1600,null,"catalog/Ev/av-111/av-111-bungalov-kulube-ahsap-ev-kutuk--kulube-ev-fiyatlari-yapimi-maliyeti-resimleri-gebze-www.kayalarahsap.com-013.jpg"]
[null,null,null,null,null,null,null,null,null,null,null,null,null,null,null,null,null,null,null,null,null,null,null,null,null,null,null,null,null,null,null,null,null,null,null,null,null,null,null,null,null,null,null,null,null,null,null,null,null,null,"AV-104","Ahşap Bungalov Ev  (AV-104)",null,"AV-104","catalog/Ev/AV-104/av-104-Ahsap-ev-kutuk-bungalov-ev-fiyatlari-cesitleri-yapimi-maliyeti-www.kayalarahsap.com-12.jpg",1566,null,"catalog/Ev/AV-104/av-104-Ahsap-ev-kutuk-bungalov-ev-fiyatlari-cesitleri-yapimi-maliyeti-www.kayalarahsap.com-12.jpg"]
[null,null,null,null,null,null,null,null,null,null,null,null,null,null,null,null,null,null,null,null,null,null,null,null,null,null,null,null,null,null,null,null,null,null,null,null,null,null,null,null,null,null,null,null,null,null,null,null,null,null,"AG-112","Demir Masa Tabla Ayakları AG-112",null,"AG-112","catalog/metal-ayak/AG-112-metal-masa-ayak-03.jpg",464,null,"catalog/metal-ayak/AG-112-metal-masa-ayak-03.jpg"]
[null,null,null,null,null,null,null,null,null,null,null,null,null,null,null,null,null,null,null,null,null,null,null,null,null,null,null,null,null,null,null,null,null,null,null,null,null,null,null,null,null,null,null,null,null,null,null,null,null,null,"KR-102","İnşaatlık Kereste (43 x 93) - (93 x 93)  [KR-102]",null,"KR-102","catalog/Kereste/Kereste_b.JPG",990,null,"catalog/Kereste/Kereste_b.JPG"]
[null,null,null,null,null,null,null,null,null,null,null,null,null,null,null,null,null,null,null,null,null,null,null,null,null,null,null,null,null,null,null,null,null,null,null,null,null,null,null,null,null,null,null,null,null,null,null,null,null,null,"KR-103","İnşaatlık Kereste (45 x 95) - (95 x 95)  [KR-103]",null,"KR-103","catalog/Kereste/Kereste_3.jpg",990,null,"catalog/Kereste/Kereste_3.jpg"]
[null,null,null,null,null,null,null,null,null,null,null,null,null,null,null,null,null,null,null,null,null,null,null,null,null,null,null,null,null,null,null,null,null,null,null,null,null,null,null,null,null,null,null,null,null,null,null,null,null,null,"UB-80","BANK Yuvarlak UB-80","Adet","UB-80","catalog/Bank/UB-80/ahsap-cam-dis-mekan-altigen-bank-oturma-gruplari-fiyatlari-resimleri-www.parkbahcemobilya.com-UB-80-05.jpg",865,null,"catalog/Bank/UB-80/ahsap-cam-dis-mekan-altigen-bank-oturma-gruplari-fiyatlari-resimleri-www.parkbahcemobilya.com-UB-80-05.jpg"]
[null,null,null,null,null,null,null,null,null,null,null,null,null,null,null,null,null,null,null,null,null,null,null,null,null,null,null,null,null,null,null,null,null,null,null,null,null,null,null,null,null,null,null,null,null,null,null,null,null,null,"KR-104","İnşaatlık Tahta  [KR-104]","m3","KR-104","catalog/Kereste/Tahta_kereste.JPG",990,null,"catalog/Kereste/Tahta_kereste.JPG"]
[null,null,null,null,null,null,null,null,null,null,null,null,null,null,null,null,null,null,null,null,null,null,null,null,null,null,null,null,null,null,null,null,null,null,null,null,null,null,null,null,null,null,null,null,null,null,null,null,null,null,"KR-111","OSB 11mm  [KR-111]","Adet","KR-111","catalog/Kereste/Tahta_kereste.JPG",58,null,"catalog/Kereste/Tahta_kereste.JPG"]
[null,null,null,null,null,null,null,null,null,null,null,null,null,null,null,null,null,null,null,null,null,null,null,null,null,null,null,null,null,null,null,null,null,null,null,null,null,null,null,null,null,null,null,null,null,null,null,null,null,null,"AV-113","Ahşap Bungalov ev  [AV-113]","M2","AV-113","catalog/Ev/av-113/av-113-ahsap-kutuk-bungalov-ev-fiyatlari-01.jpg",1600,null,"catalog/Ev/av-113/av-113-ahsap-kutuk-bungalov-ev-fiyatlari-01.jpg"]
[null,null,null,null,null,null,null,null,null,null,null,null,null,null,null,null,null,null,null,null,null,null,null,null,null,null,null,null,null,null,null,null,null,null,null,null,null,null,null,null,null,null,null,null,null,null,null,null,null,null,"AV-114","Ahşap Bungalov Yalı baskı Ev [AV-114]","M2","AV-114","catalog/Ev/av-114/av-114-ahsap-kutuk-bungalov-ev-fiyatlari-tas-ev-yapimi-15.jpg",1,null,"catalog/Ev/av-114/av-114-ahsap-kutuk-bungalov-ev-fiyatlari-tas-ev-yapimi-15.jpg"]

{"sheet":"WEB İÇİN","index":2,"n_rows":262,"n_cols":77,"rows_kept":262,"cut":false,"hidden":false,"merged":[[59,0,59,11],[60,0,60,11],[61,0,61,11],[62,0,62,11],[54,0,54,5],[55,0,55,5],[56,2,56,10],[57,2,57,10],[54,8,54,10],[54,11,54,12],[52,0,52,5],[53,0,53,5],[52,8,52,10],[52,11,52,12],[53,8,53,10],[53,11,53,12],[50,0,50,5],[51,0,51,5],[50,8,50,10],[50,11,50,12],[51,8,51,10],[51,11,51,12],[18,17,18,19],[49,0,49,11],[48,8,48,9],[48,0,48,7],[47,10,47,11],[42,8,42,9],[43,8,43,9],[44,8,44,9],[46,10,46,11],[44,0,44,7],[45,0,45,7],[47,8,47,9],[46,0,46,7],[47,0,47,7],[46,8,46,9],[48,10,48,11],[17,36,17,38],[17,42,17,43],[17,2,17,11],[9,2,9,11],[10,2,10,11],[11,2,11,11],[12,2,12,11],[13,2,13,11],[0,0,0,11],[1,0,1,11],[2,0,2,11],[3,0,3,11],[5,0,5,11],[4,0,4,11],[6,0,6,11],[18,0,18,11],[42,10,42,11],[43,10,43,11],[44,10,44,11],[7,0,7,11],[14,2,14,11],[8,0,8,11],[16,2,16,11],[45,10,45,11],[45,8,45,9],[42,0,42,7],[43,0,43,7],[15,2,15,11]]}
["Demka Kereste",null,null,null,null,null,null,null,null,null,null,null,null,"KOPYALA"]
[]
[]
[]
[]
[]
[]
[null,null,null,null,null,null,null,null,null,null,null,null,null,null,null,null,null,null,null,null,null,null,null,null,null," "]
[]
["Konu :",null,"Kamelya Teklifi"]
["Firma :",null,"Design Office"]
["İlgili :",null,"Yavuz Demircioğlu"]
["Tarih :",null,"2019-11-08"]
["Mail :",null,"info@demkakereste.com"]
["Opsiyon :",null,"15 Gün"]
["Vade :",null,"Nakit"]
["Teslimat :",null,"Yerinde kurulum nakliye dahil"]
["Stok :",null,"Yarı Hazır Mamül",null,null,null,null,null,null,null,null,null,null,null,null,null,null,null,null,null,null,"1 Ad. cm"]
[null,null,null,null,null,null,null,null,null,null,null,null,null,null,null,null,null,"Kalın Ölç Fiyatı",null,null,null,"kapattığı ","Fiyat","1 m3 kapattığı","aktif satır"]
["KOD",null,"Cinsi",null,"En","Kln","Boy","Miktar","Fiyat","K.D.V","m2","Tutar",null,null,null,null,null,"EN","Kln","Fiyat","M3 /ad.","genişlik","M2"," Alan","Kapattığı M2",null,null,null,null,null,"KOD","Ürün İsmi","Açıklama","Tane mi","Net Ölçü Fiyatı","+kdv","Boy","Kln","En",null,"Fiyatı m3",null,"kln","en",null,"genişlik kaç cm dir  ?","m2 Fiyatı","Kapattığı alan"]
["lm-103",null,"Ahşap Kamelya halı saha","a",500,null,400,1,1100,null,null,{"$f":"IFERROR(IF(D21=\"a\",(E21*G21*H21*I21/10000),IF(K21<>\"\",(I21+J21)*K21/1000,\"\")),\"\")","v":22000},null,{"$f":"IFERROR(IF(D21=\"a\",(J21*H21)/1,IF(K21<>\"\",J21*K21/1000,\"\")),\"\")","v":0},{"$f":"IFERROR(IF(D21=\"a\",(I21*H21)/1,IF(K21<>\"\",I21*K21/1000,\"\")),\"\")","v":1100},null,null,{"$f":"IF(COUNTA(E21)>=1,IF(E21<4,2.6,IF(E21<5.1,5,IF(E21<10.1,10,IF(E21<15,15)))),\"\")","v":false},{"$f":"IFERROR(IF(F21<=2.6,2.6,IF(F21<5.1,5,IF(F21<10.1,10,IF(F21<15,15)))),\"\")","v":2.6},{"$f":"IFERROR(E21*F21*I21/R21/S21,\"\")","v":""},{"$f":"IFERROR(IF(H21<>\"\",(1000/G21/F21/E21*1000),\"\"),\"\")","v":""},{"$f":"IFERROR(VLOOKUP(C21,AF:AT,15,FALSE),\"\")","v":""},{"$f":"IFERROR(I21/((100/E21/F21)*V21),\"\")","v":""},{"$f":"IFERROR((100/E21/F21)*V21,\"\")","v":""},{"$f":"IFERROR(V21*G21*H21/10000,\"\")","v":""},null,{"$f":"IFERROR(HYPERLINK((VLOOKUP(AB21,BA:BE,5,FALSE)),\" ████ Kod: \"),\"Kod :\")","v":"Kod :"},"LM-116",null,null,"KR-107","Kereste 5 x 10 Ukrayna","Ukrayna inşaatlık",null,990,{"$f":"AI21*0.18","v":178.2},300,5,10,null,{"$f":"IFERROR(AI21*AM21*AL21/AR21/AQ21,\"\")","v":990},null,5,10,null,null,{"$f":"IFERROR(AI21/((100/AQ21/AR21)*AT21),\"\")","v":""},{"$f":"IF(AH21<>\"\",\"\",IFERROR((100/AQ21/AR21)*AT21,\"\"))","v":0},null,null,"name(tr)","sku","model","image_name","price",null,null,null,null,null,null,null,null,null,null,null,null,null,null,null,null,null,null,"Kalınlık","En","3 Boy Adet","4 Boy Adet"]
["LM-113",null,"Sehpa - masa","a",60,60,120,12,500,null,null,{"$f":"IFERROR(IF(D22=\"a\",(I22+J22)*H22,IF(K22<>\"\",(I22+J22)*K22/1000,\"\")),\"\")","v":6000},null,{"$f":"IFERROR(IF(D22=\"a\",(J22*H22)/1,IF(K22<>\"\",J22*K22/1000,\"\")),\"\")","v":0},{"$f":"IFERROR(IF(D22=\"a\",(I22*H22)/1,IF(K22<>\"\",I22*K22/1000,\"\")),\"\")","v":6000},null,null,false,false,"",2.3148148148148153,"","","","",null,"Cins :",{"$f":"CONCATENATE(IFERROR(VLOOKUP(AB21,AE:AF,2,FALSE),\"\"),\" - \",IFERROR(VLOOKUP(AB21,AE:AG,3,FALSE),\"\"))","v":"Cephe  12 cm geniş Ukrayna - Ukrayna"},null,null,"KR-108","Kereste 10 x 10 Ukrayna","Ukrayna inşaatlık",null,990,178.2,300,10,10,null,990,null,10,10,null,null,"",0,null,{"$f":"HYPERLINK(BE22,BA22)","v":{"$error":"#REF!"}},"PM-103 Piknik Masa ","Adet","PM-103","catalog/Piknik-Masa/PM-103/PM-103-piknik-masa-ucuz-fiyatlari-imalati-resimleri- www.kayalarkereste.com-01.jpg",870,null,{"$f":"CONCATENATE(#REF!, BB22)","v":{"$error":"#REF!"}},null,null,null,null,null,null,null,null,null,null,null,null,null,null,null,"inşaatlık kereste",91,41,{"$f":"1000000/300/5/10","v":66.666666666666671},{"$f":"1000000/400/5/10","v":50}]
["catalog/Piknik-Masa/PM-109/pm-109-ahsap-piknik-masa-fiyatlari-09",null,"Sehpa - masa","a",60,60,80,17,420,null,null,7140,null,{"$f":"IFERROR(IF(D23=\"a\",(J23*H23)/1,IF(K23<>\"\",J23*K23/1000,\"\")),\"\")","v":0},{"$f":"IFERROR(IF(D23=\"a\",(I23*H23)/1,IF(K23<>\"\",I23*K23/1000,\"\")),\"\")","v":7140},null,null,false,false,"",3.4722222222222223,"","","","",null,"En :",{"$f":"IFERROR(VLOOKUP(AB21,AE:AM,9,FALSE),\"\")","v":12},null,null,"KR-101","Kereste 41 x 91 Ukrayna","Ukrayna inşaatlık",null,990,178.2,300,4.0999999999999996,9.1,null,738.73799999999994,null,5,10,null,null,"",0,null,{"$error":"#REF!"},"SA-102 Ahşap Salıncak ","Adet","SA-102","catalog/Piknik-Masa/SA-102/SA-102-ahsap-salincak-fiyatlari-esitleri-istanbul-08.jpg",2300,null,{"$f":"CONCATENATE(#REF!, BB23)","v":{"$error":"#REF!"}},null,null,null,null,null,null,null,null,null,null,null,null,null,null,null,"inşaatlık kereste",91,91,{"$f":"1000000/300/10/10","v":33.333333333333336},{"$f":"1000000/400/10/10","v":25}]
["KS-100",null,"Eski Kamelya Pileksi Camlar 4mm",{"$f":"IF(IFERROR(VLOOKUP(C24,AF:AH,3,FALSE),\"\")<>\"\",\"a\",\"\")","v":""},154,null,130,14,520,null,{"$f":"E24*G24*H24/10000","v":28.027999999999999},{"$f":"K24*I24","v":14574.56},null,0,{"$f":"IFERROR(IF(D24=\"a\",(I24*H24)/1,IF(K24<>\"\",I24*K24/1000,\"\")),\"\")","v":14.57456},null,null,false,2.6,"","","","","","",null,"Net Kalınlık :",{"$f":"IFERROR(VLOOKUP(AB21,AE:AQ,8,FALSE),\"\")","v":3.5},null,null,"KR-102","Kereste 91 x 91 Ukrayna","Ukrayna inşaatlık","b",990,178.2,300,9.1,9.1,null,819.81899999999985,null,10,10,null,null,"","",null,{"$error":"#REF!"},"PM-104 Piknik Masa","Adet","PM-104","catalog/Piknik-Masa/PM-104/pm-104-piknik-masa-fiyatlari-01.jpg",928,null,{"$f":"CONCATENATE(#REF!, BB24)","v":{"$error":"#REF!"}},null,null,null,null,null,null,null,null,null,null,null,null,null,null,null,"inşaatlık kereste",43,93,{"$f":"1000000/300/5/10","v":66.666666666666671},{"$f":"1000000/400/5/10","v":50}]
["LM-103",null,{"$f":"IFERROR(VLOOKUP(A25,AE:AF,2,FALSE),\"\")","v":"Lambiri Extra Ukrayna"},"",{"$f":"IFERROR(VLOOKUP(A25,AE:AT,14,FALSE),\"\")","v":12},{"$f":"IFERROR(VLOOKUP(A25,AE:AT,13,FALSE),\"\")","v":2.6},{"$f":"IFERROR(VLOOKUP(A25,AE:AK,7,FALSE),\"\")","v":300},null,{"$f":"IFERROR(VLOOKUP(A25,AE:AI,5,FALSE),\"\")","v":1800},null,{"$f":"IFERROR((E25*F25*G25*H25)/1000,\"\")","v":0},0,null,0,0,null,null,15,2.6,1440.0000000000002,"",11,51.054545454545455,35.256410256410255,0,null,"Önceki Ham Kalınlık :",{"$f":"IFERROR(VLOOKUP(AB21,AE:AQ,13,FALSE),\"\")","v":3.5},null,null,"KR-103","Kereste 43 x 93 Ukrayna","Ukrayna inşaatlık",null,990,178.2,300,4.3,9.3000000000000007,null,791.80199999999991,null,5,10,null,null,"",0,null,{"$error":"#REF!"},"PM-106 Piknik Masa","Adet","PM-106","catalog/Piknik-Masa/PM-106/pm-106-ahsap-piknik-kir-masa-03.jpg",638,null,{"$f":"CONCATENATE(#REF!, BB25)","v":{"$error":"#REF!"}},null,null,null,null,null,null,null,null,null,null,null,null,null,null,null,"inşaatlık kereste",93,93,{"$f":"1000000/300/10/10","v":33.333333333333336},{"$f":"1000000/400/10/10","v":25}]
[null,null,"Ahşap Kamelya Ambar Bölüm","",500,"",500,1,1100,null,"",{"$f":"IFERROR(IF(D21=\"a\",(E26*G26*H26*I26/10000),IF(K21<>\"\",(I21+J21)*K21/1000,\"\")),\"\")","v":27500},null,"","",null,null,false,false,"","","","","","",null,"Boy :",{"$f":"IFERROR(VLOOKUP(AB21,AE:AK,7,FALSE),\"\")","v":400},null,null,"KR-102","Kereste 93 x 93 Ukrayna","Ukrayna inşaatlık",null,990,178.2,300,9.3000000000000007,9.3000000000000007,null,856.25099999999998,null,10,10,null,null,"",0,null,{"$error":"#REF!"},"PM-107 Piknik Masa","Adet","PM-107","catalog/Piknik-Masa/PM-107/PM-107-metal-dokum-ayakli-ahsap-maun-bahce-dis-mekan-masa-01.jpg",672.8,null,{"$f":"CONCATENATE(#REF!, BB26)","v":{"$error":"#REF!"}},null,null,null,null,null,null,null,null,null,null,null,null,null,null,null,"inşaatlık kereste",45,95,{"$f":"1000000/300/5/10","v":66.666666666666671},{"$f":"1000000/400/5/10","v":50}]
["LM-101",null,"Lambiri 1.Sn. Ukrayna","",10,2.6,300,null," ",null,0,"",null,0,"",null,null,10,2.6,"","",7.8,"",29.999999999999996,0,null,"1 adet kapattığı genşlik:",{"$f":"IFERROR(VLOOKUP(AB21,AE:AT,16,FALSE),\"\")","v":9.9},null,null,"KR-105","Kereste 45 x 95 Ukrayna","Ukrayna inşaatlık",null,990,178.2,300,4.5,9.5,null,846.45,null,5,10,null,null,"",0,null,{"$error":"#REF!"},"PM-108 Piknik Masa","Adet","PM-108","catalog/Piknik-Masa/PM-108/pm-108-ahsap-masa-fiyatlari-resimleri-02.jpg",348,null,{"$f":"CONCATENATE(#REF!, BB27)","v":{"$error":"#REF!"}},null,null,null,null,null,null,null,null,null,null,null,null,null,null,null,"inşaatlık kereste",95,95,{"$f":"1000000/300/10/10","v":33.333333333333336},{"$f":"1000000/400/10/10","v":25}]
["lm-102",null,"Lambiri 2.Sn. Ukrayna","",10,2.6,300,null,1450,null,0,0,null,0,0,null,null,10,2.6,1450,"",7.8,48.333333333333336,29.999999999999996,0,null,"Kapatığı Alan :",{"$f":"((1000/AB25/AB23)*AB27)/10","v":23.571428571428573},null,null,"KR-106","Kereste 95 x 95 Ukrayna","Ukrayna inşaatlık",null,990,178.2,300,9.5,9.5,null,893.47500000000002,null,10,10,null,null,"",0,null,{"$error":"#REF!"},"PM-109 Piknik Masa","Adet","PM-109","catalog/Piknik-Masa/PM-109/pm-109-ahsap-piknik-masa-fiyatlari-09.jpg",928,null,{"$f":"CONCATENATE(#REF!, BB28)","v":{"$error":"#REF!"}},null,null,null,null,null,null,null,null,null,null,null,null,null,null,null,"inşaatlık kereste",50,100,{"$f":"1000000/300/5/10","v":66.666666666666671},{"$f":"1000000/400/5/10","v":50}]
["LM-108",null,"Lambiri 1.Sınıf Ukrayna","",10,2.6,300,null,1650,null,0,0,null,0,0,null,null,10,2.6,1650,"",7.8,55.000000000000007,29.999999999999996,0,null,"M3 ü kaç Adet :",{"$f":"1000000/AB23/AB25/AB26","v":59.523809523809526},null,null,"KR-100","Tahta -10-..-20 Ukrayna","Ukrayna inşaatlık",null,990,178.2,300,2.2000000000000002,10,null,837.69230769230762,null,2.6,10,null,null,"",0,null,{"$error":"#REF!"},"PM-111 Ahşap Piknik Masa ","Adet","PM-111","catalog/Piknik-Masa/pm-111/pm-111-ahsap-piknik-masa-yaslanmali-ucuz-fiyatari-www.parkbahcemobilya.com-03.jpg",696,null,{"$f":"CONCATENATE(#REF!, BB29)","v":{"$error":"#REF!"}},null,null,null,null,null,null,null,null,null,null,null,null,null,null,null,"inşaatlık kereste",100,100,{"$f":"1000000/300/10/10","v":33.333333333333336},{"$f":"1000000/400/10/10","v":25}]
[null,null,"","","","","",null,"",null,"","",null,"","",null,null,false,false,"","","","","","",null,"M2' si kaç Adet :",{"$f":"1/(AB26*AB27)*10000","v":2.5252525252525251},null,null,"LM-108","Lambiri 1.Sınıf Ukrayna","Sibirya",null,1650,297,300,2.2000000000000002,10,null,1396.1538461538462,null,2.6,10,null,7.8,55.000000000000007,29.999999999999996,null,{"$error":"#REF!"},"PM-110 Piknik Masa","Adet","PM-110","catalog/Piknik-Masa/pm-110/pm-110-piknik-masa-ucuz-fiyatlari-03.jpg",1044,null,{"$f":"CONCATENATE(#REF!, BB30)","v":{"$error":"#REF!"}}]
[null,null,"","","","","",null,"",null,"","",null,"","",null,null,false,false,"","","","","","",null,"Tanesi Kaç Dm3 :",{"$f":"AB23*AB24*AB26/1000","v":16.8},null,null,"LM-103","Lambiri Extra Ukrayna","Ukrayna",null,1800,324,300,2.6,12,null,1800,null,2.6,12,null,11,51.054545454545455,35.256410256410255,null,{"$error":"#REF!"},"PA-126 Çocuk Oyun Parkı","Adet","PA-126","catalog/Oyun-Park/PA-126/oyun-parki-fiyatlari-salincak-tahterevan-www.ahsapfiyatlistesi.com-PA-126-02.jpg",4700,null,{"$f":"CONCATENATE(#REF!, BB31)","v":{"$error":"#REF!"}},null,null,null,null,null,null,null,null,null,null,null,null,null,null,null,"inşaatlık keresteler  5x10  ve 10x10  Tam ölçü hesaplanır. Kamyon bazında peşin satış fiyatıdır."]
[null,null,"","","","","",null,"",null,"","",null,"","",null,null,false,false,"","","","","","",null,"1 m3 Fiyatı :","Kapattığı Alan  x  m2 Fiyatı  ",null,null,"LM-101","Lambiri 1.Sn. Ukrayna","Ukrayna",null,1550,279,300,2.6,10,null,1550,null,2.6,10,null,7.8,51.666666666666671,29.999999999999996,null,{"$error":"#REF!"},"PA-127 Çocuk Oyun Parkı","Adet","PA-127","catalog/Oyun-Park/PA-127/ahsap-cocuk-oyun-parki-fiyatlari-www.ahsapfiyatlistesi.com-PA-127-05.jpg",7540,null,{"$f":"CONCATENATE(#REF!, BB32)","v":{"$error":"#REF!"}}]
[null,null,{"$f":"IFERROR(VLOOKUP(A33,AE:AF,2,FALSE),\"\")","v":""},"","","","",null,"",null,"","",null,"","",null,null,false,false,"","","","","","",null,"Nakliye :","Hariç",null,null,"LM-102","Lambiri 2.Sn. Ukrayna","Ukrayna",null,1450,261,300,2.6,10,null,1450,null,2.6,10,null,7.8,48.333333333333336,29.999999999999996,null,{"$error":"#REF!"},"PA-128 Çocuk Oyun Parkı","Adet","PA-128","catalog/Oyun-Park/PA-128/ahsap-cocuk-oyun-parki-fiyatlari-www-ahsapfiyatlistesi-com-PA-128-02.jpg",4640,null,{"$f":"CONCATENATE(#REF!, BB33)","v":{"$error":"#REF!"}}]
[null,null,"","","","","",null,"",null,"","",null,"","",null,null,false,false,"","","","","","",null,"Koruyucu :","İsteğe göre Emprenye Katkılı Su bazlı ahşap koruyucu boya uygulanabilir. fiyat sorunuz",null,null,"LM-112","OSB 11mm Ukrayna",1,"b",58,10.44,244,1.1000000000000001,122,null,58,null,1.1000000000000001,122,null,122,0.63800000000000001,{"$f":"IF(AH34<>\"\",\"\",IFERROR((100/AQ34/AR34)*AT34,\"\"))","v":""},null,{"$error":"#REF!"},"PA-129 Çocuk Oyun Parkı","Adet","PA-129","catalog/Oyun-Park/PA-129/ahsap-oyun-parki-salincak-tahterevan-fiyatlari-www.ahsapfiyatlistesi.com-PA-129-01.jpg",4500,null,{"$f":"CONCATENATE(#REF!, BB34)","v":{"$error":"#REF!"}}]
[null,null,"","","","","",null,"",null,"","",null,"","",null,null,false,false,"","","","","","",null,"Teslim Süresi :","Ortalama 1 ile 15 gün arası",null,null,"LM-113","OSB 9mm Ukrayna",null,"a",53,9.5399999999999991,244,0.9,122,null,53,null,0.9,122,null,122,0.47699999999999998,{"$f":"IF(AH35<>\"\",\"\",IFERROR((100/AQ35/AR35)*AT35,\"\"))","v":""},null,{"$error":"#REF!"},"PA-130 Çocuk Oyun Parkı","Adet","PA-130","catalog/Oyun-Park/PA-130/PA-130-havuzlu-platform-cocuk-oyun-parkı-01.jpg",7540,null,{"$f":"CONCATENATE(#REF!, BB35)","v":{"$error":"#REF!"}}]
[null,null,"","","","","",null,"",null,"","",null,"","",null,null,false,false,"","","","","","",null,"Garanti :","5 Yıl",null,null,"LM-114","Alın Tahtası Ukrayna","Ukrayna","a",30,5.3999999999999995,300,2.2000000000000002,20,null,25.384615384615383,null,2.6,20,null,null,"","",null,{"$error":"#REF!"},"Ahşap Çit Korkuluk  AC-101","Metre","AC-101","catalog/cit-korkuluk/AC-101/AC-101-çit-korkuluk-trabzan-ahşap-korkuluk-03.JPG",139.19999999999999,null,{"$f":"CONCATENATE(#REF!, BB36)","v":{"$error":"#REF!"}}]
[null,null,"",{"$f":"IF(IFERROR(VLOOKUP(C37,AF:AH,3,FALSE),\"\")<>\"\",\"a\",\"\")","v":""},{"$f":"IFERROR(VLOOKUP(A37,AE:AT,14,FALSE),\"\")","v":""},{"$f":"IFERROR(VLOOKUP(A37,AE:AT,13,FALSE),\"\")","v":""},{"$f":"IFERROR(VLOOKUP(A37,AE:AK,7,FALSE),\"\")","v":""},null,{"$f":"IFERROR(VLOOKUP(A37,AE:AI,5,FALSE),\"\")","v":""},null,{"$f":"IFERROR((E37*F37*G37*H37)/1000,\"\")","v":""},{"$f":"IFERROR(IF(D37=\"a\",(I37+J37)*H37,IF(K37<>\"\",(I37+J37)*K37/1000,\"\")),\"\")","v":""},null,"","",null,null,false,false,"","",{"$f":"IFERROR(VLOOKUP(A37,AF:AT,15,FALSE),\"\")","v":""},"","","",null,"Bakım :","İlk bakım 1 sene sonra, takip eden bakımlar yaklaşık 2 yılda bir yapılmalıdır.",null,null,"LM-115","süpürgelik Ukrayna","Ukrayna","m",2,0.36,300,2.2000000000000002,5,null,2,null,2.2000000000000002,5,null,null,"","",null,{"$error":"#REF!"},"Ahşap Çit Korkuluk  AC-102","Metre","AC-102","2018/02/ac-102-ahsap-cit-korkuluk-fiyatlari-tuzla-pendik-gebze-04.jpg",98.6,null,{"$f":"CONCATENATE(#REF!, BB37)","v":{"$error":"#REF!"}}]
[null,null,"","","","","",null,"",null,"","",null,"","",null,null,false,false,"","",{"$f":"IFERROR(VLOOKUP(A38,AF:AT,15,FALSE),\"\")","v":""},"","","",null,null,null,null,null,"LM-116","Cephe  12 cm geniş Ukrayna","Ukrayna",null,1700,306,400,3.5,12,null,1700,null,3.5,12,null,9.9,72.12121212121211,23.571428571428573,null,{"$error":"#REF!"},"Ahşap Çit Korkuluk  AC-103","Metre","AC-103","catalog/cit-korkuluk/AC-103/ahsap-cit-korkuluk-modelleri-fiyatlari-AC-103-01.jpg",139.19999999999999,null,{"$f":"CONCATENATE(#REF!, BB38)","v":{"$error":"#REF!"}}]
[null,null,"","","","","",null,"",null,"","",null,"","",null,null,false,false,"","",{"$f":"IFERROR(VLOOKUP(A39,AF:AT,15,FALSE),\"\")","v":""},"","",""]
[null,null,"","","","","",null,"",null,"","",null,"","",null,null,false,false,{"$f":"IFERROR(E40*F40*I46/R40/S40,\"\")","v":""},{"$f":"IFERROR(IF(A46<>\"\",(1000/G40/F40/E40*1000),\"\"),\"\")","v":""},{"$f":"IFERROR(VLOOKUP(C40,AF:AT,15,FALSE),\"\")","v":""},{"$f":"IFERROR(I46/((100/E40/F40)*V40),\"\")","v":""},"",{"$f":"IFERROR(V40*G40*A46/10000,\"\")","v":""}]
[null,null,"","","","","",null,"",null,"","",null,"","",null,null,false,false,{"$f":"IFERROR(E41*F41*I47/R41/S41,\"\")","v":""},{"$f":"IFERROR(IF(A47<>\"\",(1000/G41/F41/E41*1000),\"\"),\"\")","v":""},{"$f":"IFERROR(VLOOKUP(C41,AF:AT,15,FALSE),\"\")","v":""},{"$f":"IFERROR(I47/((100/E41/F41)*V41),\"\")","v":""},"",{"$f":"IFERROR(V41*G41*A47/10000,\"\")","v":""}]
[null,null,"","","","","",null,"",null,"","",null,"","",null,null,false,false,{"$f":"IFERROR(E42*F42*I48/R42/S42,\"\")","v":""},{"$f":"IFERROR(IF(A48<>\"\",(1000/G42/F42/E42*1000),\"\"),\"\")","v":""},{"$f":"IFERROR(VLOOKUP(C42,AF:AT,15,FALSE),\"\")","v":""},{"$f":"IFERROR(I48/((100/E42/F42)*V42),\"\")","v":""},"",{"$f":"IFERROR(V42*G42*A48/10000,\"\")","v":""}]
[null,null,null,null,null,null,null,null,"Toplam Dm3:",null,null,null,null,null,null,null,null,"",2.6,{"$f":"IFERROR(E43*F43*#REF!/R43/S43,\"\")","v":""},{"$f":"IFERROR(IF(#REF!<>\"\",(1000/G43/F43/E43*1000),\"\"),\"\")","v":""},{"$f":"IFERROR(VLOOKUP(A43,AF:AT,15,FALSE),\"\")","v":""},{"$f":"IFERROR(#REF!/((100/E43/F43)*V43),\"\")","v":""},"",{"$f":"IFERROR(V43*G43*#REF!/10000,\"\")","v":""},null,"1 m2 Fiyatı :",{"$f":"IFERROR((VLOOKUP(AB21,AE:AI,5,FALSE)/Kapatığı_Alan),\"\")","v":72.12121212121211},null,null,"KS-100","KS-100 silinmiş Sibirya","5 x 10 Sibirya",null,2300,414,400,5,10,null,2300,null,5,10,null,null,"",0,null,{"$error":"#REF!"},"Ahşap Çit Korkuluk  AC-104","Metre","AC-104","catalog/cit-korkuluk/AC-104/ac-104-ahsap-cit-korkuluk-modelleri-fiyatlari-resimleri-www.kayalarkereste.com-07.jpg",139.19999999999999,null,{"$f":"CONCATENATE(#REF!, BB43)","v":{"$error":"#REF!"}}]
["Yeni yapılacak kamelyalara baca, oturaklar  ve ",null,null,null,null,null,null,null,"Ara Toplam :",null,{"$f":"SUM(L21:L42)","v":77214.559999999998},null,null,null,null,null,null,"",2.6,{"$f":"IFERROR(E44*F44*I49/R44/S44,\"\")","v":""},{"$f":"IFERROR(IF(A49<>\"\",(1000/G44/F44/E44*1000),\"\"),\"\")","v":""},{"$f":"IFERROR(VLOOKUP(A44,AF:AT,15,FALSE),\"\")","v":""},{"$f":"IFERROR(I49/((100/E44/F44)*V44),\"\")","v":""},"",{"$f":"IFERROR(V44*G44*A49/10000,\"\")","v":""},null,null,null,null,null,"KS-101","KS-101 silinmiş Sibirya","5 x 10 Ukrayna",null,1700,306,300,5,10,null,1700,null,5,10,null,null,"",0,null,{"$error":"#REF!"},"Ahşap Çocuk Oyun Evi","Adet","VH-107","catalog/cocuk-evi/VH-107/cocuk-oyun-evi-oyun-bahce-fiyatlari-modelleri-www.ahsapfiyatlistesi.com-vh-107-05.JPG",6500,null,{"$f":"CONCATENATE(#REF!, BB44)","v":{"$error":"#REF!"}}]
["4mm pileksi camlar dahildir eski kamelya pileksi camlar ayrıca",null,null,null,null,null,null,null,"İskonto :",null,null,null,null,null,null,null,null,null,null,null,null,null,null,null,null,null,null,null,null,null,"KS-103","KS-103 silinmiş Sibirya","5 x 15 Sibirya",null,2300,414,400,5,10,null,2300,null,5,10,null,null,"",0,null,{"$error":"#REF!"},"Ahşap Çocuk Oyun Evi","Adet","VH-108","catalog/cocuk-evi/VH-108/oyun-evi-www.ahsapfiyatlistesi.com-VH-108-01.JPG",6500,null,{"$f":"CONCATENATE(#REF!, BB45)","v":{"$error":"#REF!"}}]
[" fiyatlandırılmıştır.",null,null,null,null,null,null,null," Toplam KDV :",null,{"$f":"K44*0.18","v":13898.620799999999},null,null,null,null,null,null,null,null,null,null,null,null,null,null,null,null,null,null,null,"KS-106","KS-106 silinmiş Sibirya","5 x 12,5 Sibirya",null,2300,414,400,5,12.5,null,2300,null,5,12.5,null,null,"",0,null,{"$error":"#REF!"},"Köpek Kulubesi KK-101","Adet","KK-101","catalog/kopek-kulube/KK-101/kk-101-kopek-kulube-evi-fiyatlari-www.kayalarahsap.com-01.jpg",672.8,null,{"$f":"CONCATENATE(#REF!, BB46)","v":{"$error":"#REF!"}}]
[null,null,null,null,null,null,null,null,"Genel Toplam :",null,{"$f":"K46+K44","v":91113.180800000002},null,null,null,null,null,null,null,null,null,null,null,null,null,null,null,null,null,null,null,"KS-107","KS-107 silinmiş Sibirya","6,5 x 12,5 Ladin",null,2300,414,600,6.5,12.5,null,2300,null,6.5,12.5,null,null,"",0,null,{"$error":"#REF!"},"Köpek Kulubesi KK-102","Adet","KK-102","catalog/kopek evi/KK-102/kk-102-kopek-kulube-evi-fiyatlari-resimleri-www.kayalarahsap.com-03.jpg",522,null,{"$f":"CONCATENATE(#REF!, BB47)","v":{"$error":"#REF!"}}]
[null,null,null,null,null,null,null,null,null,null,null,null,null,null,null,null,null,null,null,null,null,null,null,null,null,null,null,null,null,null,"LM-122","Alın Tahtası","Ukrayna Sınıf Çam","t",30,5.3999999999999995,300,2.2000000000000002,20,null,29.999999999999996,null,2.2000000000000002,20,null,300,4.4000000000000004E-2,"",null,{"$error":"#REF!"},"Köpek Kulubesi KK-103","Adet","KK-103","catalog/kopek-kulube/KK-103/kk-103-kopek-kulube-evi-fiyatlari-hayvan-barinak-fiyatlari-www.kayalarahsap.com-01.jpg",522,null,{"$f":"CONCATENATE(#REF!, BB48)","v":{"$error":"#REF!"}}]
[null,null,null,null,null,null,null,null,null,null,null,null,null,null,null,null,null,null,null,null,null,null,null,null,null,null,null,null,null,null,"LM-123",null,null,null,null,0,null,null,null,null,"",null,null,null,null,null,"","",null,{"$error":"#REF!"},"Köpek Kulubesi  KK-104","Adet","KK-104","catalog/kopek-kulube/KK-104/kk-104-kopek-kulube-evi-hayvan-barinak-fiyatlari-www.kayalarahsap.com-01.JPG",522,null,{"$f":"CONCATENATE(#REF!, BB49)","v":{"$error":"#REF!"}}]
[null,null,null,null,null,null,null,null,null,null,null,null,null,null,null,null,null,null,null,null,null,null,null,null,null,null,null,null,null,null,null,null,null,null,null,0,null,null,null,null,"",null,null,null,null,null,"","",null,{"$error":"#REF!"},"Köpek Kulubesi KK-105","Adet","KK-105","catalog/kopek-kulube/KK-105/kk-105-ahsap-kopek-kulube-fıyatları-kocaeli-gebze-www.kayalarkereste.com-02.JPG",754,null,{"$f":"CONCATENATE(#REF!, BB50)","v":{"$error":"#REF!"}}]
[null,null,null,null,null,null,null,null,null,null,null,null,null,null,null,null,null,null,null,null,null,null,null,null,null,null,null,null,null,null,null,null,null,null,null,0,null,null,null,null,"",null,null,null,null,null,"","",null,{"$error":"#REF!"},"Ahşap Pergola","M2","PR-101","catalog/pergola/PR-101/PR-101-ahsap-kamelya-pergola-fiyatlari-www.kayalarahsap.com-02.jpg",406,null,{"$f":"CONCATENATE(#REF!, BB51)","v":{"$error":"#REF!"}}]
[null,null,null,null,null,null,null,null,null,null,null,null,null,null,null,null,null,null,null,null,4.0999999999999996,"x",9.1,"ölçü ve ",930,"TL den alınan kereste",null,null,null,null,"YB-101","Ahşap Yalı Baskı ","Ukrayna",null,1700,306,300,1.8,12,null,1176.9230769230769,null,2.6,12,null,9.9,53.575757575757578,31.73076923076923,null,{"$error":"#REF!"},"Ahşap Pergola","M2","PR-105","catalog/pergola/PR-105/PR-105-ahsap-kamelya-gazebo-pergola-fiyatlari-www.kayalarahsap.com-02.jpg",406,null,{"$f":"CONCATENATE(#REF!, BB52)","v":{"$error":"#REF!"}}]
[null,null,null,null,null,null,null,null,null,null,null,null,null,null,null,null,null,null,null,null,null,null,null,null,null,null,null,null,null,null,"YB-102","Ahşap Yalı Baskı  Sibirya","Sibirya",null,2300,414,400,3.5,12.5,null,2300,null,3.5,12.5,null,11,91.47727272727272,25.142857142857146,null,{"$error":"#REF!"},"Ahşap Pergola","M2","PR-106","catalog/pergola/PR-106/PR-106-pergola-gazebo-konsol-pergola-veranda-ahsap-pergole-fiyatlari-01.jpg",406,null,{"$f":"CONCATENATE(#REF!, BB53)","v":{"$error":"#REF!"}}]
[null,null,null,null,null,null,null,null,null,null,null,null,null,null,null,null,null,null,null,null,{"$f":"IF(COUNTA(U52)>=1,IF(U52<4,2.6,IF(U52<5.1,5,IF(U52<10.1,10,IF(U52<15,15)))),\"\")","v":5},"x",{"$f":"IF(COUNTA(W52)>=1,IF(U54=2.6,10,IF(W52<5,5,IF(W52<10.1,10,IF(U52<15,15)))),\"\")","v":10},"olarak",{"$f":"U52*W52*Y52/U54/W54","v":693.96599999999989},"TL ye mal olmuş Olur",null,null,null,null,"YB-103","Ahşap Yalı Baskı Sibirya","Sibirya",null,2300,414,400,4.5,15,null,2070,null,5,15,null,13.8,125.00000000000001,18.399999999999999,null,{"$error":"#REF!"},"Ahşap Pergola  & Jeneratör Kabin","Adet","PR-107","catalog/pergola/PR-107 JENERATÖR KABİNİ/PR-107-pergola-gazebo-konsol-pergola-veranda-ahsap-jenerator-kabini-01.jpg",2552,null,{"$f":"CONCATENATE(#REF!, BB54)","v":{"$error":"#REF!"}}]
[null,null,null,null,null,null,null,null,null,null,null,null,null,null,null,null,null,null,null,null,null,null,null,null,null,null,null,null,null,null,"YB-104","Ahşap Yalı Baskı yuvarlak Sibirya","Sibirya",null,2300,414,400,4.5,15,null,2070,null,5,15,null,13.8,125.00000000000001,18.399999999999999,null,{"$error":"#REF!"},"Ahşap Bungalov Ev (AV-102)","M2","AV-102","catalog/Ev/AV-102/av-102-kutuk-ev-bungalov-ahsap-ev-fiyatlari-ahsap-ev-yapimi-maliyeti-resimleri-www.kayalarkereste.com-01.jpg",1740,null,{"$f":"CONCATENATE(#REF!, BB55)","v":{"$error":"#REF!"}}]
[null,null,null,null,null,null,null,null,null,null,null,null,null,null,null,null,null,null,null,null,null,null,null,null,null,null,null,null,null,null,"YB-105","Ahşap Yalı Baskı  Sibirya","Sibirya",null,2300,414,400,4.5,20,null,2070,null,5,20,null,18.8,122.34042553191489,18.8,null,{"$error":"#REF!"},"Ahşap Bungalov Ev - (AV-105)","Adet","AV-105","catalog/Ev/av-105/av-105-ahsap-ev-bungalov-fiyatlari-ahsap-evi-maliyeti-resimleri-gebze-sile-istanbul-www.kayalarkereste.com-06.jpg",12760,null,{"$f":"CONCATENATE(#REF!, BB56)","v":{"$error":"#REF!"}}]
[null,null,null,null,null,null,null,null,null,null,null,null,null,null,null,null,null,null,null,null,null,null,null,null,null,null,null,null,null,null,"YB-106","Ahşap Yalı Baskı  Fin-İsves","Fin - İsveç çamı",null,3800,684,400,2.4,23,null,3040,null,3,23,null,21,124.85714285714286,30.434782608695652,null,{"$error":"#REF!"},"Ahşap Bungalov Ev (AV-106)","M2","AV-106","catalog/Ev/av-106/av-106-ahsap-ev-bungalov-fiyatlari-ahsap-ev-yapimi-maliyeti-resimleri-gebze-www.kayalarkereste.com-01.jpg",1566,null,{"$f":"CONCATENATE(#REF!, BB57)","v":{"$error":"#REF!"}}]
[null,null,null,null,null,null,null,null,null,null,null,null,null,null,null,null,null,null,null,null,null,null,null,null,null,null,null,null,null,null,null,null,null,null,null,null,null,null,null,null,"",null,null,null,null,null,"","",null,{"$error":"#REF!"},"Ahşap Bungalov Ev (AV-107)","M2","AV-107","catalog/Ev/AV-107  KANTAR/KM-140-kamelya-ahsap-dinlenme-sigara-icme-alani-fiyatlari-gebze-kocaeli-tuzla-pendik-istanbul-ahsap-ev-www.kayalarkerest~15.jpg",1102,null,{"$f":"CONCATENATE(#REF!, BB58)","v":{"$error":"#REF!"}}]
[null,null,null,null,null,null,null,null,null,null,null,null,null,null,null,null,null,null,null,null,null,null,null,null,null,null,null,null,null,null,"KT-105","Kütük Ev Duvar Profil  Sibirya","Sibirya",null,2300,414,400,4.5,15,null,2070,null,5,15,null,13.8,125.00000000000001,18.399999999999999,null,{"$error":"#REF!"},"Ahşap Bungalov Ev (AV-108)","M2","AV-108","catalog/Ev/av-108/av-108-bungalov-ahsap-ev-kutuk-ev-fiyatlari-yapimi-maliyeti-resimleri-gebze-www.kayalarahsap.com-01.jpg",1566,null,{"$f":"CONCATENATE(#REF!, BB59)","v":{"$error":"#REF!"}}]
[null,null,null,null,null,null,null,null,null,null,null,null,null,null,null,null,null,null,null,null,null,null,null,null,null,null,null,null,null,null,"KT-110","Kütük Ev Duvar Profil Ukrayna","Ukrayna",null,2000,360,600,9,15,null,1800,null,10,15,null,13.5,222.22222222222223,9,null,{"$error":"#REF!"},"BANK Döküm ve Metal Ayaklı B-101","Adet","B-101","catalog/Bank/B-101/b-101-Bank-13-citali-ergonomik-ucuz-bank-gebze-www.parkbahcemobilya.com-www.ahsapfiyatlistesi.com-08.jpg",485,null,{"$f":"CONCATENATE(#REF!, BB60)","v":{"$error":"#REF!"}}]
[null,null,null,null,null,null,null,null,null,null,null,null,null,null,null,null,null,null,null,null,null,null,null,null,null,null,null,null,null,null,"KT-118","Kütük Ev Duvar Profil  Sibirya Lamine","Sibirya Lamine",null,3200,576,600,13.5,15,null,2880,null,15,15,null,13.5,533.33333333333337,6,null,{"$error":"#REF!"},"BANK Döküm ve Metal Ayaklı + Kolluk (B-102)","Adet","B-102","catalog/Bank/B-102/b-102-dokum-ayakli-kollu-bank-fiyatlari-gebze-istanbul-kocaeli-izmit-www.kayalarkereste.com-01.jpg",0,null,{"$f":"CONCATENATE(#REF!, BB61)","v":{"$error":"#REF!"}}]
[null,null,null,null,null,null,null,null,null,null,null,null,null,null,null,null,null,null,null,null,null,null,null,null,null,null,null,null,null,null,null,null,null,null,null,null,null,null,null,null,"",null,null,null,null,null,"","",null,{"$error":"#REF!"},"BANK Döküm ve Metal Ayaklı - Klasik ","Adet","B-103","catalog/Bank/B-103/b-103-ahsap-dokum-ayakli-oturma-bank-fiyatlari-www.parkbahcemobilya.com-01.jpg",340,null,{"$f":"CONCATENATE(#REF!, BB62)","v":{"$error":"#REF!"}}]
[null,null,null,null,null,null,null,null,null,null,null,null,null,null,null,null,null,null,null,null,null,null,null,null,null,null,null,null,null,null,null,null,null,null,null,null,null,null,null,null,"",null,null,null,null,null,"","",null,{"$error":"#REF!"},"BANK  - Ahşap Ayaklı KB-201","Adet","KB-201","catalog/Bank/KB-201/kb-201-ahsap-bank-masa-modelleri-fiyatlari-resimleri-www.parkbahcemobilya.com-03.jpg",139.19999999999999,null,{"$f":"CONCATENATE(#REF!, BB63)","v":{"$error":"#REF!"}}]
[null,null,null,null,null,null,null,null,null,null,null,null,null,null,null,null,null,null,null,null,null,null,null,null,null,null,null,null,null,null,null,null,null,null,null,null,null,null,null,null,"",null,null,null,null,null,"","",null,{"$error":"#REF!"},"BANK Döküm ve Metal Ayaklı - Kollu","Adet","K-204","catalog/Bank/K-204/kd-204-dokum-ayakli-kollu-ahsap-bank-modelleri-fiyatlari-resimleri-gebze-www.parkbahcemobilya.com-01.jpg",565,null,{"$f":"CONCATENATE(#REF!, BB64)","v":{"$error":"#REF!"}}]
[null,null,null,null,null,null,null,null,null,null,null,null,null,null,null,null,null,null,null,null,null,null,null,null,null,null,null,null,null,null,null,null,null,null,null,null,null,null,null,null,"",null,null,null,null,null,"","",null,{"$error":"#REF!"},"BANK Döküm ve Metal Ayaklı - Klasik Kollu","Adet","K-219","catalog/Bank/K-219/k-219-dokum-ayakli-kollu-ahsap-bank-modelleri-fiyatlari-resimleri-www.parkbahcemobilya.com-02.jpg",560,null,{"$f":"CONCATENATE(#REF!, BB65)","v":{"$error":"#REF!"}}]
[null,null,null,null,null,null,null,null,null,null,null,null,null,null,null,null,null,null,null,null,null,null,null,null,null,null,null,null,null,null,null,null,null,null,null,null,null,null,null,null,"",null,null,null,null,null,"","",null,{"$error":"#REF!"},"BANK Döküm ve Metal Ayaklı - Kollu ","Adet","KD-203","catalog/Bank/KD-203/kd-203-ahsap-dokum-ayakli-kollu-bank-fiyatlari-resimleri-www.parkbahcemobilya.com-08.jpg",720,null,{"$f":"CONCATENATE(#REF!, BB66)","v":{"$error":"#REF!"}}]
[null,null,null,null,null,null,null,null,null,null,null,null,null,null,null,null,null,null,null,null,null,null,null,null,null,null,null,null,null,null,null,null,null,null,null,null,null,null,null,null,"",null,null,null,null,null,"","",null,{"$error":"#REF!"},"BANK Yuvarlak Oturum Maun veya İroko","Adet","UB-97","catalog/Bank/UB-97/ub-97-ahsap-maun-dis-mekan-yuvarlak-metal-ayakli-bank-oturma-gruplari-fiyatlari-resimleri-www.parkbahcemobilya.com-01.JPG",4234,null,{"$f":"CONCATENATE(#REF!, BB67)","v":{"$error":"#REF!"}}]
[null,null,null,null,null,null,null,null,null,null,null,null,null,null,null,null,null,null,null,null,null,null,null,null,null,null,null,null,null,null,null,null,null,null,null,null,null,null,null,null,"",null,null,null,null,null,"","",null,{"$error":"#REF!"},"BANK Döküm ve Metal Ayaklı B-104","Adet","B-104","catalog/Bank/B-104/b-104-metal-ayali-yaslanmasiz-soyunma-odasi-bank-fiyatlari-gebze-istanbul-www.parkbahcemobilya.com-02.jpg",266.8,null,{"$f":"CONCATENATE(#REF!, BB68)","v":{"$error":"#REF!"}}]
[null,null,null,null,null,null,null,null,null,null,null,null,null,null,null,null,null,null,null,null,null,null,null,null,null,null,null,null,null,null,null,null,null,null,null,null,null,null,null,null,"",null,null,null,null,null,"","",null,{"$error":"#REF!"},"BANK Döküm ve Metal Ayaklı - Soyunma odaları için","Adet","B-105","catalog/Bank/B-105/b-105-soyunma-odasi-bank-fiyatlari-www.parkbahcemobilya.com-01.jpg",285,null,{"$f":"CONCATENATE(#REF!, BB69)","v":{"$error":"#REF!"}}]
[null,null,null,null,null,null,null,null,null,null,null,null,null,null,null,null,null,null,null,null,null,null,null,null,null,null,null,null,null,null,null,null,null,null,null,null,null,null,null,null,"",null,null,null,null,null,"","",null,{"$error":"#REF!"},"DECK Ahşap ÇAM 18 mm DC-101","M2","DC-101","catalog/deck/cam-dc-101/dc-101-cam-deck-ahsap-profil-yer-doseme-01.jpg",57,null,{"$f":"CONCATENATE(#REF!, BB70)","v":{"$error":"#REF!"}}]
[null,null,null,null,null,null,null,null,null,null,null,null,null,null,null,null,null,null,null,null,null,null,null,null,null,null,null,null,null,null,null,null,null,null,null,null,null,null,null,null,"",null,null,null,null,null,"","",null,{"$error":"#REF!"},"İnşaatlık Kereste (41 x 91) - (91 x 91) [KR-101]","M3","KR-101","catalog/Kereste/Kereste_paket.JPG",990,null,{"$f":"CONCATENATE(#REF!, BB71)","v":{"$error":"#REF!"}}]
[null,null,null,null,null,null,null,null,null,null,null,null,null,null,null,null,null,null,null,null,null,null,null,null,null,null,null,null,null,null,null,null,null,null,null,null,null,null,null,null,"",null,null,null,null,null,"","",null,{"$error":"#REF!"},"İROKO Lambiri - Rabıta 130mm (LM-111)","M2","LM-111","catalog/lambiri-ahsap/lm-111-iroko-lambiri-130mm-18mm-120mmkapatir-01.jpg",30,null,{"$f":"CONCATENATE(#REF!, BB72)","v":{"$error":"#REF!"}}]
[null,null,null,null,null,null,null,null,null,null,null,null,null,null,null,null,null,null,null,null,null,null,null,null,null,null,null,null,null,null,null,null,null,null,null,null,null,null,null,null,"",null,null,null,null,null,"","",null,{"$error":"#REF!"},"Lambiri - Rabıta 1. Sınıf  (LM-101)","M2","LM-101","catalog/lambiri-ahsap/LM-101-Lambiri 1-Sinif-01.jpg",52,null,{"$f":"CONCATENATE(#REF!, BB73)","v":{"$error":"#REF!"}}]
[null,null,null,null,null,null,null,null,null,null,null,null,null,null,null,null,null,null,null,null,null,null,null,null,null,null,null,null,null,null,null,null,null,null,null,null,null,null,null,null,"",null,null,null,null,null,"","",null,{"$error":"#REF!"},"Lambiri - Rabıta 2. Standart Sınıf Lambiri Rabıta  (LM-102)","M2","LM-102","catalog/lambiri-ahsap/LM-102-Lambiri 2-Sinif-01.jpg",45,null,{"$f":"CONCATENATE(#REF!, BB74)","v":{"$error":"#REF!"}}]
[null,null,null,null,null,null,null,null,null,null,null,null,null,null,null,null,null,null,null,null,null,null,null,null,null,null,null,null,null,null,null,null,null,null,null,null,null,null,null,null,"",null,null,null,null,null,"","",null,{"$error":"#REF!"},"Ahşap Süpürgelik","Metre","LM-104","catalog/lambiri-ahsap/supurgelik-5lik-a.jpg",2.0299999999999998,null,{"$f":"CONCATENATE(#REF!, BB75)","v":{"$error":"#REF!"}}]
[null,null,null,null,null,null,null,null,null,null,null,null,null,null,null,null,null,null,null,null,null,null,null,null,null,null,null,null,null,null,null,null,null,null,null,null,null,null,null,null,null,null,null,null,null,null,"","",null,{"$error":"#REF!"},"Lambiri - Rabıta Extra Sınıf  (LM-103)","M2","LM-103","catalog/lambiri-ahsap/LM-100-Lambiri-Extra-03.jpg",60,null,{"$f":"CONCATENATE(#REF!, BB76)","v":{"$error":"#REF!"}}]
[null,null,null,null,null,null,null,null,null,null,null,null,null,null,null,null,null,null,null,null,null,null,null,null,null,null,null,null,null,null,null,null,null,null,null,null,null,null,null,null,null,null,null,null,null,null,"","",null,{"$error":"#REF!"},"İROKO Lambiri - Rabıta 95 mm geniş (lm-112)","M2","LM-112","catalog/lambiri-ahsap/lm-112-iroko-lambiri-95mm-18mm-86mmkapatır-01.jpg",30,null,{"$f":"CONCATENATE(#REF!, BB77)","v":{"$error":"#REF!"}}]
[null,null,null,null,null,null,null,null,null,null,null,null,null,null,null,null,null,null,null,null,null,null,null,null,null,null,null,null,null,null,null,null,null,null,null,null,null,null,null,null,null,null,null,null,null,null,"","",null,{"$error":"#REF!"},"İROKO Lambiri - Rabıta 95 mm geniş (LM-113)","M2","LM-113","catalog/lambiri-ahsap/lm-113-iroko-rabita-yer-doseme-10cm-x-45cm-12mm-95mmkapatir-01.jpg",30,null,{"$f":"CONCATENATE(#REF!, BB78)","v":{"$error":"#REF!"}}]
[null,null,null,null,null,null,null,null,null,null,null,null,null,null,null,null,null,null,null,null,null,null,null,null,null,null,null,null,null,null,null,null,null,null,null,null,null,null,null,null,null,null,null,null,null,null,"","",null,{"$error":"#REF!"},"5 x 10 Silinmiş Kereste  Ukrayna -KS-101","M3","KS-101","catalog/silinmis-kereste/ks-101-cam-dogramalik-silinmis-sinif-kereste-5x10-01.jpg",1700,null,{"$f":"CONCATENATE(#REF!, BB79)","v":{"$error":"#REF!"}}]
[null,null,null,null,null,null,null,null,null,null,null,null,null,null,null,null,null,null,null,null,null,null,null,null,null,null,null,null,null,null,null,null,null,null,null,null,null,null,null,null,null,null,null,null,null,null,"","",null,{"$error":"#REF!"},"10 x 10 Silinmiş Kereste UKRAYNA KS-102","M3","KS-102","catalog/silinmis-kereste/ks-102-cam-dogramalik-silinmis-sinif-kereste-10x10-01.jpg",1700,null,{"$f":"CONCATENATE(#REF!, BB80)","v":{"$error":"#REF!"}}]
[null,null,null,null,null,null,null,null,null,null,null,null,null,null,null,null,null,null,null,null,null,null,null,null,null,null,null,null,null,null,null,null,null,null,null,null,null,null,null,null,null,null,null,null,null,null,"","",null,{"$error":"#REF!"},"5 x 15 Silinmiş Kereste Sibirya -KS-103","M3","KS-103","catalog/silinmis-kereste/ks-103-cam-dogramalik-silinmis-sinif-kereste-5x15-01.jpg",2300,null,{"$f":"CONCATENATE(#REF!, BB81)","v":{"$error":"#REF!"}}]
[null,null,null,null,null,null,null,null,null,null,null,null,null,null,null,null,null,null,null,null,null,null,null,null,null,null,null,null,null,null,null,null,null,null,null,null,null,null,null,null,null,null,null,null,null,null,"","",null,{"$error":"#REF!"},"3,5x15 Silinmiş Kereste Sibirya KS-104","M3","KS-104","catalog/silinmis-kereste/ks-104-cam-ladin-dogramalik-silinmis-sinif-kereste-35x125-01.jpg",2300,null,{"$f":"CONCATENATE(#REF!, BB82)","v":{"$error":"#REF!"}}]
[null,null,null,null,null,null,null,{"$f":"IFERROR(VLOOKUP(E83,AF:AG,2,FALSE),\"\")","v":""},null,null,null,null,null,null,null,null,null,null,null,null,null,null,null,null,null,null,null,null,null,null,null,null,null,null,null,null,null,null,null,null,null,null,null,null,null,null,"","",null,{"$error":"#REF!"},"3,5 x 12,5 Silinmiş Kereste SİBİRYA KS-105","M3","KS-105","catalog/silinmis-kereste/ks-103-cam-dogramalik-silinmis-sinif-kereste-5x15-01.jpg",2300,null,{"$f":"CONCATENATE(#REF!, BB83)","v":{"$error":"#REF!"}}]
[null,null,null,null,null,null,null,null,null,null,null,null,null,null,null,null,null,null,null,null,null,null,null,null,null,null,null,null,null,null,null,null,null,null,null,null,null,null,null,null,null,null,null,null,null,null,"","",null,{"$error":"#REF!"},"Kamelya - Çardak -101","Adet","KM-101","catalog/Kamelya-cardak/KM-101/KM-101-ucuz-ahsap-cardak-kamelya-kameriye-ahsap-ev-gazebo-pergola-kutuk-ev-pergole-fiyatlari-gebze-www.kayalarahsap.com-01.jpg",20880,null,{"$f":"CONCATENATE(#REF!, BB84)","v":{"$error":"#REF!"}}]
[null,null,null,null,null,null,null,null,null,null,null,null,null,null,null,null,null,null,null,null,null,null,null,null,null,null,null,null,null,null,null,null,null,null,null,null,null,null,null,null,null,null,null,null,null,null,"","",null,{"$error":"#REF!"},"Kamelya & Çardak  -102","Adet","KM-102","catalog/Kamelya-cardak/KM-102/KM-102-ucuz-ahsap-cardak-kamelya-kameriye-gazebo-pergola-pergole-fiyatlari-gebze-www.kayalarahsap.com-08.jpg",6670,null,{"$f":"CONCATENATE(#REF!, BB85)","v":{"$error":"#REF!"}}]
[null,null,null,null,null,null,null,null,null,null,null,null,null,null,null,null,null,null,null,null,null,null,null,null,null,null,null,null,null,null,null,null,null,null,null,null,null,null,null,null,null,null,null,null,null,null,"","",null,{"$f":"HYPERLINK(BE86,BA86)","v":{"$error":"#REF!"}},"Kamelya - Çardak  -103","Adet","KM-103","catalog/Kamelya-cardak/KM-103/KM-103-ucuz-ahsap-cardak-kamelya-kameriye-gazebo-pergola-pergole-fiyatlari-www.kayalarahsap.com-02.jpg",5800,null,{"$f":"CONCATENATE(#REF!, BB86)","v":{"$error":"#REF!"}}]
[null,null,null,null,null,null,null,null,null,null,null,null,null,null,null,null,null,null,null,null,null,null,null,null,null,null,null,null,null,null,null,null,null,null,null,null,null,null,null,null,null,null,null,null,null,null,"","",null,{"$error":"#REF!"},"Kamelya - Çardak -107","Adet","KM-107","catalog/Kamelya-cardak/KM-106/kamelya-cardak-www.parkbahcemobilya.com-km-107-16.jpg",2320,null,{"$f":"CONCATENATE(#REF!, BB87)","v":{"$error":"#REF!"}}]
[null,null,null,null,null,null,null,null,null,null,null,null,null,null,null,null,null,null,null,null,null,null,null,null,null,null,null,null,null,null,null,null,null,null,null,null,null,null,null,null,null,null,null,null,null,null,"","",null,{"$error":"#REF!"},"Kamelya - Çardak  KM-105","Adet","KM-105","catalog/Kamelya-cardak/KM-105/KM-105-cardak-kamelya-seyyar-gazebo-ucuz-ahsap-kamelya-cardak-www.kayalarahsap.com-04.jpg",3770,null,{"$f":"CONCATENATE(#REF!, BB88)","v":{"$error":"#REF!"}}]
[null,null,null,null,null,null,null,null,null,null,null,null,null,null,null,null,null,null,null,null,null,null,null,null,null,null,null,null,null,null,null,null,null,null,null,null,null,null,null,null,null,null,null,null,null,null,{"$f":"IFERROR(AI89/((100/AQ89/AR89)*AT89),\"\")","v":""},"",null,{"$error":"#REF!"},"Kamelya - Çardak  KM-104","Adet","KM-104","catalog/Kamelya-cardak/KM-104/KM-104-ahsap-ucuz-cardak-kamelya-kameriye-gazebo-fiyatlari-www.kayalarahsap.com-01.jpg",7540,null,{"$f":"CONCATENATE(#REF!, BB89)","v":{"$error":"#REF!"}}]
[null,null,null,null,null,null,null,null,null,null,null,null,null,null,null,null,null,null,null,null,null,null,null,null,null,null,null,null,null,null,null,null,null,null,null,null,null,null,null,null,null,null,null,null,null,null,{"$f":"IFERROR(AI90/((100/AQ90/AR90)*AT90),\"\")","v":""},null,null,{"$error":"#REF!"},"Ahşap Çocuk Oyun Evi VH-109","Adet","VH-109","catalog/cocuk-evi/VH-109/VH-109-cocuk-ahsap-oyun-evi-gebze-tuzla-pendik-istanbul-fiyatlari-07.JPG",6728,null,{"$f":"CONCATENATE(#REF!, BB90)","v":{"$error":"#REF!"}}]
[null,null,null,null,null,null,null,null,null,null,null,null,null,null,null,null,null,null,null,null,null,null,null,null,null,null,null,null,null,null,null,null,null,null,null,null,null,null,null,null,null,null,null,null,null,null,{"$f":"IFERROR(AI91/((100/AQ91/AR91)*AT91),\"\")","v":""},null,null,{"$error":"#REF!"},"Kamelya - Çardak  KM-108","Adet","KM-108","catalog/Kamelya-cardak/KM-108/KM-108-kamelya-cardak-ucuz-kameriye-fiyatlari-www.parkbahcemobilya.com-www.ahsapfiyatlistesi.com-km-108-02.jpg",7540,null,{"$f":"CONCATENATE(#REF!, BB91)","v":{"$error":"#REF!"}}]
[null,null,null,null,null,null,null,null,null,null,null,null,null,null,null,null,null,null,null,null,null,null,null,null,null,null,null,null,null,null,null,null,null,null,null,null,null,null,null,null,null,null,null,null,null,null,{"$f":"IFERROR(AI92/((100/AQ92/AR92)*AT92),\"\")","v":""},null,null,{"$error":"#REF!"},"Kamelya - Çardak  KM-124","Adet","KM-124","catalog/Kamelya-cardak/KM-124_Demir_200cm/km-124-demir-kamelya-ahsap-08.jpg",3944,null,{"$f":"CONCATENATE(#REF!, BB92)","v":{"$error":"#REF!"}}]
[null,null,null,null,null,null,null,null,null,null,null,null,null,null,null,null,null,null,null,null,null,null,null,null,null,null,null,null,null,null,null,null,null,null,null,null,null,null,null,null,null,null,null,null,null,null,null,null,null,{"$error":"#REF!"},"Kamelya - Çardak  KM-125","Adet","KM-125","catalog/Kamelya-cardak/KM-125 6GEN 5-15 DIREKLI/KM-125-kamelya-kare-dikdortgen-ahsap-dinlenme-cardak-gazebo-ucuz-kameriye-pergola-fiyatlari-www.kayalarkereste.com-32.jpg",6670,null,{"$f":"CONCATENATE(#REF!, BB93)","v":{"$error":"#REF!"}}]
[null,null,null,null,null,null,null,null,null,null,null,null,null,null,null,null,null,null,null,null,null,null,null,null,null,null,null,null,null,null,null,null,null,null,null,null,null,null,null,null,null,null,null,null,null,null,null,null,null,{"$error":"#REF!"},"Kamelya - Çardak  KM-126","M2","KM-126","catalog/Kamelya-cardak/KM-126 DIKDORTGEN cATALcA/KM-126-kamelya-kare-dikdortgen-ahsap-dinlenme-cardak-gazebo-ucuz-kameriye-fiyatlari-www.kayalarkereste.com-02.jpg",638,null,{"$f":"CONCATENATE(#REF!, BB94)","v":{"$error":"#REF!"}}]
[null,null,null,null,null,null,null,null,null,null,null,null,null,null,null,null,null,null,null,null,null,null,null,null,null,null,null,null,null,null,null,null,null,null,null,null,null,null,null,null,null,null,null,null,null,null,null,null,null,{"$error":"#REF!"},"Kamelya - Çardak  KM-127","Adet","KM-127","catalog/Kamelya-cardak/KM-127 KARE KAMELYA/KM-127-kamelya-ahsap-dinlenme-cardak-gazebo-kameriye-fiyatlari-resimleri-www.kayalarkereste.com-06.jpg",6670,null,{"$f":"CONCATENATE(#REF!, BB95)","v":{"$error":"#REF!"}}]
[null,null,null,null,null,null,null,null,null,null,null,null,null,null,null,null,null,null,null,null,null,null,null,null,null,null,null,null,null,null,null,null,null,null,null,null,null,null,null,null,null,null,null,null,null,null,null,null,null,{"$error":"#REF!"},"Kamelya - Çardak  KM-128","Adet","KM-128","catalog/Kamelya-cardak/KM-128 SEKIZGEN KAMELYA 5-15 DiREKLi/KM-128-kamelya-sekizgen-www.kayalarkereste.com-07.jpg",9860,null,{"$f":"CONCATENATE(#REF!, BB96)","v":{"$error":"#REF!"}}]
[null,null,null,null,null,null,null,null,null,null,null,null,null,null,null,null,null,null,null,null,null,null,null,null,null,null,null,null,null,null,null,null,null,null,null,null,null,null,null,null,null,null,null,null,null,null,null,null,null,{"$error":"#REF!"},"Kamelya - Çardak KM-129","M2","KM-129","catalog/Kamelya-cardak/KM-129 ARIMPEKS -BEMAS/KM-129-kamelya-cardak-pergola-fiyatlari-dinlenme-alani-ahsap-sigara-icme-alani-www.kayalarkereste.com-17.jpg",812,null,{"$f":"CONCATENATE(#REF!, BB97)","v":{"$error":"#REF!"}}]
[null,null,null,null,null,null,null,null,null,null,null,null,null,null,null,null,null,null,null,null,null,null,null,null,null,null,null,null,null,null,null,null,null,null,null,null,null,null,null,null,null,null,null,null,null,null,null,null,null,{"$error":"#REF!"},"Kamelya - Çardak  KM-130","Adet","KM-130","catalog/Kamelya-cardak/KM-130 SEKIZGEN SAPKALI cAPRAZ KORKULUK/KM-130-kamelya-cardak-fiyatlari-gazebo-pargola-www.kayalarahsap-www.parkbahcemobilya.com-01.jpg",10208,null,{"$f":"CONCATENATE(#REF!, BB98)","v":{"$error":"#REF!"}}]
[null,null,null,null,null,null,null,null,null,null,null,null,null,null,null,null,null,null,null,null,null,null,null,null,null,null,null,null,null,null,null,null,null,null,null,null,null,null,null,null,null,null,null,null,null,null,null,null,null,{"$error":"#REF!"},"Kamelya - Çardak  KM-131","M2","KM-131","catalog/Kamelya-cardak/KM-131-TOYOTETSU-MERKEZ/KM-131-ahsap-sigara icme-dinlenme-kamelya-cardak-alani-www.kayalarkereste.com-01.jpg",812,null,{"$f":"CONCATENATE(#REF!, BB99)","v":{"$error":"#REF!"}}]
[null,null,null,null,null,null,null,null,null,null,null,null,null,null,null,null,null,null,null,null,null,null,null,null,null,null,null,null,null,null,null,null,null,null,null,null,null,null,null,null,null,null,null,null,null,null,null,null,null,{"$error":"#REF!"},"Kamelya - Çardak 132","Adet","KM-132","catalog/Kamelya-cardak/KM-132/KM-132-kamelya-ahsap-dinlenme-sigara-icme-cardak-www.kayalarkereste.com-08.jpg",6670,null,{"$f":"CONCATENATE(#REF!, BB100)","v":{"$error":"#REF!"}}]
[null,null,null,null,null,null,null,null,null,null,null,null,null,null,null,null,null,null,null,null,null,null,null,null,null,null,null,null,null,null,null,null,null,null,null,null,null,null,null,null,null,null,null,null,null,null,null,null,null,{"$error":"#REF!"},"Kamelya - Çardak 134","Adet","KM-134","catalog/Kamelya-cardak/KM-134 CARDAK/KM-134-kamelya-ahsap-dinlenme-sigara-icme-cardak-gazebo-kameriye-fiyatlari-gebze-www.kayalarkereste.com-15.jpg",3016,null,{"$f":"CONCATENATE(#REF!, BB101)","v":{"$error":"#REF!"}}]
[null,null,null,null,null,null,null,null,null,null,null,null,null,null,null,null,null,null,null,null,null,null,null,null,null,null,null,null,null,null,null,null,null,null,null,null,null,null,null,null,null,null,null,null,null,null,null,null,null,{"$error":"#REF!"},"Kamelya - Çardak 135","Adet","KM-135","catalog/Kamelya-cardak/KM-135-KAMELYA-CARDAK/KM-135-kamelya-ahsap-cardak-gazebo-kameriye-fiyatlari-istanbul-www.kayalarkereste.com-01.jpg",6670,null,{"$f":"CONCATENATE(#REF!, BB102)","v":{"$error":"#REF!"}}]
[null,null,null,null,null,null,null,null,null,null,null,null,null,null,null,null,null,null,null,null,null,null,null,null,null,null,null,null,null,null,null,null,null,null,null,null,null,null,null,null,null,null,null,null,null,null,null,null,null,{"$error":"#REF!"},"Kamelya - Çardak Bahçe Dinlenme Alanı 136","M2","KM-136","catalog/Kamelya-cardak/KM-136 BAHCE KAMELYA/KM-136-bahce-kamelya-ahsap-cardak-gazebo-kameriye-fiyatlari-istanbul-www.kayalarkereste.com-01.jpg",1102,null,{"$f":"CONCATENATE(#REF!, BB103)","v":{"$error":"#REF!"}}]
[null,null,null,null,null,null,null,null,null,null,null,null,null,null,null,null,null,null,null,null,null,null,null,null,null,null,null,null,null,null,null,null,null,null,null,null,null,null,null,null,null,null,null,null,null,null,null,null,null,{"$error":"#REF!"},"Kamelya - Çardak platform 137","Adet","KM-137","catalog/Kamelya-cardak/KM-137 PLATFORM/km-137-platform-kamelya-cardak-fiyatlari-www.kayalarahsap.com-01.jpg",7656,null,{"$f":"CONCATENATE(#REF!, BB104)","v":{"$error":"#REF!"}}]
[null,null,null,null,null,null,null,null,null,null,null,null,null,null,null,null,null,null,null,null,null,null,null,null,null,null,null,null,null,null,null,null,null,null,null,null,null,null,null,null,null,null,null,null,null,null,null,null,null,{"$error":"#REF!"},"Kamelya - Çardak Kapalı dinlenme Alanı 138","M2","KM-138","catalog/Kamelya-cardak/KM-138 TOYOTETSU PC/KM-138-kamelya-ahsap-cardak-dinlenme-sigara-icme-alani-kameriye-fiyatlaril-gebze-www.kayalarkereste.com-01.jpg",1102,null,{"$f":"CONCATENATE(#REF!, BB105)","v":{"$error":"#REF!"}}]
[null,null,null,null,null,null,null,null,null,null,null,null,null,null,null,null,null,null,null,null,null,null,null,null,null,null,null,null,null,null,null,null,null,null,null,null,null,null,null,null,null,null,null,null,null,null,null,null,null,{"$error":"#REF!"},"Kamelya - Çardak platform 139","M2","KM-139","catalog/Kamelya-cardak/KM-139 TOYOTETSU PRES/KM-139-kamelya-ahsap-cardak-dinlenme-sigara-icme-alani-fiyatlari-gebze-kocaeli-istanbul-www.kayalarkereste.com-01.jpg",1102,null,{"$f":"CONCATENATE(#REF!, BB106)","v":{"$error":"#REF!"}}]
[null,null,null,null,null,null,null,null,null,null,null,null,null,null,null,null,null,null,null,null,null,null,null,null,null,null,null,null,null,null,null,null,null,null,null,null,null,null,null,null,null,null,null,null,null,null,null,null,null,{"$error":"#REF!"},"Kamelya - Çardak platform 141","M2","KM-141","catalog/Kamelya-cardak/KM-141 DENSO HUUN/KM-141-kamelya-ahsap-cardak-dinlenme-sigara-icme-alani-fiyatlari-gebze-kocaeli-izmit-istanbul-www.kayalarkereste.com-11.jpg",1102,null,{"$f":"CONCATENATE(#REF!, BB107)","v":{"$error":"#REF!"}}]
[null,null,null,null,null,null,null,null,null,null,null,null,null,null,null,null,null,null,null,null,null,null,null,null,null,null,null,null,null,null,null,null,null,null,null,null,null,null,null,null,null,null,null,null,null,null,null,null,null,{"$error":"#REF!"},"Kamelya - Çardak platform 142","M2","KM-142","catalog/Kamelya-cardak/KM-142/KM-142-kamelya-ahsap-cardak-dinlenme-sigara-icme-alani-fiyatlari-gebze-kocaeli-izmit-istanbul-www.kayalarkereste.com-08.jpg",1102,null,{"$f":"CONCATENATE(#REF!, BB108)","v":{"$error":"#REF!"}}]
[null,null,null,null,null,null,null,null,null,null,null,null,null,null,null,null,null,null,null,null,null,null,null,null,null,null,null,null,null,null,null,null,null,null,null,null,null,null,null,null,null,null,null,null,null,null,null,null,null,{"$error":"#REF!"},"Kamelya - Çardak platform 143","M2","KM-143","catalog/Kamelya-cardak/KM-143/km-143-ahsap-dinlenme-sigara-icme-alani-kamelya-fiyatlari-gebze-kocaeli-tuzla-pendik-istanbul-ahsap-ev-www.kayalarkereste~9.jpg",1102,null,{"$f":"CONCATENATE(#REF!, BB109)","v":{"$error":"#REF!"}}]
[null,null,null,null,null,null,null,null,null,null,null,null,null,null,null,null,null,null,null,null,null,null,null,null,null,null,null,null,null,null,null,null,null,null,null,null,null,null,null,null,null,null,null,null,null,null,null,null,null,{"$error":"#REF!"},"Kamelya - Çardak platform 144","Adet","KM-144","catalog/Kamelya-cardak/KM-144/KM-144-kamelya-cardak-kameriye-gazebo-pargola-fiyatlari-www.kayalarahsap-www.kayalarkereste.com-6.jpg",6670,null,{"$f":"CONCATENATE(#REF!, BB110)","v":{"$error":"#REF!"}}]
[null,null,null,null,null,null,null,null,null,null,null,null,null,null,null,null,null,null,null,null,null,null,null,null,null,null,null,null,null,null,null,null,null,null,null,null,null,null,null,null,null,null,null,null,null,null,null,null,null,{"$error":"#REF!"},"Kamelya - Çardak  145","M2","KM-145","catalog/Kamelya-cardak/KM-145 KIA/KM-145-kamelya-kis-bahce-cardak-pargola-fiyatlari-www.kayalarkereste.com-01.jpg",812,null,{"$f":"CONCATENATE(#REF!, BB111)","v":{"$error":"#REF!"}}]
[null,null,null,null,null,null,null,null,null,null,null,null,null,null,null,null,null,null,null,null,null,null,null,null,null,null,null,null,null,null,null,null,null,null,null,null,null,null,null,null,null,null,null,null,null,null,null,null,null,{"$error":"#REF!"},"Kamelya - Çardak  146","Adet","KM-146","catalog/Kamelya-cardak/KM-146 BODYCOTE/KM-146-kamelya-kis-bahce-cardak-fabrika-sigara-icme-alani-fiyatlari-www.kayalarkereste.com-03.jpg",5800,null,{"$f":"CONCATENATE(#REF!, BB112)","v":{"$error":"#REF!"}}]
[null,null,null,null,null,null,null,null,null,null,null,null,null,null,null,null,null,null,null,null,null,null,null,null,null,null,null,null,null,null,null,null,null,null,null,null,null,null,null,null,null,null,null,null,null,null,null,null,null,{"$error":"#REF!"},"Kamelya - Çardak  147","Adet","KM-147","2018/02/KM-147-kemer-kamelya-ahsap-dinlenme-alani-kis-bahcesi-cardak-gazebo-fiyatlari-www.kayalarkereste.com- 06.jpg",7540,null,{"$f":"CONCATENATE(#REF!, BB113)","v":{"$error":"#REF!"}}]
[null,null,null,null,null,null,null,null,null,null,null,null,null,null,null,null,null,null,null,null,null,null,null,null,null,null,null,null,null,null,null,null,null,null,null,null,null,null,null,null,null,null,null,null,null,null,null,null,null,{"$error":"#REF!"},"Kamelya - Çardak  148","M2","KM-148","catalog/Kamelya-cardak/KM-148 MORYAYLA/bahce-kamelya-km-148-04.jpg",812,null,{"$f":"CONCATENATE(#REF!, BB114)","v":{"$error":"#REF!"}}]
[null,null,null,null,null,null,null,null,null,null,null,null,null,null,null,null,null,null,null,null,null,null,null,null,null,null,null,null,null,null,null,null,null,null,null,null,null,null,null,null,null,null,null,null,null,null,null,null,null,{"$error":"#REF!"},"Kamelya - Çardak  150","Adet","KM-150","catalog/Kamelya-cardak/KM-150/KM-150-kamelya-ahsap-kis-bahce-cardak-fiyatlari-ucuz-kameriye-www.kayalarkereste.com-13.jpg",6000,null,{"$f":"CONCATENATE(#REF!, BB115)","v":{"$error":"#REF!"}}]
[null,null,null,null,null,null,null,null,null,null,null,null,null,null,null,null,null,null,null,null,null,null,null,null,null,null,null,null,null,null,null,null,null,null,null,null,null,null,null,null,null,null,null,null,null,null,null,null,null,{"$error":"#REF!"},"Kamelya - Çardak  151","Adet","KM-151","catalog/Kamelya-cardak/KM-151 BOSAL/ahsap-cardak-kamelya-dinlenme-sigara-icme-alani-gebze-pelitli-balcik-www.kayalarkereste.com-km-148-03.jpg",12000,null,{"$f":"CONCATENATE(#REF!, BB116)","v":{"$error":"#REF!"}}]
[null,null,null,null,null,null,null,null,null,null,null,null,null,null,null,null,null,null,null,null,null,null,null,null,null,null,null,null,null,null,null,null,null,null,null,null,null,null,null,null,null,null,null,null,null,null,null,null,null,{"$error":"#REF!"},"Kamelya -  Fabrika Dinlenme Alanı Çardak  152","Adet","KM-152","catalog/Kamelya-cardak/KM-152 FATER/KM-152-kamelya-ahsap-cardak-fiyatlari-ucuz-kameriye-www.kayalarkereste.com-01.jpg",8000,null,{"$f":"CONCATENATE(#REF!, BB117)","v":{"$error":"#REF!"}}]
[null,null,null,null,null,null,null,null,null,null,null,null,null,null,null,null,null,null,null,null,null,null,null,null,null,null,null,null,null,null,null,null,null,null,null,null,null,null,null,null,null,null,null,null,null,null,null,null,null,{"$error":"#REF!"},"Kamelya - Çardak  153","Adet","KM-153","catalog/Kamelya-cardak/KM-153/km-153-ahsap-kamelya-bahce-platform-dinlenme-alani-04.jpg",4200,null,{"$f":"CONCATENATE(#REF!, BB118)","v":{"$error":"#REF!"}}]
[null,null,null,null,null,null,null,null,null,null,null,null,null,null,null,null,null,null,null,null,null,null,null,null,null,null,null,null,null,null,null,null,null,null,null,null,null,null,null,null,null,null,null,null,null,null,null,null,null,{"$error":"#REF!"},"Kamelya - Çardak  154","Adet","KM-154","catalog/Kamelya-cardak/KM-154/cardak-kamelya-gazebo-ahsap-oturma-dinlenme-alani-kartal-pendik-gebze-www.kayalarahsap.com-KM-154-01.jpg",5500,null,{"$f":"CONCATENATE(#REF!, BB119)","v":{"$error":"#REF!"}}]
[null,null,null,null,null,null,null,null,null,null,null,null,null,null,null,null,null,null,null,null,null,null,null,null,null,null,null,null,null,null,null,null,null,null,null,null,null,null,null,null,null,null,null,null,null,null,null,null,null,{"$error":"#REF!"},"Kamelya - Çardak  155","Adet","KM-155","catalog/Kamelya-cardak/KM-155 SANGO UZUN/cardak-kamelya-gazebo-ahsap-sigara-icme-oturma-dinlenme-alani-sango-gebze-www.kayalarahsap.com-KM-155-01.jpg",19800,null,{"$f":"CONCATENATE(#REF!, BB120)","v":{"$error":"#REF!"}}]
[null,null,null,null,null,null,null,null,null,null,null,null,null,null,null,null,null,null,null,null,null,null,null,null,null,null,null,null,null,null,null,null,null,null,null,null,null,null,null,null,null,null,null,null,null,null,null,null,null,{"$error":"#REF!"},"Kamelya - Çardak  156","Adet","KM-156","catalog/Kamelya-cardak/KM-156/cardak-kamelya-gazebo-ahsap-sigara-icme-oturma-dinlenme-alani-sango-gebze-www.kayalarahsap.com-KM-156-01.jpg",9000,null,{"$f":"CONCATENATE(#REF!, BB121)","v":{"$error":"#REF!"}}]
[null,null,null,null,null,null,null,null,null,null,null,null,null,null,null,null,null,null,null,null,null,null,null,null,null,null,null,null,null,null,null,null,null,null,null,null,null,null,null,null,null,null,null,null,null,null,null,null,null,{"$error":"#REF!"},"Kamelya - Çardak  157","Adet","KM-157","catalog/Kamelya-cardak/KM-157 AYDINLI YAVUZHAN 4X4/KM-157-kamelya-ahsap-kis-bahce-cardak-gazebo-fiyatlari-ucuz-kamelya-kameriye-www.kayalarkereste.com-04.jpg",9600,null,{"$f":"CONCATENATE(#REF!, BB122)","v":{"$error":"#REF!"}}]
[null,null,null,null,null,null,null,null,null,null,null,null,null,null,null,null,null,null,null,null,null,null,null,null,null,null,null,null,null,null,null,null,null,null,null,null,null,null,null,null,null,null,null,null,null,null,null,null,null,{"$error":"#REF!"},"Kamelya - Çardak  158","Adet","KM-158","catalog/Kamelya-cardak/KM-158/KM-158-kamelya-ahsap-cardak-gazebo-kameriye-ucuz-kamelya-fiyatlari-istanbul-gebze-www.kayalarkereste.com-07.JPG",9600,null,{"$f":"CONCATENATE(#REF!, BB123)","v":{"$error":"#REF!"}}]
[null,null,null,null,null,null,null,null,null,null,null,null,null,null,null,null,null,null,null,null,null,null,null,null,null,null,null,null,null,null,null,null,null,null,null,null,null,null,null,null,null,null,null,null,null,null,null,null,null,{"$error":"#REF!"},"Kamelya - Çardak  159","Adet","KM-159","catalog/Kamelya-cardak/KM-159 TUZLA YAVUZHAN 3,5 X 3,5/km-159-cardak-ahsap-kamelya-tuzla-pendik-gebze-gazebo-ucuz-kamelya-fiyatlari-www.kayalarkereste.com-02.jpg",8150,null,{"$f":"CONCATENATE(#REF!, BB124)","v":{"$error":"#REF!"}}]
[null,null,null,null,null,null,null,null,null,null,null,null,null,null,null,null,null,null,null,null,null,null,null,null,null,null,null,null,null,null,null,null,null,null,null,null,null,null,null,null,null,null,null,null,null,null,null,null,null,{"$error":"#REF!"},"Kamelya - Çardak  160","Adet","KM-160","catalog/Kamelya-cardak/KM-160 AYDINLI YAVUZHAN 3X5/KM-160-kamelya-kis-bahce-cardak-site-dinlenme-alani-cardak-fiyatlari-gebze-tuzla-pendik-www.kayalarkereste.com-01.jpg",10500,null,{"$f":"CONCATENATE(#REF!, BB125)","v":{"$error":"#REF!"}}]
[null,null,null,null,null,null,null,null,null,null,null,null,null,null,null,null,null,null,null,null,null,null,null,null,null,null,null,null,null,null,null,null,null,null,null,null,null,null,null,null,null,null,null,null,null,null,null,null,null,{"$error":"#REF!"},"Serender - Nayla  162","Adet","KM-162","catalog/Kamelya-cardak/KM-162/km-162-nayla-serender-cift-katli-kamelya-ahsap-nayla-serender-fiyatlari-www.kayalarkereste.com-01.jpg",18000,null,{"$f":"CONCATENATE(#REF!, BB126)","v":{"$error":"#REF!"}}]
[null,null,null,null,null,null,null,null,null,null,null,null,null,null,null,null,null,null,null,null,null,null,null,null,null,null,null,null,null,null,null,null,null,null,null,null,null,null,null,null,null,null,null,null,null,null,null,null,null,{"$error":"#REF!"},"Kamelya - Çardak  163","Adet","KM-163","catalog/Kamelya-cardak/KM-163/km-163-ahsap-sekizgen-yuvarlak-kamelya-cardak-gazebo-fiyatlari-gebze-tuzla-pendik-kurtkoy-www.kayalarkereste.com-07.jpg",9600,null,{"$f":"CONCATENATE(#REF!, BB127)","v":{"$error":"#REF!"}}]
[null,null,null,null,null,null,null,null,null,null,null,null,null,null,null,null,null,null,null,null,null,null,null,null,null,null,null,null,null,null,null,null,null,null,null,null,null,null,null,null,null,null,null,null,null,null,null,null,null,{"$error":"#REF!"},"PA-131 Çocuk Oyun Parkı","Adet","PA-131","catalog/Oyun-Park/PA-131/cocuk-oyun-parki-gebze-ahsap-oyun-alani-fiyatlari-www.ahsapfiyatlistesi.com-PA-131-01.jpg",7540,null,{"$f":"CONCATENATE(#REF!, BB128)","v":{"$error":"#REF!"}}]
[null,null,null,null,null,null,null,null,null,null,null,null,null,null,null,null,null,null,null,null,null,null,null,null,null,null,null,null,null,null,null,null,null,null,null,null,null,null,null,null,null,null,null,null,null,null,null,null,null,{"$error":"#REF!"},"TAVUK ve KANATLI HAYVAN KÜMESİ 101","Adet","UK-101","catalog/kumes/UK-101/IMG_1923.jpg",2204,null,{"$f":"CONCATENATE(#REF!, BB129)","v":{"$error":"#REF!"}}]
[null,null,null,null,null,null,null,null,null,null,null,null,null,null,null,null,null,null,null,null,null,null,null,null,null,null,null,null,null,null,null,null,null,null,null,null,null,null,null,null,null,null,null,null,null,null,null,null,null,{"$error":"#REF!"},"TAVUK ve KANATLI HAYVAN KÜMESİ 102","Adet","UK-102","catalog/kumes/UK-102/IMG_1678.jpg",2204,null,{"$f":"CONCATENATE(#REF!, BB130)","v":{"$error":"#REF!"}}]
[null,null,null,null,null,null,null,null,null,null,null,null,null,null,null,null,null,null,null,null,null,null,null,null,null,null,null,null,null,null,null,null,null,null,null,null,null,null,null,null,null,null,null,null,null,null,null,null,null,{"$error":"#REF!"},"TAVUK ve KANATLI HAYVAN KÜMESİ 103","Adet","UK-103","catalog/kumes/UK-103/ahsap-tavuk-guvercin-kumes-uk-103-03.jpg",3306,null,{"$f":"CONCATENATE(#REF!, BB131)","v":{"$error":"#REF!"}}]
[null,null,null,null,null,null,null,null,null,null,null,null,null,null,null,null,null,null,null,null,null,null,null,null,null,null,null,null,null,null,null,null,null,null,null,null,null,null,null,null,null,null,null,null,null,null,null,null,null,{"$error":"#REF!"},"TAVUK ve KANATLI HAYVAN KÜMESİ 104","Adet","UK-104","catalog/kumes/UK-104/ahsap-tavuk-kumesi-uk-104-01.jpg",3306,null,{"$f":"CONCATENATE(#REF!, BB132)","v":{"$error":"#REF!"}}]
[null,null,null,null,null,null,null,null,null,null,null,null,null,null,null,null,null,null,null,null,null,null,null,null,null,null,null,null,null,null,null,null,null,null,null,null,null,null,null,null,null,null,null,null,null,null,null,null,null,{"$error":"#REF!"},"AHŞAP KÖPRU KU-102","Metre","KU-102","catalog/kopru/KU-102/ku-102-ahsap-kopru-cesitleri-fiyatlari-resimleri-gebze-kocaeli-istanbul-1.jpg",754,null,{"$f":"CONCATENATE(#REF!, BB133)","v":{"$error":"#REF!"}}]
[null,null,null,null,null,null,null,null,null,null,null,null,null,null,null,null,null,null,null,null,null,null,null,null,null,null,null,null,null,null,null,null,null,null,null,null,null,null,null,null,null,null,null,null,null,null,null,null,null,{"$error":"#REF!"},"Ahşap Saksı 101","Adet","AS-101","catalog/saksi/AS-101/AS-101-ahsap-saksi-fiyatlari-ahsap-saksi-imalati-buyuk-ahsap saksi-ahsap-saksi-fiyatlari-www.kayalarahsap.com-01.jpg",522,null,{"$f":"CONCATENATE(#REF!, BB134)","v":{"$error":"#REF!"}}]
[null,null,null,null,null,null,null,null,null,null,null,null,null,null,null,null,null,null,null,null,null,null,null,null,null,null,null,null,null,null,null,null,null,null,null,null,null,null,null,null,null,null,null,null,null,null,null,null,null,{"$error":"#REF!"},"Ahşap Saksı 102","Adet","AS-102","catalog/saksi/AS-102/AS-102-ahsap-saksi-fiyatlari-ahsap-saksi-imalati-buyuk-maun-ahsap saksi-ahsap-saksi-fiyatlari-www.kayalarahsap.com-03.jpg",638,null,{"$f":"CONCATENATE(#REF!, BB135)","v":{"$error":"#REF!"}}]
[null,null,null,null,null,null,null,null,null,null,null,null,null,null,null,null,null,null,null,null,null,null,null,null,null,null,null,null,null,null,null,null,null,null,null,null,null,null,null,null,null,null,null,null,null,null,null,null,null,{"$error":"#REF!"},"Ahşap Saksı 103","Adet","AS-103","catalog/saksi/AS-103/AS-103-maun-ahsap-saksi-fiyatlari-ahsap-saksi-imalati-buyuk-maun-ahsap saksi-ahsap-saksi-fiyatlari-www.kayalarahsap.com-01.jpg",638,null,{"$f":"CONCATENATE(#REF!, BB136)","v":{"$error":"#REF!"}}]
[null,null,null,null,null,null,null,null,null,null,null,null,null,null,null,null,null,null,null,null,null,null,null,null,null,null,null,null,null,null,null,null,null,null,null,null,null,null,null,null,null,null,null,null,null,null,null,null,null,{"$error":"#REF!"},"Ahşap Saksı 105","Adet","AS-105","catalog/saksi/AS-105/AS-105-maun-ahsap-saksi-fiyatlari-ahsap-saksi-imalati-buyuk-maun-6gen-ahsap-saksi-ahsap-saksi-fiyatlari-www.kayalarahsap.~3.jpg",348,null,{"$f":"CONCATENATE(#REF!, BB137)","v":{"$error":"#REF!"}}]
[null,null,null,null,null,null,null,null,null,null,null,null,null,null,null,null,null,null,null,null,null,null,null,null,null,null,null,null,null,null,null,null,null,null,null,null,null,null,null,null,null,null,null,null,null,null,null,null,null,{"$error":"#REF!"},"Ahşap Saksı 106","Adet","AS-106","catalog/saksi/AS-106/AS-106-ahsap-saksi-fiyatlari-ahsap-saksi-imalati-buyuk-konik-8gen-ahsap-saksi-ahsap-saksi-fiyatlari-www.kayalarahsap.com-02.jpg",278.39999999999998,null,{"$f":"CONCATENATE(#REF!, BB138)","v":{"$error":"#REF!"}}]
[null,null,null,null,null,null,null,null,null,null,null,null,null,null,null,null,null,null,null,null,null,null,null,null,null,null,null,null,null,null,null,null,null,null,null,null,null,null,null,null,null,null,null,null,null,null,null,null,null,{"$error":"#REF!"},"Ahşap Saksı 107","Adet","AS-107","catalog/saksi/AS-107/AS-107-ahsap-saksi-fiyatlari-ahsap-saksi-imalati-buyuk-uzun-8gen-ahsap-saksi-ahsap-saksi-fiyatlari-www.kayalarahsap.com-01.jpg",278.39999999999998,null,{"$f":"CONCATENATE(#REF!, BB139)","v":{"$error":"#REF!"}}]
[null,null,null,null,null,null,null,null,null,null,null,null,null,null,null,null,null,null,null,null,null,null,null,null,null,null,null,null,null,null,null,null,null,null,null,null,null,null,null,null,null,null,null,null,null,null,null,null,null,{"$error":"#REF!"},"Ahşap Saksı 108","Adet","AS-108","catalog/saksi/AS-108/AS-108-ahsap-saksi-fiyatlari-ahsap-saksi-imalati-buyuk-uzun-8gen-ahsap-saksi-ahsap-saksi-fiyatlari-resimleri-www.kayalara~3.jpg",278.39999999999998,null,{"$f":"CONCATENATE(#REF!, BB140)","v":{"$error":"#REF!"}}]
[null,null,null,null,null,null,null,null,null,null,null,null,null,null,null,null,null,null,null,null,null,null,null,null,null,null,null,null,null,null,null,null,null,null,null,null,null,null,null,null,null,null,null,null,null,null,null,null,null,{"$error":"#REF!"},"Ahşap Saksı 109","Adet","AS-109","catalog/saksi/AS-109/AS-109-ahsap-saksi-fiyatlari-ahsap-saksi-imalati-buyuk-uzun-7gen-ahsap-saksi-yedi-gen-ahsap-saksi-cesitleri-resimleri-yed~3.jpg",278.39999999999998,null,{"$f":"CONCATENATE(#REF!, BB141)","v":{"$error":"#REF!"}}]
[null,null,null,null,null,null,null,null,null,null,null,null,null,null,null,null,null,null,null,null,null,null,null,null,null,null,null,null,null,null,null,null,null,null,null,null,null,null,null,null,null,null,null,null,null,null,null,null,null,{"$error":"#REF!"},"Ahşap Saksı 110","Adet","AS-110","catalog/Saksi/AS-110/AS-110-ahsap-saksi-fiyatlari-ahsap-saksi-imalati-6gen-altigen-ahsap-saksi-ahsap-saksi-cesitleri-resimleri-ahsap-saksi-fiyat-www.kayalarahsap.com-052.jpg",278.39999999999998,null,{"$f":"CONCATENATE(#REF!, BB142)","v":{"$error":"#REF!"}}]
[null,null,null,null,null,null,null,null,null,null,null,null,null,null,null,null,null,null,null,null,null,null,null,null,null,null,null,null,null,null,null,null,null,null,null,null,null,null,null,null,null,null,null,null,null,null,null,null,null,{"$error":"#REF!"},"Ahşap Saksı 112","Adet","AS-112","catalog/saksi/AS-112/AS-112-ahsap-saksi-fiyatlari-ahsap-saksi-imalati-dikdortgen-ahsap-saksi-ahsap-saksi-cesitleri-resimleri-ahsap-saksi-fiyat~1.jpg",371.2,null,{"$f":"CONCATENATE(#REF!, BB143)","v":{"$error":"#REF!"}}]
[null,null,null,null,null,null,null,null,null,null,null,null,null,null,null,null,null,null,null,null,null,null,null,null,null,null,null,null,null,null,null,null,null,null,null,null,null,null,null,null,null,null,null,null,null,null,null,null,null,{"$error":"#REF!"},"Ahşap Saksı 113","Adet","AS-113","catalog/saksi/AS-113/AS-113-ahsap-saksi-fiyatlari-ahsap-saksi-imalati-uzun-dikdortgen-ahsap-saksi-ahsap-saksi-cesitleri-resimleri-ahsap-saksi-~1.jpg",371.2,null,{"$f":"CONCATENATE(#REF!, BB144)","v":{"$error":"#REF!"}}]
[null,null,null,null,null,null,null,null,null,null,null,null,null,null,null,null,null,null,null,null,null,null,null,null,null,null,null,null,null,null,null,null,null,null,null,null,null,null,null,null,null,null,null,null,null,null,null,null,null,{"$error":"#REF!"},"Ahşap Saksı 114","Adet","AS-114","catalog/saksi/AS-114/AS-114-ahsap-saksi-fiyatlari-ahsap-saksi-imalati-dikdortgen-ahsap-saksi-ahsap-saksi-ciceklik-cesitleri-resimleri-ahsap-sa~2.jpg",371.2,null,{"$f":"CONCATENATE(#REF!, BB145)","v":{"$error":"#REF!"}}]
[null,null,null,null,null,null,null,null,null,null,null,null,null,null,null,null,null,null,null,null,null,null,null,null,null,null,null,null,null,null,null,null,null,null,null,null,null,null,null,null,null,null,null,null,null,null,null,null,null,{"$error":"#REF!"},"Ahşap Saksı 117","Adet","AS-117","catalog/saksi/AS-117-EL-ARABA-SAKSI/AS-117-ahsap-saksi-fiyatlari-el-arabasi-saksi-tekerlekli-araba-saksi-kayalarkereste.com-05.jpg",638,null,{"$f":"CONCATENATE(#REF!, BB146)","v":{"$error":"#REF!"}}]
[null,null,null,null,null,null,null,null,null,null,null,null,null,null,null,null,null,null,null,null,null,null,null,null,null,null,null,null,null,null,null,null,null,null,null,null,null,null,null,null,null,null,null,null,null,null,null,null,null,{"$error":"#REF!"},"Ahşap Saksı 118","Adet","AS-118","catalog/saksi/AS-118/AS-118-ahsap-saksi-fiyatlari-ahsap-saksi-imalati-uzun-dikdortgen-ahsap-saksi-ahsap-saksi-cesitleri-resimleri-ahsap-saksi-~1.jpg",371.2,null,{"$f":"CONCATENATE(#REF!, BB147)","v":{"$error":"#REF!"}}]
[null,null,null,null,null,null,null,null,null,null,null,null,null,null,null,null,null,null,null,null,null,null,null,null,null,null,null,null,null,null,null,null,null,null,null,null,null,null,null,null,null,null,null,null,null,null,null,null,null,{"$error":"#REF!"},"Ahşap Saksı 119","Adet","AS-119","catalog/saksi/AS-119/AS-119-ahsap-saksi-fiyatlari-ahsap-saksi-imalati-6gen-altigen-ahsap-saksi-ahsap-saksi-cesitleri-resimleri-ahsap-saksi-fiy~1.jpg",278.39999999999998,null,{"$f":"CONCATENATE(#REF!, BB148)","v":{"$error":"#REF!"}}]
[null,null,null,null,null,null,null,null,null,null,null,null,null,null,null,null,null,null,null,null,null,null,null,null,null,null,null,null,null,null,null,null,null,null,null,null,null,null,null,null,null,null,null,null,null,null,null,null,null,{"$error":"#REF!"},"Ahşap Saksı 120","Adet","AS-120","catalog/saksi/AS-120/AS-120-ahsap-saksi-fiyatlari-ahsap-saksi-imalati-yuksek-ahsap-saksi-uzun-ahsap-saksi-cesitleri-resimleri-ahsap-saksi-fiya~2.jpg",406,null,{"$f":"CONCATENATE(#REF!, BB149)","v":{"$error":"#REF!"}}]
[null,null,null,null,null,null,null,null,null,null,null,null,null,null,null,null,null,null,null,null,null,null,null,null,null,null,null,null,null,null,null,null,null,null,null,null,null,null,null,null,null,null,null,null,null,null,null,null,null,{"$f":"HYPERLINK(BE150,BA150)","v":{"$error":"#REF!"}},"Ahşap Saksı 122","Metre","AS-122","catalog/saksi/AS-122/ahsap-panel-saksi-fiyatlari-modelleri-istanbul-kocaeli-www.kayalarkereste.com-as-122-05.jpg",417.6,null,{"$f":"CONCATENATE(#REF!, BB150)","v":{"$error":"#REF!"}}]
[null,null,null,null,null,null,null,null,null,null,null,null,null,null,null,null,null,null,null,null,null,null,null,null,null,null,null,null,null,null,null,null,null,null,null,null,null,null,null,null,null,null,null,null,null,null,null,null,null,{"$error":"#REF!"},"Ahşap Saksı 123","Adet","AS-123","catalog/saksi/AS-123 AT ARBASI/AS-123-at-arabasi-ahsap-saksi-01.jpg",2552,null,{"$f":"CONCATENATE(#REF!, BB151)","v":{"$error":"#REF!"}}]
[null,null,null,null,null,null,null,null,null,null,null,null,null,null,null,null,null,null,null,null,null,null,null,null,null,null,null,null,null,null,null,null,null,null,null,null,null,null,null,null,null,null,null,null,null,null,null,null,null,{"$error":"#REF!"},"Ahşap Bungalov Yalı baskı Ev (AV-109)","m2","AV-109","catalog/Ev/av-109/ahsap-bungalov-ev-av-109-00.jpg",1566,null,{"$f":"CONCATENATE(#REF!, BB152)","v":{"$error":"#REF!"}}]
[null,null,null,null,null,null,null,null,null,null,null,null,null,null,null,null,null,null,null,null,null,null,null,null,null,null,null,null,null,null,null,null,null,null,null,null,null,null,null,null,null,null,null,null,null,null,null,null,null,{"$error":"#REF!"},"1,8 x 12 Ahşap Cephe Kaplama Yalı Baskı YB-101","M2","YB-101","catalog/ahsap-cephe-kaplama/YB-101-12-en-2.5-kalin-duz/yb-101-yali-baski-bungalow-ev-cephe-kaplama-www.kayalarahsap.com-04.JPG",55.68,null,{"$f":"CONCATENATE(#REF!, BB153)","v":{"$error":"#REF!"}}]
[null,null,null,null,null,null,null,null,null,null,null,null,null,null,null,null,null,null,null,null,null,null,null,null,null,null,null,null,null,null,null,null,null,null,null,null,null,null,null,null,null,null,null,null,null,null,null,null,null,{"$error":"#REF!"},"3,5 x 12,5 Ahşap Cephe Kaplama Yalı Baskı YB-102","M2","YB-102","catalog/ahsap-cephe-kaplama/YB-102-12-EN-5-kalin-duz/ahsap-yali-baski-cephe-kaplama-03.jpg",90.48,null,{"$f":"CONCATENATE(#REF!, BB154)","v":{"$error":"#REF!"}}]
[null,null,null,null,null,null,null,null,null,null,null,null,null,null,null,null,null,null,null,null,null,null,null,null,null,null,null,null,null,null,null,null,null,null,null,null,null,null,null,null,null,null,null,null,null,null,null,null,null,{"$error":"#REF!"},"5 x 15 Ahşap Cephe Kaplama Yalı Baskı DÜZ YB-103","M2","YB-103","catalog/ahsap-cephe-kaplama/YB-103-15-en-5-kalin-duz/YaliBaski_5_duz_b.JPG",125.28,null,{"$f":"CONCATENATE(#REF!, BB155)","v":{"$error":"#REF!"}}]
[null,null,null,null,null,null,null,null,null,null,null,null,null,null,null,null,null,null,null,null,null,null,null,null,null,null,null,null,null,null,null,null,null,null,null,null,null,null,null,null,null,null,null,null,null,null,null,null,null,{"$error":"#REF!"},"5 x 15 Ahşap Cephe Kaplama Yalı Baskı Yuvarlak Yuzey YB-104","M2","YB-104","catalog/ahsap-cephe-kaplama/YB-104-15-en-5-kalin-yuvarlak/IMG_5117.JPG",125.28,null,{"$f":"CONCATENATE(#REF!, BB156)","v":{"$error":"#REF!"}}]
[null,null,null,null,null,null,null,null,null,null,null,null,null,null,null,null,null,null,null,null,null,null,null,null,null,null,null,null,null,null,null,null,null,null,null,null,null,null,null,null,null,null,null,null,null,null,null,null,null,{"$error":"#REF!"},"5 x 20 Ahşap Yalı Baskı Dış Cephe Kaplama Düz Yüzey YB-105","M2","YB-105","catalog/ahsap-cephe-kaplama/YB-105-20-en-5-kalin-duz/YB-105-ahsap-kutuk-yali-baski-bungalow-ev-cephe-kaplama--kutuk-ev-profil-www.kayalarahsap.com-01.jpg",125,null,{"$f":"CONCATENATE(#REF!, BB157)","v":{"$error":"#REF!"}}]
[null,null,null,null,null,null,null,null,null,null,null,null,null,null,null,null,null,null,null,null,null,null,null,null,null,null,null,null,null,null,null,null,null,null,null,null,null,null,null,null,null,null,null,null,null,null,null,null,null,{"$error":"#REF!"},"3 x 23 Geniş Ahşap Yalı Baskı Dış Cephe Kaplama Düz Yüzey YB-106","M2","YB-106","catalog/ahsap-cephe-kaplama/YB-106-23-en-3.5-kalin-duz/YB-106-ahsap-tarihi-eser-ev-dekorasyon-ahsap-yali-baski-bungalow-ev-cephe-kaplama-kutuk-ev-profil-www.kayalarahsap.com-03.jpg",195,null,{"$f":"CONCATENATE(#REF!, BB158)","v":{"$error":"#REF!"}}]
[null,null,null,null,null,null,null,null,null,null,null,null,null,null,null,null,null,null,null,null,null,null,null,null,null,null,null,null,null,null,null,null,null,null,null,null,null,null,null,null,null,null,null,null,null,null,null,null,null,{"$error":"#REF!"},"5 x 12,5 Yalı Baskı Dış Cephe Kaplama Düz Yüzey YB-107","M2","YB-107","catalog/ahsap-cephe-kaplama/YB-102-12-EN-5-kalin-duz/ahsap-yali-baski-cephe-kaplama-03.jpg",125.28,null,{"$f":"CONCATENATE(#REF!, BB159)","v":{"$error":"#REF!"}}]
[null,null,null,null,null,null,null,null,null,null,null,null,null,null,null,null,null,null,null,null,null,null,null,null,null,null,null,null,null,null,null,null,null,null,null,null,null,null,null,null,null,null,null,null,null,null,null,null,null,{"$error":"#REF!"},"Kamelya - Çardak  161","M2","KM-161","catalog/Kamelya-cardak/KM-161/cardak-kamelya-gazebo-ahsap-oturma-dinlenme-alani-kartal-pendik-gebze-imes-kocaeli-www.kayalarahsap.com-KM-161-06.jpg",800,null,{"$f":"CONCATENATE(#REF!, BB160)","v":{"$error":"#REF!"}}]
[null,null,null,null,null,null,null,null,null,null,null,null,null,null,null,null,null,null,null,null,null,null,null,null,null,null,null,null,null,null,null,null,null,null,null,null,null,null,null,null,null,null,null,null,null,null,null,null,null,{"$error":"#REF!"},"Rabıta 1-2. Sınıf  (LM-107)","M2","LM-107","catalog/lambiri-ahsap/LM-107-rabita-kalin-yer-doseme-www.kayalarkereste.com-02.jpg",87,null,{"$f":"CONCATENATE(#REF!, BB161)","v":{"$error":"#REF!"}}]
[null,null,null,null,null,null,null,null,null,null,null,null,null,null,null,null,null,null,null,null,null,null,null,null,null,null,null,null,null,null,null,null,null,null,null,null,null,null,null,null,null,null,null,null,null,null,null,null,null,{"$error":"#REF!"},"DM-101 Doğal Lamine 12 kalın LADİN Ahşap Masa 90 x 200cm","Adet","DM-101","catalog/kutuk-masa/dm-101/lamine-ladin-12-kalin-kutuk-masa-fiyatlari-kayalarkereste.com-kutuk-dogal-agac-mobilya-01.jpg",1102,null,{"$f":"CONCATENATE(#REF!, BB162)","v":{"$error":"#REF!"}}]
[null,null,null,null,null,null,null,null,null,null,null,null,null,null,null,null,null,null,null,null,null,null,null,null,null,null,null,null,null,null,null,null,null,null,null,null,null,null,null,null,null,null,null,null,null,null,null,null,null,{"$error":"#REF!"},"Doğal Lamine 12 kalın LADİN Ahşap Masa","Adet","AS-124","catalog/saksi/as-124/AS-124-at-arabasi-kucuk-ahsap-saksi-03.jpg",754,null,{"$f":"CONCATENATE(#REF!, BB163)","v":{"$error":"#REF!"}}]
[null,null,null,null,null,null,null,null,null,null,null,null,null,null,null,null,null,null,null,null,null,null,null,null,null,null,null,null,null,null,null,null,null,null,null,null,null,null,null,null,null,null,null,null,null,null,null,null,null,{"$error":"#REF!"},"DM-102 Doğal Lamine 12 kalın LADİN Ahşap Masa 80 x 200cm","Adet","DM-102","catalog/kutuk-masa/dm-101/lamine-ladin-12-kalin-kutuk-masa-fiyatlari-kayalarkereste.com-kutuk-dogal-agac-mobilya-012.jpg",928,null,{"$f":"CONCATENATE(#REF!, BB164)","v":{"$error":"#REF!"}}]
[null,null,null,null,null,null,null,null,null,null,null,null,null,null,null,null,null,null,null,null,null,null,null,null,null,null,null,null,null,null,null,null,null,null,null,null,null,null,null,null,null,null,null,null,null,null,null,null,null,{"$error":"#REF!"},"DM-111 Doğal Kütük Ağaç Masa Tablası","Adet","DM-111","catalog/kutuk-masa/dm-111/kutuk-dogal-agac-masa-tabla-fiyatlari-www.kayalarkereste.com-04.jpg",2424.4,null,{"$f":"CONCATENATE(#REF!, BB165)","v":{"$error":"#REF!"}}]
[null,null,null,null,null,null,null,null,null,null,null,null,null,null,null,null,null,null,null,null,null,null,null,null,null,null,null,null,null,null,null,null,null,null,null,null,null,null,null,null,null,null,null,null,null,null,null,null,null,{"$error":"#REF!"},"DM-112-Doğal Kütük Ağaç Masa Tablası","Adet","DM-112","catalog/kutuk-masa/IMG_E3393.JPG",2534.6,null,{"$f":"CONCATENATE(#REF!, BB166)","v":{"$error":"#REF!"}}]
[null,null,null,null,null,null,null,null,null,null,null,null,null,null,null,null,null,null,null,null,null,null,null,null,null,null,null,null,null,null,null,null,null,null,null,null,null,null,null,null,null,null,null,null,null,null,null,null,null,{"$error":"#REF!"},"Ahşap Bungalov Kulube-Ev  (AV-110)","Adet","AV-110","catalog/Ev/av-110/av-110-bungalov-ahsap-ev-kutuk--kulube-ev-fiyatlari-yapimi-maliyeti-resimleri-gebze-www.kayalarahsap.com-03.jpg",11136,null,{"$f":"CONCATENATE(#REF!, BB167)","v":{"$error":"#REF!"}}]
[null,null,null,null,null,null,null,null,null,null,null,null,null,null,null,null,null,null,null,null,null,null,null,null,null,null,null,null,null,null,null,null,null,null,null,null,null,null,null,null,null,null,null,null,null,null,null,null,null,{"$error":"#REF!"},"KT-105 Ahşap Kütük - Bungalov Ev Profil","M2","KT-105","catalog/Profil/Kutuk-Ev/KT-105/KT-105-kutuk-ahsap-bungalov-ev-profil-5-kalin-15-genislik-03.jpg",129.91999999999999,null,{"$f":"CONCATENATE(#REF!, BB168)","v":{"$error":"#REF!"}}]
[null,null,null,null,null,null,null,null,null,null,null,null,null,null,null,null,null,null,null,null,null,null,null,null,null,null,null,null,null,null,null,null,null,null,null,null,null,null,null,null,null,null,null,null,null,null,null,null,null,{"$error":"#REF!"},"KT-110 Ahşap Kütük - Bungalov Ev Profil","M2","KT-110","catalog/Profil/Kutuk-Ev/KT-110/kt-110-kutuk-ahsap-bungalov-ev-ahsap-profil-10-kalin-15-genislik-02.jpg",179.8,null,{"$f":"CONCATENATE(#REF!, BB169)","v":{"$error":"#REF!"}}]
[null,null,null,null,null,null,null,null,null,null,null,null,null,null,null,null,null,null,null,null,null,null,null,null,null,null,null,null,null,null,null,null,null,null,null,null,null,null,null,null,null,null,null,null,null,null,null,null,null,{"$error":"#REF!"},"KT-118 Ahşap Kütük - Bungalov Ev Profil","M2","KT-118","catalog/Profil/Kutuk-Ev/KT-118/kt-118-lamine-kutuk-ev-profil-ahsab-15cm-x-18cm-01.jpg",568.4,null,{"$f":"CONCATENATE(#REF!, BB170)","v":{"$error":"#REF!"}}]
[null,null,null,null,null,null,null,null,null,null,null,null,null,null,null,null,null,null,null,null,null,null,null,null,null,null,null,null,null,null,null,null,null,null,null,null,null,null,null,null,null,null,null,null,null,null,null,null,null,{"$error":"#REF!"},"Lambiri -1. Sınıf SİBİRYA  (LM-108)","M2","LM-108","catalog/Profil/Lambiri-Rabita/LM-108-ahsap-lambiri-fiyatlari-sibirya-lambiri-rabita-cesitleri-resimleri-01.jpg",48,null,{"$f":"CONCATENATE(#REF!, BB171)","v":{"$error":"#REF!"}}]
[null,null,null,null,null,null,null,null,null,null,null,null,null,null,null,null,null,null,null,null,null,null,null,null,null,null,null,null,null,null,null,null,null,null,null,null,null,null,null,null,null,null,null,null,null,null,null,null,null,{"$error":"#REF!"},"TEAK Burma Kereste  (1.4 cm, 2 cm, 4 cm, 5.3 cm, 6.5 cm kalınlık) x (53 mm geniş) x (90-170 cm arası boy)  BT-101","M3","BT-101","catalog/silinmis-kereste/ks-113-iroko-silinmis-profil-ahsap-kereste-78mm-x-16mm-01.jpg",4725,null,{"$f":"CONCATENATE(#REF!, BB172)","v":{"$error":"#REF!"}}]
[null,null,null,null,null,null,null,null,null,null,null,null,null,null,null,null,null,null,null,null,null,null,null,null,null,null,null,null,null,null,null,null,null,null,null,null,null,null,null,null,null,null,null,null,null,null,null,null,null,{"$error":"#REF!"},"TEAK Burma Kereste (1.4 cm, 2 cm, 4 cm, 5.3 cm, 6.5 cm kalınlık) x   (78 mm geniş) x (90-170 cm boy) BT-102","M3","BT-102","catalog/silinmis-kereste/ks-113-iroko-silinmis-profil-ahsap-kereste-78mm-x-16mm-01.jpg",5145,null,{"$f":"CONCATENATE(#REF!, BB173)","v":{"$error":"#REF!"}}]
[null,null,null,null,null,null,null,null,null,null,null,null,null,null,null,null,null,null,null,null,null,null,null,null,null,null,null,null,null,null,null,null,null,null,null,null,null,null,null,null,null,null,null,null,null,null,null,null,null,{"$error":"#REF!"},"TEAK Burma Kereste (1.4 cm, 2 cm, 4 cm, 5.3 cm, 6.5 cm kalınlık) x   (53 mm geniş) x (180-290 cm boy) BT-103","M3","BT-103","catalog/silinmis-kereste/ks-113-iroko-silinmis-profil-ahsap-kereste-78mm-x-16mm-01.jpg",5250,null,{"$f":"CONCATENATE(#REF!, BB174)","v":{"$error":"#REF!"}}]
[null,null,null,null,null,null,null,null,null,null,null,null,null,null,null,null,null,null,null,null,null,null,null,null,null,null,null,null,null,null,null,null,null,null,null,null,null,null,null,null,null,null,null,null,null,null,null,null,null,{"$error":"#REF!"},"TEAK Burma Kereste (1.4 cm, 2 cm, 4 cm, 5.3 cm, 6.5 cm kalınlık) x (78 mm geniş) x (180-290 cm boy) BT-104","M3","BT-104","catalog/silinmis-kereste/ks-113-iroko-silinmis-profil-ahsap-kereste-78mm-x-16mm-01.jpg",5617,null,{"$f":"CONCATENATE(#REF!, BB175)","v":{"$error":"#REF!"}}]
[null,null,null,null,null,null,null,null,null,null,null,null,null,null,null,null,null,null,null,null,null,null,null,null,null,null,null,null,null,null,null,null,null,null,null,null,null,null,null,null,null,null,null,null,null,null,null,null,null,{"$error":"#REF!"},"TEAK Burma Kereste (1.4 cm, 2 cm, 4 cm, 5.3 cm, 6.5 cm kalınlık) x (103 mm geniş) x (180-290 cm boy) BT-105","M3","BT-105","catalog/silinmis-kereste/ks-113-iroko-silinmis-profil-ahsap-kereste-78mm-x-16mm-01.jpg",6030,null,{"$f":"CONCATENATE(#REF!, BB176)","v":{"$error":"#REF!"}}]
[null,null,null,null,null,null,null,null,null,null,null,null,null,null,null,null,null,null,null,null,null,null,null,null,null,null,null,null,null,null,null,null,null,null,null,null,null,null,null,null,null,null,null,null,null,null,null,null,null,{"$error":"#REF!"},"TEAK Burma Kereste (1.4 cm, 2 cm, 4 cm, 5.3 cm, 6.5 cm kalınlık) x (130 mm geniş) x (180-290 cm boy) BT-106","M3","BT-106","catalog/silinmis-kereste/ks-113-iroko-silinmis-profil-ahsap-kereste-78mm-x-16mm-01.jpg",6142,null,{"$f":"CONCATENATE(#REF!, BB177)","v":{"$error":"#REF!"}}]
[null,null,null,null,null,null,null,null,null,null,null,null,null,null,null,null,null,null,null,null,null,null,null,null,null,null,null,null,null,null,null,null,null,null,null,null,null,null,null,null,null,null,null,null,null,null,null,null,null,{"$error":"#REF!"},"TEAK Burma Kereste (1.4 cm, 2 cm, 4 cm, 5.3 cm, 6.5 cm kalınlık) x (155 mm geniş) x (180-290 cm boy) BT-107","M3","BT-107","catalog/silinmis-kereste/ks-113-iroko-silinmis-profil-ahsap-kereste-78mm-x-16mm-01.jpg",6300,null,{"$f":"CONCATENATE(#REF!, BB178)","v":{"$error":"#REF!"}}]
[null,null,null,null,null,null,null,null,null,null,null,null,null,null,null,null,null,null,null,null,null,null,null,null,null,null,null,null,null,null,null,null,null,null,null,null,null,null,null,null,null,null,null,null,null,null,null,null,null,{"$error":"#REF!"},"TEAK Burma Kereste (1.4 cm, 2 cm, 4 cm, 5.3 cm, 6.5 cm kalınlık) x (180-260 mm geniş) x (180-290 cm boy) BT-108","M3","BT-108","catalog/silinmis-kereste/ks-113-iroko-silinmis-profil-ahsap-kereste-78mm-x-16mm-01.jpg",6825,null,{"$f":"CONCATENATE(#REF!, BB179)","v":{"$error":"#REF!"}}]
[null,null,null,null,null,null,null,null,null,null,null,null,null,null,null,null,null,null,null,null,null,null,null,null,null,null,null,null,null,null,null,null,null,null,null,null,null,null,null,null,null,null,null,null,null,null,null,null,null,{"$error":"#REF!"},"TEAK Burma Kereste (1.4 cm, 2 cm, 4 cm, 5.3 cm, 6.5 cm kalınlık) x (280 mm uzeri geniş) x (180-290 cm boy) BT-109","M3","BT-109","catalog/silinmis-kereste/ks-113-iroko-silinmis-profil-ahsap-kereste-78mm-x-16mm-01.jpg",7350,null,{"$f":"CONCATENATE(#REF!, BB180)","v":{"$error":"#REF!"}}]
[null,null,null,null,null,null,null,null,null,null,null,null,null,null,null,null,null,null,null,null,null,null,null,null,null,null,null,null,null,null,null,null,null,null,null,null,null,null,null,null,null,null,null,null,null,null,null,null,null,{"$error":"#REF!"},"TEAK Burma Kereste (5.5 cm, 6.5 cm, 10 cm ve üzeri kalınlık) x (10 - 13 cm geniş) x (300 cm üzeri boy) BT-110","M3","BT-110","catalog/silinmis-kereste/ks-113-iroko-silinmis-profil-ahsap-kereste-78mm-x-16mm-01.jpg",6825,null,{"$f":"CONCATENATE(#REF!, BB181)","v":{"$error":"#REF!"}}]
[null,null,null,null,null,null,null,null,null,null,null,null,null,null,null,null,null,null,null,null,null,null,null,null,null,null,null,null,null,null,null,null,null,null,null,null,null,null,null,null,null,null,null,null,null,null,null,null,null,{"$error":"#REF!"},"TEAK Burma Kereste (5.5 cm, 6.5 cm, 10 cm ve üzeri kalınlık) x (15,5 - 18 cm geniş) x (300 cm üzeri boy) BT-111","M3","BT-111","catalog/silinmis-kereste/ks-113-iroko-silinmis-profil-ahsap-kereste-78mm-x-16mm-01.jpg",7080,null,{"$f":"CONCATENATE(#REF!, BB182)","v":{"$error":"#REF!"}}]
[null,null,null,null,null,null,null,null,null,null,null,null,null,null,null,null,null,null,null,null,null,null,null,null,null,null,null,null,null,null,null,null,null,null,null,null,null,null,null,null,null,null,null,null,null,null,null,null,null,{"$error":"#REF!"},"TEAK Burma Kereste (5.5 cm, 6.5 cm, 10 cm ve üzeri kalınlık) x (18 - 26 cm geniş) x (300 cm üzeri boy) BT-112","M3","BT-112","catalog/silinmis-kereste/ks-113-iroko-silinmis-profil-ahsap-kereste-78mm-x-16mm-01.jpg",7350,null,{"$f":"CONCATENATE(#REF!, BB183)","v":{"$error":"#REF!"}}]
[null,null,null,null,null,null,null,null,null,null,null,null,null,null,null,null,null,null,null,null,null,null,null,null,null,null,null,null,null,null,null,null,null,null,null,null,null,null,null,null,null,null,null,null,null,null,null,null,null,{"$error":"#REF!"},"TEAK Burma Kereste (5.5 cm, 6.5 cm, 10 cm ve üzeri kalınlık) x (28 cm üzeri geniş) x (300 cm üzeri boy) BT-113","M3","BT-113","catalog/silinmis-kereste/ks-113-iroko-silinmis-profil-ahsap-kereste-78mm-x-16mm-01.jpg",7880,null,{"$f":"CONCATENATE(#REF!, BB184)","v":{"$error":"#REF!"}}]
[null,null,null,null,null,null,null,null,null,null,null,null,null,null,null,null,null,null,null,null,null,null,null,null,null,null,null,null,null,null,null,null,null,null,null,null,null,null,null,null,null,null,null,null,null,null,null,null,null,{"$error":"#REF!"},"TEAK Burma Kereste  (1 cm kalınlık x 5 cm geniş) x (90 - 170 cm arası boy) BT-121","M2","BT-121","catalog/Profil/silinmis-profil-kereste/bt-121-123-teak-profil-ahsap-silinmis-kereste-50mm-x-10mm.jpg",65,null,{"$f":"CONCATENATE(#REF!, BB185)","v":{"$error":"#REF!"}}]
[null,null,null,null,null,null,null,null,null,null,null,null,null,null,null,null,null,null,null,null,null,null,null,null,null,null,null,null,null,null,null,null,null,null,null,null,null,null,null,null,null,null,null,null,null,null,null,null,null,{"$error":"#REF!"},"TEAK Burma Kereste  (1 cm kalınlık x 7,5 cm geniş) x (90 - 170 cm arası boy) BT-122","M2","BT-122","catalog/silinmis-kereste/ks-113-iroko-silinmis-profil-ahsap-kereste-78mm-x-16mm-01.jpg",71,null,{"$f":"CONCATENATE(#REF!, BB186)","v":{"$error":"#REF!"}}]
[null,null,null,null,null,null,null,null,null,null,null,null,null,null,null,null,null,null,null,null,null,null,null,null,null,null,null,null,null,null,null,null,null,null,null,null,null,null,null,null,null,null,null,null,null,null,null,null,null,{"$error":"#REF!"},"TEAK Burma Kereste  (1 cm kalınlık x 5 cm geniş) x (180 - 240 cm arası boy) BT-123","M2","BT-123","catalog/Profil/silinmis-profil-kereste/bt-121-123-teak-profil-ahsap-silinmis-kereste-50mm-x-10mm.jpg",75,null,{"$f":"CONCATENATE(#REF!, BB187)","v":{"$error":"#REF!"}}]
[null,null,null,null,null,null,null,null,null,null,null,null,null,null,null,null,null,null,null,null,null,null,null,null,null,null,null,null,null,null,null,null,null,null,null,null,null,null,null,null,null,null,null,null,null,null,null,null,null,{"$error":"#REF!"},"TEAK Burma Kereste  (1 cm kalınlık x 7,5 cm geniş) x (180 - 240 cm arası boy) BT-124","M2","BT-124","catalog/silinmis-kereste/ks-113-iroko-silinmis-profil-ahsap-kereste-78mm-x-16mm-01.jpg",80,null,{"$f":"CONCATENATE(#REF!, BB188)","v":{"$error":"#REF!"}}]
[null,null,null,null,null,null,null,null,null,null,null,null,null,null,null,null,null,null,null,null,null,null,null,null,null,null,null,null,null,null,null,null,null,null,null,null,null,null,null,null,null,null,null,null,null,null,null,null,null,{"$error":"#REF!"},"TEAK Burma Kereste  (1 cm kalınlık x 9,5 cm geniş) x (180 - 240 cm arası boy) BT-125","M2","BT-125","catalog/silinmis-kereste/ks-113-iroko-silinmis-profil-ahsap-kereste-78mm-x-16mm-01.jpg",85,null,{"$f":"CONCATENATE(#REF!, BB189)","v":{"$error":"#REF!"}}]
[null,null,null,null,null,null,null,null,null,null,null,null,null,null,null,null,null,null,null,null,null,null,null,null,null,null,null,null,null,null,null,null,null,null,null,null,null,null,null,null,null,null,null,null,null,null,null,null,null,{"$error":"#REF!"},"TEAK Burma Kereste  (1 cm kalınlık x 12,5 cm geniş) x (180 - 240 cm arası boy) BT-126","M2","BT-126","catalog/silinmis-kereste/ks-113-iroko-silinmis-profil-ahsap-kereste-78mm-x-16mm-01.jpg",90,null,{"$f":"CONCATENATE(#REF!, BB190)","v":{"$error":"#REF!"}}]
[null,null,null,null,null,null,null,null,null,null,null,null,null,null,null,null,null,null,null,null,null,null,null,null,null,null,null,null,null,null,null,null,null,null,null,null,null,null,null,null,null,null,null,null,null,null,null,null,null,{"$error":"#REF!"},"TEAK Burma DECK işlenmiş  (1,8 cm kalınlık x 5 cm geniş) x (90 - 170 cm arası boy) BT-131","M2","BT-131","catalog/silinmis-kereste/ks-113-iroko-silinmis-profil-ahsap-kereste-78mm-x-16mm-01.jpg",85,null,{"$f":"CONCATENATE(#REF!, BB191)","v":{"$error":"#REF!"}}]
[null,null,null,null,null,null,null,null,null,null,null,null,null,null,null,null,null,null,null,null,null,null,null,null,null,null,null,null,null,null,null,null,null,null,null,null,null,null,null,null,null,null,null,null,null,null,null,null,null,{"$error":"#REF!"},"Epoksi Masa Tablası  XP-01","Adet","XP-01","catalog/Epoxi-Masa/epoksi-ahsap-ceviz-mese-kestane-masa-XP-01.jpg",4060,null,{"$f":"CONCATENATE(#REF!, BB192)","v":{"$error":"#REF!"}}]
[null,null,null,null,null,null,null,null,null,null,null,null,null,null,null,null,null,null,null,null,null,null,null,null,null,null,null,null,null,null,null,null,null,null,null,null,null,null,null,null,null,null,null,null,null,null,null,null,null,{"$error":"#REF!"},"TEAK Burma DECK işlenmiş  (1,8 cm kalınlık x 5 cm geniş) x (90 - 170 cm arası boy) BT-132","M2","BT-132","catalog/silinmis-kereste/ks-113-iroko-silinmis-profil-ahsap-kereste-78mm-x-16mm-01.jpg",79,null,{"$f":"CONCATENATE(#REF!, BB193)","v":{"$error":"#REF!"}}]
[null,null,null,null,null,null,null,null,null,null,null,null,null,null,null,null,null,null,null,null,null,null,null,null,null,null,null,null,null,null,null,null,null,null,null,null,null,null,null,null,null,null,null,null,null,null,null,null,null,{"$error":"#REF!"},"TEAK Burma DECK işlenmiş  (1,8 cm kalınlık x 95 mm geniş) x (90 - 170 cm arası boy) BT-133","M2","BT-133","catalog/silinmis-kereste/ks-113-iroko-silinmis-profil-ahsap-kereste-78mm-x-16mm-01.jpg",85,null,{"$f":"CONCATENATE(#REF!, BB194)","v":{"$error":"#REF!"}}]
[null,null,null,null,null,null,null,null,null,null,null,null,null,null,null,null,null,null,null,null,null,null,null,null,null,null,null,null,null,null,null,null,null,null,null,null,null,null,null,null,null,null,null,null,null,null,null,null,null,{"$error":"#REF!"},"TEAK Burma DECK işlenmiş  (1,8 cm kalınlık x 125 mm geniş) x (90 - 170 cm arası boy) BT-134","M2","BT-134","catalog/silinmis-kereste/ks-113-iroko-silinmis-profil-ahsap-kereste-78mm-x-16mm-01.jpg",90,null,{"$f":"CONCATENATE(#REF!, BB195)","v":{"$error":"#REF!"}}]
[null,null,null,null,null,null,null,null,null,null,null,null,null,null,null,null,null,null,null,null,null,null,null,null,null,null,null,null,null,null,null,null,null,null,null,null,null,null,null,null,null,null,null,null,null,null,null,null,null,{"$error":"#REF!"},"TEAK Burma DECK işlenmiş  (1,8 cm kalınlık x 50 mm geniş) x (180 - 240 cm arası boy) BT-135","M2","BT-135","catalog/silinmis-kereste/ks-113-iroko-silinmis-profil-ahsap-kereste-78mm-x-16mm-01.jpg",85,null,{"$f":"CONCATENATE(#REF!, BB196)","v":{"$error":"#REF!"}}]
[null,null,null,null,null,null,null,null,null,null,null,null,null,null,null,null,null,null,null,null,null,null,null,null,null,null,null,null,null,null,null,null,null,null,null,null,null,null,null,null,null,null,null,null,null,null,null,null,null,{"$error":"#REF!"},"TEAK Burma DECK işlenmiş  (1,8 cm kalınlık x 75 mm geniş) x (180 - 240 cm arası boy) BT-136","M2","BT-136","catalog/silinmis-kereste/ks-113-iroko-silinmis-profil-ahsap-kereste-78mm-x-16mm-01.jpg",89,null,{"$f":"CONCATENATE(#REF!, BB197)","v":{"$error":"#REF!"}}]
[null,null,null,null,null,null,null,null,null,null,null,null,null,null,null,null,null,null,null,null,null,null,null,null,null,null,null,null,null,null,null,null,null,null,null,null,null,null,null,null,null,null,null,null,null,null,null,null,null,{"$error":"#REF!"},"TEAK Burma DECK işlenmiş  (1,8 cm kalınlık x 90 mm geniş) x (180 - 240 cm arası boy) BT-137","M2","BT-137","catalog/silinmis-kereste/ks-113-iroko-silinmis-profil-ahsap-kereste-78mm-x-16mm-01.jpg",99,null,{"$f":"CONCATENATE(#REF!, BB198)","v":{"$error":"#REF!"}}]
[null,null,null,null,null,null,null,null,null,null,null,null,null,null,null,null,null,null,null,null,null,null,null,null,null,null,null,null,null,null,null,null,null,null,null,null,null,null,null,null,null,null,null,null,null,null,null,null,null,{"$error":"#REF!"},"TEAK Burma DECK işlenmiş  (1,8 cm kalınlık x 125 mm geniş) x (180 - 240 cm arası boy) BT-138","M2","BT-138","catalog/silinmis-kereste/ks-113-iroko-silinmis-profil-ahsap-kereste-78mm-x-16mm-01.jpg",115,null,{"$f":"CONCATENATE(#REF!, BB199)","v":{"$error":"#REF!"}}]
[null,null,null,null,null,null,null,null,null,null,null,null,null,null,null,null,null,null,null,null,null,null,null,null,null,null,null,null,null,null,null,null,null,null,null,null,null,null,null,null,null,null,null,null,null,null,null,null,null,{"$error":"#REF!"},"TEAK Burma DECK işlenmiş  (2,4 cm kalınlık x 5 cm geniş) x (90 - 170 cm arası boy) BT-151","M2","BT-151","catalog/silinmis-kereste/ks-113-iroko-silinmis-profil-ahsap-kereste-78mm-x-16mm-01.jpg",93,null,{"$f":"CONCATENATE(#REF!, BB200)","v":{"$error":"#REF!"}}]
[null,null,null,null,null,null,null,null,null,null,null,null,null,null,null,null,null,null,null,null,null,null,null,null,null,null,null,null,null,null,null,null,null,null,null,null,null,null,null,null,null,null,null,null,null,null,null,null,null,{"$error":"#REF!"},"TEAK Burma DECK işlenmiş  (2,4 cm kalınlık x 7,5 cm geniş) x (90 - 170 cm arası boy) BT-152","M2","BT-152","catalog/silinmis-kereste/ks-113-iroko-silinmis-profil-ahsap-kereste-78mm-x-16mm-01.jpg",99,null,{"$f":"CONCATENATE(#REF!, BB201)","v":{"$error":"#REF!"}}]
[null,null,null,null,null,null,null,null,null,null,null,null,null,null,null,null,null,null,null,null,null,null,null,null,null,null,null,null,null,null,null,null,null,null,null,null,null,null,null,null,null,null,null,null,null,null,null,null,null,{"$error":"#REF!"},"TEAK Burma DECK işlenmiş  (2,4 cm kalınlık x 9,5 cm geniş) x (90 - 170 cm arası boy) BT-153","M2","BT-153","catalog/silinmis-kereste/ks-113-iroko-silinmis-profil-ahsap-kereste-78mm-x-16mm-01.jpg",110,null,{"$f":"CONCATENATE(#REF!, BB202)","v":{"$error":"#REF!"}}]
[null,null,null,null,null,null,null,null,null,null,null,null,null,null,null,null,null,null,null,null,null,null,null,null,null,null,null,null,null,null,null,null,null,null,null,null,null,null,null,null,null,null,null,null,null,null,null,null,null,{"$error":"#REF!"},"TEAK Burma DECK işlenmiş  (2,4 cm kalınlık x 12,5 cm geniş) x (90 - 170 cm arası boy) BT-154","M2","BT-154","catalog/silinmis-kereste/ks-113-iroko-silinmis-profil-ahsap-kereste-78mm-x-16mm-01.jpg",125,null,{"$f":"CONCATENATE(#REF!, BB203)","v":{"$error":"#REF!"}}]
[null,null,null,null,null,null,null,null,null,null,null,null,null,null,null,null,null,null,null,null,null,null,null,null,null,null,null,null,null,null,null,null,null,null,null,null,null,null,null,null,null,null,null,null,null,null,null,null,null,{"$error":"#REF!"},"TEAK Burma DECK işlenmiş  (2,4 cm kalınlık x 5 cm geniş) x (180 - 240 cm arası boy) BT-155","M2","BT-155","catalog/silinmis-kereste/ks-113-iroko-silinmis-profil-ahsap-kereste-78mm-x-16mm-01.jpg",120,null,{"$f":"CONCATENATE(#REF!, BB204)","v":{"$error":"#REF!"}}]
[null,null,null,null,null,null,null,null,null,null,null,null,null,null,null,null,null,null,null,null,null,null,null,null,null,null,null,null,null,null,null,null,null,null,null,null,null,null,null,null,null,null,null,null,null,null,null,null,null,{"$error":"#REF!"},"TEAK Burma DECK işlenmiş  (2,4 cm kalınlık x 7,5 cm geniş) x (180 - 240 cm arası boy) BT-156","M2","BT-156","catalog/silinmis-kereste/ks-113-iroko-silinmis-profil-ahsap-kereste-78mm-x-16mm-01.jpg",130,null,{"$f":"CONCATENATE(#REF!, BB205)","v":{"$error":"#REF!"}}]
[null,null,null,null,null,null,null,null,null,null,null,null,null,null,null,null,null,null,null,null,null,null,null,null,null,null,null,null,null,null,null,null,null,null,null,null,null,null,null,null,null,null,null,null,null,null,null,null,null,{"$error":"#REF!"},"TEAK Burma DECK işlenmiş  (2,4 cm kalınlık x 9,5 cm geniş) x (180 - 240 cm arası boy) BT-157","M2","BT-157","catalog/silinmis-kereste/ks-113-iroko-silinmis-profil-ahsap-kereste-78mm-x-16mm-01.jpg",150,null,{"$f":"CONCATENATE(#REF!, BB206)","v":{"$error":"#REF!"}}]
[null,null,null,null,null,null,null,null,null,null,null,null,null,null,null,null,null,null,null,null,null,null,null,null,null,null,null,null,null,null,null,null,null,null,null,null,null,null,null,null,null,null,null,null,null,null,null,null,null,{"$error":"#REF!"},"TEAK Burma DECK işlenmiş  (2,4 cm kalınlık x 12,5 cm geniş) x (180 - 240 cm arası boy) BT-158","M2","BT-158","catalog/silinmis-kereste/ks-113-iroko-silinmis-profil-ahsap-kereste-78mm-x-16mm-01.jpg",165,null,{"$f":"CONCATENATE(#REF!, BB207)","v":{"$error":"#REF!"}}]
[null,null,null,null,null,null,null,null,null,null,null,null,null,null,null,null,null,null,null,null,null,null,null,null,null,null,null,null,null,null,null,null,null,null,null,null,null,null,null,null,null,null,null,null,null,null,null,null,null,{"$error":"#REF!"},"IROKO DECK  (1,8 cm kalınlık x 9,5 cm geniş) x (90 - 190 cm arası boy %25-30 -- 200 - 300 cm arası boy %70-75) BT-181","M2","BT-181","catalog/silinmis-kereste/ks-113-iroko-silinmis-profil-ahsap-kereste-78mm-x-16mm-01.jpg",30,null,{"$f":"CONCATENATE(#REF!, BB208)","v":{"$error":"#REF!"}}]
[null,null,null,null,null,null,null,null,null,null,null,null,null,null,null,null,null,null,null,null,null,null,null,null,null,null,null,null,null,null,null,null,null,null,null,null,null,null,null,null,null,null,null,null,null,null,null,null,null,{"$error":"#REF!"},"IROKO DECK  (2,2 cm kalınlık x 9,5 cm geniş) x (90 - 190 cm arası boy %25-30 -- 200 - 300 cm arası boy %70-75) BT-182","M2","BT-182","catalog/silinmis-kereste/ks-113-iroko-silinmis-profil-ahsap-kereste-78mm-x-16mm-01.jpg",35.5,null,{"$f":"CONCATENATE(#REF!, BB209)","v":{"$error":"#REF!"}}]
[null,null,null,null,null,null,null,null,null,null,null,null,null,null,null,null,null,null,null,null,null,null,null,null,null,null,null,null,null,null,null,null,null,null,null,null,null,null,null,null,null,null,null,null,null,null,null,null,null,{"$error":"#REF!"},"IROKO DECK  (2,9 cm kalınlık x 9,5 cm geniş) x (90 - 190 cm arası boy %25-30 -- 200 - 300 cm arası boy %70-75) BT-183","M2","BT-183","catalog/silinmis-kereste/ks-113-iroko-silinmis-profil-ahsap-kereste-78mm-x-16mm-01.jpg",46.5,null,{"$f":"CONCATENATE(#REF!, BB210)","v":{"$error":"#REF!"}}]
[null,null,null,null,null,null,null,null,null,null,null,null,null,null,null,null,null,null,null,null,null,null,null,null,null,null,null,null,null,null,null,null,null,null,null,null,null,null,null,null,null,null,null,null,null,null,null,null,null,{"$error":"#REF!"},"IROKO DECK  (4,5 cm kalınlık x 9,5 cm geniş) x (90 - 190 cm arası boy %25-30 -- 200 - 300 cm arası boy %70-75) BT-184","M2","BT-184","catalog/silinmis-kereste/ks-113-iroko-silinmis-profil-ahsap-kereste-78mm-x-16mm-01.jpg",68,null,{"$f":"CONCATENATE(#REF!, BB211)","v":{"$error":"#REF!"}}]
[null,null,null,null,null,null,null,null,null,null,null,null,null,null,null,null,null,null,null,null,null,null,null,null,null,null,null,null,null,null,null,null,null,null,null,null,null,null,null,null,null,null,null,null,null,null,null,null,null,{"$error":"#REF!"},"IROKO DECK  (1,8 cm kalınlık x 12,5 cm geniş) x (90 - 190 cm arası boy %25-30 -- 200 - 300 cm arası boy %70-75) BT-185","M2","BT-185","catalog/silinmis-kereste/ks-113-iroko-silinmis-profil-ahsap-kereste-78mm-x-16mm-01.jpg",33,null,{"$f":"CONCATENATE(#REF!, BB212)","v":{"$error":"#REF!"}}]
[null,null,null,null,null,null,null,null,null,null,null,null,null,null,null,null,null,null,null,null,null,null,null,null,null,null,null,null,null,null,null,null,null,null,null,null,null,null,null,null,null,null,null,null,null,null,null,null,null,{"$error":"#REF!"},"IROKO DECK  (2,2 cm kalınlık x 12,5 cm geniş) x (90 - 190 cm arası boy %25-30 -- 200 - 300 cm arası boy %70-75) BT-186","M2","BT-186","catalog/silinmis-kereste/ks-113-iroko-silinmis-profil-ahsap-kereste-78mm-x-16mm-01.jpg",38,null,{"$f":"CONCATENATE(#REF!, BB213)","v":{"$error":"#REF!"}}]
[null,null,null,null,null,null,null,null,null,null,null,null,null,null,null,null,null,null,null,null,null,null,null,null,null,null,null,null,null,null,null,null,null,null,null,null,null,null,null,null,null,null,null,null,null,null,null,null,null,{"$f":"HYPERLINK(BE214,BA214)","v":{"$error":"#REF!"}},"IROKO DECK  (2,2 cm kalınlık x 12,5 cm geniş) x (90 - 190 cm arası boy %25-30 -- 200 - 300 cm arası boy %70-75) BT-187","M2","BT-187","catalog/silinmis-kereste/ks-113-iroko-silinmis-profil-ahsap-kereste-78mm-x-16mm-01.jpg",50,null,{"$f":"CONCATENATE(#REF!, BB214)","v":{"$error":"#REF!"}}]
[null,null,null,null,null,null,null,null,null,null,null,null,null,null,null,null,null,null,null,null,null,null,null,null,null,null,null,null,null,null,null,null,null,null,null,null,null,null,null,null,null,null,null,null,null,null,null,null,null,{"$error":"#REF!"},"IROKO DECK  (4,5 cm kalınlık x 12,5 cm geniş) x (90 - 190 cm arası boy %25-30 -- 200 - 300 cm arası boy %70-75) BT-188","M2","BT-188","catalog/silinmis-kereste/ks-113-iroko-silinmis-profil-ahsap-kereste-78mm-x-16mm-01.jpg",74,null,{"$f":"CONCATENATE(#REF!, BB215)","v":{"$error":"#REF!"}}]
[null,null,null,null,null,null,null,null,null,null,null,null,null,null,null,null,null,null,null,null,null,null,null,null,null,null,null,null,null,null,null,null,null,null,null,null,null,null,null,null,null,null,null,null,null,null,null,null,null,{"$error":"#REF!"},"SİBİRYA DECK Ahşap ÇAM 18 mm DC-102","M2","DC-102","catalog/deck/cam-dc-101/dc-101-cam-deck-ahsap-profil-yer-doseme-01.jpg",76.56,null,{"$f":"CONCATENATE(#REF!, BB216)","v":{"$error":"#REF!"}}]
[null,null,null,null,null,null,null,null,null,null,null,null,null,null,null,null,null,null,null,null,null,null,null,null,null,null,null,null,null,null,null,null,null,null,null,null,null,null,null,null,null,null,null,null,null,null,null,null,null,{"$error":"#REF!"},"5 x 10 Silinmiş Kereste Sibirya -KS-100","M3","KS-100","catalog/silinmis-kereste/ks-101-cam-dogramalik-silinmis-sinif-kereste-5x10-01.jpg",2300,null,{"$f":"CONCATENATE(#REF!, BB217)","v":{"$error":"#REF!"}}]
[null,null,null,null,null,null,null,null,null,null,null,null,null,null,null,null,null,null,null,null,null,null,null,null,null,null,null,null,null,null,null,null,null,null,null,null,null,null,null,null,null,null,null,null,null,null,null,null,null,{"$error":"#REF!"},"5 x 12,5 Silinmiş Kereste SİBİRYA -KS-106","M3","KS-106","catalog/silinmis-kereste/ks-103-cam-dogramalik-silinmis-sinif-kereste-5x15-01.jpg",2300,null,{"$f":"CONCATENATE(#REF!, BB218)","v":{"$error":"#REF!"}}]
[null,null,null,null,null,null,null,null,null,null,null,null,null,null,null,null,null,null,null,null,null,null,null,null,null,null,null,null,null,null,null,null,null,null,null,null,null,null,null,null,null,null,null,null,null,null,null,null,null,{"$error":"#REF!"},"Epoksi Masa Tablası XP-02","Adet","XP-02","catalog/Epoxi-Masa/epoksi-ahsap-ceviz-mese-kestane-masa-XP-02.jpg",3480,null,{"$f":"CONCATENATE(#REF!, BB219)","v":{"$error":"#REF!"}}]
[null,null,null,null,null,null,null,null,null,null,null,null,null,null,null,null,null,null,null,null,null,null,null,null,null,null,null,null,null,null,null,null,null,null,null,null,null,null,null,null,null,null,null,null,null,null,null,null,null,{"$error":"#REF!"},"Kamelya (10 x 10 cm) Demir galvaniz Ayak AG-101","Adet","AG-101","catalog/metal-ayak/AG-101-a.jpg",25,null,{"$f":"CONCATENATE(#REF!, BB220)","v":{"$error":"#REF!"}}]
[null,null,null,null,null,null,null,null,null,null,null,null,null,null,null,null,null,null,null,null,null,null,null,null,null,null,null,null,null,null,null,null,null,null,null,null,null,null,null,null,null,null,null,null,null,null,null,null,null,{"$error":"#REF!"},"Kamelya (11 x 11 cm) Demir galvaniz Ayak AG-102","Adet","AG-102","catalog/metal-ayak/AG-102-a.jpg",30,null,{"$f":"CONCATENATE(#REF!, BB221)","v":{"$error":"#REF!"}}]
[null,null,null,null,null,null,null,null,null,null,null,null,null,null,null,null,null,null,null,null,null,null,null,null,null,null,null,null,null,null,null,null,null,null,null,null,null,null,null,null,null,null,null,null,null,null,null,null,null,{"$error":"#REF!"},"Kamelya (12,5 x 12,5 cm) Demir galvaniz Ayak AG-103","Adet","AG-103","catalog/metal-ayak/AG-103-a.jpg",31.32,null,{"$f":"CONCATENATE(#REF!, BB222)","v":{"$error":"#REF!"}}]
[null,null,null,null,null,null,null,null,null,null,null,null,null,null,null,null,null,null,null,null,null,null,null,null,null,null,null,null,null,null,null,null,null,null,null,null,null,null,null,null,null,null,null,null,null,null,null,null,null,{"$error":"#REF!"},"Çit Demir galvaniz Ayak (9,5 x 9,5 cm) AG-104","Adet","AG-104","catalog/metal-ayak/AG-104-a.jpg",46,null,{"$f":"CONCATENATE(#REF!, BB223)","v":{"$error":"#REF!"}}]
[null,null,null,null,null,null,null,null,null,null,null,null,null,null,null,null,null,null,null,null,null,null,null,null,null,null,null,null,null,null,null,null,null,null,null,null,null,null,null,null,null,null,null,null,null,null,null,null,null,{"$error":"#REF!"},"Demir Masa Tabla Ayakları AG-111","Adet","AG-111","catalog/metal-ayak/AG-111-metal-masa-ayak-01.jpg",464,null,{"$f":"CONCATENATE(#REF!, BB224)","v":{"$error":"#REF!"}}]
[null,null,null,null,null,null,null,null,null,null,null,null,null,null,null,null,null,null,null,null,null,null,null,null,null,null,null,null,null,null,null,null,null,null,null,null,null,null,null,null,null,null,null,null,null,null,null,null,null,{"$error":"#REF!"},"Epoksi Masa Tablası  XP-03","Adet","XP-03","catalog/Epoxi-Masa/epoksi-ahsap-ceviz-mese-kestane-masa-XP-03.jpg",3480,null,{"$f":"CONCATENATE(#REF!, BB225)","v":{"$error":"#REF!"}}]
[null,null,null,null,null,null,null,null,null,null,null,null,null,null,null,null,null,null,null,null,null,null,null,null,null,null,null,null,null,null,null,null,null,null,null,null,null,null,null,null,null,null,null,null,null,null,null,null,null,{"$error":"#REF!"},"Epoksi Masa Tablası  XP-04","Adet","XP-04","catalog/Epoxi-Masa/epoksi-ahsap-ceviz-mese-kestane-masa-XP-04.jpg",4060,null,{"$f":"CONCATENATE(#REF!, BB226)","v":{"$error":"#REF!"}}]
[null,null,null,null,null,null,null,null,null,null,null,null,null,null,null,null,null,null,null,null,null,null,null,null,null,null,null,null,null,null,null,null,null,null,null,null,null,null,null,null,null,null,null,null,null,null,null,null,null,{"$error":"#REF!"},"Epoksi Masa Tablası  XP-05","Adet","XP-05","catalog/Epoxi-Masa/epoksi-ahsap-ceviz-mese-kestane-masa-XP-05.jpg",3480,null,{"$f":"CONCATENATE(#REF!, BB227)","v":{"$error":"#REF!"}}]
[null,null,null,null,null,null,null,null,null,null,null,null,null,null,null,null,null,null,null,null,null,null,null,null,null,null,null,null,null,null,null,null,null,null,null,null,null,null,null,null,null,null,null,null,null,null,null,null,null,{"$error":"#REF!"},"Epoksi Masa Tablası  XP-06","Adet","XP-06","catalog/Epoxi-Masa/epoksi-ahsap-ceviz-mese-kestane-masa-XP-06.jpg",2900,null,{"$f":"CONCATENATE(#REF!, BB228)","v":{"$error":"#REF!"}}]
[null,null,null,null,null,null,null,null,null,null,null,null,null,null,null,null,null,null,null,null,null,null,null,null,null,null,null,null,null,null,null,null,null,null,null,null,null,null,null,null,null,null,null,null,null,null,null,null,null,{"$error":"#REF!"},"Epoksi Masa Tablası  XP-07","Adet","XP-07","catalog/Epoxi-Masa/epoksi-ahsap-ceviz-mese-kestane-masa-XP-07.jpg",2668,null,{"$f":"CONCATENATE(#REF!, BB229)","v":{"$error":"#REF!"}}]
[null,null,null,null,null,null,null,null,null,null,null,null,null,null,null,null,null,null,null,null,null,null,null,null,null,null,null,null,null,null,null,null,null,null,null,null,null,null,null,null,null,null,null,null,null,null,null,null,null,{"$error":"#REF!"},"Epoksi Masa Tablası  XP-08","Adet","XP-08","catalog/Epoxi-Masa/epoksi-ahsap-ceviz-mese-kestane-masa-XP-08.jpg",3480,null,{"$f":"CONCATENATE(#REF!, BB230)","v":{"$error":"#REF!"}}]
[null,null,null,null,null,null,null,null,null,null,null,null,null,null,null,null,null,null,null,null,null,null,null,null,null,null,null,null,null,null,null,null,null,null,null,null,null,null,null,null,null,null,null,null,null,null,null,null,null,{"$error":"#REF!"},"Epoksi Masa Tablası  XP-09","Adet","XP-09","catalog/Epoxi-Masa/epoksi-ahsap-ceviz-mese-kestane-masa-XP-09.jpg",1508,null,{"$f":"CONCATENATE(#REF!, BB231)","v":{"$error":"#REF!"}}]
[null,null,null,null,null,null,null,null,null,null,null,null,null,null,null,null,null,null,null,null,null,null,null,null,null,null,null,null,null,null,null,null,null,null,null,null,null,null,null,null,null,null,null,null,null,null,null,null,null,{"$error":"#REF!"},"Epoksi Masa Tablası  XP-10","Adet","XP-10","catalog/Epoxi-Masa/epoksi-ahsap-ceviz-mese-kestane-masa-XP-10.jpg",6960,null,{"$f":"CONCATENATE(#REF!, BB232)","v":{"$error":"#REF!"}}]
[null,null,null,null,null,null,null,null,null,null,null,null,null,null,null,null,null,null,null,null,null,null,null,null,null,null,null,null,null,null,null,null,null,null,null,null,null,null,null,null,null,null,null,null,null,null,null,null,null,{"$error":"#REF!"},"TAVUK ve KANATLI HAYVAN KÜMESİ UK-105","Adet","UK-105","catalog/kumes/UK-105/tavuk-ve-kanatli-hayvan-kumesi-UK-105-03.jpg",4640,null,{"$f":"CONCATENATE(#REF!, BB233)","v":{"$error":"#REF!"}}]
[null,null,null,null,null,null,null,null,null,null,null,null,null,null,null,null,null,null,null,null,null,null,null,null,null,null,null,null,null,null,null,null,null,null,null,null,null,null,null,null,null,null,null,null,null,null,null,null,null,{"$error":"#REF!"},"TAVUK ve KANATLI HAYVAN KÜMESİ UK-106","Adet","UK-106","catalog/kumes/UK-106/tavuk-kumesi-ve-guvercin-kumesi-www.kayalarkereste.com-uk-106-01.jpg",3712,null,{"$f":"CONCATENATE(#REF!, BB234)","v":{"$error":"#REF!"}}]
[null,null,null,null,null,null,null,null,null,null,null,null,null,null,null,null,null,null,null,null,null,null,null,null,null,null,null,null,null,null,null,null,null,null,null,null,null,null,null,null,null,null,null,null,null,null,null,null,null,{"$error":"#REF!"},"Kamelya - Çardak  164","Adet","KM-164","catalog/Kamelya-cardak/KM-164/KM-164-kamelya-ahsap-dinlenme-alani-kis-bahcesi-cardak-gazebo-fiyatlari-www.kayalarkereste.com- 01.jpg",9600,null,{"$f":"CONCATENATE(#REF!, BB235)","v":{"$error":"#REF!"}}]
[null,null,null,null,null,null,null,null,null,null,null,null,null,null,null,null,null,null,null,null,null,null,null,null,null,null,null,null,null,null,null,null,null,null,null,null,null,null,null,null,null,null,null,null,null,null,null,null,null,{"$error":"#REF!"},"PM-101 Piknik Masa Sibirya Ağacı","Adet","PM-101","catalog/Piknik-Masa/PM-101/ahsap-piknik-masa-fiyatlari-ucuz-kir-piknik-masa-cesitleri-www.kayalarahsap.com-PM-101-10.jpg",700,null,{"$f":"CONCATENATE(#REF!, BB236)","v":{"$error":"#REF!"}}]
[null,null,null,null,null,null,null,null,null,null,null,null,null,null,null,null,null,null,null,null,null,null,null,null,null,null,null,null,null,null,null,null,null,null,null,null,null,null,null,null,null,null,null,null,null,null,null,null,null,{"$error":"#REF!"},"Ahşap Pergola  PR-108","Adet","PR-108","catalog/pergola/PR-108/PR-108-pergola-ahsap-cardak-gazebo-fiyatlari-www.kayalarkereste.com- 02.jpg",5500,null,{"$f":"CONCATENATE(#REF!, BB237)","v":{"$error":"#REF!"}}]
[null,null,null,null,null,null,null,null,null,null,null,null,null,null,null,null,null,null,null,null,null,null,null,null,null,null,null,null,null,null,null,null,null,null,null,null,null,null,null,null,null,null,null,null,null,null,null,null,null,{"$error":"#REF!"},"Kamelya - Çardak sigara içme dinlenme alanı 167","Adet","KM-167","2018/07/fabrika-dinlenme-alani-sigara-icme-alani-gebze-tuzla-sekerpinar-kocaeli-KM-167-3.jpg",10500,null,{"$f":"CONCATENATE(#REF!, BB238)","v":{"$error":"#REF!"}}]
[null,null,null,null,null,null,null,null,null,null,null,null,null,null,null,null,null,null,null,null,null,null,null,null,null,null,null,null,null,null,null,null,null,null,null,null,null,null,null,null,null,null,null,null,null,null,null,null,null,{"$error":"#REF!"},"Kamelya - Çardak  165","Adet","KM-165","catalog/Kamelya-cardak/KM-165/KM-165-ahsap-kuuk-hazir-kamelya-bahce-cardak-gazebo-fiyatlari-ucuz-kamelya-kameriye-www.kayalarkereste.com-01.jpg",3200,null,{"$f":"CONCATENATE(#REF!, BB239)","v":{"$error":"#REF!"}}]
[null,null,null,null,null,null,null,null,null,null,null,null,null,null,null,null,null,null,null,null,null,null,null,null,null,null,null,null,null,null,null,null,null,null,null,null,null,null,null,null,null,null,null,null,null,null,null,null,null,{"$error":"#REF!"},"Kamelya - Çardak sigara içme dinlenme alanı 166","M2","KM-166","catalog/Kamelya-cardak/KM-166/KM-166-ahsap-sigara-icme-dinlenme-kamelya-bahce-cardak-gebze-tuzla-fiyatlari-www.kayalarkereste.com-3.jpg",800,null,{"$f":"CONCATENATE(#REF!, BB240)","v":{"$error":"#REF!"}}]
[null,null,null,null,null,null,null,null,null,null,null,null,null,null,null,null,null,null,null,null,null,null,null,null,null,null,null,null,null,null,null,null,null,null,null,null,null,null,null,null,null,null,null,null,null,null,null,null,null,{"$error":"#REF!"},"Kamelya - Çardak sigara içme dinlenme alanı 168","M2","KM-168","catalog/Kamelya-cardak/KM-168 GEZER-PLASTITEK/KM-168-ahsap-sigara-icme-dinlenme-kamelya-bahce-cardak-gebze-tuzla-fiyatlari-www.kayalarkereste.com-11.jpg",800,null,{"$f":"CONCATENATE(#REF!, BB241)","v":{"$error":"#REF!"}}]
[null,null,null,null,null,null,null,null,null,null,null,null,null,null,null,null,null,null,null,null,null,null,null,null,null,null,null,null,null,null,null,null,null,null,null,null,null,null,null,null,null,null,null,null,null,null,null,null,null,{"$error":"#REF!"},"Kamelya - Çardak sigara içme dinlenme alanı 169","Adet","KM-169","catalog/Kamelya-cardak/KM-169 3X3 CNC/KM-169-ahsap-dinlenme-kamelya-bahce-cardak-gebze-tuzla-fiyatlari-www.kayalarkereste.com-5.jpg",6000,null,{"$f":"CONCATENATE(#REF!, BB242)","v":{"$error":"#REF!"}}]
[null,null,null,null,null,null,null,null,null,null,null,null,null,null,null,null,null,null,null,null,null,null,null,null,null,null,null,null,null,null,null,null,null,null,null,null,null,null,null,null,null,null,null,null,null,null,null,null,null,{"$error":"#REF!"},"Kamelya - Çardak sigara içme dinlenme alanı 173","M2","KM-173","catalog/Kamelya-cardak/KM-173 DERI-SAN-6X3/KM-173-ahsap-dinlenme-kamelya-bahce-cardak-gebze-tuzla-fiyatlari-www.kayalarkereste.com-1.jpg",650,null,{"$f":"CONCATENATE(#REF!, BB243)","v":{"$error":"#REF!"}}]
[null,null,null,null,null,null,null,null,null,null,null,null,null,null,null,null,null,null,null,null,null,null,null,null,null,null,null,null,null,null,null,null,null,null,null,null,null,null,null,null,null,null,null,null,null,null,null,null,null,{"$error":"#REF!"},"Kamelya - Çardak sigara içme dinlenme alanı 174","Adet","KM-174","catalog/Kamelya-cardak/KM-174/km-174-ahsap-veranda-kamelya-cardak-kameriye-fiyatlari-www.kayalarkereste.com-07.jpg",8000,null,{"$f":"CONCATENATE(#REF!, BB244)","v":{"$error":"#REF!"}}]
[null,null,null,null,null,null,null,null,null,null,null,null,null,null,null,null,null,null,null,null,null,null,null,null,null,null,null,null,null,null,null,null,null,null,null,null,null,null,null,null,null,null,null,null,null,null,null,null,null,{"$error":"#REF!"},"Ahşap Çocuk Oyun Evi VH-110","Adet","VH-110","catalog/cocuk-evi/VH-110/VH-110-ahsap-cocuk-oyun-evi-02.jpg",11000,null,{"$f":"CONCATENATE(#REF!, BB245)","v":{"$error":"#REF!"}}]
[null,null,null,null,null,null,null,null,null,null,null,null,null,null,null,null,null,null,null,null,null,null,null,null,null,null,null,null,null,null,null,null,null,null,null,null,null,null,null,null,null,null,null,null,null,null,null,null,null,{"$error":"#REF!"},"Ahşap Çocuk Oyun Evi VH-111","Adet","VH-111","catalog/cocuk-evi/VH-111/VH-111-ahsap-cocuk-oyun-evi-fiyatlari-cesitleri-resimleri-gebze-tuzla-pendik-sile-www.kayalarkereste.com-01.gif",9500,null,{"$f":"CONCATENATE(#REF!, BB246)","v":{"$error":"#REF!"}}]
[null,null,null,null,null,null,null,null,null,null,null,null,null,null,null,null,null,null,null,null,null,null,null,null,null,null,null,null,null,null,null,null,null,null,null,null,null,null,null,null,null,null,null,null,null,null,null,null,null,{"$error":"#REF!"},"Ahşap Çit Korkuluk  AC-105","Metre","AC-105","catalog/cit-korkuluk/AC-105/AC-105-ahsap-cit-korkuluk-fiyatlari-cesitleri-resimleri-www.kayalarkereste.com-04.jpg",120,null,{"$f":"CONCATENATE(#REF!, BB247)","v":{"$error":"#REF!"}}]
[null,null,null,null,null,null,null,null,null,null,null,null,null,null,null,null,null,null,null,null,null,null,null,null,null,null,null,null,null,null,null,null,null,null,null,null,null,null,null,null,null,null,null,null,null,null,null,null,null,{"$error":"#REF!"},"Ahşap Çit Korkuluk  AC-106","Metre","AC-106","catalog/cit-korkuluk/AC-106/ac-105-ahsap-cit-korkuluk-modelleri-fiyatlari-resimleri-gebze-tuzla-www.kayalarkereste.com-015.jpg",180,null,{"$f":"CONCATENATE(#REF!, BB248)","v":{"$error":"#REF!"}}]
[null,null,null,null,null,null,null,null,null,null,null,null,null,null,null,null,null,null,null,null,null,null,null,null,null,null,null,null,null,null,null,null,null,null,null,null,null,null,null,null,null,null,null,null,null,null,null,null,null,{"$error":"#REF!"},"Veranda - Sundurma VR-101","M2","VR-101","catalog/Veranda/VR-101/IMG_1737.jpg",0,null,{"$f":"CONCATENATE(#REF!, BB249)","v":{"$error":"#REF!"}}]
[null,null,null,null,null,null,null,null,null,null,null,null,null,null,null,null,null,null,null,null,null,null,null,null,null,null,null,null,null,null,null,null,null,null,null,null,null,null,null,null,null,null,null,null,null,null,null,null,null,{"$error":"#REF!"},"Veranda - Sundurma VR-102","m2","VR-102","catalog/Veranda/VR-102/IMG_2399.jpg",0,null,{"$f":"CONCATENATE(#REF!, BB250)","v":{"$error":"#REF!"}}]
[null,null,null,null,null,null,null,null,null,null,null,null,null,null,null,null,null,null,null,null,null,null,null,null,null,null,null,null,null,null,null,null,null,null,null,null,null,null,null,null,null,null,null,null,null,null,null,null,null,{"$error":"#REF!"},"Veranda - Sundurma VR-102","M2","VR-103","catalog/Veranda/VR-103/VR-103-ahsap-veranda-sundurma-fiyatlari-cesitleri-istanbul-www.kayalarkereste.com-02.gif",0,null,{"$f":"CONCATENATE(#REF!, BB251)","v":{"$error":"#REF!"}}]
[null,null,null,null,null,null,null,null,null,null,null,null,null,null,null,null,null,null,null,null,null,null,null,null,null,null,null,null,null,null,null,null,null,null,null,null,null,null,null,null,null,null,null,null,null,null,null,null,null,{"$error":"#REF!"},"6,5 x 12,5 x 6 boy Silinmiş Kereste SİBİRYA LADİN -KS-107","M3","KS-107","catalog/silinmis-kereste/ks-103-cam-dogramalik-silinmis-sinif-kereste-5x15-01.jpg",2300,null,{"$f":"CONCATENATE(#REF!, BB252)","v":{"$error":"#REF!"}}]
[null,null,null,null,null,null,null,null,null,null,null,null,null,null,null,null,null,null,null,null,null,null,null,null,null,null,null,null,null,null,null,null,null,null,null,null,null,null,null,null,null,null,null,null,null,null,null,null,null,{"$error":"#REF!"},"Ahşap Bungalov ev [AV-111]","M2","AV-111","catalog/Ev/av-111/av-111-bungalov-kulube-ahsap-ev-kutuk--kulube-ev-fiyatlari-yapimi-maliyeti-resimleri-gebze-www.kayalarahsap.com-013.jpg",1600,null,{"$f":"CONCATENATE(#REF!, BB253)","v":{"$error":"#REF!"}}]
[null,null,null,null,null,null,null,null,null,null,null,null,null,null,null,null,null,null,null,null,null,null,null,null,null,null,null,null,null,null,null,null,null,null,null,null,null,null,null,null,null,null,null,null,null,null,null,null,null,{"$error":"#REF!"},"Ahşap Bungalov Ev  (AV-104)",null,"AV-104","catalog/Ev/AV-104/av-104-Ahsap-ev-kutuk-bungalov-ev-fiyatlari-cesitleri-yapimi-maliyeti-www.kayalarahsap.com-12.jpg",1566,null,{"$f":"CONCATENATE(#REF!, BB254)","v":{"$error":"#REF!"}}]
[null,null,null,null,null,null,null,null,null,null,null,null,null,null,null,null,null,null,null,null,null,null,null,null,null,null,null,null,null,null,null,null,null,null,null,null,null,null,null,null,null,null,null,null,null,null,null,null,null,{"$error":"#REF!"},"Demir Masa Tabla Ayakları AG-112",null,"AG-112","catalog/metal-ayak/AG-112-metal-masa-ayak-03.jpg",464,null,{"$f":"CONCATENATE(#REF!, BB255)","v":{"$error":"#REF!"}}]
[null,null,null,null,null,null,null,null,null,null,null,null,null,null,null,null,null,null,null,null,null,null,null,null,null,null,null,null,null,null,null,null,null,null,null,null,null,null,null,null,null,null,null,null,null,null,null,null,null,{"$error":"#REF!"},"İnşaatlık Kereste (43 x 93) - (93 x 93)  [KR-102]",null,"KR-102","catalog/Kereste/Kereste_b.JPG",990,null,{"$f":"CONCATENATE(#REF!, BB256)","v":{"$error":"#REF!"}}]
[null,null,null,null,null,null,null,null,null,null,null,null,null,null,null,null,null,null,null,null,null,null,null,null,null,null,null,null,null,null,null,null,null,null,null,null,null,null,null,null,null,null,null,null,null,null,null,null,null,{"$error":"#REF!"},"İnşaatlık Kereste (45 x 95) - (95 x 95)  [KR-103]",null,"KR-103","catalog/Kereste/Kereste_3.jpg",990,null,{"$f":"CONCATENATE(#REF!, BB257)","v":{"$error":"#REF!"}}]
[null,null,null,null,null,null,null,null,null,null,null,null,null,null,null,null,null,null,null,null,null,null,null,null,null,null,null,null,null,null,null,null,null,null,null,null,null,null,null,null,null,null,null,null,null,null,null,null,null,{"$error":"#REF!"},"BANK Yuvarlak UB-80","Adet","UB-80","catalog/Bank/UB-80/ahsap-cam-dis-mekan-altigen-bank-oturma-gruplari-fiyatlari-resimleri-www.parkbahcemobilya.com-UB-80-05.jpg",865,null,{"$f":"CONCATENATE(#REF!, BB258)","v":{"$error":"#REF!"}}]
[null,null,null,null,null,null,null,null,null,null,null,null,null,null,null,null,null,null,null,null,null,null,null,null,null,null,null,null,null,null,null,null,null,null,null,null,null,null,null,null,null,null,null,null,null,null,null,null,null,{"$error":"#REF!"},"İnşaatlık Tahta  [KR-104]","m3","KR-104","catalog/Kereste/Tahta_kereste.JPG",990,null,{"$f":"CONCATENATE(#REF!, BB259)","v":{"$error":"#REF!"}}]
[null,null,null,null,null,null,null,null,null,null,null,null,null,null,null,null,null,null,null,null,null,null,null,null,null,null,null,null,null,null,null,null,null,null,null,null,null,null,null,null,null,null,null,null,null,null,null,null,null,{"$error":"#REF!"},"OSB 11mm  [KR-111]","Adet","KR-111","catalog/Kereste/Tahta_kereste.JPG",58,null,{"$f":"CONCATENATE(#REF!, BB260)","v":{"$error":"#REF!"}}]
[null,null,null,null,null,null,null,null,null,null,null,null,null,null,null,null,null,null,null,null,null,null,null,null,null,null,null,null,null,null,null,null,null,null,null,null,null,null,null,null,null,null,null,null,null,null,null,null,null,{"$error":"#REF!"},"Ahşap Bungalov ev  [AV-113]","M2","AV-113","catalog/Ev/av-113/av-113-ahsap-kutuk-bungalov-ev-fiyatlari-01.jpg",1600,null,{"$f":"CONCATENATE(#REF!, BB261)","v":{"$error":"#REF!"}}]
[null,null,null,null,null,null,null,null,null,null,null,null,null,null,null,null,null,null,null,null,null,null,null,null,null,null,null,null,null,null,null,null,null,null,null,null,null,null,null,null,null,null,null,null,null,null,null,null,null,{"$error":"#REF!"},"Ahşap Bungalov Yalı baskı Ev [AV-114]","M2","AV-114","catalog/Ev/av-114/av-114-ahsap-kutuk-bungalov-ev-fiyatlari-tas-ev-yapimi-15.jpg",1,null,{"$f":"CONCATENATE(#REF!, BB262)","v":{"$error":"#REF!"}}]